Workbook

Sheet Date select (hidden)
A2: Select quarter | B2: 2023 Q4

Sheet Raw - New (hidden)
A1: CountryHierarchy - EU / NON EU | B1: CountryHierarchy - Continent | C1: CountryHierarchy - Country | D1: SitcHierarchy - SITC1 | E1: SitcHierarchy - SITC2 | F1: Flow Type | G1: DateHierarchy - Year | H1: DateHierarchy - Quarter | I1: Value (£ 000's) | J1: Concatenate
A2: EU | B2: European Union | C2: Austria | D2: 0 - Food & live animals | E2: 01 - Meat & meat preparations | F2: Exports (000's) | G2: 2019 | H2: Q1 | I2: 52 | J2: =CONCATENATE(G2," ",H2) -> 2019 Q1
A3: EU | B3: European Union | C3: Austria | D3: 0 - Food & live animals | E3: 01 - Meat & meat preparations | F3: Exports (000's) | G3: 2019 | H3: Q2 | I3: 67 | J3: =CONCATENATE(G3," ",H3) -> 2019 Q2
A4: EU | B4: European Union | C4: Austria | D4: 0 - Food & live animals | E4: 01 - Meat & meat preparations | F4: Exports (000's) | G4: 2019 | H4: Q3 | I4: 58 | J4: 2019 Q3
A5: EU | B5: European Union | C5: Austria | D5: 0 - Food & live animals | E5: 01 - Meat & meat preparations | F5: Exports (000's) | G5: 2019 | H5: Q4 | I5: 61 | J5: 2019 Q4
A6: EU | B6: European Union | C6: Austria | D6: 0 - Food & live animals | E6: 01 - Meat & meat preparations | F6: Exports (000's) | G6: 2020 | H6: Q1 | I6: 68 | J6: 2020 Q1
A7: EU | B7: European Union | C7: Austria | D7: 0 - Food & live animals | E7: 01 - Meat & meat preparations | F7: Exports (000's) | G7: 2020 | H7: Q2 | I7: 63 | J7: 2020 Q2
A8: EU | B8: European Union | C8: Austria | D8: 0 - Food & live animals | E8: 01 - Meat & meat preparations | F8: Exports (000's) | G8: 2020 | H8: Q3 | I8: 86 | J8: 2020 Q3
A9: EU | B9: European Union | C9: Austria | D9: 0 - Food & live animals | E9: 01 - Meat & meat preparations | F9: Exports (000's) | G9: 2020 | H9: Q4 | I9: 94 | J9: 2020 Q4
A10: EU | B10: European Union | C10: Austria | D10: 0 - Food & live animals | E10: 01 - Meat & meat preparations | F10: Exports (000's) | G10: 2021 | H10: Q1 | I10: 42 | J10: 2021 Q1
A11: EU | B11: European Union | C11: Austria | D11: 0 - Food & live animals | E11: 01 - Meat & meat preparations | F11: Exports (000's) | G11: 2021 | H11: Q2 | I11: 142 | J11: 2021 Q2
A12: EU | B12: European Union | C12: Austria | D12: 0 - Food & live animals | E12: 01 - Meat & meat preparations | F12: Exports (000's) | G12: 2021 | H12: Q3 | I12: 236 | J12: 2021 Q3
A13: EU | B13: European Union | C13: Austria | D13: 0 - Food & live animals | E13: 01 - Meat & meat preparations | F13: Exports (000's) | G13: 2021 | H13: Q4 | I13: 439 | J13: 2021 Q4
A14: EU | B14: European Union | C14: Austria | D14: 0 - Food & live animals | E14: 01 - Meat & meat preparations | F14: Exports (000's) | G14: 2022 | H14: Q1 | I14: 436 | J14: 2022 Q1
A15: EU | B15: European Union | C15: Austria | D15: 0 - Food & live animals | E15: 01 - Meat & meat preparations | F15: Exports (000's) | G15: 2022 | H15: Q2 | I15: 521 | J15: 2022 Q2
A16: EU | B16: European Union | C16: Austria | D16: 0 - Food & live animals | E16: 01 - Meat & meat preparations | F16: Exports (000's) | G16: 2022 | H16: Q3 | I16: 477 | J16: 2022 Q3
A17: EU | B17: European Union | C17: Austria | D17: 0 - Food & live animals | E17: 01 - Meat & meat preparations | F17: Exports (000's) | G17: 2022 | H17: Q4 | I17: 465 | J17: 2022 Q4
A18: EU | B18: European Union | C18: Austria | D18: 0 - Food & live animals | E18: 01 - Meat & meat preparations | F18: Exports (000's) | G18: 2023 | H18: Q1 | I18: 235 | J18: 2023 Q1
A19: EU | B19: European Union | C19: Austria | D19: 0 - Food & live animals | E19: 01 - Meat & meat preparations | F19: Exports (000's) | G19: 2023 | H19: Q2 | I19: 203 | J19: 2023 Q2
A20: EU | B20: European Union | C20: Austria | D20: 0 - Food & live animals | E20: 01 - Meat & meat preparations | F20: Exports (000's) | G20: 2023 | H20: Q3 | I20: 113 | J20: 2023 Q3
A21: EU | B21: European Union | C21: Austria | D21: 0 - Food & live animals | E21: 01 - Meat & meat preparations | F21: Exports (000's) | G21: 2023 | H21: Q4 | I21: 110 | J21: 2023 Q4
A22: EU | B22: European Union | C22: Austria | D22: 0 - Food & live animals | E22: 01 - Meat & meat preparations | F22: Imports (000's) | G22: 2019 | H22: Q1 | I22: 622 | J22: 2019 Q1
A23: EU | B23: European Union | C23: Austria | D23: 0 - Food & live animals | E23: 01 - Meat & meat preparations | F23: Imports (000's) | G23: 2019 | H23: Q2 | I23: 586 | J23: 2019 Q2
A24: EU | B24: European Union | C24: Austria | D24: 0 - Food & live animals | E24: 01 - Meat & meat preparations | F24: Imports (000's) | G24: 2019 | H24: Q3 | I24: 331 | J24: 2019 Q3
A25: EU | B25: European Union | C25: Austria | D25: 0 - Food & live animals | E25: 01 - Meat & meat preparations | F25: Imports (000's) | G25: 2019 | H25: Q4 | I25: 233 | J25: 2019 Q4
A26: EU | B26: European Union | C26: Austria | D26: 0 - Food & live animals | E26: 01 - Meat & meat preparations | F26: Imports (000's) | G26: 2020 | H26: Q1 | I26: 323 | J26: 2020 Q1
A27: EU | B27: European Union | C27: Austria | D27: 0 - Food & live animals | E27: 01 - Meat & meat preparations | F27: Imports (000's) | G27: 2020 | H27: Q2 | I27: 156 | J27: 2020 Q2
A28: EU | B28: European Union | C28: Austria | D28: 0 - Food & live animals | E28: 01 - Meat & meat preparations | F28: Imports (000's) | G28: 2020 | H28: Q3 | I28: 486 | J28: 2020 Q3
A29: EU | B29: European Union | C29: Austria | D29: 0 - Food & live animals | E29: 01 - Meat & meat preparations | F29: Imports (000's) | G29: 2020 | H29: Q4 | I29: 553 | J29: 2020 Q4
A30: EU | B30: European Union | C30: Austria | D30: 0 - Food & live animals | E30: 01 - Meat & meat preparations | F30: Imports (000's) | G30: 2021 | H30: Q1 | I30: 343 | J30: 2021 Q1
A31: EU | B31: European Union | C31: Austria | D31: 0 - Food & live animals | E31: 01 - Meat & meat preparations | F31: Imports (000's) | G31: 2021 | H31: Q2 | I31: 858 | J31: 2021 Q2
A32: EU | B32: European Union | C32: Austria | D32: 0 - Food & live animals | E32: 01 - Meat & meat preparations | F32: Imports (000's) | G32: 2021 | H32: Q3 | I32: 368 | J32: 2021 Q3
A33: EU | B33: European Union | C33: Austria | D33: 0 - Food & live animals | E33: 01 - Meat & meat preparations | F33: Imports (000's) | G33: 2021 | H33: Q4 | I33: 122 | J33: 2021 Q4
A34: EU | B34: European Union | C34: Austria | D34: 0 - Food & live animals | E34: 01 - Meat & meat preparations | F34: Imports (000's) | G34: 2022 | H34: Q1 | I34: 87 | J34: 2022 Q1
A35: EU | B35: European Union | C35: Austria | D35: 0 - Food & live animals | E35: 01 - Meat & meat preparations | F35: Imports (000's) | G35: 2022 | H35: Q2 | I35: 375 | J35: 2022 Q2
A36: EU | B36: European Union | C36: Austria | D36: 0 - Food & live animals | E36: 01 - Meat & meat preparations | F36: Imports (000's) | G36: 2022 | H36: Q3 | I36: 459 | J36: 2022 Q3
A37: EU | B37: European Union | C37: Austria | D37: 0 - Food & live animals | E37: 01 - Meat & meat preparations | F37: Imports (000's) | G37: 2022 | H37: Q4 | I37: 525 | J37: 2022 Q4
A38: EU | B38: European Union | C38: Austria | D38: 0 - Food & live animals | E38: 01 - Meat & meat preparations | F38: Imports (000's) | G38: 2023 | H38: Q1 | I38: 379 | J38: 2023 Q1
A39: EU | B39: European Union | C39: Austria | D39: 0 - Food & live animals | E39: 01 - Meat & meat preparations | F39: Imports (000's) | G39: 2023 | H39: Q2 | I39: 591 | J39: 2023 Q2
A40: EU | B40: European Union | C40: Austria | D40: 0 - Food & live animals | E40: 01 - Meat & meat preparations | F40: Imports (000's) | G40: 2023 | H40: Q3 | I40: 132 | J40: 2023 Q3
A41: EU | B41: European Union | C41: Austria | D41: 0 - Food & live animals | E41: 01 - Meat & meat preparations | F41: Imports (000's) | G41: 2023 | H41: Q4 | I41: 7 | J41: 2023 Q4
A42: EU | B42: European Union | C42: Austria | D42: 0 - Food & live animals | E42: 02 - Dairy products & birds' eggs | F42: Exports (000's) | G42: 2019 | H42: Q1 | I42: 53 | J42: 2019 Q1
A43: EU | B43: European Union | C43: Austria | D43: 0 - Food & live animals | E43: 02 - Dairy products & birds' eggs | F43: Exports (000's) | G43: 2019 | H43: Q2 | I43: 135 | J43: 2019 Q2
A44: EU | B44: European Union | C44: Austria | D44: 0 - Food & live animals | E44: 02 - Dairy products & birds' eggs | F44: Exports (000's) | G44: 2019 | H44: Q3 | I44: 26 | J44: 2019 Q3
A45: EU | B45: European Union | C45: Austria | D45: 0 - Food & live animals | E45: 02 - Dairy products & birds' eggs | F45: Exports (000's) | G45: 2019 | H45: Q4 | I45: 17 | J45: 2019 Q4
A46: EU | B46: European Union | C46: Austria | D46: 0 - Food & live animals | E46: 02 - Dairy products & birds' eggs | F46: Exports (000's) | G46: 2020 | H46: Q1 | I46: 60 | J46: 2020 Q1
A47: EU | B47: European Union | C47: Austria | D47: 0 - Food & live animals | E47: 02 - Dairy products & birds' eggs | F47: Exports (000's) | G47: 2020 | H47: Q2 | I47: 32 | J47: 2020 Q2
A48: EU | B48: European Union | C48: Austria | D48: 0 - Food & live animals | E48: 02 - Dairy products & birds' eggs | F48: Exports (000's) | G48: 2020 | H48: Q3 | I48: 14 | J48: 2020 Q3
A49: EU | B49: European Union | C49: Austria | D49: 0 - Food & live animals | E49: 02 - Dairy products & birds' eggs | F49: Exports (000's) | G49: 2020 | H49: Q4 | I49: 53 | J49: 2020 Q4
A50: EU | B50: European Union | C50: Austria | D50: 0 - Food & live animals | E50: 02 - Dairy products & birds' eggs | F50: Exports (000's) | G50: 2021 | H50: Q1 | I50: 45 | J50: 2021 Q1
A51: EU | B51: European Union | C51: Austria | D51: 0 - Food & live animals | E51: 02 - Dairy products & birds' eggs | F51: Exports (000's) | G51: 2021 | H51: Q2 | I51: 173 | J51: 2021 Q2
A52: EU | B52: European Union | C52: Austria | D52: 0 - Food & live animals | E52: 02 - Dairy products & birds' eggs | F52: Exports (000's) | G52: 2021 | H52: Q3 | I52: 388 | J52: 2021 Q3
A53: EU | B53: European Union | C53: Austria | D53: 0 - Food & live animals | E53: 02 - Dairy products & birds' eggs | F53: Exports (000's) | G53: 2021 | H53: Q4 | I53: 222 | J53: 2021 Q4
A54: EU | B54: European Union | C54: Austria | D54: 0 - Food & live animals | E54: 02 - Dairy products & birds' eggs | F54: Exports (000's) | G54: 2022 | H54: Q1 | I54: 410 | J54: 2022 Q1
A55: EU | B55: European Union | C55: Austria | D55: 0 - Food & live animals | E55: 02 - Dairy products & birds' eggs | F55: Exports (000's) | G55: 2022 | H55: Q2 | I55: 552 | J55: 2022 Q2
A56: EU | B56: European Union | C56: Austria | D56: 0 - Food & live animals | E56: 02 - Dairy products & birds' eggs | F56: Exports (000's) | G56: 2022 | H56: Q3 | I56: 219 | J56: 2022 Q3
A57: EU | B57: European Union | C57: Austria | D57: 0 - Food & live animals | E57: 02 - Dairy products & birds' eggs | F57: Exports (000's) | G57: 2022 | H57: Q4 | I57: 98 | J57: 2022 Q4
A58: EU | B58: European Union | C58: Austria | D58: 0 - Food & live animals | E58: 02 - Dairy products & birds' eggs | F58: Exports (000's) | G58: 2023 | H58: Q1 | I58: 167 | J58: 2023 Q1
A59: EU | B59: European Union | C59: Austria | D59: 0 - Food & live animals | E59: 02 - Dairy products & birds' eggs | F59: Exports (000's) | G59: 2023 | H59: Q2 | I59: 221 | J59: 2023 Q2
A60: EU | B60: European Union | C60: Austria | D60: 0 - Food & live animals | E60: 02 - Dairy products & birds' eggs | F60: Exports (000's) | G60: 2023 | H60: Q3 | I60: 100 | J60: 2023 Q3
A61: EU | B61: European Union | C61: Austria | D61: 0 - Food & live animals | E61: 02 - Dairy products & birds' eggs | F61: Exports (000's) | G61: 2023 | H61: Q4 | I61: 81 | J61: 2023 Q4
A62: EU | B62: European Union | C62: Austria | D62: 0 - Food & live animals | E62: 02 - Dairy products & birds' eggs | F62: Imports (000's) | G62: 2019 | H62: Q1 | I62: 23 | J62: 2019 Q1
A63: EU | B63: European Union | C63: Austria | D63: 0 - Food & live animals | E63: 02 - Dairy products & birds' eggs | F63: Imports (000's) | G63: 2019 | H63: Q2 | I63: 35 | J63: 2019 Q2
A64: EU | B64: European Union | C64: Austria | D64: 0 - Food & live animals | E64: 02 - Dairy products & birds' eggs | F64: Imports (000's) | G64: 2019 | H64: Q3 | I64: 23 | J64: 2019 Q3
A65: EU | B65: European Union | C65: Austria | D65: 0 - Food & live animals | E65: 02 - Dairy products & birds' eggs | F65: Imports (000's) | G65: 2019 | H65: Q4 | I65: 21 | J65: 2019 Q4
A66: EU | B66: European Union | C66: Austria | D66: 0 - Food & live animals | E66: 02 - Dairy products & birds' eggs | F66: Imports (000's) | G66: 2020 | H66: Q1 | I66: 29 | J66: 2020 Q1
A67: EU | B67: European Union | C67: Austria | D67: 0 - Food & live animals | E67: 02 - Dairy products & birds' eggs | F67: Imports (000's) | G67: 2020 | H67: Q2 | I67: 22 | J67: =CONCATENATE(G67," ",H67) -> 2020 Q2
A68: EU | B68: European Union | C68: Austria | D68: 0 - Food & live animals | E68: 02 - Dairy products & birds' eggs | F68: Imports (000's) | G68: 2020 | H68: Q3 | I68: 11 | J68: 2020 Q3
A69: EU | B69: European Union | C69: Austria | D69: 0 - Food & live animals | E69: 02 - Dairy products & birds' eggs | F69: Imports (000's) | G69: 2020 | H69: Q4 | I69: 4 | J69: 2020 Q4
A70: EU | B70: European Union | C70: Austria | D70: 0 - Food & live animals | E70: 02 - Dairy products & birds' eggs | F70: Imports (000's) | G70: 2021 | H70: Q1 | I70: 23 | J70: 2021 Q1
A71: EU | B71: European Union | C71: Austria | D71: 0 - Food & live animals | E71: 02 - Dairy products & birds' eggs | F71: Imports (000's) | G71: 2021 | H71: Q2 | I71: 3 | J71: 2021 Q2
A72: EU | B72: European Union | C72: Austria | D72: 0 - Food & live animals | E72: 02 - Dairy products & birds' eggs | F72: Imports (000's) | G72: 2021 | H72: Q3 | I72: 3 | J72: 2021 Q3
A73: EU | B73: European Union | C73: Austria | D73: 0 - Food & live animals | E73: 02 - Dairy products & birds' eggs | F73: Imports (000's) | G73: 2021 | H73: Q4 | I73: 2 | J73: 2021 Q4
A74: EU | B74: European Union | C74: Austria | D74: 0 - Food & live animals | E74: 02 - Dairy products & birds' eggs | F74: Imports (000's) | G74: 2022 | H74: Q1 | I74: 3 | J74: 2022 Q1
A75: EU | B75: European Union | C75: Austria | D75: 0 - Food & live animals | E75: 02 - Dairy products & birds' eggs | F75: Imports (000's) | G75: 2022 | H75: Q2 | I75: 5 | J75: 2022 Q2
A76: EU | B76: European Union | C76: Austria | D76: 0 - Food & live animals | E76: 02 - Dairy products & birds' eggs | F76: Imports (000's) | G76: 2022 | H76: Q3 | I76: 6 | J76: 2022 Q3
A77: EU | B77: European Union | C77: Austria | D77: 0 - Food & live animals | E77: 02 - Dairy products & birds' eggs | F77: Imports (000's) | G77: 2022 | H77: Q4 | I77: 7 | J77: 2022 Q4
A78: EU | B78: European Union | C78: Austria | D78: 0 - Food & live animals | E78: 02 - Dairy products & birds' eggs | F78: Imports (000's) | G78: 2023 | H78: Q1 | I78: 4 | J78: 2023 Q1
A79: EU | B79: European Union | C79: Austria | D79: 0 - Food & live animals | E79: 02 - Dairy products & birds' eggs | F79: Imports (000's) | G79: 2023 | H79: Q2 | I79: 4 | J79: 2023 Q2
A80: EU | B80: European Union | C80: Austria | D80: 0 - Food & live animals | E80: 02 - Dairy products & birds' eggs | F80: Imports (000's) | G80: 2023 | H80: Q3 | I80: 4 | J80: 2023 Q3
A81: EU | B81: European Union | C81: Austria | D81: 0 - Food & live animals | E81: 02 - Dairy products & birds' eggs | F81: Imports (000's) | G81: 2023 | H81: Q4 | I81: 3 | J81: 2023 Q4
A82: EU | B82: European Union | C82: Austria | D82: 0 - Food & live animals | E82: 03 - Fish,crustaceans,molluscs & aq.inverts & preps thereof | F82: Exports (000's) | G82: 2019 | H82: Q1 | I82: 20 | J82: 2019 Q1
A83: EU | B83: European Union | C83: Austria | D83: 0 - Food & live animals | E83: 03 - Fish,crustaceans,molluscs & aq.inverts & preps thereof | F83: Exports (000's) | G83: 2019 | H83: Q2 | I83: 18 | J83: 2019 Q2
A84: EU | B84: European Union | C84: Austria | D84: 0 - Food & live animals | E84: 03 - Fish,crustaceans,molluscs & aq.inverts & preps thereof | F84: Exports (000's) | G84: 2019 | H84: Q3 | I84: 17 | J84: 2019 Q3
A85: EU | B85: European Union | C85: Austria | D85: 0 - Food & live animals | E85: 03 - Fish,crustaceans,molluscs & aq.inverts & preps thereof | F85: Exports (000's) | G85: 2019 | H85: Q4 | I85: 19 | J85: 2019 Q4
A86: EU | B86: European Union | C86: Austria | D86: 0 - Food & live animals | E86: 03 - Fish,crustaceans,molluscs & aq.inverts & preps thereof | F86: Exports (000's) | G86: 2020 | H86: Q1 | I86: 67 | J86: 2020 Q1
A87: EU | B87: European Union | C87: Austria | D87: 0 - Food & live animals | E87: 03 - Fish,crustaceans,molluscs & aq.inverts & preps thereof | F87: Exports (000's) | G87: 2020 | H87: Q2 | I87: 1 | J87: 2020 Q2
A88: EU | B88: European Union | C88: Austria | D88: 0 - Food & live animals | E88: 03 - Fish,crustaceans,molluscs & aq.inverts & preps thereof | F88: Exports (000's) | G88: 2020 | H88: Q3 | I88: 1 | J88: 2020 Q3
A89: EU | B89: European Union | C89: Austria | D89: 0 - Food & live animals | E89: 03 - Fish,crustaceans,molluscs & aq.inverts & preps thereof | F89: Exports (000's) | G89: 2021 | H89: Q2 | I89: 14 | J89: 2021 Q2
A90: EU | B90: European Union | C90: Austria | D90: 0 - Food & live animals | E90: 03 - Fish,crustaceans,molluscs & aq.inverts & preps thereof | F90: Exports (000's) | G90: 2021 | H90: Q3 | I90: 34 | J90: 2021 Q3
A91: EU | B91: European Union | C91: Austria | D91: 0 - Food & live animals | E91: 03 - Fish,crustaceans,molluscs & aq.inverts & preps thereof | F91: Exports (000's) | G91: 2021 | H91: Q4 | I91: 57 | J91: 2021 Q4
A92: EU | B92: European Union | C92: Austria | D92: 0 - Food & live animals | E92: 03 - Fish,crustaceans,molluscs & aq.inverts & preps thereof | F92: Exports (000's) | G92: 2022 | H92: Q1 | I92: 19 | J92: 2022 Q1
A93: EU | B93: European Union | C93: Austria | D93: 0 - Food & live animals | E93: 03 - Fish,crustaceans,molluscs & aq.inverts & preps thereof | F93: Exports (000's) | G93: 2022 | H93: Q2 | I93: 31 | J93: 2022 Q2
A94: EU | B94: European Union | C94: Austria | D94: 0 - Food & live animals | E94: 03 - Fish,crustaceans,molluscs & aq.inverts & preps thereof | F94: Exports (000's) | G94: 2022 | H94: Q3 | I94: 22 | J94: 2022 Q3
A95: EU | B95: European Union | C95: Austria | D95: 0 - Food & live animals | E95: 03 - Fish,crustaceans,molluscs & aq.inverts & preps thereof | F95: Exports (000's) | G95: 2022 | H95: Q4 | I95: 17 | J95: 2022 Q4
A96: EU | B96: European Union | C96: Austria | D96: 0 - Food & live animals | E96: 03 - Fish,crustaceans,molluscs & aq.inverts & preps thereof | F96: Exports (000's) | G96: 2023 | H96: Q1 | I96: 22 | J96: 2023 Q1
A97: EU | B97: European Union | C97: Austria | D97: 0 - Food & live animals | E97: 03 - Fish,crustaceans,molluscs & aq.inverts & preps thereof | F97: Exports (000's) | G97: 2023 | H97: Q2 | I97: 13 | J97: 2023 Q2
A98: EU | B98: European Union | C98: Austria | D98: 0 - Food & live animals | E98: 03 - Fish,crustaceans,molluscs & aq.inverts & preps thereof | F98: Exports (000's) | G98: 2023 | H98: Q3 | I98: 8 | J98: 2023 Q3
A99: EU | B99: European Union | C99: Austria | D99: 0 - Food & live animals | E99: 04 - Cereals & cereal preparations | F99: Exports (000's) | G99: 2019 | H99: Q3 | I99: 6 | J99: 2019 Q3
A100: EU | B100: European Union | C100: Austria | D100: 0 - Food & live animals | E100: 04 - Cereals & cereal preparations | F100: Exports (000's) | G100: 2021 | H100: Q1 | I100: 2 | J100: 2021 Q1
A101: EU | B101: European Union | C101: Austria | D101: 0 - Food & live animals | E101: 04 - Cereals & cereal preparations | F101: Imports (000's) | G101: 2019 | H101: Q1 | I101: 153 | J101: 2019 Q1
A102: EU | B102: European Union | C102: Austria | D102: 0 - Food & live animals | E102: 04 - Cereals & cereal preparations | F102: Imports (000's) | G102: 2019 | H102: Q2 | I102: 53 | J102: 2019 Q2
A103: EU | B103: European Union | C103: Austria | D103: 0 - Food & live animals | E103: 04 - Cereals & cereal preparations | F103: Imports (000's) | G103: 2019 | H103: Q3 | I103: 24 | J103: 2019 Q3
A104: EU | B104: European Union | C104: Austria | D104: 0 - Food & live animals | E104: 04 - Cereals & cereal preparations | F104: Imports (000's) | G104: 2019 | H104: Q4 | I104: 13 | J104: 2019 Q4
A105: EU | B105: European Union | C105: Austria | D105: 0 - Food & live animals | E105: 04 - Cereals & cereal preparations | F105: Imports (000's) | G105: 2020 | H105: Q1 | I105: 39 | J105: 2020 Q1
A106: EU | B106: European Union | C106: Austria | D106: 0 - Food & live animals | E106: 04 - Cereals & cereal preparations | F106: Imports (000's) | G106: 2020 | H106: Q2 | I106: 18 | J106: 2020 Q2
A107: EU | B107: European Union | C107: Austria | D107: 0 - Food & live animals | E107: 04 - Cereals & cereal preparations | F107: Imports (000's) | G107: 2020 | H107: Q3 | I107: 8 | J107: 2020 Q3
A108: EU | B108: European Union | C108: Austria | D108: 0 - Food & live animals | E108: 04 - Cereals & cereal preparations | F108: Imports (000's) | G108: 2020 | H108: Q4 | I108: 1 | J108: 2020 Q4
A109: EU | B109: European Union | C109: Austria | D109: 0 - Food & live animals | E109: 04 - Cereals & cereal preparations | F109: Imports (000's) | G109: 2021 | H109: Q1 | I109: 69 | J109: 2021 Q1
A110: EU | B110: European Union | C110: Austria | D110: 0 - Food & live animals | E110: 04 - Cereals & cereal preparations | F110: Imports (000's) | G110: 2021 | H110: Q2 | I110: 7 | J110: 2021 Q2
A111: EU | B111: European Union | C111: Austria | D111: 0 - Food & live animals | E111: 04 - Cereals & cereal preparations | F111: Imports (000's) | G111: 2021 | H111: Q3 | I111: 1 | J111: 2021 Q3
A112: EU | B112: European Union | C112: Austria | D112: 0 - Food & live animals | E112: 04 - Cereals & cereal preparations | F112: Imports (000's) | G112: 2021 | H112: Q4 | I112: 4 | J112: 2021 Q4
A113: EU | B113: European Union | C113: Austria | D113: 0 - Food & live animals | E113: 04 - Cereals & cereal preparations | F113: Imports (000's) | G113: 2022 | H113: Q1 | I113: 38 | J113: 2022 Q1
A114: EU | B114: European Union | C114: Austria | D114: 0 - Food & live animals | E114: 04 - Cereals & cereal preparations | F114: Imports (000's) | G114: 2022 | H114: Q2 | I114: 2 | J114: 2022 Q2
A115: EU | B115: European Union | C115: Austria | D115: 0 - Food & live animals | E115: 04 - Cereals & cereal preparations | F115: Imports (000's) | G115: 2022 | H115: Q3 | I115: 1 | J115: 2022 Q3
A116: EU | B116: European Union | C116: Austria | D116: 0 - Food & live animals | E116: 04 - Cereals & cereal preparations | F116: Imports (000's) | G116: 2022 | H116: Q4 | I116: 19 | J116: 2022 Q4
A117: EU | B117: European Union | C117: Austria | D117: 0 - Food & live animals | E117: 04 - Cereals & cereal preparations | F117: Imports (000's) | G117: 2023 | H117: Q1 | I117: 32 | J117: 2023 Q1
A118: EU | B118: European Union | C118: Austria | D118: 0 - Food & live animals | E118: 04 - Cereals & cereal preparations | F118: Imports (000's) | G118: 2023 | H118: Q2 | I118: 57 | J118: 2023 Q2
A119: EU | B119: European Union | C119: Austria | D119: 0 - Food & live animals | E119: 04 - Cereals & cereal preparations | F119: Imports (000's) | G119: 2023 | H119: Q3 | I119: 23 | J119: 2023 Q3
A120: EU | B120: European Union | C120: Austria | D120: 0 - Food & live animals | E120: 04 - Cereals & cereal preparations | F120: Imports (000's) | G120: 2023 | H120: Q4 | I120: 6 | J120: 2023 Q4
A121: EU | B121: European Union | C121: Austria | D121: 0 - Food & live animals | E121: 05 - Vegetables & fruit | F121: Imports (000's) | G121: 2019 | H121: Q1 | I121: 7 | J121: 2019 Q1
A122: EU | B122: European Union | C122: Austria | D122: 0 - Food & live animals | E122: 05 - Vegetables & fruit | F122: Imports (000's) | G122: 2019 | H122: Q2 | I122: 7 | J122: 2019 Q2
A123: EU | B123: European Union | C123: Austria | D123: 0 - Food & live animals | E123: 05 - Vegetables & fruit | F123: Imports (000's) | G123: 2019 | H123: Q3 | I123: 16 | J123: 2019 Q3
A124: EU | B124: European Union | C124: Austria | D124: 0 - Food & live animals | E124: 05 - Vegetables & fruit | F124: Imports (000's) | G124: 2019 | H124: Q4 | I124: 9 | J124: 2019 Q4
A125: EU | B125: European Union | C125: Austria | D125: 0 - Food & live animals | E125: 05 - Vegetables & fruit | F125: Imports (000's) | G125: 2020 | H125: Q1 | I125: 6 | J125: 2020 Q1
A126: EU | B126: European Union | C126: Austria | D126: 0 - Food & live animals | E126: 05 - Vegetables & fruit | F126: Imports (000's) | G126: 2020 | H126: Q2 | I126: 40 | J126: 2020 Q2
A127: EU | B127: European Union | C127: Austria | D127: 0 - Food & live animals | E127: 05 - Vegetables & fruit | F127: Imports (000's) | G127: 2020 | H127: Q3 | I127: 37 | J127: 2020 Q3
A128: EU | B128: European Union | C128: Austria | D128: 0 - Food & live animals | E128: 05 - Vegetables & fruit | F128: Imports (000's) | G128: 2020 | H128: Q4 | I128: 30 | J128: 2020 Q4
A129: EU | B129: European Union | C129: Austria | D129: 0 - Food & live animals | E129: 05 - Vegetables & fruit | F129: Imports (000's) | G129: 2021 | H129: Q1 | I129: 120 | J129: 2021 Q1
A130: EU | B130: European Union | C130: Austria | D130: 0 - Food & live animals | E130: 05 - Vegetables & fruit | F130: Imports (000's) | G130: 2021 | H130: Q2 | I130: 56 | J130: 2021 Q2
A131: EU | B131: European Union | C131: Austria | D131: 0 - Food & live animals | E131: 05 - Vegetables & fruit | F131: Imports (000's) | G131: 2021 | H131: Q3 | I131: 72 | J131: =CONCATENATE(G131," ",H131) -> 2021 Q3
A132: EU | B132: European Union | C132: Austria | D132: 0 - Food & live animals | E132: 05 - Vegetables & fruit | F132: Imports (000's) | G132: 2021 | H132: Q4 | I132: 52 | J132: 2021 Q4
A133: EU | B133: European Union | C133: Austria | D133: 0 - Food & live animals | E133: 05 - Vegetables & fruit | F133: Imports (000's) | G133: 2022 | H133: Q1 | I133: 123 | J133: 2022 Q1
A134: EU | B134: European Union | C134: Austria | D134: 0 - Food & live animals | E134: 05 - Vegetables & fruit | F134: Imports (000's) | G134: 2022 | H134: Q2 | I134: 69 | J134: 2022 Q2
A135: EU | B135: European Union | C135: Austria | D135: 0 - Food & live animals | E135: 06 - Sugar, sugar preparations & honey | F135: Imports (000's) | G135: 2019 | H135: Q4 | I135: 1 | J135: 2019 Q4
A136: EU | B136: European Union | C136: Austria | D136: 0 - Food & live animals | E136: 06 - Sugar, sugar preparations & honey | F136: Imports (000's) | G136: 2023 | H136: Q3 | I136: 1 | J136: 2023 Q3
A137: EU | B137: European Union | C137: Austria | D137: 0 - Food & live animals | E137: 07 - Coffee, tea, cocoa, spices & manufactures thereof | F137: Imports (000's) | G137: 2019 | H137: Q2 | I137: 19 | J137: 2019 Q2
A138: EU | B138: European Union | C138: Austria | D138: 0 - Food & live animals | E138: 07 - Coffee, tea, cocoa, spices & manufactures thereof | F138: Imports (000's) | G138: 2019 | H138: Q4 | I138: 2 | J138: 2019 Q4
A139: EU | B139: European Union | C139: Austria | D139: 0 - Food & live animals | E139: 07 - Coffee, tea, cocoa, spices & manufactures thereof | F139: Imports (000's) | G139: 2020 | H139: Q3 | I139: 1 | J139: 2020 Q3
A140: EU | B140: European Union | C140: Austria | D140: 0 - Food & live animals | E140: 07 - Coffee, tea, cocoa, spices & manufactures thereof | F140: Imports (000's) | G140: 2021 | H140: Q1 | I140: 3 | J140: 2021 Q1
A141: EU | B141: European Union | C141: Austria | D141: 0 - Food & live animals | E141: 07 - Coffee, tea, cocoa, spices & manufactures thereof | F141: Imports (000's) | G141: 2021 | H141: Q3 | I141: 2 | J141: 2021 Q3
A142: EU | B142: European Union | C142: Austria | D142: 0 - Food & live animals | E142: 07 - Coffee, tea, cocoa, spices & manufactures thereof | F142: Imports (000's) | G142: 2021 | H142: Q4 | I142: 1 | J142: 2021 Q4
A143: EU | B143: European Union | C143: Austria | D143: 0 - Food & live animals | E143: 07 - Coffee, tea, cocoa, spices & manufactures thereof | F143: Imports (000's) | G143: 2022 | H143: Q1 | I143: 1 | J143: 2022 Q1
A144: EU | B144: European Union | C144: Austria | D144: 0 - Food & live animals | E144: 07 - Coffee, tea, cocoa, spices & manufactures thereof | F144: Imports (000's) | G144: 2022 | H144: Q2 | I144: 1 | J144: 2022 Q2
A145: EU | B145: European Union | C145: Austria | D145: 0 - Food & live animals | E145: 08 - Feeding stuff for animals (not inc.unmilled cereals) | F145: Imports (000's) | G145: 2019 | H145: Q1 | I145: 143 | J145: 2019 Q1
A146: EU | B146: European Union | C146: Austria | D146: 0 - Food & live animals | E146: 08 - Feeding stuff for animals (not inc.unmilled cereals) | F146: Imports (000's) | G146: 2019 | H146: Q2 | I146: 147 | J146: 2019 Q2
A147: EU | B147: European Union | C147: Austria | D147: 0 - Food & live animals | E147: 08 - Feeding stuff for animals (not inc.unmilled cereals) | F147: Imports (000's) | G147: 2019 | H147: Q3 | I147: 96 | J147: 2019 Q3
A148: EU | B148: European Union | C148: Austria | D148: 0 - Food & live animals | E148: 08 - Feeding stuff for animals (not inc.unmilled cereals) | F148: Imports (000's) | G148: 2019 | H148: Q4 | I148: 5 | J148: 2019 Q4
A149: EU | B149: European Union | C149: Austria | D149: 0 - Food & live animals | E149: 08 - Feeding stuff for animals (not inc.unmilled cereals) | F149: Imports (000's) | G149: 2020 | H149: Q1 | I149: 30 | J149: 2020 Q1
A150: EU | B150: European Union | C150: Austria | D150: 0 - Food & live animals | E150: 08 - Feeding stuff for animals (not inc.unmilled cereals) | F150: Imports (000's) | G150: 2020 | H150: Q2 | I150: 20 | J150: 2020 Q2
A151: EU | B151: European Union | C151: Austria | D151: 0 - Food & live animals | E151: 08 - Feeding stuff for animals (not inc.unmilled cereals) | F151: Imports (000's) | G151: 2020 | H151: Q3 | I151: 15 | J151: 2020 Q3
A152: EU | B152: European Union | C152: Austria | D152: 0 - Food & live animals | E152: 08 - Feeding stuff for animals (not inc.unmilled cereals) | F152: Imports (000's) | G152: 2021 | H152: Q2 | I152: 16 | J152: 2021 Q2
A153: EU | B153: European Union | C153: Austria | D153: 0 - Food & live animals | E153: 08 - Feeding stuff for animals (not inc.unmilled cereals) | F153: Imports (000's) | G153: 2021 | H153: Q3 | I153: 39 | J153: 2021 Q3
A154: EU | B154: European Union | C154: Austria | D154: 0 - Food & live animals | E154: 08 - Feeding stuff for animals (not inc.unmilled cereals) | F154: Imports (000's) | G154: 2021 | H154: Q4 | I154: 41 | J154: 2021 Q4
A155: EU | B155: European Union | C155: Austria | D155: 0 - Food & live animals | E155: 08 - Feeding stuff for animals (not inc.unmilled cereals) | F155: Imports (000's) | G155: 2022 | H155: Q1 | I155: 3 | J155: 2022 Q1
A156: EU | B156: European Union | C156: Austria | D156: 0 - Food & live animals | E156: 08 - Feeding stuff for animals (not inc.unmilled cereals) | F156: Imports (000's) | G156: 2022 | H156: Q2 | I156: 19 | J156: 2022 Q2
A157: EU | B157: European Union | C157: Austria | D157: 0 - Food & live animals | E157: 08 - Feeding stuff for animals (not inc.unmilled cereals) | F157: Imports (000's) | G157: 2022 | H157: Q3 | I157: 5 | J157: 2022 Q3
A158: EU | B158: European Union | C158: Austria | D158: 0 - Food & live animals | E158: 08 - Feeding stuff for animals (not inc.unmilled cereals) | F158: Imports (000's) | G158: 2022 | H158: Q4 | I158: 1 | J158: 2022 Q4
A159: EU | B159: European Union | C159: Austria | D159: 0 - Food & live animals | E159: 08 - Feeding stuff for animals (not inc.unmilled cereals) | F159: Imports (000's) | G159: 2023 | H159: Q1 | I159: 3 | J159: 2023 Q1
A160: EU | B160: European Union | C160: Austria | D160: 0 - Food & live animals | E160: 09 - Miscellaneous edible products & preparations | F160: Exports (000's) | G160: 2019 | H160: Q1 | I160: 11 | J160: 2019 Q1
A161: EU | B161: European Union | C161: Austria | D161: 0 - Food & live animals | E161: 09 - Miscellaneous edible products & preparations | F161: Exports (000's) | G161: 2019 | H161: Q2 | I161: 2 | J161: 2019 Q2
A162: EU | B162: European Union | C162: Austria | D162: 0 - Food & live animals | E162: 09 - Miscellaneous edible products & preparations | F162: Exports (000's) | G162: 2019 | H162: Q3 | I162: 10 | J162: 2019 Q3
A163: EU | B163: European Union | C163: Austria | D163: 0 - Food & live animals | E163: 09 - Miscellaneous edible products & preparations | F163: Exports (000's) | G163: 2019 | H163: Q4 | I163: 12 | J163: 2019 Q4
A164: EU | B164: European Union | C164: Austria | D164: 0 - Food & live animals | E164: 09 - Miscellaneous edible products & preparations | F164: Exports (000's) | G164: 2020 | H164: Q1 | I164: 2 | J164: 2020 Q1
A165: EU | B165: European Union | C165: Austria | D165: 0 - Food & live animals | E165: 09 - Miscellaneous edible products & preparations | F165: Exports (000's) | G165: 2020 | H165: Q2 | I165: 2 | J165: 2020 Q2
A166: EU | B166: European Union | C166: Austria | D166: 0 - Food & live animals | E166: 09 - Miscellaneous edible products & preparations | F166: Exports (000's) | G166: 2021 | H166: Q1 | I166: 9 | J166: 2021 Q1
A167: EU | B167: European Union | C167: Austria | D167: 0 - Food & live animals | E167: 09 - Miscellaneous edible products & preparations | F167: Exports (000's) | G167: 2021 | H167: Q2 | I167: 7 | J167: 2021 Q2
A168: EU | B168: European Union | C168: Austria | D168: 0 - Food & live animals | E168: 09 - Miscellaneous edible products & preparations | F168: Exports (000's) | G168: 2021 | H168: Q3 | I168: 11 | J168: 2021 Q3
A169: EU | B169: European Union | C169: Austria | D169: 0 - Food & live animals | E169: 09 - Miscellaneous edible products & preparations | F169: Exports (000's) | G169: 2021 | H169: Q4 | I169: 5 | J169: 2021 Q4
A170: EU | B170: European Union | C170: Austria | D170: 0 - Food & live animals | E170: 09 - Miscellaneous edible products & preparations | F170: Exports (000's) | G170: 2022 | H170: Q1 | I170: 4 | J170: 2022 Q1
A171: EU | B171: European Union | C171: Austria | D171: 0 - Food & live animals | E171: 09 - Miscellaneous edible products & preparations | F171: Exports (000's) | G171: 2022 | H171: Q2 | I171: 11 | J171: 2022 Q2
A172: EU | B172: European Union | C172: Austria | D172: 0 - Food & live animals | E172: 09 - Miscellaneous edible products & preparations | F172: Exports (000's) | G172: 2022 | H172: Q3 | I172: 8 | J172: 2022 Q3
A173: EU | B173: European Union | C173: Austria | D173: 0 - Food & live animals | E173: 09 - Miscellaneous edible products & preparations | F173: Exports (000's) | G173: 2022 | H173: Q4 | I173: 6 | J173: 2022 Q4
A174: EU | B174: European Union | C174: Austria | D174: 0 - Food & live animals | E174: 09 - Miscellaneous edible products & preparations | F174: Exports (000's) | G174: 2023 | H174: Q1 | I174: 6 | J174: 2023 Q1
A175: EU | B175: European Union | C175: Austria | D175: 0 - Food & live animals | E175: 09 - Miscellaneous edible products & preparations | F175: Exports (000's) | G175: 2023 | H175: Q2 | I175: 11 | J175: 2023 Q2
A176: EU | B176: European Union | C176: Austria | D176: 0 - Food & live animals | E176: 09 - Miscellaneous edible products & preparations | F176: Exports (000's) | G176: 2023 | H176: Q3 | I176: 48 | J176: 2023 Q3
A177: EU | B177: European Union | C177: Austria | D177: 0 - Food & live animals | E177: 09 - Miscellaneous edible products & preparations | F177: Exports (000's) | G177: 2023 | H177: Q4 | I177: 141 | J177: 2023 Q4
A178: EU | B178: European Union | C178: Austria | D178: 0 - Food & live animals | E178: 09 - Miscellaneous edible products & preparations | F178: Imports (000's) | G178: 2019 | H178: Q1 | I178: 72 | J178: 2019 Q1
A179: EU | B179: European Union | C179: Austria | D179: 0 - Food & live animals | E179: 09 - Miscellaneous edible products & preparations | F179: Imports (000's) | G179: 2019 | H179: Q2 | I179: 69 | J179: 2019 Q2
A180: EU | B180: European Union | C180: Austria | D180: 0 - Food & live animals | E180: 09 - Miscellaneous edible products & preparations | F180: Imports (000's) | G180: 2019 | H180: Q3 | I180: 191 | J180: 2019 Q3
A181: EU | B181: European Union | C181: Austria | D181: 0 - Food & live animals | E181: 09 - Miscellaneous edible products & preparations | F181: Imports (000's) | G181: 2019 | H181: Q4 | I181: 402 | J181: 2019 Q4
A182: EU | B182: European Union | C182: Austria | D182: 0 - Food & live animals | E182: 09 - Miscellaneous edible products & preparations | F182: Imports (000's) | G182: 2020 | H182: Q1 | I182: 239 | J182: 2020 Q1
A183: EU | B183: European Union | C183: Austria | D183: 0 - Food & live animals | E183: 09 - Miscellaneous edible products & preparations | F183: Imports (000's) | G183: 2020 | H183: Q2 | I183: 120 | J183: 2020 Q2
A184: EU | B184: European Union | C184: Austria | D184: 0 - Food & live animals | E184: 09 - Miscellaneous edible products & preparations | F184: Imports (000's) | G184: 2020 | H184: Q3 | I184: 181 | J184: 2020 Q3
A185: EU | B185: European Union | C185: Austria | D185: 0 - Food & live animals | E185: 09 - Miscellaneous edible products & preparations | F185: Imports (000's) | G185: 2020 | H185: Q4 | I185: 20 | J185: 2020 Q4
A186: EU | B186: European Union | C186: Austria | D186: 0 - Food & live animals | E186: 09 - Miscellaneous edible products & preparations | F186: Imports (000's) | G186: 2021 | H186: Q1 | I186: 16 | J186: 2021 Q1
A187: EU | B187: European Union | C187: Austria | D187: 0 - Food & live animals | E187: 09 - Miscellaneous edible products & preparations | F187: Imports (000's) | G187: 2021 | H187: Q2 | I187: 30 | J187: 2021 Q2
A188: EU | B188: European Union | C188: Austria | D188: 0 - Food & live animals | E188: 09 - Miscellaneous edible products & preparations | F188: Imports (000's) | G188: 2021 | H188: Q3 | I188: 36 | J188: 2021 Q3
A189: EU | B189: European Union | C189: Austria | D189: 0 - Food & live animals | E189: 09 - Miscellaneous edible products & preparations | F189: Imports (000's) | G189: 2021 | H189: Q4 | I189: 37 | J189: 2021 Q4
A190: EU | B190: European Union | C190: Austria | D190: 0 - Food & live animals | E190: 09 - Miscellaneous edible products & preparations | F190: Imports (000's) | G190: 2022 | H190: Q1 | I190: 18 | J190: 2022 Q1
A191: EU | B191: European Union | C191: Austria | D191: 0 - Food & live animals | E191: 09 - Miscellaneous edible products & preparations | F191: Imports (000's) | G191: 2022 | H191: Q2 | I191: 12 | J191: 2022 Q2
A192: EU | B192: European Union | C192: Austria | D192: 0 - Food & live animals | E192: 09 - Miscellaneous edible products & preparations | F192: Imports (000's) | G192: 2022 | H192: Q3 | I192: 1 | J192: 2022 Q3
A193: EU | B193: European Union | C193: Austria | D193: 0 - Food & live animals | E193: 09 - Miscellaneous edible products & preparations | F193: Imports (000's) | G193: 2022 | H193: Q4 | I193: 2 | J193: 2022 Q4
A194: EU | B194: European Union | C194: Austria | D194: 0 - Food & live animals | E194: 09 - Miscellaneous edible products & preparations | F194: Imports (000's) | G194: 2023 | H194: Q1 | I194: 28 | J194: 2023 Q1
A195: EU | B195: European Union | C195: Austria | D195: 0 - Food & live animals | E195: 09 - Miscellaneous edible products & preparations | F195: Imports (000's) | G195: 2023 | H195: Q2 | I195: 19 | J195: =CONCATENATE(G195," ",H195) -> 2023 Q2
A196: EU | B196: European Union | C196: Austria | D196: 0 - Food & live animals | E196: 09 - Miscellaneous edible products & preparations | F196: Imports (000's) | G196: 2023 | H196: Q3 | I196: 9 | J196: 2023 Q3
A197: EU | B197: European Union | C197: Austria | D197: 0 - Food & live animals | E197: 09 - Miscellaneous edible products & preparations | F197: Imports (000's) | G197: 2023 | H197: Q4 | I197: 18 | J197: 2023 Q4
A198: EU | B198: European Union | C198: Austria | D198: 1 - Beverages & tobacco | E198: 11 - Beverages | F198: Exports (000's) | G198: 2019 | H198: Q1 | I198: 42 | J198: 2019 Q1
A199: EU | B199: European Union | C199: Austria | D199: 1 - Beverages & tobacco | E199: 11 - Beverages | F199: Exports (000's) | G199: 2019 | H199: Q2 | I199: 4 | J199: 2019 Q2
A200: EU | B200: European Union | C200: Austria | D200: 1 - Beverages & tobacco | E200: 11 - Beverages | F200: Exports (000's) | G200: 2019 | H200: Q3 | I200: 18 | J200: 2019 Q3
... 735 more rows

Sheet Exports (hidden)
A1: Continent(Filtered) | B1: Country(Filtered) | C1: Trade Territory | D1: SITC1 Code(Filtered) | E1: SITC2 Code(Filtered) | F1: Concatenate | G1: =VLOOKUP(VLOOKUP(H$1,References!$B$2:$C$60,2,FALSE)-1,References!$A$2:$B$60,2,FALSE) -> 2019 Q1 | H1: =VLOOKUP(VLOOKUP(I$1,References!$B$2:$C$60,2,FALSE)-1,References!$A$2:$B$60,2,FALSE) -> 2019 Q2 | I1: =VLOOKUP(VLOOKUP(J$1,References!$B$2:$C$60,2,FALSE)-1,References!$A$2:$B$60,2,FALSE) -> 2019 Q3 | J1: =VLOOKUP(VLOOKUP(K$1,References!$B$2:$C$60,2,FALSE)-1,References!$A$2:$B$60,2,FALSE) -> 2019 Q4 | K1: =VLOOKUP(VLOOKUP(L$1,References!$B$2:$C$60,2,FALSE)-1,References!$A$2:$B$60,2,FALSE) -> 2020 Q1 | L1: =VLOOKUP(VLOOKUP(M$1,References!$B$2:$C$60,2,FALSE)-1,References!$A$2:$B$60,2,FALSE) -> 2020 Q2 | M1: =VLOOKUP(VLOOKUP(N$1,References!$B$2:$C$60,2,FALSE)-1,References!$A$2:$B$60,2,FALSE) -> 2020 Q3 | N1: =VLOOKUP(VLOOKUP(O$1,References!$B$2:$C$60,2,FALSE)-1,References!$A$2:$B$60,2,FALSE) -> 2020 Q4 | O1: =VLOOKUP(VLOOKUP(P$1,References!$B$2:$C$60,2,FALSE)-1,References!$A$2:$B$60,2,FALSE) -> 2021 Q1 | P1: =VLOOKUP(VLOOKUP(Q$1,References!$B$2:$C$60,2,FALSE)-1,References!$A$2:$B$60,2,FALSE) -> 2021 Q2 | Q1: =VLOOKUP(VLOOKUP(R$1,References!$B$2:$C$60,2,FALSE)-1,References!$A$2:$B$60,2,FALSE) -> 2021 Q3 | R1: =VLOOKUP(VLOOKUP(S$1,References!$B$2:$C$60,2,FALSE)-1,References!$A$2:$B$60,2,FALSE) -> 2021 Q4 | S1: =VLOOKUP(VLOOKUP(T$1,References!$B$2:$C$60,2,FALSE)-1,References!$A$2:$B$60,2,FALSE) -> 2022 Q1 | T1: =VLOOKUP(VLOOKUP(U$1,References!$B$2:$C$60,2,FALSE)-1,References!$A$2:$B$60,2,FALSE) -> 2022 Q2 | U1: =VLOOKUP(VLOOKUP(V$1,References!$B$2:$C$60,2,FALSE)-1,References!$A$2:$B$60,2,FALSE) -> 2022 Q3 | V1: =VLOOKUP(VLOOKUP(W$1,References!$B$2:$C$60,2,FALSE)-1,References!$A$2:$B$60,2,FALSE) -> 2022 Q4 | W1: =VLOOKUP(VLOOKUP(X$1,References!$B$2:$C$60,2,FALSE)-1,References!$A$2:$B$60,2,FALSE) -> 2023 Q1 | X1: =VLOOKUP(VLOOKUP(Y$1,References!$B$2:$C$60,2,FALSE)-1,References!$A$2:$B$60,2,FALSE) -> 2023 Q2 | Y1: =VLOOKUP(VLOOKUP(Z$1,References!$B$2:$C$60,2,FALSE)-1,References!$A$2:$B$60,2,FALSE) -> 2023 Q3 | Z1: ='Date select'!$B$2 -> 2023 Q4 | AA1: =CONCATENATE(G1," - ",J1) -> 2019 Q1 - 2019 Q4 | AB1: =CONCATENATE(K1," - ",N1) -> 2020 Q1 - 2020 Q4 | AC1: =CONCATENATE(O1," - ",R1) -> 2021 Q1 - 2021 Q4 | AD1: =CONCATENATE(S1," - ",V1) -> 2022 Q1 - 2022 Q4 | AE1: =CONCATENATE(W1," - ",Z1) -> 2023 Q1 - 2023 Q4 | AF1: Selection Mark
A2: European Community | B2: Austria | C2: Europe and Russia | D2: 0 - Food & live animals | E2: 00 - Live animals other than animals of division 03 | F2: Austria00 - Live animals other than animals of division 03 | G2: =SUMIFS('Raw - New'!$I$2:$I$110000,'Raw - New'!$C$2:$C$110000,$B2,'Raw - New'!$F$2:$F$110000,"Exports (000's)",'Raw - New'!$J$2:$J$110000,G$1,'Raw - New'!$E$2:$E$110000,$E2) -> 0 | H2: =SUMIFS('Raw - New'!$I$2:$I$110000,'Raw - New'!$C$2:$C$110000,$B2,'Raw - New'!$F$2:$F$110000,"Exports (000's)",'Raw - New'!$J$2:$J$110000,H$1,'Raw - New'!$E$2:$E$110000,$E2) -> 0 | I2: =SUMIFS('Raw - New'!$I$2:$I$110000,'Raw - New'!$C$2:$C$110000,$B2,'Raw - New'!$F$2:$F$110000,"Exports (000's)",'Raw - New'!$J$2:$J$110000,I$1,'Raw - New'!$E$2:$E$110000,$E2) -> 0 | J2: =SUMIFS('Raw - New'!$I$2:$I$110000,'Raw - New'!$C$2:$C$110000,$B2,'Raw - New'!$F$2:$F$110000,"Exports (000's)",'Raw - New'!$J$2:$J$110000,J$1,'Raw - New'!$E$2:$E$110000,$E2) -> 0 | K2: =SUMIFS('Raw - New'!$I$2:$I$110000,'Raw - New'!$C$2:$C$110000,$B2,'Raw - New'!$F$2:$F$110000,"Exports (000's)",'Raw - New'!$J$2:$J$110000,K$1,'Raw - New'!$E$2:$E$110000,$E2) -> 0 | L2: =SUMIFS('Raw - New'!$I$2:$I$110000,'Raw - New'!$C$2:$C$110000,$B2,'Raw - New'!$F$2:$F$110000,"Exports (000's)",'Raw - New'!$J$2:$J$110000,L$1,'Raw - New'!$E$2:$E$110000,$E2) -> 0 | M2: =SUMIFS('Raw - New'!$I$2:$I$110000,'Raw - New'!$C$2:$C$110000,$B2,'Raw - New'!$F$2:$F$110000,"Exports (000's)",'Raw - New'!$J$2:$J$110000,M$1,'Raw - New'!$E$2:$E$110000,$E2) -> 0 | N2: =SUMIFS('Raw - New'!$I$2:$I$110000,'Raw - New'!$C$2:$C$110000,$B2,'Raw - New'!$F$2:$F$110000,"Exports (000's)",'Raw - New'!$J$2:$J$110000,N$1,'Raw - New'!$E$2:$E$110000,$E2) -> 0 | O2: =SUMIFS('Raw - New'!$I$2:$I$110000,'Raw - New'!$C$2:$C$110000,$B2,'Raw - New'!$F$2:$F$110000,"Exports (000's)",'Raw - New'!$J$2:$J$110000,O$1,'Raw - New'!$E$2:$E$110000,$E2) -> 0 | P2: =SUMIFS('Raw - New'!$I$2:$I$110000,'Raw - New'!$C$2:$C$110000,$B2,'Raw - New'!$F$2:$F$110000,"Exports (000's)",'Raw - New'!$J$2:$J$110000,P$1,'Raw - New'!$E$2:$E$110000,$E2) -> 0 | Q2: =SUMIFS('Raw - New'!$I$2:$I$110000,'Raw - New'!$C$2:$C$110000,$B2,'Raw - New'!$F$2:$F$110000,"Exports (000's)",'Raw - New'!$J$2:$J$110000,Q$1,'Raw - New'!$E$2:$E$110000,$E2) -> 0 | R2: =SUMIFS('Raw - New'!$I$2:$I$110000,'Raw - New'!$C$2:$C$110000,$B2,'Raw - New'!$F$2:$F$110000,"Exports (000's)",'Raw - New'!$J$2:$J$110000,R$1,'Raw - New'!$E$2:$E$110000,$E2) -> 0 | S2: =SUMIFS('Raw - New'!$I$2:$I$110000,'Raw - New'!$C$2:$C$110000,$B2,'Raw - New'!$F$2:$F$110000,"Exports (000's)",'Raw - New'!$J$2:$J$110000,S$1,'Raw - New'!$E$2:$E$110000,$E2) -> 0 | T2: =SUMIFS('Raw - New'!$I$2:$I$110000,'Raw - New'!$C$2:$C$110000,$B2,'Raw - New'!$F$2:$F$110000,"Exports (000's)",'Raw - New'!$J$2:$J$110000,T$1,'Raw - New'!$E$2:$E$110000,$E2) -> 0 | U2: =SUMIFS('Raw - New'!$I$2:$I$110000,'Raw - New'!$C$2:$C$110000,$B2,'Raw - New'!$F$2:$F$110000,"Exports (000's)",'Raw - New'!$J$2:$J$110000,U$1,'Raw - New'!$E$2:$E$110000,$E2) -> 0 | V2: =SUMIFS('Raw - New'!$I$2:$I$110000,'Raw - New'!$C$2:$C$110000,$B2,'Raw - New'!$F$2:$F$110000,"Exports (000's)",'Raw - New'!$J$2:$J$110000,V$1,'Raw - New'!$E$2:$E$110000,$E2) -> 0 | W2: =SUMIFS('Raw - New'!$I$2:$I$110000,'Raw - New'!$C$2:$C$110000,$B2,'Raw - New'!$F$2:$F$110000,"Exports (000's)",'Raw - New'!$J$2:$J$110000,W$1,'Raw - New'!$E$2:$E$110000,$E2) -> 0 | X2: =SUMIFS('Raw - New'!$I$2:$I$110000,'Raw - New'!$C$2:$C$110000,$B2,'Raw - New'!$F$2:$F$110000,"Exports (000's)",'Raw - New'!$J$2:$J$110000,X$1,'Raw - New'!$E$2:$E$110000,$E2) -> 0 | Y2: =SUMIFS('Raw - New'!$I$2:$I$110000,'Raw - New'!$C$2:$C$110000,$B2,'Raw - New'!$F$2:$F$110000,"Exports (000's)",'Raw - New'!$J$2:$J$110000,Y$1,'Raw - New'!$E$2:$E$110000,$E2) -> 0 | Z2: =SUMIFS('Raw - New'!$I$2:$I$110000,'Raw - New'!$C$2:$C$110000,$B2,'Raw - New'!$F$2:$F$110000,"Exports (000's)",'Raw - New'!$J$2:$J$110000,Z$1,'Raw - New'!$E$2:$E$110000,$E2) -> 0 | AA2: =SUM(G2:J2) -> 0 | AB2: =SUM(K2:N2) -> 0 | AC2: =SUM(O2:R2) -> 0 | AD2: =SUM(S2:V2) -> 0 | AE2: =SUM(W2:Z2) -> 0 | AF2: =IFERROR(VLOOKUP(B2,Selection!$Y$2:$AB$107,4,FALSE),0) -> 0
A3: European Community | B3: Austria | C3: Europe and Russia | D3: 0 - Food & live animals | E3: 01 - Meat & meat preparations | F3: Austria01 - Meat & meat preparations | G3: =SUMIFS('Raw - New'!$I$2:$I$110000,'Raw - New'!$C$2:$C$110000,$B3,'Raw - New'!$F$2:$F$110000,"Exports (000's)",'Raw - New'!$J$2:$J$110000,G$1,'Raw - New'!$E$2:$E$110000,$E3) -> 52 | H3: =SUMIFS('Raw - New'!$I$2:$I$110000,'Raw - New'!$C$2:$C$110000,$B3,'Raw - New'!$F$2:$F$110000,"Exports (000's)",'Raw - New'!$J$2:$J$110000,H$1,'Raw - New'!$E$2:$E$110000,$E3) -> 67 | I3: =SUMIFS('Raw - New'!$I$2:$I$110000,'Raw - New'!$C$2:$C$110000,$B3,'Raw - New'!$F$2:$F$110000,"Exports (000's)",'Raw - New'!$J$2:$J$110000,I$1,'Raw - New'!$E$2:$E$110000,$E3) -> 58 | J3: =SUMIFS('Raw - New'!$I$2:$I$110000,'Raw - New'!$C$2:$C$110000,$B3,'Raw - New'!$F$2:$F$110000,"Exports (000's)",'Raw - New'!$J$2:$J$110000,J$1,'Raw - New'!$E$2:$E$110000,$E3) -> 61 | K3: =SUMIFS('Raw - New'!$I$2:$I$110000,'Raw - New'!$C$2:$C$110000,$B3,'Raw - New'!$F$2:$F$110000,"Exports (000's)",'Raw - New'!$J$2:$J$110000,K$1,'Raw - New'!$E$2:$E$110000,$E3) -> 68 | L3: =SUMIFS('Raw - New'!$I$2:$I$110000,'Raw - New'!$C$2:$C$110000,$B3,'Raw - New'!$F$2:$F$110000,"Exports (000's)",'Raw - New'!$J$2:$J$110000,L$1,'Raw - New'!$E$2:$E$110000,$E3) -> 63 | M3: =SUMIFS('Raw - New'!$I$2:$I$110000,'Raw - New'!$C$2:$C$110000,$B3,'Raw - New'!$F$2:$F$110000,"Exports (000's)",'Raw - New'!$J$2:$J$110000,M$1,'Raw - New'!$E$2:$E$110000,$E3) -> 86 | N3: =SUMIFS('Raw - New'!$I$2:$I$110000,'Raw - New'!$C$2:$C$110000,$B3,'Raw - New'!$F$2:$F$110000,"Exports (000's)",'Raw - New'!$J$2:$J$110000,N$1,'Raw - New'!$E$2:$E$110000,$E3) -> 94 | O3: =SUMIFS('Raw - New'!$I$2:$I$110000,'Raw - New'!$C$2:$C$110000,$B3,'Raw - New'!$F$2:$F$110000,"Exports (000's)",'Raw - New'!$J$2:$J$110000,O$1,'Raw - New'!$E$2:$E$110000,$E3) -> 42 | P3: =SUMIFS('Raw - New'!$I$2:$I$110000,'Raw - New'!$C$2:$C$110000,$B3,'Raw - New'!$F$2:$F$110000,"Exports (000's)",'Raw - New'!$J$2:$J$110000,P$1,'Raw - New'!$E$2:$E$110000,$E3) -> 142 | Q3: =SUMIFS('Raw - New'!$I$2:$I$110000,'Raw - New'!$C$2:$C$110000,$B3,'Raw - New'!$F$2:$F$110000,"Exports (000's)",'Raw - New'!$J$2:$J$110000,Q$1,'Raw - New'!$E$2:$E$110000,$E3) -> 236 | R3: =SUMIFS('Raw - New'!$I$2:$I$110000,'Raw - New'!$C$2:$C$110000,$B3,'Raw - New'!$F$2:$F$110000,"Exports (000's)",'Raw - New'!$J$2:$J$110000,R$1,'Raw - New'!$E$2:$E$110000,$E3) -> 439 | S3: =SUMIFS('Raw - New'!$I$2:$I$110000,'Raw - New'!$C$2:$C$110000,$B3,'Raw - New'!$F$2:$F$110000,"Exports (000's)",'Raw - New'!$J$2:$J$110000,S$1,'Raw - New'!$E$2:$E$110000,$E3) -> 436 | T3: =SUMIFS('Raw - New'!$I$2:$I$110000,'Raw - New'!$C$2:$C$110000,$B3,'Raw - New'!$F$2:$F$110000,"Exports (000's)",'Raw - New'!$J$2:$J$110000,T$1,'Raw - New'!$E$2:$E$110000,$E3) -> 521 | U3: =SUMIFS('Raw - New'!$I$2:$I$110000,'Raw - New'!$C$2:$C$110000,$B3,'Raw - New'!$F$2:$F$110000,"Exports (000's)",'Raw - New'!$J$2:$J$110000,U$1,'Raw - New'!$E$2:$E$110000,$E3) -> 477 | V3: =SUMIFS('Raw - New'!$I$2:$I$110000,'Raw - New'!$C$2:$C$110000,$B3,'Raw - New'!$F$2:$F$110000,"Exports (000's)",'Raw - New'!$J$2:$J$110000,V$1,'Raw - New'!$E$2:$E$110000,$E3) -> 465 | W3: =SUMIFS('Raw - New'!$I$2:$I$110000,'Raw - New'!$C$2:$C$110000,$B3,'Raw - New'!$F$2:$F$110000,"Exports (000's)",'Raw - New'!$J$2:$J$110000,W$1,'Raw - New'!$E$2:$E$110000,$E3) -> 235 | X3: =SUMIFS('Raw - New'!$I$2:$I$110000,'Raw - New'!$C$2:$C$110000,$B3,'Raw - New'!$F$2:$F$110000,"Exports (000's)",'Raw - New'!$J$2:$J$110000,X$1,'Raw - New'!$E$2:$E$110000,$E3) -> 203 | Y3: =SUMIFS('Raw - New'!$I$2:$I$110000,'Raw - New'!$C$2:$C$110000,$B3,'Raw - New'!$F$2:$F$110000,"Exports (000's)",'Raw - New'!$J$2:$J$110000,Y$1,'Raw - New'!$E$2:$E$110000,$E3) -> 113 | Z3: =SUMIFS('Raw - New'!$I$2:$I$110000,'Raw - New'!$C$2:$C$110000,$B3,'Raw - New'!$F$2:$F$110000,"Exports (000's)",'Raw - New'!$J$2:$J$110000,Z$1,'Raw - New'!$E$2:$E$110000,$E3) -> 110 | AA3: =SUM(G3:J3) -> 238 | AB3: =SUM(K3:N3) -> 311 | AC3: =SUM(O3:R3) -> 859 | AD3: =SUM(S3:V3) -> 1899 | AE3: =SUM(W3:Z3) -> 661 | AF3: =IFERROR(VLOOKUP(B3,Selection!$Y$2:$AB$107,4,FALSE),0) -> 0
A4: European Community | B4: Austria | C4: Europe and Russia | D4: 0 - Food & live animals | E4: 02 - Dairy products & birds' eggs | F4: Austria02 - Dairy products & birds' eggs | G4: =SUMIFS('Raw - New'!$I$2:$I$110000,'Raw - New'!$C$2:$C$110000,$B4,'Raw - New'!$F$2:$F$110000,"Exports (000's)",'Raw - New'!$J$2:$J$110000,G$1,'Raw - New'!$E$2:$E$110000,$E4) -> 53 | H4: =SUMIFS('Raw - New'!$I$2:$I$110000,'Raw - New'!$C$2:$C$110000,$B4,'Raw - New'!$F$2:$F$110000,"Exports (000's)",'Raw - New'!$J$2:$J$110000,H$1,'Raw - New'!$E$2:$E$110000,$E4) -> 135 | I4: =SUMIFS('Raw - New'!$I$2:$I$110000,'Raw - New'!$C$2:$C$110000,$B4,'Raw - New'!$F$2:$F$110000,"Exports (000's)",'Raw - New'!$J$2:$J$110000,I$1,'Raw - New'!$E$2:$E$110000,$E4) -> 26 | J4: =SUMIFS('Raw - New'!$I$2:$I$110000,'Raw - New'!$C$2:$C$110000,$B4,'Raw - New'!$F$2:$F$110000,"Exports (000's)",'Raw - New'!$J$2:$J$110000,J$1,'Raw - New'!$E$2:$E$110000,$E4) -> 17 | K4: =SUMIFS('Raw - New'!$I$2:$I$110000,'Raw - New'!$C$2:$C$110000,$B4,'Raw - New'!$F$2:$F$110000,"Exports (000's)",'Raw - New'!$J$2:$J$110000,K$1,'Raw - New'!$E$2:$E$110000,$E4) -> 60 | L4: =SUMIFS('Raw - New'!$I$2:$I$110000,'Raw - New'!$C$2:$C$110000,$B4,'Raw - New'!$F$2:$F$110000,"Exports (000's)",'Raw - New'!$J$2:$J$110000,L$1,'Raw - New'!$E$2:$E$110000,$E4) -> 32 | M4: =SUMIFS('Raw - New'!$I$2:$I$110000,'Raw - New'!$C$2:$C$110000,$B4,'Raw - New'!$F$2:$F$110000,"Exports (000's)",'Raw - New'!$J$2:$J$110000,M$1,'Raw - New'!$E$2:$E$110000,$E4) -> 14 | N4: =SUMIFS('Raw - New'!$I$2:$I$110000,'Raw - New'!$C$2:$C$110000,$B4,'Raw - New'!$F$2:$F$110000,"Exports (000's)",'Raw - New'!$J$2:$J$110000,N$1,'Raw - New'!$E$2:$E$110000,$E4) -> 53 | O4: =SUMIFS('Raw - New'!$I$2:$I$110000,'Raw - New'!$C$2:$C$110000,$B4,'Raw - New'!$F$2:$F$110000,"Exports (000's)",'Raw - New'!$J$2:$J$110000,O$1,'Raw - New'!$E$2:$E$110000,$E4) -> 45 | P4: =SUMIFS('Raw - New'!$I$2:$I$110000,'Raw - New'!$C$2:$C$110000,$B4,'Raw - New'!$F$2:$F$110000,"Exports (000's)",'Raw - New'!$J$2:$J$110000,P$1,'Raw - New'!$E$2:$E$110000,$E4) -> 173 | Q4: =SUMIFS('Raw - New'!$I$2:$I$110000,'Raw - New'!$C$2:$C$110000,$B4,'Raw - New'!$F$2:$F$110000,"Exports (000's)",'Raw - New'!$J$2:$J$110000,Q$1,'Raw - New'!$E$2:$E$110000,$E4) -> 388 | R4: =SUMIFS('Raw - New'!$I$2:$I$110000,'Raw - New'!$C$2:$C$110000,$B4,'Raw - New'!$F$2:$F$110000,"Exports (000's)",'Raw - New'!$J$2:$J$110000,R$1,'Raw - New'!$E$2:$E$110000,$E4) -> 222 | S4: =SUMIFS('Raw - New'!$I$2:$I$110000,'Raw - New'!$C$2:$C$110000,$B4,'Raw - New'!$F$2:$F$110000,"Exports (000's)",'Raw - New'!$J$2:$J$110000,S$1,'Raw - New'!$E$2:$E$110000,$E4) -> 410 | T4: =SUMIFS('Raw - New'!$I$2:$I$110000,'Raw - New'!$C$2:$C$110000,$B4,'Raw - New'!$F$2:$F$110000,"Exports (000's)",'Raw - New'!$J$2:$J$110000,T$1,'Raw - New'!$E$2:$E$110000,$E4) -> 552 | U4: =SUMIFS('Raw - New'!$I$2:$I$110000,'Raw - New'!$C$2:$C$110000,$B4,'Raw - New'!$F$2:$F$110000,"Exports (000's)",'Raw - New'!$J$2:$J$110000,U$1,'Raw - New'!$E$2:$E$110000,$E4) -> 219 | V4: =SUMIFS('Raw - New'!$I$2:$I$110000,'Raw - New'!$C$2:$C$110000,$B4,'Raw - New'!$F$2:$F$110000,"Exports (000's)",'Raw - New'!$J$2:$J$110000,V$1,'Raw - New'!$E$2:$E$110000,$E4) -> 98 | W4: =SUMIFS('Raw - New'!$I$2:$I$110000,'Raw - New'!$C$2:$C$110000,$B4,'Raw - New'!$F$2:$F$110000,"Exports (000's)",'Raw - New'!$J$2:$J$110000,W$1,'Raw - New'!$E$2:$E$110000,$E4) -> 167 | X4: =SUMIFS('Raw - New'!$I$2:$I$110000,'Raw - New'!$C$2:$C$110000,$B4,'Raw - New'!$F$2:$F$110000,"Exports (000's)",'Raw - New'!$J$2:$J$110000,X$1,'Raw - New'!$E$2:$E$110000,$E4) -> 221 | Y4: =SUMIFS('Raw - New'!$I$2:$I$110000,'Raw - New'!$C$2:$C$110000,$B4,'Raw - New'!$F$2:$F$110000,"Exports (000's)",'Raw - New'!$J$2:$J$110000,Y$1,'Raw - New'!$E$2:$E$110000,$E4) -> 100 | Z4: =SUMIFS('Raw - New'!$I$2:$I$110000,'Raw - New'!$C$2:$C$110000,$B4,'Raw - New'!$F$2:$F$110000,"Exports (000's)",'Raw - New'!$J$2:$J$110000,Z$1,'Raw - New'!$E$2:$E$110000,$E4) -> 81 | AA4: 231 | AB4: 159 | AC4: 828 | AD4: 1279 | AE4: 569 | AF4: =IFERROR(VLOOKUP(B4,Selection!$Y$2:$AB$107,4,FALSE),0) -> 0
A5: European Community | B5: Austria | C5: Europe and Russia | D5: 0 - Food & live animals | E5: 03 - Fish,crustaceans,molluscs & aq.inverts & preps thereof | F5: Austria03 - Fish,crustaceans,molluscs & aq.inverts & preps thereof | G5: =SUMIFS('Raw - New'!$I$2:$I$110000,'Raw - New'!$C$2:$C$110000,$B5,'Raw - New'!$F$2:$F$110000,"Exports (000's)",'Raw - New'!$J$2:$J$110000,G$1,'Raw - New'!$E$2:$E$110000,$E5) -> 20 | H5: =SUMIFS('Raw - New'!$I$2:$I$110000,'Raw - New'!$C$2:$C$110000,$B5,'Raw - New'!$F$2:$F$110000,"Exports (000's)",'Raw - New'!$J$2:$J$110000,H$1,'Raw - New'!$E$2:$E$110000,$E5) -> 18 | I5: =SUMIFS('Raw - New'!$I$2:$I$110000,'Raw - New'!$C$2:$C$110000,$B5,'Raw - New'!$F$2:$F$110000,"Exports (000's)",'Raw - New'!$J$2:$J$110000,I$1,'Raw - New'!$E$2:$E$110000,$E5) -> 17 | J5: =SUMIFS('Raw - New'!$I$2:$I$110000,'Raw - New'!$C$2:$C$110000,$B5,'Raw - New'!$F$2:$F$110000,"Exports (000's)",'Raw - New'!$J$2:$J$110000,J$1,'Raw - New'!$E$2:$E$110000,$E5) -> 19 | K5: =SUMIFS('Raw - New'!$I$2:$I$110000,'Raw - New'!$C$2:$C$110000,$B5,'Raw - New'!$F$2:$F$110000,"Exports (000's)",'Raw - New'!$J$2:$J$110000,K$1,'Raw - New'!$E$2:$E$110000,$E5) -> 67 | L5: =SUMIFS('Raw - New'!$I$2:$I$110000,'Raw - New'!$C$2:$C$110000,$B5,'Raw - New'!$F$2:$F$110000,"Exports (000's)",'Raw - New'!$J$2:$J$110000,L$1,'Raw - New'!$E$2:$E$110000,$E5) -> 1 | M5: =SUMIFS('Raw - New'!$I$2:$I$110000,'Raw - New'!$C$2:$C$110000,$B5,'Raw - New'!$F$2:$F$110000,"Exports (000's)",'Raw - New'!$J$2:$J$110000,M$1,'Raw - New'!$E$2:$E$110000,$E5) -> 1 | N5: =SUMIFS('Raw - New'!$I$2:$I$110000,'Raw - New'!$C$2:$C$110000,$B5,'Raw - New'!$F$2:$F$110000,"Exports (000's)",'Raw - New'!$J$2:$J$110000,N$1,'Raw - New'!$E$2:$E$110000,$E5) -> 0 | O5: =SUMIFS('Raw - New'!$I$2:$I$110000,'Raw - New'!$C$2:$C$110000,$B5,'Raw - New'!$F$2:$F$110000,"Exports (000's)",'Raw - New'!$J$2:$J$110000,O$1,'Raw - New'!$E$2:$E$110000,$E5) -> 0 | P5: =SUMIFS('Raw - New'!$I$2:$I$110000,'Raw - New'!$C$2:$C$110000,$B5,'Raw - New'!$F$2:$F$110000,"Exports (000's)",'Raw - New'!$J$2:$J$110000,P$1,'Raw - New'!$E$2:$E$110000,$E5) -> 14 | Q5: =SUMIFS('Raw - New'!$I$2:$I$110000,'Raw - New'!$C$2:$C$110000,$B5,'Raw - New'!$F$2:$F$110000,"Exports (000's)",'Raw - New'!$J$2:$J$110000,Q$1,'Raw - New'!$E$2:$E$110000,$E5) -> 34 | R5: =SUMIFS('Raw - New'!$I$2:$I$110000,'Raw - New'!$C$2:$C$110000,$B5,'Raw - New'!$F$2:$F$110000,"Exports (000's)",'Raw - New'!$J$2:$J$110000,R$1,'Raw - New'!$E$2:$E$110000,$E5) -> 57 | S5: =SUMIFS('Raw - New'!$I$2:$I$110000,'Raw - New'!$C$2:$C$110000,$B5,'Raw - New'!$F$2:$F$110000,"Exports (000's)",'Raw - New'!$J$2:$J$110000,S$1,'Raw - New'!$E$2:$E$110000,$E5) -> 19 | T5: =SUMIFS('Raw - New'!$I$2:$I$110000,'Raw - New'!$C$2:$C$110000,$B5,'Raw - New'!$F$2:$F$110000,"Exports (000's)",'Raw - New'!$J$2:$J$110000,T$1,'Raw - New'!$E$2:$E$110000,$E5) -> 31 | U5: =SUMIFS('Raw - New'!$I$2:$I$110000,'Raw - New'!$C$2:$C$110000,$B5,'Raw - New'!$F$2:$F$110000,"Exports (000's)",'Raw - New'!$J$2:$J$110000,U$1,'Raw - New'!$E$2:$E$110000,$E5) -> 22 | V5: =SUMIFS('Raw - New'!$I$2:$I$110000,'Raw - New'!$C$2:$C$110000,$B5,'Raw - New'!$F$2:$F$110000,"Exports (000's)",'Raw - New'!$J$2:$J$110000,V$1,'Raw - New'!$E$2:$E$110000,$E5) -> 17 | W5: =SUMIFS('Raw - New'!$I$2:$I$110000,'Raw - New'!$C$2:$C$110000,$B5,'Raw - New'!$F$2:$F$110000,"Exports (000's)",'Raw - New'!$J$2:$J$110000,W$1,'Raw - New'!$E$2:$E$110000,$E5) -> 22 | X5: =SUMIFS('Raw - New'!$I$2:$I$110000,'Raw - New'!$C$2:$C$110000,$B5,'Raw - New'!$F$2:$F$110000,"Exports (000's)",'Raw - New'!$J$2:$J$110000,X$1,'Raw - New'!$E$2:$E$110000,$E5) -> 13 | Y5: =SUMIFS('Raw - New'!$I$2:$I$110000,'Raw - New'!$C$2:$C$110000,$B5,'Raw - New'!$F$2:$F$110000,"Exports (000's)",'Raw - New'!$J$2:$J$110000,Y$1,'Raw - New'!$E$2:$E$110000,$E5) -> 8 | Z5: =SUMIFS('Raw - New'!$I$2:$I$110000,'Raw - New'!$C$2:$C$110000,$B5,'Raw - New'!$F$2:$F$110000,"Exports (000's)",'Raw - New'!$J$2:$J$110000,Z$1,'Raw - New'!$E$2:$E$110000,$E5) -> 0 | AA5: 74 | AB5: 69 | AC5: 105 | AD5: 89 | AE5: 43 | AF5: =IFERROR(VLOOKUP(B5,Selection!$Y$2:$AB$107,4,FALSE),0) -> 0
A6: European Community | B6: Austria | C6: Europe and Russia | D6: 0 - Food & live animals | E6: 04 - Cereals & cereal preparations | F6: Austria04 - Cereals & cereal preparations | G6: =SUMIFS('Raw - New'!$I$2:$I$110000,'Raw - New'!$C$2:$C$110000,$B6,'Raw - New'!$F$2:$F$110000,"Exports (000's)",'Raw - New'!$J$2:$J$110000,G$1,'Raw - New'!$E$2:$E$110000,$E6) -> 0 | H6: =SUMIFS('Raw - New'!$I$2:$I$110000,'Raw - New'!$C$2:$C$110000,$B6,'Raw - New'!$F$2:$F$110000,"Exports (000's)",'Raw - New'!$J$2:$J$110000,H$1,'Raw - New'!$E$2:$E$110000,$E6) -> 0 | I6: =SUMIFS('Raw - New'!$I$2:$I$110000,'Raw - New'!$C$2:$C$110000,$B6,'Raw - New'!$F$2:$F$110000,"Exports (000's)",'Raw - New'!$J$2:$J$110000,I$1,'Raw - New'!$E$2:$E$110000,$E6) -> 6 | J6: =SUMIFS('Raw - New'!$I$2:$I$110000,'Raw - New'!$C$2:$C$110000,$B6,'Raw - New'!$F$2:$F$110000,"Exports (000's)",'Raw - New'!$J$2:$J$110000,J$1,'Raw - New'!$E$2:$E$110000,$E6) -> 0 | K6: =SUMIFS('Raw - New'!$I$2:$I$110000,'Raw - New'!$C$2:$C$110000,$B6,'Raw - New'!$F$2:$F$110000,"Exports (000's)",'Raw - New'!$J$2:$J$110000,K$1,'Raw - New'!$E$2:$E$110000,$E6) -> 0 | L6: =SUMIFS('Raw - New'!$I$2:$I$110000,'Raw - New'!$C$2:$C$110000,$B6,'Raw - New'!$F$2:$F$110000,"Exports (000's)",'Raw - New'!$J$2:$J$110000,L$1,'Raw - New'!$E$2:$E$110000,$E6) -> 0 | M6: =SUMIFS('Raw - New'!$I$2:$I$110000,'Raw - New'!$C$2:$C$110000,$B6,'Raw - New'!$F$2:$F$110000,"Exports (000's)",'Raw - New'!$J$2:$J$110000,M$1,'Raw - New'!$E$2:$E$110000,$E6) -> 0 | N6: =SUMIFS('Raw - New'!$I$2:$I$110000,'Raw - New'!$C$2:$C$110000,$B6,'Raw - New'!$F$2:$F$110000,"Exports (000's)",'Raw - New'!$J$2:$J$110000,N$1,'Raw - New'!$E$2:$E$110000,$E6) -> 0 | O6: =SUMIFS('Raw - New'!$I$2:$I$110000,'Raw - New'!$C$2:$C$110000,$B6,'Raw - New'!$F$2:$F$110000,"Exports (000's)",'Raw - New'!$J$2:$J$110000,O$1,'Raw - New'!$E$2:$E$110000,$E6) -> 2 | P6: =SUMIFS('Raw - New'!$I$2:$I$110000,'Raw - New'!$C$2:$C$110000,$B6,'Raw - New'!$F$2:$F$110000,"Exports (000's)",'Raw - New'!$J$2:$J$110000,P$1,'Raw - New'!$E$2:$E$110000,$E6) -> 0 | Q6: =SUMIFS('Raw - New'!$I$2:$I$110000,'Raw - New'!$C$2:$C$110000,$B6,'Raw - New'!$F$2:$F$110000,"Exports (000's)",'Raw - New'!$J$2:$J$110000,Q$1,'Raw - New'!$E$2:$E$110000,$E6) -> 0 | R6: =SUMIFS('Raw - New'!$I$2:$I$110000,'Raw - New'!$C$2:$C$110000,$B6,'Raw - New'!$F$2:$F$110000,"Exports (000's)",'Raw - New'!$J$2:$J$110000,R$1,'Raw - New'!$E$2:$E$110000,$E6) -> 0 | S6: =SUMIFS('Raw - New'!$I$2:$I$110000,'Raw - New'!$C$2:$C$110000,$B6,'Raw - New'!$F$2:$F$110000,"Exports (000's)",'Raw - New'!$J$2:$J$110000,S$1,'Raw - New'!$E$2:$E$110000,$E6) -> 0 | T6: =SUMIFS('Raw - New'!$I$2:$I$110000,'Raw - New'!$C$2:$C$110000,$B6,'Raw - New'!$F$2:$F$110000,"Exports (000's)",'Raw - New'!$J$2:$J$110000,T$1,'Raw - New'!$E$2:$E$110000,$E6) -> 0 | U6: =SUMIFS('Raw - New'!$I$2:$I$110000,'Raw - New'!$C$2:$C$110000,$B6,'Raw - New'!$F$2:$F$110000,"Exports (000's)",'Raw - New'!$J$2:$J$110000,U$1,'Raw - New'!$E$2:$E$110000,$E6) -> 0 | V6: =SUMIFS('Raw - New'!$I$2:$I$110000,'Raw - New'!$C$2:$C$110000,$B6,'Raw - New'!$F$2:$F$110000,"Exports (000's)",'Raw - New'!$J$2:$J$110000,V$1,'Raw - New'!$E$2:$E$110000,$E6) -> 0 | W6: =SUMIFS('Raw - New'!$I$2:$I$110000,'Raw - New'!$C$2:$C$110000,$B6,'Raw - New'!$F$2:$F$110000,"Exports (000's)",'Raw - New'!$J$2:$J$110000,W$1,'Raw - New'!$E$2:$E$110000,$E6) -> 0 | X6: =SUMIFS('Raw - New'!$I$2:$I$110000,'Raw - New'!$C$2:$C$110000,$B6,'Raw - New'!$F$2:$F$110000,"Exports (000's)",'Raw - New'!$J$2:$J$110000,X$1,'Raw - New'!$E$2:$E$110000,$E6) -> 0 | Y6: =SUMIFS('Raw - New'!$I$2:$I$110000,'Raw - New'!$C$2:$C$110000,$B6,'Raw - New'!$F$2:$F$110000,"Exports (000's)",'Raw - New'!$J$2:$J$110000,Y$1,'Raw - New'!$E$2:$E$110000,$E6) -> 0 | Z6: =SUMIFS('Raw - New'!$I$2:$I$110000,'Raw - New'!$C$2:$C$110000,$B6,'Raw - New'!$F$2:$F$110000,"Exports (000's)",'Raw - New'!$J$2:$J$110000,Z$1,'Raw - New'!$E$2:$E$110000,$E6) -> 0 | AA6: 6 | AB6: 0 | AC6: 2 | AD6: 0 | AE6: 0 | AF6: =IFERROR(VLOOKUP(B6,Selection!$Y$2:$AB$107,4,FALSE),0) -> 0
A7: European Community | B7: Austria | C7: Europe and Russia | D7: 0 - Food & live animals | E7: 05 - Vegetables & fruit | F7: Austria05 - Vegetables & fruit | G7: =SUMIFS('Raw - New'!$I$2:$I$110000,'Raw - New'!$C$2:$C$110000,$B7,'Raw - New'!$F$2:$F$110000,"Exports (000's)",'Raw - New'!$J$2:$J$110000,G$1,'Raw - New'!$E$2:$E$110000,$E7) -> 0 | H7: =SUMIFS('Raw - New'!$I$2:$I$110000,'Raw - New'!$C$2:$C$110000,$B7,'Raw - New'!$F$2:$F$110000,"Exports (000's)",'Raw - New'!$J$2:$J$110000,H$1,'Raw - New'!$E$2:$E$110000,$E7) -> 0 | I7: =SUMIFS('Raw - New'!$I$2:$I$110000,'Raw - New'!$C$2:$C$110000,$B7,'Raw - New'!$F$2:$F$110000,"Exports (000's)",'Raw - New'!$J$2:$J$110000,I$1,'Raw - New'!$E$2:$E$110000,$E7) -> 0 | J7: =SUMIFS('Raw - New'!$I$2:$I$110000,'Raw - New'!$C$2:$C$110000,$B7,'Raw - New'!$F$2:$F$110000,"Exports (000's)",'Raw - New'!$J$2:$J$110000,J$1,'Raw - New'!$E$2:$E$110000,$E7) -> 0 | K7: =SUMIFS('Raw - New'!$I$2:$I$110000,'Raw - New'!$C$2:$C$110000,$B7,'Raw - New'!$F$2:$F$110000,"Exports (000's)",'Raw - New'!$J$2:$J$110000,K$1,'Raw - New'!$E$2:$E$110000,$E7) -> 0 | L7: =SUMIFS('Raw - New'!$I$2:$I$110000,'Raw - New'!$C$2:$C$110000,$B7,'Raw - New'!$F$2:$F$110000,"Exports (000's)",'Raw - New'!$J$2:$J$110000,L$1,'Raw - New'!$E$2:$E$110000,$E7) -> 0 | M7: =SUMIFS('Raw - New'!$I$2:$I$110000,'Raw - New'!$C$2:$C$110000,$B7,'Raw - New'!$F$2:$F$110000,"Exports (000's)",'Raw - New'!$J$2:$J$110000,M$1,'Raw - New'!$E$2:$E$110000,$E7) -> 0 | N7: =SUMIFS('Raw - New'!$I$2:$I$110000,'Raw - New'!$C$2:$C$110000,$B7,'Raw - New'!$F$2:$F$110000,"Exports (000's)",'Raw - New'!$J$2:$J$110000,N$1,'Raw - New'!$E$2:$E$110000,$E7) -> 0 | O7: =SUMIFS('Raw - New'!$I$2:$I$110000,'Raw - New'!$C$2:$C$110000,$B7,'Raw - New'!$F$2:$F$110000,"Exports (000's)",'Raw - New'!$J$2:$J$110000,O$1,'Raw - New'!$E$2:$E$110000,$E7) -> 0 | P7: =SUMIFS('Raw - New'!$I$2:$I$110000,'Raw - New'!$C$2:$C$110000,$B7,'Raw - New'!$F$2:$F$110000,"Exports (000's)",'Raw - New'!$J$2:$J$110000,P$1,'Raw - New'!$E$2:$E$110000,$E7) -> 0 | Q7: =SUMIFS('Raw - New'!$I$2:$I$110000,'Raw - New'!$C$2:$C$110000,$B7,'Raw - New'!$F$2:$F$110000,"Exports (000's)",'Raw - New'!$J$2:$J$110000,Q$1,'Raw - New'!$E$2:$E$110000,$E7) -> 0 | R7: =SUMIFS('Raw - New'!$I$2:$I$110000,'Raw - New'!$C$2:$C$110000,$B7,'Raw - New'!$F$2:$F$110000,"Exports (000's)",'Raw - New'!$J$2:$J$110000,R$1,'Raw - New'!$E$2:$E$110000,$E7) -> 0 | S7: =SUMIFS('Raw - New'!$I$2:$I$110000,'Raw - New'!$C$2:$C$110000,$B7,'Raw - New'!$F$2:$F$110000,"Exports (000's)",'Raw - New'!$J$2:$J$110000,S$1,'Raw - New'!$E$2:$E$110000,$E7) -> 0 | T7: =SUMIFS('Raw - New'!$I$2:$I$110000,'Raw - New'!$C$2:$C$110000,$B7,'Raw - New'!$F$2:$F$110000,"Exports (000's)",'Raw - New'!$J$2:$J$110000,T$1,'Raw - New'!$E$2:$E$110000,$E7) -> 0 | U7: =SUMIFS('Raw - New'!$I$2:$I$110000,'Raw - New'!$C$2:$C$110000,$B7,'Raw - New'!$F$2:$F$110000,"Exports (000's)",'Raw - New'!$J$2:$J$110000,U$1,'Raw - New'!$E$2:$E$110000,$E7) -> 0 | V7: =SUMIFS('Raw - New'!$I$2:$I$110000,'Raw - New'!$C$2:$C$110000,$B7,'Raw - New'!$F$2:$F$110000,"Exports (000's)",'Raw - New'!$J$2:$J$110000,V$1,'Raw - New'!$E$2:$E$110000,$E7) -> 0 | W7: =SUMIFS('Raw - New'!$I$2:$I$110000,'Raw - New'!$C$2:$C$110000,$B7,'Raw - New'!$F$2:$F$110000,"Exports (000's)",'Raw - New'!$J$2:$J$110000,W$1,'Raw - New'!$E$2:$E$110000,$E7) -> 0 | X7: =SUMIFS('Raw - New'!$I$2:$I$110000,'Raw - New'!$C$2:$C$110000,$B7,'Raw - New'!$F$2:$F$110000,"Exports (000's)",'Raw - New'!$J$2:$J$110000,X$1,'Raw - New'!$E$2:$E$110000,$E7) -> 0 | Y7: =SUMIFS('Raw - New'!$I$2:$I$110000,'Raw - New'!$C$2:$C$110000,$B7,'Raw - New'!$F$2:$F$110000,"Exports (000's)",'Raw - New'!$J$2:$J$110000,Y$1,'Raw - New'!$E$2:$E$110000,$E7) -> 0 | Z7: =SUMIFS('Raw - New'!$I$2:$I$110000,'Raw - New'!$C$2:$C$110000,$B7,'Raw - New'!$F$2:$F$110000,"Exports (000's)",'Raw - New'!$J$2:$J$110000,Z$1,'Raw - New'!$E$2:$E$110000,$E7) -> 0 | AA7: 0 | AB7: 0 | AC7: 0 | AD7: 0 | AE7: 0 | AF7: =IFERROR(VLOOKUP(B7,Selection!$Y$2:$AB$107,4,FALSE),0) -> 0
A8: European Community | B8: Austria | C8: Europe and Russia | D8: 0 - Food & live animals | E8: 06 - Sugar, sugar preparations & honey | F8: Austria06 - Sugar, sugar preparations & honey | G8: =SUMIFS('Raw - New'!$I$2:$I$110000,'Raw - New'!$C$2:$C$110000,$B8,'Raw - New'!$F$2:$F$110000,"Exports (000's)",'Raw - New'!$J$2:$J$110000,G$1,'Raw - New'!$E$2:$E$110000,$E8) -> 0 | H8: =SUMIFS('Raw - New'!$I$2:$I$110000,'Raw - New'!$C$2:$C$110000,$B8,'Raw - New'!$F$2:$F$110000,"Exports (000's)",'Raw - New'!$J$2:$J$110000,H$1,'Raw - New'!$E$2:$E$110000,$E8) -> 0 | I8: =SUMIFS('Raw - New'!$I$2:$I$110000,'Raw - New'!$C$2:$C$110000,$B8,'Raw - New'!$F$2:$F$110000,"Exports (000's)",'Raw - New'!$J$2:$J$110000,I$1,'Raw - New'!$E$2:$E$110000,$E8) -> 0 | J8: =SUMIFS('Raw - New'!$I$2:$I$110000,'Raw - New'!$C$2:$C$110000,$B8,'Raw - New'!$F$2:$F$110000,"Exports (000's)",'Raw - New'!$J$2:$J$110000,J$1,'Raw - New'!$E$2:$E$110000,$E8) -> 0 | K8: =SUMIFS('Raw - New'!$I$2:$I$110000,'Raw - New'!$C$2:$C$110000,$B8,'Raw - New'!$F$2:$F$110000,"Exports (000's)",'Raw - New'!$J$2:$J$110000,K$1,'Raw - New'!$E$2:$E$110000,$E8) -> 0 | L8: =SUMIFS('Raw - New'!$I$2:$I$110000,'Raw - New'!$C$2:$C$110000,$B8,'Raw - New'!$F$2:$F$110000,"Exports (000's)",'Raw - New'!$J$2:$J$110000,L$1,'Raw - New'!$E$2:$E$110000,$E8) -> 0 | M8: =SUMIFS('Raw - New'!$I$2:$I$110000,'Raw - New'!$C$2:$C$110000,$B8,'Raw - New'!$F$2:$F$110000,"Exports (000's)",'Raw - New'!$J$2:$J$110000,M$1,'Raw - New'!$E$2:$E$110000,$E8) -> 0 | N8: =SUMIFS('Raw - New'!$I$2:$I$110000,'Raw - New'!$C$2:$C$110000,$B8,'Raw - New'!$F$2:$F$110000,"Exports (000's)",'Raw - New'!$J$2:$J$110000,N$1,'Raw - New'!$E$2:$E$110000,$E8) -> 0 | O8: =SUMIFS('Raw - New'!$I$2:$I$110000,'Raw - New'!$C$2:$C$110000,$B8,'Raw - New'!$F$2:$F$110000,"Exports (000's)",'Raw - New'!$J$2:$J$110000,O$1,'Raw - New'!$E$2:$E$110000,$E8) -> 0 | P8: =SUMIFS('Raw - New'!$I$2:$I$110000,'Raw - New'!$C$2:$C$110000,$B8,'Raw - New'!$F$2:$F$110000,"Exports (000's)",'Raw - New'!$J$2:$J$110000,P$1,'Raw - New'!$E$2:$E$110000,$E8) -> 0 | Q8: =SUMIFS('Raw - New'!$I$2:$I$110000,'Raw - New'!$C$2:$C$110000,$B8,'Raw - New'!$F$2:$F$110000,"Exports (000's)",'Raw - New'!$J$2:$J$110000,Q$1,'Raw - New'!$E$2:$E$110000,$E8) -> 0 | R8: =SUMIFS('Raw - New'!$I$2:$I$110000,'Raw - New'!$C$2:$C$110000,$B8,'Raw - New'!$F$2:$F$110000,"Exports (000's)",'Raw - New'!$J$2:$J$110000,R$1,'Raw - New'!$E$2:$E$110000,$E8) -> 0 | S8: =SUMIFS('Raw - New'!$I$2:$I$110000,'Raw - New'!$C$2:$C$110000,$B8,'Raw - New'!$F$2:$F$110000,"Exports (000's)",'Raw - New'!$J$2:$J$110000,S$1,'Raw - New'!$E$2:$E$110000,$E8) -> 0 | T8: =SUMIFS('Raw - New'!$I$2:$I$110000,'Raw - New'!$C$2:$C$110000,$B8,'Raw - New'!$F$2:$F$110000,"Exports (000's)",'Raw - New'!$J$2:$J$110000,T$1,'Raw - New'!$E$2:$E$110000,$E8) -> 0 | U8: =SUMIFS('Raw - New'!$I$2:$I$110000,'Raw - New'!$C$2:$C$110000,$B8,'Raw - New'!$F$2:$F$110000,"Exports (000's)",'Raw - New'!$J$2:$J$110000,U$1,'Raw - New'!$E$2:$E$110000,$E8) -> 0 | V8: =SUMIFS('Raw - New'!$I$2:$I$110000,'Raw - New'!$C$2:$C$110000,$B8,'Raw - New'!$F$2:$F$110000,"Exports (000's)",'Raw - New'!$J$2:$J$110000,V$1,'Raw - New'!$E$2:$E$110000,$E8) -> 0 | W8: =SUMIFS('Raw - New'!$I$2:$I$110000,'Raw - New'!$C$2:$C$110000,$B8,'Raw - New'!$F$2:$F$110000,"Exports (000's)",'Raw - New'!$J$2:$J$110000,W$1,'Raw - New'!$E$2:$E$110000,$E8) -> 0 | X8: =SUMIFS('Raw - New'!$I$2:$I$110000,'Raw - New'!$C$2:$C$110000,$B8,'Raw - New'!$F$2:$F$110000,"Exports (000's)",'Raw - New'!$J$2:$J$110000,X$1,'Raw - New'!$E$2:$E$110000,$E8) -> 0 | Y8: =SUMIFS('Raw - New'!$I$2:$I$110000,'Raw - New'!$C$2:$C$110000,$B8,'Raw - New'!$F$2:$F$110000,"Exports (000's)",'Raw - New'!$J$2:$J$110000,Y$1,'Raw - New'!$E$2:$E$110000,$E8) -> 0 | Z8: =SUMIFS('Raw - New'!$I$2:$I$110000,'Raw - New'!$C$2:$C$110000,$B8,'Raw - New'!$F$2:$F$110000,"Exports (000's)",'Raw - New'!$J$2:$J$110000,Z$1,'Raw - New'!$E$2:$E$110000,$E8) -> 0 | AA8: 0 | AB8: 0 | AC8: 0 | AD8: 0 | AE8: 0 | AF8: =IFERROR(VLOOKUP(B8,Selection!$Y$2:$AB$107,4,FALSE),0) -> 0
A9: European Community | B9: Austria | C9: Europe and Russia | D9: 0 - Food & live animals | E9: 07 - Coffee, tea, cocoa, spices & manufactures thereof | F9: Austria07 - Coffee, tea, cocoa, spices & manufactures thereof | G9: =SUMIFS('Raw - New'!$I$2:$I$110000,'Raw - New'!$C$2:$C$110000,$B9,'Raw - New'!$F$2:$F$110000,"Exports (000's)",'Raw - New'!$J$2:$J$110000,G$1,'Raw - New'!$E$2:$E$110000,$E9) -> 0 | H9: =SUMIFS('Raw - New'!$I$2:$I$110000,'Raw - New'!$C$2:$C$110000,$B9,'Raw - New'!$F$2:$F$110000,"Exports (000's)",'Raw - New'!$J$2:$J$110000,H$1,'Raw - New'!$E$2:$E$110000,$E9) -> 0 | I9: =SUMIFS('Raw - New'!$I$2:$I$110000,'Raw - New'!$C$2:$C$110000,$B9,'Raw - New'!$F$2:$F$110000,"Exports (000's)",'Raw - New'!$J$2:$J$110000,I$1,'Raw - New'!$E$2:$E$110000,$E9) -> 0 | J9: =SUMIFS('Raw - New'!$I$2:$I$110000,'Raw - New'!$C$2:$C$110000,$B9,'Raw - New'!$F$2:$F$110000,"Exports (000's)",'Raw - New'!$J$2:$J$110000,J$1,'Raw - New'!$E$2:$E$110000,$E9) -> 0 | K9: =SUMIFS('Raw - New'!$I$2:$I$110000,'Raw - New'!$C$2:$C$110000,$B9,'Raw - New'!$F$2:$F$110000,"Exports (000's)",'Raw - New'!$J$2:$J$110000,K$1,'Raw - New'!$E$2:$E$110000,$E9) -> 0 | L9: =SUMIFS('Raw - New'!$I$2:$I$110000,'Raw - New'!$C$2:$C$110000,$B9,'Raw - New'!$F$2:$F$110000,"Exports (000's)",'Raw - New'!$J$2:$J$110000,L$1,'Raw - New'!$E$2:$E$110000,$E9) -> 0 | M9: =SUMIFS('Raw - New'!$I$2:$I$110000,'Raw - New'!$C$2:$C$110000,$B9,'Raw - New'!$F$2:$F$110000,"Exports (000's)",'Raw - New'!$J$2:$J$110000,M$1,'Raw - New'!$E$2:$E$110000,$E9) -> 0 | N9: =SUMIFS('Raw - New'!$I$2:$I$110000,'Raw - New'!$C$2:$C$110000,$B9,'Raw - New'!$F$2:$F$110000,"Exports (000's)",'Raw - New'!$J$2:$J$110000,N$1,'Raw - New'!$E$2:$E$110000,$E9) -> 0 | O9: =SUMIFS('Raw - New'!$I$2:$I$110000,'Raw - New'!$C$2:$C$110000,$B9,'Raw - New'!$F$2:$F$110000,"Exports (000's)",'Raw - New'!$J$2:$J$110000,O$1,'Raw - New'!$E$2:$E$110000,$E9) -> 0 | P9: =SUMIFS('Raw - New'!$I$2:$I$110000,'Raw - New'!$C$2:$C$110000,$B9,'Raw - New'!$F$2:$F$110000,"Exports (000's)",'Raw - New'!$J$2:$J$110000,P$1,'Raw - New'!$E$2:$E$110000,$E9) -> 0 | Q9: =SUMIFS('Raw - New'!$I$2:$I$110000,'Raw - New'!$C$2:$C$110000,$B9,'Raw - New'!$F$2:$F$110000,"Exports (000's)",'Raw - New'!$J$2:$J$110000,Q$1,'Raw - New'!$E$2:$E$110000,$E9) -> 0 | R9: =SUMIFS('Raw - New'!$I$2:$I$110000,'Raw - New'!$C$2:$C$110000,$B9,'Raw - New'!$F$2:$F$110000,"Exports (000's)",'Raw - New'!$J$2:$J$110000,R$1,'Raw - New'!$E$2:$E$110000,$E9) -> 0 | S9: =SUMIFS('Raw - New'!$I$2:$I$110000,'Raw - New'!$C$2:$C$110000,$B9,'Raw - New'!$F$2:$F$110000,"Exports (000's)",'Raw - New'!$J$2:$J$110000,S$1,'Raw - New'!$E$2:$E$110000,$E9) -> 0 | T9: =SUMIFS('Raw - New'!$I$2:$I$110000,'Raw - New'!$C$2:$C$110000,$B9,'Raw - New'!$F$2:$F$110000,"Exports (000's)",'Raw - New'!$J$2:$J$110000,T$1,'Raw - New'!$E$2:$E$110000,$E9) -> 0 | U9: =SUMIFS('Raw - New'!$I$2:$I$110000,'Raw - New'!$C$2:$C$110000,$B9,'Raw - New'!$F$2:$F$110000,"Exports (000's)",'Raw - New'!$J$2:$J$110000,U$1,'Raw - New'!$E$2:$E$110000,$E9) -> 0 | V9: =SUMIFS('Raw - New'!$I$2:$I$110000,'Raw - New'!$C$2:$C$110000,$B9,'Raw - New'!$F$2:$F$110000,"Exports (000's)",'Raw - New'!$J$2:$J$110000,V$1,'Raw - New'!$E$2:$E$110000,$E9) -> 0 | W9: =SUMIFS('Raw - New'!$I$2:$I$110000,'Raw - New'!$C$2:$C$110000,$B9,'Raw - New'!$F$2:$F$110000,"Exports (000's)",'Raw - New'!$J$2:$J$110000,W$1,'Raw - New'!$E$2:$E$110000,$E9) -> 0 | X9: =SUMIFS('Raw - New'!$I$2:$I$110000,'Raw - New'!$C$2:$C$110000,$B9,'Raw - New'!$F$2:$F$110000,"Exports (000's)",'Raw - New'!$J$2:$J$110000,X$1,'Raw - New'!$E$2:$E$110000,$E9) -> 0 | Y9: =SUMIFS('Raw - New'!$I$2:$I$110000,'Raw - New'!$C$2:$C$110000,$B9,'Raw - New'!$F$2:$F$110000,"Exports (000's)",'Raw - New'!$J$2:$J$110000,Y$1,'Raw - New'!$E$2:$E$110000,$E9) -> 0 | Z9: =SUMIFS('Raw - New'!$I$2:$I$110000,'Raw - New'!$C$2:$C$110000,$B9,'Raw - New'!$F$2:$F$110000,"Exports (000's)",'Raw - New'!$J$2:$J$110000,Z$1,'Raw - New'!$E$2:$E$110000,$E9) -> 0 | AA9: 0 | AB9: 0 | AC9: 0 | AD9: 0 | AE9: 0 | AF9: =IFERROR(VLOOKUP(B9,Selection!$Y$2:$AB$107,4,FALSE),0) -> 0
A10: European Community | B10: Austria | C10: Europe and Russia | D10: 0 - Food & live animals | E10: 08 - Feeding stuff for animals (not inc.unmilled cereals) | F10: Austria08 - Feeding stuff for animals (not inc.unmilled cereals) | G10: =SUMIFS('Raw - New'!$I$2:$I$110000,'Raw - New'!$C$2:$C$110000,$B10,'Raw - New'!$F$2:$F$110000,"Exports (000's)",'Raw - New'!$J$2:$J$110000,G$1,'Raw - New'!$E$2:$E$110000,$E10) -> 0 | H10: =SUMIFS('Raw - New'!$I$2:$I$110000,'Raw - New'!$C$2:$C$110000,$B10,'Raw - New'!$F$2:$F$110000,"Exports (000's)",'Raw - New'!$J$2:$J$110000,H$1,'Raw - New'!$E$2:$E$110000,$E10) -> 0 | I10: =SUMIFS('Raw - New'!$I$2:$I$110000,'Raw - New'!$C$2:$C$110000,$B10,'Raw - New'!$F$2:$F$110000,"Exports (000's)",'Raw - New'!$J$2:$J$110000,I$1,'Raw - New'!$E$2:$E$110000,$E10) -> 0 | J10: =SUMIFS('Raw - New'!$I$2:$I$110000,'Raw - New'!$C$2:$C$110000,$B10,'Raw - New'!$F$2:$F$110000,"Exports (000's)",'Raw - New'!$J$2:$J$110000,J$1,'Raw - New'!$E$2:$E$110000,$E10) -> 0 | K10: =SUMIFS('Raw - New'!$I$2:$I$110000,'Raw - New'!$C$2:$C$110000,$B10,'Raw - New'!$F$2:$F$110000,"Exports (000's)",'Raw - New'!$J$2:$J$110000,K$1,'Raw - New'!$E$2:$E$110000,$E10) -> 0 | L10: =SUMIFS('Raw - New'!$I$2:$I$110000,'Raw - New'!$C$2:$C$110000,$B10,'Raw - New'!$F$2:$F$110000,"Exports (000's)",'Raw - New'!$J$2:$J$110000,L$1,'Raw - New'!$E$2:$E$110000,$E10) -> 0 | M10: =SUMIFS('Raw - New'!$I$2:$I$110000,'Raw - New'!$C$2:$C$110000,$B10,'Raw - New'!$F$2:$F$110000,"Exports (000's)",'Raw - New'!$J$2:$J$110000,M$1,'Raw - New'!$E$2:$E$110000,$E10) -> 0 | N10: =SUMIFS('Raw - New'!$I$2:$I$110000,'Raw - New'!$C$2:$C$110000,$B10,'Raw - New'!$F$2:$F$110000,"Exports (000's)",'Raw - New'!$J$2:$J$110000,N$1,'Raw - New'!$E$2:$E$110000,$E10) -> 0 | O10: =SUMIFS('Raw - New'!$I$2:$I$110000,'Raw - New'!$C$2:$C$110000,$B10,'Raw - New'!$F$2:$F$110000,"Exports (000's)",'Raw - New'!$J$2:$J$110000,O$1,'Raw - New'!$E$2:$E$110000,$E10) -> 0 | P10: =SUMIFS('Raw - New'!$I$2:$I$110000,'Raw - New'!$C$2:$C$110000,$B10,'Raw - New'!$F$2:$F$110000,"Exports (000's)",'Raw - New'!$J$2:$J$110000,P$1,'Raw - New'!$E$2:$E$110000,$E10) -> 0 | Q10: =SUMIFS('Raw - New'!$I$2:$I$110000,'Raw - New'!$C$2:$C$110000,$B10,'Raw - New'!$F$2:$F$110000,"Exports (000's)",'Raw - New'!$J$2:$J$110000,Q$1,'Raw - New'!$E$2:$E$110000,$E10) -> 0 | R10: =SUMIFS('Raw - New'!$I$2:$I$110000,'Raw - New'!$C$2:$C$110000,$B10,'Raw - New'!$F$2:$F$110000,"Exports (000's)",'Raw - New'!$J$2:$J$110000,R$1,'Raw - New'!$E$2:$E$110000,$E10) -> 0 | S10: =SUMIFS('Raw - New'!$I$2:$I$110000,'Raw - New'!$C$2:$C$110000,$B10,'Raw - New'!$F$2:$F$110000,"Exports (000's)",'Raw - New'!$J$2:$J$110000,S$1,'Raw - New'!$E$2:$E$110000,$E10) -> 0 | T10: =SUMIFS('Raw - New'!$I$2:$I$110000,'Raw - New'!$C$2:$C$110000,$B10,'Raw - New'!$F$2:$F$110000,"Exports (000's)",'Raw - New'!$J$2:$J$110000,T$1,'Raw - New'!$E$2:$E$110000,$E10) -> 0 | U10: =SUMIFS('Raw - New'!$I$2:$I$110000,'Raw - New'!$C$2:$C$110000,$B10,'Raw - New'!$F$2:$F$110000,"Exports (000's)",'Raw - New'!$J$2:$J$110000,U$1,'Raw - New'!$E$2:$E$110000,$E10) -> 0 | V10: =SUMIFS('Raw - New'!$I$2:$I$110000,'Raw - New'!$C$2:$C$110000,$B10,'Raw - New'!$F$2:$F$110000,"Exports (000's)",'Raw - New'!$J$2:$J$110000,V$1,'Raw - New'!$E$2:$E$110000,$E10) -> 0 | W10: =SUMIFS('Raw - New'!$I$2:$I$110000,'Raw - New'!$C$2:$C$110000,$B10,'Raw - New'!$F$2:$F$110000,"Exports (000's)",'Raw - New'!$J$2:$J$110000,W$1,'Raw - New'!$E$2:$E$110000,$E10) -> 0 | X10: =SUMIFS('Raw - New'!$I$2:$I$110000,'Raw - New'!$C$2:$C$110000,$B10,'Raw - New'!$F$2:$F$110000,"Exports (000's)",'Raw - New'!$J$2:$J$110000,X$1,'Raw - New'!$E$2:$E$110000,$E10) -> 0 | Y10: =SUMIFS('Raw - New'!$I$2:$I$110000,'Raw - New'!$C$2:$C$110000,$B10,'Raw - New'!$F$2:$F$110000,"Exports (000's)",'Raw - New'!$J$2:$J$110000,Y$1,'Raw - New'!$E$2:$E$110000,$E10) -> 0 | Z10: =SUMIFS('Raw - New'!$I$2:$I$110000,'Raw - New'!$C$2:$C$110000,$B10,'Raw - New'!$F$2:$F$110000,"Exports (000's)",'Raw - New'!$J$2:$J$110000,Z$1,'Raw - New'!$E$2:$E$110000,$E10) -> 0 | AA10: 0 | AB10: 0 | AC10: 0 | AD10: 0 | AE10: 0 | AF10: =IFERROR(VLOOKUP(B10,Selection!$Y$2:$AB$107,4,FALSE),0) -> 0
A11: European Community | B11: Austria | C11: Europe and Russia | D11: 0 - Food & live animals | E11: 09 - Miscellaneous edible products & preparations | F11: Austria09 - Miscellaneous edible products & preparations | G11: =SUMIFS('Raw - New'!$I$2:$I$110000,'Raw - New'!$C$2:$C$110000,$B11,'Raw - New'!$F$2:$F$110000,"Exports (000's)",'Raw - New'!$J$2:$J$110000,G$1,'Raw - New'!$E$2:$E$110000,$E11) -> 11 | H11: =SUMIFS('Raw - New'!$I$2:$I$110000,'Raw - New'!$C$2:$C$110000,$B11,'Raw - New'!$F$2:$F$110000,"Exports (000's)",'Raw - New'!$J$2:$J$110000,H$1,'Raw - New'!$E$2:$E$110000,$E11) -> 2 | I11: =SUMIFS('Raw - New'!$I$2:$I$110000,'Raw - New'!$C$2:$C$110000,$B11,'Raw - New'!$F$2:$F$110000,"Exports (000's)",'Raw - New'!$J$2:$J$110000,I$1,'Raw - New'!$E$2:$E$110000,$E11) -> 10 | J11: =SUMIFS('Raw - New'!$I$2:$I$110000,'Raw - New'!$C$2:$C$110000,$B11,'Raw - New'!$F$2:$F$110000,"Exports (000's)",'Raw - New'!$J$2:$J$110000,J$1,'Raw - New'!$E$2:$E$110000,$E11) -> 12 | K11: =SUMIFS('Raw - New'!$I$2:$I$110000,'Raw - New'!$C$2:$C$110000,$B11,'Raw - New'!$F$2:$F$110000,"Exports (000's)",'Raw - New'!$J$2:$J$110000,K$1,'Raw - New'!$E$2:$E$110000,$E11) -> 2 | L11: =SUMIFS('Raw - New'!$I$2:$I$110000,'Raw - New'!$C$2:$C$110000,$B11,'Raw - New'!$F$2:$F$110000,"Exports (000's)",'Raw - New'!$J$2:$J$110000,L$1,'Raw - New'!$E$2:$E$110000,$E11) -> 2 | M11: =SUMIFS('Raw - New'!$I$2:$I$110000,'Raw - New'!$C$2:$C$110000,$B11,'Raw - New'!$F$2:$F$110000,"Exports (000's)",'Raw - New'!$J$2:$J$110000,M$1,'Raw - New'!$E$2:$E$110000,$E11) -> 0 | N11: =SUMIFS('Raw - New'!$I$2:$I$110000,'Raw - New'!$C$2:$C$110000,$B11,'Raw - New'!$F$2:$F$110000,"Exports (000's)",'Raw - New'!$J$2:$J$110000,N$1,'Raw - New'!$E$2:$E$110000,$E11) -> 0 | O11: =SUMIFS('Raw - New'!$I$2:$I$110000,'Raw - New'!$C$2:$C$110000,$B11,'Raw - New'!$F$2:$F$110000,"Exports (000's)",'Raw - New'!$J$2:$J$110000,O$1,'Raw - New'!$E$2:$E$110000,$E11) -> 9 | P11: =SUMIFS('Raw - New'!$I$2:$I$110000,'Raw - New'!$C$2:$C$110000,$B11,'Raw - New'!$F$2:$F$110000,"Exports (000's)",'Raw - New'!$J$2:$J$110000,P$1,'Raw - New'!$E$2:$E$110000,$E11) -> 7 | Q11: =SUMIFS('Raw - New'!$I$2:$I$110000,'Raw - New'!$C$2:$C$110000,$B11,'Raw - New'!$F$2:$F$110000,"Exports (000's)",'Raw - New'!$J$2:$J$110000,Q$1,'Raw - New'!$E$2:$E$110000,$E11) -> 11 | R11: =SUMIFS('Raw - New'!$I$2:$I$110000,'Raw - New'!$C$2:$C$110000,$B11,'Raw - New'!$F$2:$F$110000,"Exports (000's)",'Raw - New'!$J$2:$J$110000,R$1,'Raw - New'!$E$2:$E$110000,$E11) -> 5 | S11: =SUMIFS('Raw - New'!$I$2:$I$110000,'Raw - New'!$C$2:$C$110000,$B11,'Raw - New'!$F$2:$F$110000,"Exports (000's)",'Raw - New'!$J$2:$J$110000,S$1,'Raw - New'!$E$2:$E$110000,$E11) -> 4 | T11: =SUMIFS('Raw - New'!$I$2:$I$110000,'Raw - New'!$C$2:$C$110000,$B11,'Raw - New'!$F$2:$F$110000,"Exports (000's)",'Raw - New'!$J$2:$J$110000,T$1,'Raw - New'!$E$2:$E$110000,$E11) -> 11 | U11: =SUMIFS('Raw - New'!$I$2:$I$110000,'Raw - New'!$C$2:$C$110000,$B11,'Raw - New'!$F$2:$F$110000,"Exports (000's)",'Raw - New'!$J$2:$J$110000,U$1,'Raw - New'!$E$2:$E$110000,$E11) -> 8 | V11: =SUMIFS('Raw - New'!$I$2:$I$110000,'Raw - New'!$C$2:$C$110000,$B11,'Raw - New'!$F$2:$F$110000,"Exports (000's)",'Raw - New'!$J$2:$J$110000,V$1,'Raw - New'!$E$2:$E$110000,$E11) -> 6 | W11: =SUMIFS('Raw - New'!$I$2:$I$110000,'Raw - New'!$C$2:$C$110000,$B11,'Raw - New'!$F$2:$F$110000,"Exports (000's)",'Raw - New'!$J$2:$J$110000,W$1,'Raw - New'!$E$2:$E$110000,$E11) -> 6 | X11: =SUMIFS('Raw - New'!$I$2:$I$110000,'Raw - New'!$C$2:$C$110000,$B11,'Raw - New'!$F$2:$F$110000,"Exports (000's)",'Raw - New'!$J$2:$J$110000,X$1,'Raw - New'!$E$2:$E$110000,$E11) -> 11 | Y11: =SUMIFS('Raw - New'!$I$2:$I$110000,'Raw - New'!$C$2:$C$110000,$B11,'Raw - New'!$F$2:$F$110000,"Exports (000's)",'Raw - New'!$J$2:$J$110000,Y$1,'Raw - New'!$E$2:$E$110000,$E11) -> 48 | Z11: =SUMIFS('Raw - New'!$I$2:$I$110000,'Raw - New'!$C$2:$C$110000,$B11,'Raw - New'!$F$2:$F$110000,"Exports (000's)",'Raw - New'!$J$2:$J$110000,Z$1,'Raw - New'!$E$2:$E$110000,$E11) -> 141 | AA11: 35 | AB11: 4 | AC11: 32 | AD11: 29 | AE11: 206 | AF11: =IFERROR(VLOOKUP(B11,Selection!$Y$2:$AB$107,4,FALSE),0) -> 0
A12: European Community | B12: Austria | C12: Europe and Russia | D12: 1 - Beverages & tobacco | E12: 11 - Beverages | F12: Austria11 - Beverages | G12: =SUMIFS('Raw - New'!$I$2:$I$110000,'Raw - New'!$C$2:$C$110000,$B12,'Raw - New'!$F$2:$F$110000,"Exports (000's)",'Raw - New'!$J$2:$J$110000,G$1,'Raw - New'!$E$2:$E$110000,$E12) -> 42 | H12: =SUMIFS('Raw - New'!$I$2:$I$110000,'Raw - New'!$C$2:$C$110000,$B12,'Raw - New'!$F$2:$F$110000,"Exports (000's)",'Raw - New'!$J$2:$J$110000,H$1,'Raw - New'!$E$2:$E$110000,$E12) -> 4 | I12: =SUMIFS('Raw - New'!$I$2:$I$110000,'Raw - New'!$C$2:$C$110000,$B12,'Raw - New'!$F$2:$F$110000,"Exports (000's)",'Raw - New'!$J$2:$J$110000,I$1,'Raw - New'!$E$2:$E$110000,$E12) -> 18 | J12: =SUMIFS('Raw - New'!$I$2:$I$110000,'Raw - New'!$C$2:$C$110000,$B12,'Raw - New'!$F$2:$F$110000,"Exports (000's)",'Raw - New'!$J$2:$J$110000,J$1,'Raw - New'!$E$2:$E$110000,$E12) -> 8 | K12: =SUMIFS('Raw - New'!$I$2:$I$110000,'Raw - New'!$C$2:$C$110000,$B12,'Raw - New'!$F$2:$F$110000,"Exports (000's)",'Raw - New'!$J$2:$J$110000,K$1,'Raw - New'!$E$2:$E$110000,$E12) -> 15 | L12: =SUMIFS('Raw - New'!$I$2:$I$110000,'Raw - New'!$C$2:$C$110000,$B12,'Raw - New'!$F$2:$F$110000,"Exports (000's)",'Raw - New'!$J$2:$J$110000,L$1,'Raw - New'!$E$2:$E$110000,$E12) -> 4 | M12: =SUMIFS('Raw - New'!$I$2:$I$110000,'Raw - New'!$C$2:$C$110000,$B12,'Raw - New'!$F$2:$F$110000,"Exports (000's)",'Raw - New'!$J$2:$J$110000,M$1,'Raw - New'!$E$2:$E$110000,$E12) -> 7 | N12: =SUMIFS('Raw - New'!$I$2:$I$110000,'Raw - New'!$C$2:$C$110000,$B12,'Raw - New'!$F$2:$F$110000,"Exports (000's)",'Raw - New'!$J$2:$J$110000,N$1,'Raw - New'!$E$2:$E$110000,$E12) -> 27 | O12: =SUMIFS('Raw - New'!$I$2:$I$110000,'Raw - New'!$C$2:$C$110000,$B12,'Raw - New'!$F$2:$F$110000,"Exports (000's)",'Raw - New'!$J$2:$J$110000,O$1,'Raw - New'!$E$2:$E$110000,$E12) -> 29 | P12: =SUMIFS('Raw - New'!$I$2:$I$110000,'Raw - New'!$C$2:$C$110000,$B12,'Raw - New'!$F$2:$F$110000,"Exports (000's)",'Raw - New'!$J$2:$J$110000,P$1,'Raw - New'!$E$2:$E$110000,$E12) -> 15 | Q12: =SUMIFS('Raw - New'!$I$2:$I$110000,'Raw - New'!$C$2:$C$110000,$B12,'Raw - New'!$F$2:$F$110000,"Exports (000's)",'Raw - New'!$J$2:$J$110000,Q$1,'Raw - New'!$E$2:$E$110000,$E12) -> 20 | R12: =SUMIFS('Raw - New'!$I$2:$I$110000,'Raw - New'!$C$2:$C$110000,$B12,'Raw - New'!$F$2:$F$110000,"Exports (000's)",'Raw - New'!$J$2:$J$110000,R$1,'Raw - New'!$E$2:$E$110000,$E12) -> 20 | S12: =SUMIFS('Raw - New'!$I$2:$I$110000,'Raw - New'!$C$2:$C$110000,$B12,'Raw - New'!$F$2:$F$110000,"Exports (000's)",'Raw - New'!$J$2:$J$110000,S$1,'Raw - New'!$E$2:$E$110000,$E12) -> 15 | T12: =SUMIFS('Raw - New'!$I$2:$I$110000,'Raw - New'!$C$2:$C$110000,$B12,'Raw - New'!$F$2:$F$110000,"Exports (000's)",'Raw - New'!$J$2:$J$110000,T$1,'Raw - New'!$E$2:$E$110000,$E12) -> 12 | U12: =SUMIFS('Raw - New'!$I$2:$I$110000,'Raw - New'!$C$2:$C$110000,$B12,'Raw - New'!$F$2:$F$110000,"Exports (000's)",'Raw - New'!$J$2:$J$110000,U$1,'Raw - New'!$E$2:$E$110000,$E12) -> 15 | V12: =SUMIFS('Raw - New'!$I$2:$I$110000,'Raw - New'!$C$2:$C$110000,$B12,'Raw - New'!$F$2:$F$110000,"Exports (000's)",'Raw - New'!$J$2:$J$110000,V$1,'Raw - New'!$E$2:$E$110000,$E12) -> 8 | W12: =SUMIFS('Raw - New'!$I$2:$I$110000,'Raw - New'!$C$2:$C$110000,$B12,'Raw - New'!$F$2:$F$110000,"Exports (000's)",'Raw - New'!$J$2:$J$110000,W$1,'Raw - New'!$E$2:$E$110000,$E12) -> 194 | X12: =SUMIFS('Raw - New'!$I$2:$I$110000,'Raw - New'!$C$2:$C$110000,$B12,'Raw - New'!$F$2:$F$110000,"Exports (000's)",'Raw - New'!$J$2:$J$110000,X$1,'Raw - New'!$E$2:$E$110000,$E12) -> 11 | Y12: =SUMIFS('Raw - New'!$I$2:$I$110000,'Raw - New'!$C$2:$C$110000,$B12,'Raw - New'!$F$2:$F$110000,"Exports (000's)",'Raw - New'!$J$2:$J$110000,Y$1,'Raw - New'!$E$2:$E$110000,$E12) -> 105 | Z12: =SUMIFS('Raw - New'!$I$2:$I$110000,'Raw - New'!$C$2:$C$110000,$B12,'Raw - New'!$F$2:$F$110000,"Exports (000's)",'Raw - New'!$J$2:$J$110000,Z$1,'Raw - New'!$E$2:$E$110000,$E12) -> 29 | AA12: 72 | AB12: 53 | AC12: 84 | AD12: 50 | AE12: 339 | AF12: =IFERROR(VLOOKUP(B12,Selection!$Y$2:$AB$107,4,FALSE),0) -> 0
A13: European Community | B13: Austria | C13: Europe and Russia | D13: 1 - Beverages & tobacco | E13: 12 - Tobacco & tobacco manufactures | F13: Austria12 - Tobacco & tobacco manufactures | G13: =SUMIFS('Raw - New'!$I$2:$I$110000,'Raw - New'!$C$2:$C$110000,$B13,'Raw - New'!$F$2:$F$110000,"Exports (000's)",'Raw - New'!$J$2:$J$110000,G$1,'Raw - New'!$E$2:$E$110000,$E13) -> 0 | H13: =SUMIFS('Raw - New'!$I$2:$I$110000,'Raw - New'!$C$2:$C$110000,$B13,'Raw - New'!$F$2:$F$110000,"Exports (000's)",'Raw - New'!$J$2:$J$110000,H$1,'Raw - New'!$E$2:$E$110000,$E13) -> 0 | I13: =SUMIFS('Raw - New'!$I$2:$I$110000,'Raw - New'!$C$2:$C$110000,$B13,'Raw - New'!$F$2:$F$110000,"Exports (000's)",'Raw - New'!$J$2:$J$110000,I$1,'Raw - New'!$E$2:$E$110000,$E13) -> 0 | J13: =SUMIFS('Raw - New'!$I$2:$I$110000,'Raw - New'!$C$2:$C$110000,$B13,'Raw - New'!$F$2:$F$110000,"Exports (000's)",'Raw - New'!$J$2:$J$110000,J$1,'Raw - New'!$E$2:$E$110000,$E13) -> 0 | K13: =SUMIFS('Raw - New'!$I$2:$I$110000,'Raw - New'!$C$2:$C$110000,$B13,'Raw - New'!$F$2:$F$110000,"Exports (000's)",'Raw - New'!$J$2:$J$110000,K$1,'Raw - New'!$E$2:$E$110000,$E13) -> 0 | L13: =SUMIFS('Raw - New'!$I$2:$I$110000,'Raw - New'!$C$2:$C$110000,$B13,'Raw - New'!$F$2:$F$110000,"Exports (000's)",'Raw - New'!$J$2:$J$110000,L$1,'Raw - New'!$E$2:$E$110000,$E13) -> 0 | M13: =SUMIFS('Raw - New'!$I$2:$I$110000,'Raw - New'!$C$2:$C$110000,$B13,'Raw - New'!$F$2:$F$110000,"Exports (000's)",'Raw - New'!$J$2:$J$110000,M$1,'Raw - New'!$E$2:$E$110000,$E13) -> 0 | N13: =SUMIFS('Raw - New'!$I$2:$I$110000,'Raw - New'!$C$2:$C$110000,$B13,'Raw - New'!$F$2:$F$110000,"Exports (000's)",'Raw - New'!$J$2:$J$110000,N$1,'Raw - New'!$E$2:$E$110000,$E13) -> 0 | O13: =SUMIFS('Raw - New'!$I$2:$I$110000,'Raw - New'!$C$2:$C$110000,$B13,'Raw - New'!$F$2:$F$110000,"Exports (000's)",'Raw - New'!$J$2:$J$110000,O$1,'Raw - New'!$E$2:$E$110000,$E13) -> 0 | P13: =SUMIFS('Raw - New'!$I$2:$I$110000,'Raw - New'!$C$2:$C$110000,$B13,'Raw - New'!$F$2:$F$110000,"Exports (000's)",'Raw - New'!$J$2:$J$110000,P$1,'Raw - New'!$E$2:$E$110000,$E13) -> 0 | Q13: =SUMIFS('Raw - New'!$I$2:$I$110000,'Raw - New'!$C$2:$C$110000,$B13,'Raw - New'!$F$2:$F$110000,"Exports (000's)",'Raw - New'!$J$2:$J$110000,Q$1,'Raw - New'!$E$2:$E$110000,$E13) -> 0 | R13: =SUMIFS('Raw - New'!$I$2:$I$110000,'Raw - New'!$C$2:$C$110000,$B13,'Raw - New'!$F$2:$F$110000,"Exports (000's)",'Raw - New'!$J$2:$J$110000,R$1,'Raw - New'!$E$2:$E$110000,$E13) -> 0 | S13: =SUMIFS('Raw - New'!$I$2:$I$110000,'Raw - New'!$C$2:$C$110000,$B13,'Raw - New'!$F$2:$F$110000,"Exports (000's)",'Raw - New'!$J$2:$J$110000,S$1,'Raw - New'!$E$2:$E$110000,$E13) -> 0 | T13: =SUMIFS('Raw - New'!$I$2:$I$110000,'Raw - New'!$C$2:$C$110000,$B13,'Raw - New'!$F$2:$F$110000,"Exports (000's)",'Raw - New'!$J$2:$J$110000,T$1,'Raw - New'!$E$2:$E$110000,$E13) -> 0 | U13: =SUMIFS('Raw - New'!$I$2:$I$110000,'Raw - New'!$C$2:$C$110000,$B13,'Raw - New'!$F$2:$F$110000,"Exports (000's)",'Raw - New'!$J$2:$J$110000,U$1,'Raw - New'!$E$2:$E$110000,$E13) -> 0 | V13: =SUMIFS('Raw - New'!$I$2:$I$110000,'Raw - New'!$C$2:$C$110000,$B13,'Raw - New'!$F$2:$F$110000,"Exports (000's)",'Raw - New'!$J$2:$J$110000,V$1,'Raw - New'!$E$2:$E$110000,$E13) -> 0 | W13: =SUMIFS('Raw - New'!$I$2:$I$110000,'Raw - New'!$C$2:$C$110000,$B13,'Raw - New'!$F$2:$F$110000,"Exports (000's)",'Raw - New'!$J$2:$J$110000,W$1,'Raw - New'!$E$2:$E$110000,$E13) -> 0 | X13: =SUMIFS('Raw - New'!$I$2:$I$110000,'Raw - New'!$C$2:$C$110000,$B13,'Raw - New'!$F$2:$F$110000,"Exports (000's)",'Raw - New'!$J$2:$J$110000,X$1,'Raw - New'!$E$2:$E$110000,$E13) -> 0 | Y13: =SUMIFS('Raw - New'!$I$2:$I$110000,'Raw - New'!$C$2:$C$110000,$B13,'Raw - New'!$F$2:$F$110000,"Exports (000's)",'Raw - New'!$J$2:$J$110000,Y$1,'Raw - New'!$E$2:$E$110000,$E13) -> 0 | Z13: =SUMIFS('Raw - New'!$I$2:$I$110000,'Raw - New'!$C$2:$C$110000,$B13,'Raw - New'!$F$2:$F$110000,"Exports (000's)",'Raw - New'!$J$2:$J$110000,Z$1,'Raw - New'!$E$2:$E$110000,$E13) -> 0 | AA13: 0 | AB13: 0 | AC13: 0 | AD13: 0 | AE13: 0 | AF13: =IFERROR(VLOOKUP(B13,Selection!$Y$2:$AB$107,4,FALSE),0) -> 0
A14: European Community | B14: Austria | C14: Europe and Russia | D14: 2 - Crude materials, inedible, except fuels | E14: 21 - Hides, skins & furskins, raw | F14: Austria21 - Hides, skins & furskins, raw | G14: =SUMIFS('Raw - New'!$I$2:$I$110000,'Raw - New'!$C$2:$C$110000,$B14,'Raw - New'!$F$2:$F$110000,"Exports (000's)",'Raw - New'!$J$2:$J$110000,G$1,'Raw - New'!$E$2:$E$110000,$E14) -> 0 | H14: =SUMIFS('Raw - New'!$I$2:$I$110000,'Raw - New'!$C$2:$C$110000,$B14,'Raw - New'!$F$2:$F$110000,"Exports (000's)",'Raw - New'!$J$2:$J$110000,H$1,'Raw - New'!$E$2:$E$110000,$E14) -> 0 | I14: =SUMIFS('Raw - New'!$I$2:$I$110000,'Raw - New'!$C$2:$C$110000,$B14,'Raw - New'!$F$2:$F$110000,"Exports (000's)",'Raw - New'!$J$2:$J$110000,I$1,'Raw - New'!$E$2:$E$110000,$E14) -> 16 | J14: =SUMIFS('Raw - New'!$I$2:$I$110000,'Raw - New'!$C$2:$C$110000,$B14,'Raw - New'!$F$2:$F$110000,"Exports (000's)",'Raw - New'!$J$2:$J$110000,J$1,'Raw - New'!$E$2:$E$110000,$E14) -> 0 | K14: =SUMIFS('Raw - New'!$I$2:$I$110000,'Raw - New'!$C$2:$C$110000,$B14,'Raw - New'!$F$2:$F$110000,"Exports (000's)",'Raw - New'!$J$2:$J$110000,K$1,'Raw - New'!$E$2:$E$110000,$E14) -> 0 | L14: =SUMIFS('Raw - New'!$I$2:$I$110000,'Raw - New'!$C$2:$C$110000,$B14,'Raw - New'!$F$2:$F$110000,"Exports (000's)",'Raw - New'!$J$2:$J$110000,L$1,'Raw - New'!$E$2:$E$110000,$E14) -> 0 | M14: =SUMIFS('Raw - New'!$I$2:$I$110000,'Raw - New'!$C$2:$C$110000,$B14,'Raw - New'!$F$2:$F$110000,"Exports (000's)",'Raw - New'!$J$2:$J$110000,M$1,'Raw - New'!$E$2:$E$110000,$E14) -> 0 | N14: =SUMIFS('Raw - New'!$I$2:$I$110000,'Raw - New'!$C$2:$C$110000,$B14,'Raw - New'!$F$2:$F$110000,"Exports (000's)",'Raw - New'!$J$2:$J$110000,N$1,'Raw - New'!$E$2:$E$110000,$E14) -> 0 | O14: =SUMIFS('Raw - New'!$I$2:$I$110000,'Raw - New'!$C$2:$C$110000,$B14,'Raw - New'!$F$2:$F$110000,"Exports (000's)",'Raw - New'!$J$2:$J$110000,O$1,'Raw - New'!$E$2:$E$110000,$E14) -> 0 | P14: =SUMIFS('Raw - New'!$I$2:$I$110000,'Raw - New'!$C$2:$C$110000,$B14,'Raw - New'!$F$2:$F$110000,"Exports (000's)",'Raw - New'!$J$2:$J$110000,P$1,'Raw - New'!$E$2:$E$110000,$E14) -> 0 | Q14: =SUMIFS('Raw - New'!$I$2:$I$110000,'Raw - New'!$C$2:$C$110000,$B14,'Raw - New'!$F$2:$F$110000,"Exports (000's)",'Raw - New'!$J$2:$J$110000,Q$1,'Raw - New'!$E$2:$E$110000,$E14) -> 0 | R14: =SUMIFS('Raw - New'!$I$2:$I$110000,'Raw - New'!$C$2:$C$110000,$B14,'Raw - New'!$F$2:$F$110000,"Exports (000's)",'Raw - New'!$J$2:$J$110000,R$1,'Raw - New'!$E$2:$E$110000,$E14) -> 0 | S14: =SUMIFS('Raw - New'!$I$2:$I$110000,'Raw - New'!$C$2:$C$110000,$B14,'Raw - New'!$F$2:$F$110000,"Exports (000's)",'Raw - New'!$J$2:$J$110000,S$1,'Raw - New'!$E$2:$E$110000,$E14) -> 0 | T14: =SUMIFS('Raw - New'!$I$2:$I$110000,'Raw - New'!$C$2:$C$110000,$B14,'Raw - New'!$F$2:$F$110000,"Exports (000's)",'Raw - New'!$J$2:$J$110000,T$1,'Raw - New'!$E$2:$E$110000,$E14) -> 0 | U14: =SUMIFS('Raw - New'!$I$2:$I$110000,'Raw - New'!$C$2:$C$110000,$B14,'Raw - New'!$F$2:$F$110000,"Exports (000's)",'Raw - New'!$J$2:$J$110000,U$1,'Raw - New'!$E$2:$E$110000,$E14) -> 0 | V14: =SUMIFS('Raw - New'!$I$2:$I$110000,'Raw - New'!$C$2:$C$110000,$B14,'Raw - New'!$F$2:$F$110000,"Exports (000's)",'Raw - New'!$J$2:$J$110000,V$1,'Raw - New'!$E$2:$E$110000,$E14) -> 0 | W14: =SUMIFS('Raw - New'!$I$2:$I$110000,'Raw - New'!$C$2:$C$110000,$B14,'Raw - New'!$F$2:$F$110000,"Exports (000's)",'Raw - New'!$J$2:$J$110000,W$1,'Raw - New'!$E$2:$E$110000,$E14) -> 0 | X14: =SUMIFS('Raw - New'!$I$2:$I$110000,'Raw - New'!$C$2:$C$110000,$B14,'Raw - New'!$F$2:$F$110000,"Exports (000's)",'Raw - New'!$J$2:$J$110000,X$1,'Raw - New'!$E$2:$E$110000,$E14) -> 0 | Y14: =SUMIFS('Raw - New'!$I$2:$I$110000,'Raw - New'!$C$2:$C$110000,$B14,'Raw - New'!$F$2:$F$110000,"Exports (000's)",'Raw - New'!$J$2:$J$110000,Y$1,'Raw - New'!$E$2:$E$110000,$E14) -> 0 | Z14: =SUMIFS('Raw - New'!$I$2:$I$110000,'Raw - New'!$C$2:$C$110000,$B14,'Raw - New'!$F$2:$F$110000,"Exports (000's)",'Raw - New'!$J$2:$J$110000,Z$1,'Raw - New'!$E$2:$E$110000,$E14) -> 0 | AA14: 16 | AB14: 0 | AC14: 0 | AD14: 0 | AE14: 0 | AF14: =IFERROR(VLOOKUP(B14,Selection!$Y$2:$AB$107,4,FALSE),0) -> 0
A15: European Community | B15: Austria | C15: Europe and Russia | D15: 2 - Crude materials, inedible, except fuels | E15: 22 - Oil seeds & oleaginous fruits | F15: Austria22 - Oil seeds & oleaginous fruits | G15: =SUMIFS('Raw - New'!$I$2:$I$110000,'Raw - New'!$C$2:$C$110000,$B15,'Raw - New'!$F$2:$F$110000,"Exports (000's)",'Raw - New'!$J$2:$J$110000,G$1,'Raw - New'!$E$2:$E$110000,$E15) -> 0 | H15: =SUMIFS('Raw - New'!$I$2:$I$110000,'Raw - New'!$C$2:$C$110000,$B15,'Raw - New'!$F$2:$F$110000,"Exports (000's)",'Raw - New'!$J$2:$J$110000,H$1,'Raw - New'!$E$2:$E$110000,$E15) -> 0 | I15: =SUMIFS('Raw - New'!$I$2:$I$110000,'Raw - New'!$C$2:$C$110000,$B15,'Raw - New'!$F$2:$F$110000,"Exports (000's)",'Raw - New'!$J$2:$J$110000,I$1,'Raw - New'!$E$2:$E$110000,$E15) -> 0 | J15: =SUMIFS('Raw - New'!$I$2:$I$110000,'Raw - New'!$C$2:$C$110000,$B15,'Raw - New'!$F$2:$F$110000,"Exports (000's)",'Raw - New'!$J$2:$J$110000,J$1,'Raw - New'!$E$2:$E$110000,$E15) -> 0 | K15: =SUMIFS('Raw - New'!$I$2:$I$110000,'Raw - New'!$C$2:$C$110000,$B15,'Raw - New'!$F$2:$F$110000,"Exports (000's)",'Raw - New'!$J$2:$J$110000,K$1,'Raw - New'!$E$2:$E$110000,$E15) -> 0 | L15: =SUMIFS('Raw - New'!$I$2:$I$110000,'Raw - New'!$C$2:$C$110000,$B15,'Raw - New'!$F$2:$F$110000,"Exports (000's)",'Raw - New'!$J$2:$J$110000,L$1,'Raw - New'!$E$2:$E$110000,$E15) -> 0 | M15: =SUMIFS('Raw - New'!$I$2:$I$110000,'Raw - New'!$C$2:$C$110000,$B15,'Raw - New'!$F$2:$F$110000,"Exports (000's)",'Raw - New'!$J$2:$J$110000,M$1,'Raw - New'!$E$2:$E$110000,$E15) -> 0 | N15: =SUMIFS('Raw - New'!$I$2:$I$110000,'Raw - New'!$C$2:$C$110000,$B15,'Raw - New'!$F$2:$F$110000,"Exports (000's)",'Raw - New'!$J$2:$J$110000,N$1,'Raw - New'!$E$2:$E$110000,$E15) -> 0 | O15: =SUMIFS('Raw - New'!$I$2:$I$110000,'Raw - New'!$C$2:$C$110000,$B15,'Raw - New'!$F$2:$F$110000,"Exports (000's)",'Raw - New'!$J$2:$J$110000,O$1,'Raw - New'!$E$2:$E$110000,$E15) -> 0 | P15: =SUMIFS('Raw - New'!$I$2:$I$110000,'Raw - New'!$C$2:$C$110000,$B15,'Raw - New'!$F$2:$F$110000,"Exports (000's)",'Raw - New'!$J$2:$J$110000,P$1,'Raw - New'!$E$2:$E$110000,$E15) -> 0 | Q15: =SUMIFS('Raw - New'!$I$2:$I$110000,'Raw - New'!$C$2:$C$110000,$B15,'Raw - New'!$F$2:$F$110000,"Exports (000's)",'Raw - New'!$J$2:$J$110000,Q$1,'Raw - New'!$E$2:$E$110000,$E15) -> 0 | R15: =SUMIFS('Raw - New'!$I$2:$I$110000,'Raw - New'!$C$2:$C$110000,$B15,'Raw - New'!$F$2:$F$110000,"Exports (000's)",'Raw - New'!$J$2:$J$110000,R$1,'Raw - New'!$E$2:$E$110000,$E15) -> 0 | S15: =SUMIFS('Raw - New'!$I$2:$I$110000,'Raw - New'!$C$2:$C$110000,$B15,'Raw - New'!$F$2:$F$110000,"Exports (000's)",'Raw - New'!$J$2:$J$110000,S$1,'Raw - New'!$E$2:$E$110000,$E15) -> 0 | T15: =SUMIFS('Raw - New'!$I$2:$I$110000,'Raw - New'!$C$2:$C$110000,$B15,'Raw - New'!$F$2:$F$110000,"Exports (000's)",'Raw - New'!$J$2:$J$110000,T$1,'Raw - New'!$E$2:$E$110000,$E15) -> 0 | U15: =SUMIFS('Raw - New'!$I$2:$I$110000,'Raw - New'!$C$2:$C$110000,$B15,'Raw - New'!$F$2:$F$110000,"Exports (000's)",'Raw - New'!$J$2:$J$110000,U$1,'Raw - New'!$E$2:$E$110000,$E15) -> 0 | V15: =SUMIFS('Raw - New'!$I$2:$I$110000,'Raw - New'!$C$2:$C$110000,$B15,'Raw - New'!$F$2:$F$110000,"Exports (000's)",'Raw - New'!$J$2:$J$110000,V$1,'Raw - New'!$E$2:$E$110000,$E15) -> 0 | W15: =SUMIFS('Raw - New'!$I$2:$I$110000,'Raw - New'!$C$2:$C$110000,$B15,'Raw - New'!$F$2:$F$110000,"Exports (000's)",'Raw - New'!$J$2:$J$110000,W$1,'Raw - New'!$E$2:$E$110000,$E15) -> 0 | X15: =SUMIFS('Raw - New'!$I$2:$I$110000,'Raw - New'!$C$2:$C$110000,$B15,'Raw - New'!$F$2:$F$110000,"Exports (000's)",'Raw - New'!$J$2:$J$110000,X$1,'Raw - New'!$E$2:$E$110000,$E15) -> 0 | Y15: =SUMIFS('Raw - New'!$I$2:$I$110000,'Raw - New'!$C$2:$C$110000,$B15,'Raw - New'!$F$2:$F$110000,"Exports (000's)",'Raw - New'!$J$2:$J$110000,Y$1,'Raw - New'!$E$2:$E$110000,$E15) -> 0 | Z15: =SUMIFS('Raw - New'!$I$2:$I$110000,'Raw - New'!$C$2:$C$110000,$B15,'Raw - New'!$F$2:$F$110000,"Exports (000's)",'Raw - New'!$J$2:$J$110000,Z$1,'Raw - New'!$E$2:$E$110000,$E15) -> 0 | AA15: 0 | AB15: 0 | AC15: 0 | AD15: 0 | AE15: 0 | AF15: =IFERROR(VLOOKUP(B15,Selection!$Y$2:$AB$107,4,FALSE),0) -> 0
A16: European Community | B16: Austria | C16: Europe and Russia | D16: 2 - Crude materials, inedible, except fuels | E16: 23 - Crude rubber (including synthetic & reclaimed) | F16: Austria23 - Crude rubber (including synthetic & reclaimed) | G16: =SUMIFS('Raw - New'!$I$2:$I$110000,'Raw - New'!$C$2:$C$110000,$B16,'Raw - New'!$F$2:$F$110000,"Exports (000's)",'Raw - New'!$J$2:$J$110000,G$1,'Raw - New'!$E$2:$E$110000,$E16) -> 0 | H16: =SUMIFS('Raw - New'!$I$2:$I$110000,'Raw - New'!$C$2:$C$110000,$B16,'Raw - New'!$F$2:$F$110000,"Exports (000's)",'Raw - New'!$J$2:$J$110000,H$1,'Raw - New'!$E$2:$E$110000,$E16) -> 0 | I16: =SUMIFS('Raw - New'!$I$2:$I$110000,'Raw - New'!$C$2:$C$110000,$B16,'Raw - New'!$F$2:$F$110000,"Exports (000's)",'Raw - New'!$J$2:$J$110000,I$1,'Raw - New'!$E$2:$E$110000,$E16) -> 0 | J16: =SUMIFS('Raw - New'!$I$2:$I$110000,'Raw - New'!$C$2:$C$110000,$B16,'Raw - New'!$F$2:$F$110000,"Exports (000's)",'Raw - New'!$J$2:$J$110000,J$1,'Raw - New'!$E$2:$E$110000,$E16) -> 0 | K16: =SUMIFS('Raw - New'!$I$2:$I$110000,'Raw - New'!$C$2:$C$110000,$B16,'Raw - New'!$F$2:$F$110000,"Exports (000's)",'Raw - New'!$J$2:$J$110000,K$1,'Raw - New'!$E$2:$E$110000,$E16) -> 0 | L16: =SUMIFS('Raw - New'!$I$2:$I$110000,'Raw - New'!$C$2:$C$110000,$B16,'Raw - New'!$F$2:$F$110000,"Exports (000's)",'Raw - New'!$J$2:$J$110000,L$1,'Raw - New'!$E$2:$E$110000,$E16) -> 0 | M16: =SUMIFS('Raw - New'!$I$2:$I$110000,'Raw - New'!$C$2:$C$110000,$B16,'Raw - New'!$F$2:$F$110000,"Exports (000's)",'Raw - New'!$J$2:$J$110000,M$1,'Raw - New'!$E$2:$E$110000,$E16) -> 0 | N16: =SUMIFS('Raw - New'!$I$2:$I$110000,'Raw - New'!$C$2:$C$110000,$B16,'Raw - New'!$F$2:$F$110000,"Exports (000's)",'Raw - New'!$J$2:$J$110000,N$1,'Raw - New'!$E$2:$E$110000,$E16) -> 0 | O16: =SUMIFS('Raw - New'!$I$2:$I$110000,'Raw - New'!$C$2:$C$110000,$B16,'Raw - New'!$F$2:$F$110000,"Exports (000's)",'Raw - New'!$J$2:$J$110000,O$1,'Raw - New'!$E$2:$E$110000,$E16) -> 0 | P16: =SUMIFS('Raw - New'!$I$2:$I$110000,'Raw - New'!$C$2:$C$110000,$B16,'Raw - New'!$F$2:$F$110000,"Exports (000's)",'Raw - New'!$J$2:$J$110000,P$1,'Raw - New'!$E$2:$E$110000,$E16) -> 18 | Q16: =SUMIFS('Raw - New'!$I$2:$I$110000,'Raw - New'!$C$2:$C$110000,$B16,'Raw - New'!$F$2:$F$110000,"Exports (000's)",'Raw - New'!$J$2:$J$110000,Q$1,'Raw - New'!$E$2:$E$110000,$E16) -> 0 | R16: =SUMIFS('Raw - New'!$I$2:$I$110000,'Raw - New'!$C$2:$C$110000,$B16,'Raw - New'!$F$2:$F$110000,"Exports (000's)",'Raw - New'!$J$2:$J$110000,R$1,'Raw - New'!$E$2:$E$110000,$E16) -> 0 | S16: =SUMIFS('Raw - New'!$I$2:$I$110000,'Raw - New'!$C$2:$C$110000,$B16,'Raw - New'!$F$2:$F$110000,"Exports (000's)",'Raw - New'!$J$2:$J$110000,S$1,'Raw - New'!$E$2:$E$110000,$E16) -> 0 | T16: =SUMIFS('Raw - New'!$I$2:$I$110000,'Raw - New'!$C$2:$C$110000,$B16,'Raw - New'!$F$2:$F$110000,"Exports (000's)",'Raw - New'!$J$2:$J$110000,T$1,'Raw - New'!$E$2:$E$110000,$E16) -> 0 | U16: =SUMIFS('Raw - New'!$I$2:$I$110000,'Raw - New'!$C$2:$C$110000,$B16,'Raw - New'!$F$2:$F$110000,"Exports (000's)",'Raw - New'!$J$2:$J$110000,U$1,'Raw - New'!$E$2:$E$110000,$E16) -> 0 | V16: =SUMIFS('Raw - New'!$I$2:$I$110000,'Raw - New'!$C$2:$C$110000,$B16,'Raw - New'!$F$2:$F$110000,"Exports (000's)",'Raw - New'!$J$2:$J$110000,V$1,'Raw - New'!$E$2:$E$110000,$E16) -> 0 | W16: =SUMIFS('Raw - New'!$I$2:$I$110000,'Raw - New'!$C$2:$C$110000,$B16,'Raw - New'!$F$2:$F$110000,"Exports (000's)",'Raw - New'!$J$2:$J$110000,W$1,'Raw - New'!$E$2:$E$110000,$E16) -> 0 | X16: =SUMIFS('Raw - New'!$I$2:$I$110000,'Raw - New'!$C$2:$C$110000,$B16,'Raw - New'!$F$2:$F$110000,"Exports (000's)",'Raw - New'!$J$2:$J$110000,X$1,'Raw - New'!$E$2:$E$110000,$E16) -> 0 | Y16: =SUMIFS('Raw - New'!$I$2:$I$110000,'Raw - New'!$C$2:$C$110000,$B16,'Raw - New'!$F$2:$F$110000,"Exports (000's)",'Raw - New'!$J$2:$J$110000,Y$1,'Raw - New'!$E$2:$E$110000,$E16) -> 0 | Z16: =SUMIFS('Raw - New'!$I$2:$I$110000,'Raw - New'!$C$2:$C$110000,$B16,'Raw - New'!$F$2:$F$110000,"Exports (000's)",'Raw - New'!$J$2:$J$110000,Z$1,'Raw - New'!$E$2:$E$110000,$E16) -> 0 | AA16: 0 | AB16: 0 | AC16: 18 | AD16: 0 | AE16: 0 | AF16: =IFERROR(VLOOKUP(B16,Selection!$Y$2:$AB$107,4,FALSE),0) -> 0
A17: European Community | B17: Austria | C17: Europe and Russia | D17: 2 - Crude materials, inedible, except fuels | E17: 24 - Cork & wood | F17: Austria24 - Cork & wood | G17: =SUMIFS('Raw - New'!$I$2:$I$110000,'Raw - New'!$C$2:$C$110000,$B17,'Raw - New'!$F$2:$F$110000,"Exports (000's)",'Raw - New'!$J$2:$J$110000,G$1,'Raw - New'!$E$2:$E$110000,$E17) -> 0 | H17: =SUMIFS('Raw - New'!$I$2:$I$110000,'Raw - New'!$C$2:$C$110000,$B17,'Raw - New'!$F$2:$F$110000,"Exports (000's)",'Raw - New'!$J$2:$J$110000,H$1,'Raw - New'!$E$2:$E$110000,$E17) -> 0 | I17: =SUMIFS('Raw - New'!$I$2:$I$110000,'Raw - New'!$C$2:$C$110000,$B17,'Raw - New'!$F$2:$F$110000,"Exports (000's)",'Raw - New'!$J$2:$J$110000,I$1,'Raw - New'!$E$2:$E$110000,$E17) -> 0 | J17: =SUMIFS('Raw - New'!$I$2:$I$110000,'Raw - New'!$C$2:$C$110000,$B17,'Raw - New'!$F$2:$F$110000,"Exports (000's)",'Raw - New'!$J$2:$J$110000,J$1,'Raw - New'!$E$2:$E$110000,$E17) -> 0 | K17: =SUMIFS('Raw - New'!$I$2:$I$110000,'Raw - New'!$C$2:$C$110000,$B17,'Raw - New'!$F$2:$F$110000,"Exports (000's)",'Raw - New'!$J$2:$J$110000,K$1,'Raw - New'!$E$2:$E$110000,$E17) -> 0 | L17: =SUMIFS('Raw - New'!$I$2:$I$110000,'Raw - New'!$C$2:$C$110000,$B17,'Raw - New'!$F$2:$F$110000,"Exports (000's)",'Raw - New'!$J$2:$J$110000,L$1,'Raw - New'!$E$2:$E$110000,$E17) -> 0 | M17: =SUMIFS('Raw - New'!$I$2:$I$110000,'Raw - New'!$C$2:$C$110000,$B17,'Raw - New'!$F$2:$F$110000,"Exports (000's)",'Raw - New'!$J$2:$J$110000,M$1,'Raw - New'!$E$2:$E$110000,$E17) -> 0 | N17: =SUMIFS('Raw - New'!$I$2:$I$110000,'Raw - New'!$C$2:$C$110000,$B17,'Raw - New'!$F$2:$F$110000,"Exports (000's)",'Raw - New'!$J$2:$J$110000,N$1,'Raw - New'!$E$2:$E$110000,$E17) -> 0 | O17: =SUMIFS('Raw - New'!$I$2:$I$110000,'Raw - New'!$C$2:$C$110000,$B17,'Raw - New'!$F$2:$F$110000,"Exports (000's)",'Raw - New'!$J$2:$J$110000,O$1,'Raw - New'!$E$2:$E$110000,$E17) -> 0 | P17: =SUMIFS('Raw - New'!$I$2:$I$110000,'Raw - New'!$C$2:$C$110000,$B17,'Raw - New'!$F$2:$F$110000,"Exports (000's)",'Raw - New'!$J$2:$J$110000,P$1,'Raw - New'!$E$2:$E$110000,$E17) -> 0 | Q17: =SUMIFS('Raw - New'!$I$2:$I$110000,'Raw - New'!$C$2:$C$110000,$B17,'Raw - New'!$F$2:$F$110000,"Exports (000's)",'Raw - New'!$J$2:$J$110000,Q$1,'Raw - New'!$E$2:$E$110000,$E17) -> 0 | R17: =SUMIFS('Raw - New'!$I$2:$I$110000,'Raw - New'!$C$2:$C$110000,$B17,'Raw - New'!$F$2:$F$110000,"Exports (000's)",'Raw - New'!$J$2:$J$110000,R$1,'Raw - New'!$E$2:$E$110000,$E17) -> 0 | S17: =SUMIFS('Raw - New'!$I$2:$I$110000,'Raw - New'!$C$2:$C$110000,$B17,'Raw - New'!$F$2:$F$110000,"Exports (000's)",'Raw - New'!$J$2:$J$110000,S$1,'Raw - New'!$E$2:$E$110000,$E17) -> 0 | T17: =SUMIFS('Raw - New'!$I$2:$I$110000,'Raw - New'!$C$2:$C$110000,$B17,'Raw - New'!$F$2:$F$110000,"Exports (000's)",'Raw - New'!$J$2:$J$110000,T$1,'Raw - New'!$E$2:$E$110000,$E17) -> 0 | U17: =SUMIFS('Raw - New'!$I$2:$I$110000,'Raw - New'!$C$2:$C$110000,$B17,'Raw - New'!$F$2:$F$110000,"Exports (000's)",'Raw - New'!$J$2:$J$110000,U$1,'Raw - New'!$E$2:$E$110000,$E17) -> 0 | V17: =SUMIFS('Raw - New'!$I$2:$I$110000,'Raw - New'!$C$2:$C$110000,$B17,'Raw - New'!$F$2:$F$110000,"Exports (000's)",'Raw - New'!$J$2:$J$110000,V$1,'Raw - New'!$E$2:$E$110000,$E17) -> 0 | W17: =SUMIFS('Raw - New'!$I$2:$I$110000,'Raw - New'!$C$2:$C$110000,$B17,'Raw - New'!$F$2:$F$110000,"Exports (000's)",'Raw - New'!$J$2:$J$110000,W$1,'Raw - New'!$E$2:$E$110000,$E17) -> 0 | X17: =SUMIFS('Raw - New'!$I$2:$I$110000,'Raw - New'!$C$2:$C$110000,$B17,'Raw - New'!$F$2:$F$110000,"Exports (000's)",'Raw - New'!$J$2:$J$110000,X$1,'Raw - New'!$E$2:$E$110000,$E17) -> 0 | Y17: =SUMIFS('Raw - New'!$I$2:$I$110000,'Raw - New'!$C$2:$C$110000,$B17,'Raw - New'!$F$2:$F$110000,"Exports (000's)",'Raw - New'!$J$2:$J$110000,Y$1,'Raw - New'!$E$2:$E$110000,$E17) -> 0 | Z17: =SUMIFS('Raw - New'!$I$2:$I$110000,'Raw - New'!$C$2:$C$110000,$B17,'Raw - New'!$F$2:$F$110000,"Exports (000's)",'Raw - New'!$J$2:$J$110000,Z$1,'Raw - New'!$E$2:$E$110000,$E17) -> 0 | AA17: 0 | AB17: 0 | AC17: 0 | AD17: 0 | AE17: 0 | AF17: =IFERROR(VLOOKUP(B17,Selection!$Y$2:$AB$107,4,FALSE),0) -> 0
A18: European Community | B18: Austria | C18: Europe and Russia | D18: 2 - Crude materials, inedible, except fuels | E18: 25 - Pulp & waste paper | F18: Austria25 - Pulp & waste paper | G18: =SUMIFS('Raw - New'!$I$2:$I$110000,'Raw - New'!$C$2:$C$110000,$B18,'Raw - New'!$F$2:$F$110000,"Exports (000's)",'Raw - New'!$J$2:$J$110000,G$1,'Raw - New'!$E$2:$E$110000,$E18) -> 39 | H18: =SUMIFS('Raw - New'!$I$2:$I$110000,'Raw - New'!$C$2:$C$110000,$B18,'Raw - New'!$F$2:$F$110000,"Exports (000's)",'Raw - New'!$J$2:$J$110000,H$1,'Raw - New'!$E$2:$E$110000,$E18) -> 36 | I18: =SUMIFS('Raw - New'!$I$2:$I$110000,'Raw - New'!$C$2:$C$110000,$B18,'Raw - New'!$F$2:$F$110000,"Exports (000's)",'Raw - New'!$J$2:$J$110000,I$1,'Raw - New'!$E$2:$E$110000,$E18) -> 30 | J18: =SUMIFS('Raw - New'!$I$2:$I$110000,'Raw - New'!$C$2:$C$110000,$B18,'Raw - New'!$F$2:$F$110000,"Exports (000's)",'Raw - New'!$J$2:$J$110000,J$1,'Raw - New'!$E$2:$E$110000,$E18) -> 6 | K18: =SUMIFS('Raw - New'!$I$2:$I$110000,'Raw - New'!$C$2:$C$110000,$B18,'Raw - New'!$F$2:$F$110000,"Exports (000's)",'Raw - New'!$J$2:$J$110000,K$1,'Raw - New'!$E$2:$E$110000,$E18) -> 9 | L18: =SUMIFS('Raw - New'!$I$2:$I$110000,'Raw - New'!$C$2:$C$110000,$B18,'Raw - New'!$F$2:$F$110000,"Exports (000's)",'Raw - New'!$J$2:$J$110000,L$1,'Raw - New'!$E$2:$E$110000,$E18) -> 14 | M18: =SUMIFS('Raw - New'!$I$2:$I$110000,'Raw - New'!$C$2:$C$110000,$B18,'Raw - New'!$F$2:$F$110000,"Exports (000's)",'Raw - New'!$J$2:$J$110000,M$1,'Raw - New'!$E$2:$E$110000,$E18) -> 20 | N18: =SUMIFS('Raw - New'!$I$2:$I$110000,'Raw - New'!$C$2:$C$110000,$B18,'Raw - New'!$F$2:$F$110000,"Exports (000's)",'Raw - New'!$J$2:$J$110000,N$1,'Raw - New'!$E$2:$E$110000,$E18) -> 27 | O18: =SUMIFS('Raw - New'!$I$2:$I$110000,'Raw - New'!$C$2:$C$110000,$B18,'Raw - New'!$F$2:$F$110000,"Exports (000's)",'Raw - New'!$J$2:$J$110000,O$1,'Raw - New'!$E$2:$E$110000,$E18) -> 0 | P18: =SUMIFS('Raw - New'!$I$2:$I$110000,'Raw - New'!$C$2:$C$110000,$B18,'Raw - New'!$F$2:$F$110000,"Exports (000's)",'Raw - New'!$J$2:$J$110000,P$1,'Raw - New'!$E$2:$E$110000,$E18) -> 0 | Q18: =SUMIFS('Raw - New'!$I$2:$I$110000,'Raw - New'!$C$2:$C$110000,$B18,'Raw - New'!$F$2:$F$110000,"Exports (000's)",'Raw - New'!$J$2:$J$110000,Q$1,'Raw - New'!$E$2:$E$110000,$E18) -> 0 | R18: =SUMIFS('Raw - New'!$I$2:$I$110000,'Raw - New'!$C$2:$C$110000,$B18,'Raw - New'!$F$2:$F$110000,"Exports (000's)",'Raw - New'!$J$2:$J$110000,R$1,'Raw - New'!$E$2:$E$110000,$E18) -> 6 | S18: =SUMIFS('Raw - New'!$I$2:$I$110000,'Raw - New'!$C$2:$C$110000,$B18,'Raw - New'!$F$2:$F$110000,"Exports (000's)",'Raw - New'!$J$2:$J$110000,S$1,'Raw - New'!$E$2:$E$110000,$E18) -> 6 | T18: =SUMIFS('Raw - New'!$I$2:$I$110000,'Raw - New'!$C$2:$C$110000,$B18,'Raw - New'!$F$2:$F$110000,"Exports (000's)",'Raw - New'!$J$2:$J$110000,T$1,'Raw - New'!$E$2:$E$110000,$E18) -> 3 | U18: =SUMIFS('Raw - New'!$I$2:$I$110000,'Raw - New'!$C$2:$C$110000,$B18,'Raw - New'!$F$2:$F$110000,"Exports (000's)",'Raw - New'!$J$2:$J$110000,U$1,'Raw - New'!$E$2:$E$110000,$E18) -> 6 | V18: =SUMIFS('Raw - New'!$I$2:$I$110000,'Raw - New'!$C$2:$C$110000,$B18,'Raw - New'!$F$2:$F$110000,"Exports (000's)",'Raw - New'!$J$2:$J$110000,V$1,'Raw - New'!$E$2:$E$110000,$E18) -> 0 | W18: =SUMIFS('Raw - New'!$I$2:$I$110000,'Raw - New'!$C$2:$C$110000,$B18,'Raw - New'!$F$2:$F$110000,"Exports (000's)",'Raw - New'!$J$2:$J$110000,W$1,'Raw - New'!$E$2:$E$110000,$E18) -> 2 | X18: =SUMIFS('Raw - New'!$I$2:$I$110000,'Raw - New'!$C$2:$C$110000,$B18,'Raw - New'!$F$2:$F$110000,"Exports (000's)",'Raw - New'!$J$2:$J$110000,X$1,'Raw - New'!$E$2:$E$110000,$E18) -> 2 | Y18: =SUMIFS('Raw - New'!$I$2:$I$110000,'Raw - New'!$C$2:$C$110000,$B18,'Raw - New'!$F$2:$F$110000,"Exports (000's)",'Raw - New'!$J$2:$J$110000,Y$1,'Raw - New'!$E$2:$E$110000,$E18) -> 1 | Z18: =SUMIFS('Raw - New'!$I$2:$I$110000,'Raw - New'!$C$2:$C$110000,$B18,'Raw - New'!$F$2:$F$110000,"Exports (000's)",'Raw - New'!$J$2:$J$110000,Z$1,'Raw - New'!$E$2:$E$110000,$E18) -> 3 | AA18: 111 | AB18: 70 | AC18: 6 | AD18: 15 | AE18: 8 | AF18: =IFERROR(VLOOKUP(B18,Selection!$Y$2:$AB$107,4,FALSE),0) -> 0
A19: European Community | B19: Austria | C19: Europe and Russia | D19: 2 - Crude materials, inedible, except fuels | E19: 26 - Textile fibres not manufactured & their waste etc | F19: Austria26 - Textile fibres not manufactured & their waste etc | G19: =SUMIFS('Raw - New'!$I$2:$I$110000,'Raw - New'!$C$2:$C$110000,$B19,'Raw - New'!$F$2:$F$110000,"Exports (000's)",'Raw - New'!$J$2:$J$110000,G$1,'Raw - New'!$E$2:$E$110000,$E19) -> 0 | H19: =SUMIFS('Raw - New'!$I$2:$I$110000,'Raw - New'!$C$2:$C$110000,$B19,'Raw - New'!$F$2:$F$110000,"Exports (000's)",'Raw - New'!$J$2:$J$110000,H$1,'Raw - New'!$E$2:$E$110000,$E19) -> 0 | I19: =SUMIFS('Raw - New'!$I$2:$I$110000,'Raw - New'!$C$2:$C$110000,$B19,'Raw - New'!$F$2:$F$110000,"Exports (000's)",'Raw - New'!$J$2:$J$110000,I$1,'Raw - New'!$E$2:$E$110000,$E19) -> 0 | J19: =SUMIFS('Raw - New'!$I$2:$I$110000,'Raw - New'!$C$2:$C$110000,$B19,'Raw - New'!$F$2:$F$110000,"Exports (000's)",'Raw - New'!$J$2:$J$110000,J$1,'Raw - New'!$E$2:$E$110000,$E19) -> 0 | K19: =SUMIFS('Raw - New'!$I$2:$I$110000,'Raw - New'!$C$2:$C$110000,$B19,'Raw - New'!$F$2:$F$110000,"Exports (000's)",'Raw - New'!$J$2:$J$110000,K$1,'Raw - New'!$E$2:$E$110000,$E19) -> 0 | L19: =SUMIFS('Raw - New'!$I$2:$I$110000,'Raw - New'!$C$2:$C$110000,$B19,'Raw - New'!$F$2:$F$110000,"Exports (000's)",'Raw - New'!$J$2:$J$110000,L$1,'Raw - New'!$E$2:$E$110000,$E19) -> 0 | M19: =SUMIFS('Raw - New'!$I$2:$I$110000,'Raw - New'!$C$2:$C$110000,$B19,'Raw - New'!$F$2:$F$110000,"Exports (000's)",'Raw - New'!$J$2:$J$110000,M$1,'Raw - New'!$E$2:$E$110000,$E19) -> 1 | N19: =SUMIFS('Raw - New'!$I$2:$I$110000,'Raw - New'!$C$2:$C$110000,$B19,'Raw - New'!$F$2:$F$110000,"Exports (000's)",'Raw - New'!$J$2:$J$110000,N$1,'Raw - New'!$E$2:$E$110000,$E19) -> 1 | O19: =SUMIFS('Raw - New'!$I$2:$I$110000,'Raw - New'!$C$2:$C$110000,$B19,'Raw - New'!$F$2:$F$110000,"Exports (000's)",'Raw - New'!$J$2:$J$110000,O$1,'Raw - New'!$E$2:$E$110000,$E19) -> 0 | P19: =SUMIFS('Raw - New'!$I$2:$I$110000,'Raw - New'!$C$2:$C$110000,$B19,'Raw - New'!$F$2:$F$110000,"Exports (000's)",'Raw - New'!$J$2:$J$110000,P$1,'Raw - New'!$E$2:$E$110000,$E19) -> 0 | Q19: =SUMIFS('Raw - New'!$I$2:$I$110000,'Raw - New'!$C$2:$C$110000,$B19,'Raw - New'!$F$2:$F$110000,"Exports (000's)",'Raw - New'!$J$2:$J$110000,Q$1,'Raw - New'!$E$2:$E$110000,$E19) -> 0 | R19: =SUMIFS('Raw - New'!$I$2:$I$110000,'Raw - New'!$C$2:$C$110000,$B19,'Raw - New'!$F$2:$F$110000,"Exports (000's)",'Raw - New'!$J$2:$J$110000,R$1,'Raw - New'!$E$2:$E$110000,$E19) -> 0 | S19: =SUMIFS('Raw - New'!$I$2:$I$110000,'Raw - New'!$C$2:$C$110000,$B19,'Raw - New'!$F$2:$F$110000,"Exports (000's)",'Raw - New'!$J$2:$J$110000,S$1,'Raw - New'!$E$2:$E$110000,$E19) -> 0 | T19: =SUMIFS('Raw - New'!$I$2:$I$110000,'Raw - New'!$C$2:$C$110000,$B19,'Raw - New'!$F$2:$F$110000,"Exports (000's)",'Raw - New'!$J$2:$J$110000,T$1,'Raw - New'!$E$2:$E$110000,$E19) -> 0 | U19: =SUMIFS('Raw - New'!$I$2:$I$110000,'Raw - New'!$C$2:$C$110000,$B19,'Raw - New'!$F$2:$F$110000,"Exports (000's)",'Raw - New'!$J$2:$J$110000,U$1,'Raw - New'!$E$2:$E$110000,$E19) -> 0 | V19: =SUMIFS('Raw - New'!$I$2:$I$110000,'Raw - New'!$C$2:$C$110000,$B19,'Raw - New'!$F$2:$F$110000,"Exports (000's)",'Raw - New'!$J$2:$J$110000,V$1,'Raw - New'!$E$2:$E$110000,$E19) -> 0 | W19: =SUMIFS('Raw - New'!$I$2:$I$110000,'Raw - New'!$C$2:$C$110000,$B19,'Raw - New'!$F$2:$F$110000,"Exports (000's)",'Raw - New'!$J$2:$J$110000,W$1,'Raw - New'!$E$2:$E$110000,$E19) -> 0 | X19: =SUMIFS('Raw - New'!$I$2:$I$110000,'Raw - New'!$C$2:$C$110000,$B19,'Raw - New'!$F$2:$F$110000,"Exports (000's)",'Raw - New'!$J$2:$J$110000,X$1,'Raw - New'!$E$2:$E$110000,$E19) -> 0 | Y19: =SUMIFS('Raw - New'!$I$2:$I$110000,'Raw - New'!$C$2:$C$110000,$B19,'Raw - New'!$F$2:$F$110000,"Exports (000's)",'Raw - New'!$J$2:$J$110000,Y$1,'Raw - New'!$E$2:$E$110000,$E19) -> 0 | Z19: =SUMIFS('Raw - New'!$I$2:$I$110000,'Raw - New'!$C$2:$C$110000,$B19,'Raw - New'!$F$2:$F$110000,"Exports (000's)",'Raw - New'!$J$2:$J$110000,Z$1,'Raw - New'!$E$2:$E$110000,$E19) -> 0 | AA19: 0 | AB19: 2 | AC19: 0 | AD19: 0 | AE19: 0 | AF19: =IFERROR(VLOOKUP(B19,Selection!$Y$2:$AB$107,4,FALSE),0) -> 0
A20: European Community | B20: Austria | C20: Europe and Russia | D20: 2 - Crude materials, inedible, except fuels | E20: 27 - Crude fertilizers & crude minerals (exc fuels etc) | F20: Austria27 - Crude fertilizers & crude minerals (exc fuels etc) | G20: =SUMIFS('Raw - New'!$I$2:$I$110000,'Raw - New'!$C$2:$C$110000,$B20,'Raw - New'!$F$2:$F$110000,"Exports (000's)",'Raw - New'!$J$2:$J$110000,G$1,'Raw - New'!$E$2:$E$110000,$E20) -> 0 | H20: =SUMIFS('Raw - New'!$I$2:$I$110000,'Raw - New'!$C$2:$C$110000,$B20,'Raw - New'!$F$2:$F$110000,"Exports (000's)",'Raw - New'!$J$2:$J$110000,H$1,'Raw - New'!$E$2:$E$110000,$E20) -> 0 | I20: =SUMIFS('Raw - New'!$I$2:$I$110000,'Raw - New'!$C$2:$C$110000,$B20,'Raw - New'!$F$2:$F$110000,"Exports (000's)",'Raw - New'!$J$2:$J$110000,I$1,'Raw - New'!$E$2:$E$110000,$E20) -> 0 | J20: =SUMIFS('Raw - New'!$I$2:$I$110000,'Raw - New'!$C$2:$C$110000,$B20,'Raw - New'!$F$2:$F$110000,"Exports (000's)",'Raw - New'!$J$2:$J$110000,J$1,'Raw - New'!$E$2:$E$110000,$E20) -> 0 | K20: =SUMIFS('Raw - New'!$I$2:$I$110000,'Raw - New'!$C$2:$C$110000,$B20,'Raw - New'!$F$2:$F$110000,"Exports (000's)",'Raw - New'!$J$2:$J$110000,K$1,'Raw - New'!$E$2:$E$110000,$E20) -> 0 | L20: =SUMIFS('Raw - New'!$I$2:$I$110000,'Raw - New'!$C$2:$C$110000,$B20,'Raw - New'!$F$2:$F$110000,"Exports (000's)",'Raw - New'!$J$2:$J$110000,L$1,'Raw - New'!$E$2:$E$110000,$E20) -> 0 | M20: =SUMIFS('Raw - New'!$I$2:$I$110000,'Raw - New'!$C$2:$C$110000,$B20,'Raw - New'!$F$2:$F$110000,"Exports (000's)",'Raw - New'!$J$2:$J$110000,M$1,'Raw - New'!$E$2:$E$110000,$E20) -> 0 | N20: =SUMIFS('Raw - New'!$I$2:$I$110000,'Raw - New'!$C$2:$C$110000,$B20,'Raw - New'!$F$2:$F$110000,"Exports (000's)",'Raw - New'!$J$2:$J$110000,N$1,'Raw - New'!$E$2:$E$110000,$E20) -> 0 | O20: =SUMIFS('Raw - New'!$I$2:$I$110000,'Raw - New'!$C$2:$C$110000,$B20,'Raw - New'!$F$2:$F$110000,"Exports (000's)",'Raw - New'!$J$2:$J$110000,O$1,'Raw - New'!$E$2:$E$110000,$E20) -> 0 | P20: =SUMIFS('Raw - New'!$I$2:$I$110000,'Raw - New'!$C$2:$C$110000,$B20,'Raw - New'!$F$2:$F$110000,"Exports (000's)",'Raw - New'!$J$2:$J$110000,P$1,'Raw - New'!$E$2:$E$110000,$E20) -> 1 | Q20: =SUMIFS('Raw - New'!$I$2:$I$110000,'Raw - New'!$C$2:$C$110000,$B20,'Raw - New'!$F$2:$F$110000,"Exports (000's)",'Raw - New'!$J$2:$J$110000,Q$1,'Raw - New'!$E$2:$E$110000,$E20) -> 0 | R20: =SUMIFS('Raw - New'!$I$2:$I$110000,'Raw - New'!$C$2:$C$110000,$B20,'Raw - New'!$F$2:$F$110000,"Exports (000's)",'Raw - New'!$J$2:$J$110000,R$1,'Raw - New'!$E$2:$E$110000,$E20) -> 0 | S20: =SUMIFS('Raw - New'!$I$2:$I$110000,'Raw - New'!$C$2:$C$110000,$B20,'Raw - New'!$F$2:$F$110000,"Exports (000's)",'Raw - New'!$J$2:$J$110000,S$1,'Raw - New'!$E$2:$E$110000,$E20) -> 0 | T20: =SUMIFS('Raw - New'!$I$2:$I$110000,'Raw - New'!$C$2:$C$110000,$B20,'Raw - New'!$F$2:$F$110000,"Exports (000's)",'Raw - New'!$J$2:$J$110000,T$1,'Raw - New'!$E$2:$E$110000,$E20) -> 0 | U20: =SUMIFS('Raw - New'!$I$2:$I$110000,'Raw - New'!$C$2:$C$110000,$B20,'Raw - New'!$F$2:$F$110000,"Exports (000's)",'Raw - New'!$J$2:$J$110000,U$1,'Raw - New'!$E$2:$E$110000,$E20) -> 0 | V20: =SUMIFS('Raw - New'!$I$2:$I$110000,'Raw - New'!$C$2:$C$110000,$B20,'Raw - New'!$F$2:$F$110000,"Exports (000's)",'Raw - New'!$J$2:$J$110000,V$1,'Raw - New'!$E$2:$E$110000,$E20) -> 0 | W20: =SUMIFS('Raw - New'!$I$2:$I$110000,'Raw - New'!$C$2:$C$110000,$B20,'Raw - New'!$F$2:$F$110000,"Exports (000's)",'Raw - New'!$J$2:$J$110000,W$1,'Raw - New'!$E$2:$E$110000,$E20) -> 0 | X20: =SUMIFS('Raw - New'!$I$2:$I$110000,'Raw - New'!$C$2:$C$110000,$B20,'Raw - New'!$F$2:$F$110000,"Exports (000's)",'Raw - New'!$J$2:$J$110000,X$1,'Raw - New'!$E$2:$E$110000,$E20) -> 0 | Y20: =SUMIFS('Raw - New'!$I$2:$I$110000,'Raw - New'!$C$2:$C$110000,$B20,'Raw - New'!$F$2:$F$110000,"Exports (000's)",'Raw - New'!$J$2:$J$110000,Y$1,'Raw - New'!$E$2:$E$110000,$E20) -> 0 | Z20: =SUMIFS('Raw - New'!$I$2:$I$110000,'Raw - New'!$C$2:$C$110000,$B20,'Raw - New'!$F$2:$F$110000,"Exports (000's)",'Raw - New'!$J$2:$J$110000,Z$1,'Raw - New'!$E$2:$E$110000,$E20) -> 0 | AA20: 0 | AB20: 0 | AC20: 1 | AD20: 0 | AE20: 0 | AF20: =IFERROR(VLOOKUP(B20,Selection!$Y$2:$AB$107,4,FALSE),0) -> 0
A21: European Community | B21: Austria | C21: Europe and Russia | D21: 2 - Crude materials, inedible, except fuels | E21: 28 - Metalliferous ores & metal scrap | F21: Austria28 - Metalliferous ores & metal scrap | G21: =SUMIFS('Raw - New'!$I$2:$I$110000,'Raw - New'!$C$2:$C$110000,$B21,'Raw - New'!$F$2:$F$110000,"Exports (000's)",'Raw - New'!$J$2:$J$110000,G$1,'Raw - New'!$E$2:$E$110000,$E21) -> 0 | H21: =SUMIFS('Raw - New'!$I$2:$I$110000,'Raw - New'!$C$2:$C$110000,$B21,'Raw - New'!$F$2:$F$110000,"Exports (000's)",'Raw - New'!$J$2:$J$110000,H$1,'Raw - New'!$E$2:$E$110000,$E21) -> 0 | I21: =SUMIFS('Raw - New'!$I$2:$I$110000,'Raw - New'!$C$2:$C$110000,$B21,'Raw - New'!$F$2:$F$110000,"Exports (000's)",'Raw - New'!$J$2:$J$110000,I$1,'Raw - New'!$E$2:$E$110000,$E21) -> 0 | J21: =SUMIFS('Raw - New'!$I$2:$I$110000,'Raw - New'!$C$2:$C$110000,$B21,'Raw - New'!$F$2:$F$110000,"Exports (000's)",'Raw - New'!$J$2:$J$110000,J$1,'Raw - New'!$E$2:$E$110000,$E21) -> 0 | K21: =SUMIFS('Raw - New'!$I$2:$I$110000,'Raw - New'!$C$2:$C$110000,$B21,'Raw - New'!$F$2:$F$110000,"Exports (000's)",'Raw - New'!$J$2:$J$110000,K$1,'Raw - New'!$E$2:$E$110000,$E21) -> 0 | L21: =SUMIFS('Raw - New'!$I$2:$I$110000,'Raw - New'!$C$2:$C$110000,$B21,'Raw - New'!$F$2:$F$110000,"Exports (000's)",'Raw - New'!$J$2:$J$110000,L$1,'Raw - New'!$E$2:$E$110000,$E21) -> 0 | M21: =SUMIFS('Raw - New'!$I$2:$I$110000,'Raw - New'!$C$2:$C$110000,$B21,'Raw - New'!$F$2:$F$110000,"Exports (000's)",'Raw - New'!$J$2:$J$110000,M$1,'Raw - New'!$E$2:$E$110000,$E21) -> 0 | N21: =SUMIFS('Raw - New'!$I$2:$I$110000,'Raw - New'!$C$2:$C$110000,$B21,'Raw - New'!$F$2:$F$110000,"Exports (000's)",'Raw - New'!$J$2:$J$110000,N$1,'Raw - New'!$E$2:$E$110000,$E21) -> 0 | O21: =SUMIFS('Raw - New'!$I$2:$I$110000,'Raw - New'!$C$2:$C$110000,$B21,'Raw - New'!$F$2:$F$110000,"Exports (000's)",'Raw - New'!$J$2:$J$110000,O$1,'Raw - New'!$E$2:$E$110000,$E21) -> 0 | P21: =SUMIFS('Raw - New'!$I$2:$I$110000,'Raw - New'!$C$2:$C$110000,$B21,'Raw - New'!$F$2:$F$110000,"Exports (000's)",'Raw - New'!$J$2:$J$110000,P$1,'Raw - New'!$E$2:$E$110000,$E21) -> 0 | Q21: =SUMIFS('Raw - New'!$I$2:$I$110000,'Raw - New'!$C$2:$C$110000,$B21,'Raw - New'!$F$2:$F$110000,"Exports (000's)",'Raw - New'!$J$2:$J$110000,Q$1,'Raw - New'!$E$2:$E$110000,$E21) -> 0 | R21: =SUMIFS('Raw - New'!$I$2:$I$110000,'Raw - New'!$C$2:$C$110000,$B21,'Raw - New'!$F$2:$F$110000,"Exports (000's)",'Raw - New'!$J$2:$J$110000,R$1,'Raw - New'!$E$2:$E$110000,$E21) -> 0 | S21: =SUMIFS('Raw - New'!$I$2:$I$110000,'Raw - New'!$C$2:$C$110000,$B21,'Raw - New'!$F$2:$F$110000,"Exports (000's)",'Raw - New'!$J$2:$J$110000,S$1,'Raw - New'!$E$2:$E$110000,$E21) -> 1 | T21: =SUMIFS('Raw - New'!$I$2:$I$110000,'Raw - New'!$C$2:$C$110000,$B21,'Raw - New'!$F$2:$F$110000,"Exports (000's)",'Raw - New'!$J$2:$J$110000,T$1,'Raw - New'!$E$2:$E$110000,$E21) -> 9 | U21: =SUMIFS('Raw - New'!$I$2:$I$110000,'Raw - New'!$C$2:$C$110000,$B21,'Raw - New'!$F$2:$F$110000,"Exports (000's)",'Raw - New'!$J$2:$J$110000,U$1,'Raw - New'!$E$2:$E$110000,$E21) -> 6 | V21: =SUMIFS('Raw - New'!$I$2:$I$110000,'Raw - New'!$C$2:$C$110000,$B21,'Raw - New'!$F$2:$F$110000,"Exports (000's)",'Raw - New'!$J$2:$J$110000,V$1,'Raw - New'!$E$2:$E$110000,$E21) -> 2 | W21: =SUMIFS('Raw - New'!$I$2:$I$110000,'Raw - New'!$C$2:$C$110000,$B21,'Raw - New'!$F$2:$F$110000,"Exports (000's)",'Raw - New'!$J$2:$J$110000,W$1,'Raw - New'!$E$2:$E$110000,$E21) -> 1 | X21: =SUMIFS('Raw - New'!$I$2:$I$110000,'Raw - New'!$C$2:$C$110000,$B21,'Raw - New'!$F$2:$F$110000,"Exports (000's)",'Raw - New'!$J$2:$J$110000,X$1,'Raw - New'!$E$2:$E$110000,$E21) -> 1 | Y21: =SUMIFS('Raw - New'!$I$2:$I$110000,'Raw - New'!$C$2:$C$110000,$B21,'Raw - New'!$F$2:$F$110000,"Exports (000's)",'Raw - New'!$J$2:$J$110000,Y$1,'Raw - New'!$E$2:$E$110000,$E21) -> 0 | Z21: =SUMIFS('Raw - New'!$I$2:$I$110000,'Raw - New'!$C$2:$C$110000,$B21,'Raw - New'!$F$2:$F$110000,"Exports (000's)",'Raw - New'!$J$2:$J$110000,Z$1,'Raw - New'!$E$2:$E$110000,$E21) -> 0 | AA21: 0 | AB21: 0 | AC21: 0 | AD21: 18 | AE21: 2 | AF21: =IFERROR(VLOOKUP(B21,Selection!$Y$2:$AB$107,4,FALSE),0) -> 0
A22: European Community | B22: Austria | C22: Europe and Russia | D22: 2 - Crude materials, inedible, except fuels | E22: 29 - Crude animal & vegetable materials n.e.s. | F22: Austria29 - Crude animal & vegetable materials n.e.s. | G22: =SUMIFS('Raw - New'!$I$2:$I$110000,'Raw - New'!$C$2:$C$110000,$B22,'Raw - New'!$F$2:$F$110000,"Exports (000's)",'Raw - New'!$J$2:$J$110000,G$1,'Raw - New'!$E$2:$E$110000,$E22) -> 15 | H22: =SUMIFS('Raw - New'!$I$2:$I$110000,'Raw - New'!$C$2:$C$110000,$B22,'Raw - New'!$F$2:$F$110000,"Exports (000's)",'Raw - New'!$J$2:$J$110000,H$1,'Raw - New'!$E$2:$E$110000,$E22) -> 0 | I22: =SUMIFS('Raw - New'!$I$2:$I$110000,'Raw - New'!$C$2:$C$110000,$B22,'Raw - New'!$F$2:$F$110000,"Exports (000's)",'Raw - New'!$J$2:$J$110000,I$1,'Raw - New'!$E$2:$E$110000,$E22) -> 0 | J22: =SUMIFS('Raw - New'!$I$2:$I$110000,'Raw - New'!$C$2:$C$110000,$B22,'Raw - New'!$F$2:$F$110000,"Exports (000's)",'Raw - New'!$J$2:$J$110000,J$1,'Raw - New'!$E$2:$E$110000,$E22) -> 41 | K22: =SUMIFS('Raw - New'!$I$2:$I$110000,'Raw - New'!$C$2:$C$110000,$B22,'Raw - New'!$F$2:$F$110000,"Exports (000's)",'Raw - New'!$J$2:$J$110000,K$1,'Raw - New'!$E$2:$E$110000,$E22) -> 0 | L22: =SUMIFS('Raw - New'!$I$2:$I$110000,'Raw - New'!$C$2:$C$110000,$B22,'Raw - New'!$F$2:$F$110000,"Exports (000's)",'Raw - New'!$J$2:$J$110000,L$1,'Raw - New'!$E$2:$E$110000,$E22) -> 0 | M22: =SUMIFS('Raw - New'!$I$2:$I$110000,'Raw - New'!$C$2:$C$110000,$B22,'Raw - New'!$F$2:$F$110000,"Exports (000's)",'Raw - New'!$J$2:$J$110000,M$1,'Raw - New'!$E$2:$E$110000,$E22) -> 0 | N22: =SUMIFS('Raw - New'!$I$2:$I$110000,'Raw - New'!$C$2:$C$110000,$B22,'Raw - New'!$F$2:$F$110000,"Exports (000's)",'Raw - New'!$J$2:$J$110000,N$1,'Raw - New'!$E$2:$E$110000,$E22) -> 28 | O22: =SUMIFS('Raw - New'!$I$2:$I$110000,'Raw - New'!$C$2:$C$110000,$B22,'Raw - New'!$F$2:$F$110000,"Exports (000's)",'Raw - New'!$J$2:$J$110000,O$1,'Raw - New'!$E$2:$E$110000,$E22) -> 6 | P22: =SUMIFS('Raw - New'!$I$2:$I$110000,'Raw - New'!$C$2:$C$110000,$B22,'Raw - New'!$F$2:$F$110000,"Exports (000's)",'Raw - New'!$J$2:$J$110000,P$1,'Raw - New'!$E$2:$E$110000,$E22) -> 0 | Q22: =SUMIFS('Raw - New'!$I$2:$I$110000,'Raw - New'!$C$2:$C$110000,$B22,'Raw - New'!$F$2:$F$110000,"Exports (000's)",'Raw - New'!$J$2:$J$110000,Q$1,'Raw - New'!$E$2:$E$110000,$E22) -> 0 | R22: =SUMIFS('Raw - New'!$I$2:$I$110000,'Raw - New'!$C$2:$C$110000,$B22,'Raw - New'!$F$2:$F$110000,"Exports (000's)",'Raw - New'!$J$2:$J$110000,R$1,'Raw - New'!$E$2:$E$110000,$E22) -> 0 | S22: =SUMIFS('Raw - New'!$I$2:$I$110000,'Raw - New'!$C$2:$C$110000,$B22,'Raw - New'!$F$2:$F$110000,"Exports (000's)",'Raw - New'!$J$2:$J$110000,S$1,'Raw - New'!$E$2:$E$110000,$E22) -> 37 | T22: =SUMIFS('Raw - New'!$I$2:$I$110000,'Raw - New'!$C$2:$C$110000,$B22,'Raw - New'!$F$2:$F$110000,"Exports (000's)",'Raw - New'!$J$2:$J$110000,T$1,'Raw - New'!$E$2:$E$110000,$E22) -> 0 | U22: =SUMIFS('Raw - New'!$I$2:$I$110000,'Raw - New'!$C$2:$C$110000,$B22,'Raw - New'!$F$2:$F$110000,"Exports (000's)",'Raw - New'!$J$2:$J$110000,U$1,'Raw - New'!$E$2:$E$110000,$E22) -> 0 | V22: =SUMIFS('Raw - New'!$I$2:$I$110000,'Raw - New'!$C$2:$C$110000,$B22,'Raw - New'!$F$2:$F$110000,"Exports (000's)",'Raw - New'!$J$2:$J$110000,V$1,'Raw - New'!$E$2:$E$110000,$E22) -> 3 | W22: =SUMIFS('Raw - New'!$I$2:$I$110000,'Raw - New'!$C$2:$C$110000,$B22,'Raw - New'!$F$2:$F$110000,"Exports (000's)",'Raw - New'!$J$2:$J$110000,W$1,'Raw - New'!$E$2:$E$110000,$E22) -> 9 | X22: =SUMIFS('Raw - New'!$I$2:$I$110000,'Raw - New'!$C$2:$C$110000,$B22,'Raw - New'!$F$2:$F$110000,"Exports (000's)",'Raw - New'!$J$2:$J$110000,X$1,'Raw - New'!$E$2:$E$110000,$E22) -> 0 | Y22: =SUMIFS('Raw - New'!$I$2:$I$110000,'Raw - New'!$C$2:$C$110000,$B22,'Raw - New'!$F$2:$F$110000,"Exports (000's)",'Raw - New'!$J$2:$J$110000,Y$1,'Raw - New'!$E$2:$E$110000,$E22) -> 6 | Z22: =SUMIFS('Raw - New'!$I$2:$I$110000,'Raw - New'!$C$2:$C$110000,$B22,'Raw - New'!$F$2:$F$110000,"Exports (000's)",'Raw - New'!$J$2:$J$110000,Z$1,'Raw - New'!$E$2:$E$110000,$E22) -> 7 | AA22: 56 | AB22: 28 | AC22: 6 | AD22: 40 | AE22: 22 | AF22: =IFERROR(VLOOKUP(B22,Selection!$Y$2:$AB$107,4,FALSE),0) -> 0
A23: European Community | B23: Austria | C23: Europe and Russia | D23: 3 - Mineral fuels, lubricants & related materials | E23: 32 - Coal, coke & briquettes | F23: Austria32 - Coal, coke & briquettes | G23: =SUMIFS('Raw - New'!$I$2:$I$110000,'Raw - New'!$C$2:$C$110000,$B23,'Raw - New'!$F$2:$F$110000,"Exports (000's)",'Raw - New'!$J$2:$J$110000,G$1,'Raw - New'!$E$2:$E$110000,$E23) -> 9 | H23: =SUMIFS('Raw - New'!$I$2:$I$110000,'Raw - New'!$C$2:$C$110000,$B23,'Raw - New'!$F$2:$F$110000,"Exports (000's)",'Raw - New'!$J$2:$J$110000,H$1,'Raw - New'!$E$2:$E$110000,$E23) -> 0 | I23: =SUMIFS('Raw - New'!$I$2:$I$110000,'Raw - New'!$C$2:$C$110000,$B23,'Raw - New'!$F$2:$F$110000,"Exports (000's)",'Raw - New'!$J$2:$J$110000,I$1,'Raw - New'!$E$2:$E$110000,$E23) -> 0 | J23: =SUMIFS('Raw - New'!$I$2:$I$110000,'Raw - New'!$C$2:$C$110000,$B23,'Raw - New'!$F$2:$F$110000,"Exports (000's)",'Raw - New'!$J$2:$J$110000,J$1,'Raw - New'!$E$2:$E$110000,$E23) -> 0 | K23: =SUMIFS('Raw - New'!$I$2:$I$110000,'Raw - New'!$C$2:$C$110000,$B23,'Raw - New'!$F$2:$F$110000,"Exports (000's)",'Raw - New'!$J$2:$J$110000,K$1,'Raw - New'!$E$2:$E$110000,$E23) -> 3 | L23: =SUMIFS('Raw - New'!$I$2:$I$110000,'Raw - New'!$C$2:$C$110000,$B23,'Raw - New'!$F$2:$F$110000,"Exports (000's)",'Raw - New'!$J$2:$J$110000,L$1,'Raw - New'!$E$2:$E$110000,$E23) -> 0 | M23: =SUMIFS('Raw - New'!$I$2:$I$110000,'Raw - New'!$C$2:$C$110000,$B23,'Raw - New'!$F$2:$F$110000,"Exports (000's)",'Raw - New'!$J$2:$J$110000,M$1,'Raw - New'!$E$2:$E$110000,$E23) -> 0 | N23: =SUMIFS('Raw - New'!$I$2:$I$110000,'Raw - New'!$C$2:$C$110000,$B23,'Raw - New'!$F$2:$F$110000,"Exports (000's)",'Raw - New'!$J$2:$J$110000,N$1,'Raw - New'!$E$2:$E$110000,$E23) -> 7 | O23: =SUMIFS('Raw - New'!$I$2:$I$110000,'Raw - New'!$C$2:$C$110000,$B23,'Raw - New'!$F$2:$F$110000,"Exports (000's)",'Raw - New'!$J$2:$J$110000,O$1,'Raw - New'!$E$2:$E$110000,$E23) -> 0 | P23: =SUMIFS('Raw - New'!$I$2:$I$110000,'Raw - New'!$C$2:$C$110000,$B23,'Raw - New'!$F$2:$F$110000,"Exports (000's)",'Raw - New'!$J$2:$J$110000,P$1,'Raw - New'!$E$2:$E$110000,$E23) -> 3 | Q23: =SUMIFS('Raw - New'!$I$2:$I$110000,'Raw - New'!$C$2:$C$110000,$B23,'Raw - New'!$F$2:$F$110000,"Exports (000's)",'Raw - New'!$J$2:$J$110000,Q$1,'Raw - New'!$E$2:$E$110000,$E23) -> 0 | R23: =SUMIFS('Raw - New'!$I$2:$I$110000,'Raw - New'!$C$2:$C$110000,$B23,'Raw - New'!$F$2:$F$110000,"Exports (000's)",'Raw - New'!$J$2:$J$110000,R$1,'Raw - New'!$E$2:$E$110000,$E23) -> 0 | S23: =SUMIFS('Raw - New'!$I$2:$I$110000,'Raw - New'!$C$2:$C$110000,$B23,'Raw - New'!$F$2:$F$110000,"Exports (000's)",'Raw - New'!$J$2:$J$110000,S$1,'Raw - New'!$E$2:$E$110000,$E23) -> 0 | T23: =SUMIFS('Raw - New'!$I$2:$I$110000,'Raw - New'!$C$2:$C$110000,$B23,'Raw - New'!$F$2:$F$110000,"Exports (000's)",'Raw - New'!$J$2:$J$110000,T$1,'Raw - New'!$E$2:$E$110000,$E23) -> 0 | U23: =SUMIFS('Raw - New'!$I$2:$I$110000,'Raw - New'!$C$2:$C$110000,$B23,'Raw - New'!$F$2:$F$110000,"Exports (000's)",'Raw - New'!$J$2:$J$110000,U$1,'Raw - New'!$E$2:$E$110000,$E23) -> 0 | V23: =SUMIFS('Raw - New'!$I$2:$I$110000,'Raw - New'!$C$2:$C$110000,$B23,'Raw - New'!$F$2:$F$110000,"Exports (000's)",'Raw - New'!$J$2:$J$110000,V$1,'Raw - New'!$E$2:$E$110000,$E23) -> 0 | W23: =SUMIFS('Raw - New'!$I$2:$I$110000,'Raw - New'!$C$2:$C$110000,$B23,'Raw - New'!$F$2:$F$110000,"Exports (000's)",'Raw - New'!$J$2:$J$110000,W$1,'Raw - New'!$E$2:$E$110000,$E23) -> 0 | X23: =SUMIFS('Raw - New'!$I$2:$I$110000,'Raw - New'!$C$2:$C$110000,$B23,'Raw - New'!$F$2:$F$110000,"Exports (000's)",'Raw - New'!$J$2:$J$110000,X$1,'Raw - New'!$E$2:$E$110000,$E23) -> 0 | Y23: =SUMIFS('Raw - New'!$I$2:$I$110000,'Raw - New'!$C$2:$C$110000,$B23,'Raw - New'!$F$2:$F$110000,"Exports (000's)",'Raw - New'!$J$2:$J$110000,Y$1,'Raw - New'!$E$2:$E$110000,$E23) -> 0 | Z23: =SUMIFS('Raw - New'!$I$2:$I$110000,'Raw - New'!$C$2:$C$110000,$B23,'Raw - New'!$F$2:$F$110000,"Exports (000's)",'Raw - New'!$J$2:$J$110000,Z$1,'Raw - New'!$E$2:$E$110000,$E23) -> 0 | AA23: 9 | AB23: 10 | AC23: 3 | AD23: 0 | AE23: 0 | AF23: =IFERROR(VLOOKUP(B23,Selection!$Y$2:$AB$107,4,FALSE),0) -> 0
A24: European Community | B24: Austria | C24: Europe and Russia | D24: 3 - Mineral fuels, lubricants & related materials | E24: 33 - Petroleum, petroleum products & related materials | F24: Austria33 - Petroleum, petroleum products & related materials | G24: =SUMIFS('Raw - New'!$I$2:$I$110000,'Raw - New'!$C$2:$C$110000,$B24,'Raw - New'!$F$2:$F$110000,"Exports (000's)",'Raw - New'!$J$2:$J$110000,G$1,'Raw - New'!$E$2:$E$110000,$E24) -> 0 | H24: =SUMIFS('Raw - New'!$I$2:$I$110000,'Raw - New'!$C$2:$C$110000,$B24,'Raw - New'!$F$2:$F$110000,"Exports (000's)",'Raw - New'!$J$2:$J$110000,H$1,'Raw - New'!$E$2:$E$110000,$E24) -> 0 | I24: =SUMIFS('Raw - New'!$I$2:$I$110000,'Raw - New'!$C$2:$C$110000,$B24,'Raw - New'!$F$2:$F$110000,"Exports (000's)",'Raw - New'!$J$2:$J$110000,I$1,'Raw - New'!$E$2:$E$110000,$E24) -> 0 | J24: =SUMIFS('Raw - New'!$I$2:$I$110000,'Raw - New'!$C$2:$C$110000,$B24,'Raw - New'!$F$2:$F$110000,"Exports (000's)",'Raw - New'!$J$2:$J$110000,J$1,'Raw - New'!$E$2:$E$110000,$E24) -> 0 | K24: =SUMIFS('Raw - New'!$I$2:$I$110000,'Raw - New'!$C$2:$C$110000,$B24,'Raw - New'!$F$2:$F$110000,"Exports (000's)",'Raw - New'!$J$2:$J$110000,K$1,'Raw - New'!$E$2:$E$110000,$E24) -> 0 | L24: =SUMIFS('Raw - New'!$I$2:$I$110000,'Raw - New'!$C$2:$C$110000,$B24,'Raw - New'!$F$2:$F$110000,"Exports (000's)",'Raw - New'!$J$2:$J$110000,L$1,'Raw - New'!$E$2:$E$110000,$E24) -> 0 | M24: =SUMIFS('Raw - New'!$I$2:$I$110000,'Raw - New'!$C$2:$C$110000,$B24,'Raw - New'!$F$2:$F$110000,"Exports (000's)",'Raw - New'!$J$2:$J$110000,M$1,'Raw - New'!$E$2:$E$110000,$E24) -> 0 | N24: =SUMIFS('Raw - New'!$I$2:$I$110000,'Raw - New'!$C$2:$C$110000,$B24,'Raw - New'!$F$2:$F$110000,"Exports (000's)",'Raw - New'!$J$2:$J$110000,N$1,'Raw - New'!$E$2:$E$110000,$E24) -> 0 | O24: =SUMIFS('Raw - New'!$I$2:$I$110000,'Raw - New'!$C$2:$C$110000,$B24,'Raw - New'!$F$2:$F$110000,"Exports (000's)",'Raw - New'!$J$2:$J$110000,O$1,'Raw - New'!$E$2:$E$110000,$E24) -> 0 | P24: =SUMIFS('Raw - New'!$I$2:$I$110000,'Raw - New'!$C$2:$C$110000,$B24,'Raw - New'!$F$2:$F$110000,"Exports (000's)",'Raw - New'!$J$2:$J$110000,P$1,'Raw - New'!$E$2:$E$110000,$E24) -> 0 | Q24: =SUMIFS('Raw - New'!$I$2:$I$110000,'Raw - New'!$C$2:$C$110000,$B24,'Raw - New'!$F$2:$F$110000,"Exports (000's)",'Raw - New'!$J$2:$J$110000,Q$1,'Raw - New'!$E$2:$E$110000,$E24) -> 0 | R24: =SUMIFS('Raw - New'!$I$2:$I$110000,'Raw - New'!$C$2:$C$110000,$B24,'Raw - New'!$F$2:$F$110000,"Exports (000's)",'Raw - New'!$J$2:$J$110000,R$1,'Raw - New'!$E$2:$E$110000,$E24) -> 0 | S24: =SUMIFS('Raw - New'!$I$2:$I$110000,'Raw - New'!$C$2:$C$110000,$B24,'Raw - New'!$F$2:$F$110000,"Exports (000's)",'Raw - New'!$J$2:$J$110000,S$1,'Raw - New'!$E$2:$E$110000,$E24) -> 0 | T24: =SUMIFS('Raw - New'!$I$2:$I$110000,'Raw - New'!$C$2:$C$110000,$B24,'Raw - New'!$F$2:$F$110000,"Exports (000's)",'Raw - New'!$J$2:$J$110000,T$1,'Raw - New'!$E$2:$E$110000,$E24) -> 0 | U24: =SUMIFS('Raw - New'!$I$2:$I$110000,'Raw - New'!$C$2:$C$110000,$B24,'Raw - New'!$F$2:$F$110000,"Exports (000's)",'Raw - New'!$J$2:$J$110000,U$1,'Raw - New'!$E$2:$E$110000,$E24) -> 0 | V24: =SUMIFS('Raw - New'!$I$2:$I$110000,'Raw - New'!$C$2:$C$110000,$B24,'Raw - New'!$F$2:$F$110000,"Exports (000's)",'Raw - New'!$J$2:$J$110000,V$1,'Raw - New'!$E$2:$E$110000,$E24) -> 0 | W24: =SUMIFS('Raw - New'!$I$2:$I$110000,'Raw - New'!$C$2:$C$110000,$B24,'Raw - New'!$F$2:$F$110000,"Exports (000's)",'Raw - New'!$J$2:$J$110000,W$1,'Raw - New'!$E$2:$E$110000,$E24) -> 0 | X24: =SUMIFS('Raw - New'!$I$2:$I$110000,'Raw - New'!$C$2:$C$110000,$B24,'Raw - New'!$F$2:$F$110000,"Exports (000's)",'Raw - New'!$J$2:$J$110000,X$1,'Raw - New'!$E$2:$E$110000,$E24) -> 0 | Y24: =SUMIFS('Raw - New'!$I$2:$I$110000,'Raw - New'!$C$2:$C$110000,$B24,'Raw - New'!$F$2:$F$110000,"Exports (000's)",'Raw - New'!$J$2:$J$110000,Y$1,'Raw - New'!$E$2:$E$110000,$E24) -> 0 | Z24: =SUMIFS('Raw - New'!$I$2:$I$110000,'Raw - New'!$C$2:$C$110000,$B24,'Raw - New'!$F$2:$F$110000,"Exports (000's)",'Raw - New'!$J$2:$J$110000,Z$1,'Raw - New'!$E$2:$E$110000,$E24) -> 0 | AA24: 0 | AB24: 0 | AC24: 0 | AD24: 0 | AE24: 0 | AF24: =IFERROR(VLOOKUP(B24,Selection!$Y$2:$AB$107,4,FALSE),0) -> 0
A25: European Community | B25: Austria | C25: Europe and Russia | D25: 3 - Mineral fuels, lubricants & related materials | E25: 34 - Gas, natural & manufactured | F25: Austria34 - Gas, natural & manufactured | G25: =SUMIFS('Raw - New'!$I$2:$I$110000,'Raw - New'!$C$2:$C$110000,$B25,'Raw - New'!$F$2:$F$110000,"Exports (000's)",'Raw - New'!$J$2:$J$110000,G$1,'Raw - New'!$E$2:$E$110000,$E25) -> 0 | H25: =SUMIFS('Raw - New'!$I$2:$I$110000,'Raw - New'!$C$2:$C$110000,$B25,'Raw - New'!$F$2:$F$110000,"Exports (000's)",'Raw - New'!$J$2:$J$110000,H$1,'Raw - New'!$E$2:$E$110000,$E25) -> 0 | I25: =SUMIFS('Raw - New'!$I$2:$I$110000,'Raw - New'!$C$2:$C$110000,$B25,'Raw - New'!$F$2:$F$110000,"Exports (000's)",'Raw - New'!$J$2:$J$110000,I$1,'Raw - New'!$E$2:$E$110000,$E25) -> 0 | J25: =SUMIFS('Raw - New'!$I$2:$I$110000,'Raw - New'!$C$2:$C$110000,$B25,'Raw - New'!$F$2:$F$110000,"Exports (000's)",'Raw - New'!$J$2:$J$110000,J$1,'Raw - New'!$E$2:$E$110000,$E25) -> 0 | K25: =SUMIFS('Raw - New'!$I$2:$I$110000,'Raw - New'!$C$2:$C$110000,$B25,'Raw - New'!$F$2:$F$110000,"Exports (000's)",'Raw - New'!$J$2:$J$110000,K$1,'Raw - New'!$E$2:$E$110000,$E25) -> 0 | L25: =SUMIFS('Raw - New'!$I$2:$I$110000,'Raw - New'!$C$2:$C$110000,$B25,'Raw - New'!$F$2:$F$110000,"Exports (000's)",'Raw - New'!$J$2:$J$110000,L$1,'Raw - New'!$E$2:$E$110000,$E25) -> 0 | M25: =SUMIFS('Raw - New'!$I$2:$I$110000,'Raw - New'!$C$2:$C$110000,$B25,'Raw - New'!$F$2:$F$110000,"Exports (000's)",'Raw - New'!$J$2:$J$110000,M$1,'Raw - New'!$E$2:$E$110000,$E25) -> 0 | N25: =SUMIFS('Raw - New'!$I$2:$I$110000,'Raw - New'!$C$2:$C$110000,$B25,'Raw - New'!$F$2:$F$110000,"Exports (000's)",'Raw - New'!$J$2:$J$110000,N$1,'Raw - New'!$E$2:$E$110000,$E25) -> 0 | O25: =SUMIFS('Raw - New'!$I$2:$I$110000,'Raw - New'!$C$2:$C$110000,$B25,'Raw - New'!$F$2:$F$110000,"Exports (000's)",'Raw - New'!$J$2:$J$110000,O$1,'Raw - New'!$E$2:$E$110000,$E25) -> 0 | P25: =SUMIFS('Raw - New'!$I$2:$I$110000,'Raw - New'!$C$2:$C$110000,$B25,'Raw - New'!$F$2:$F$110000,"Exports (000's)",'Raw - New'!$J$2:$J$110000,P$1,'Raw - New'!$E$2:$E$110000,$E25) -> 0 | Q25: =SUMIFS('Raw - New'!$I$2:$I$110000,'Raw - New'!$C$2:$C$110000,$B25,'Raw - New'!$F$2:$F$110000,"Exports (000's)",'Raw - New'!$J$2:$J$110000,Q$1,'Raw - New'!$E$2:$E$110000,$E25) -> 0 | R25: =SUMIFS('Raw - New'!$I$2:$I$110000,'Raw - New'!$C$2:$C$110000,$B25,'Raw - New'!$F$2:$F$110000,"Exports (000's)",'Raw - New'!$J$2:$J$110000,R$1,'Raw - New'!$E$2:$E$110000,$E25) -> 1 | S25: =SUMIFS('Raw - New'!$I$2:$I$110000,'Raw - New'!$C$2:$C$110000,$B25,'Raw - New'!$F$2:$F$110000,"Exports (000's)",'Raw - New'!$J$2:$J$110000,S$1,'Raw - New'!$E$2:$E$110000,$E25) -> 1 | T25: =SUMIFS('Raw - New'!$I$2:$I$110000,'Raw - New'!$C$2:$C$110000,$B25,'Raw - New'!$F$2:$F$110000,"Exports (000's)",'Raw - New'!$J$2:$J$110000,T$1,'Raw - New'!$E$2:$E$110000,$E25) -> 0 | U25: =SUMIFS('Raw - New'!$I$2:$I$110000,'Raw - New'!$C$2:$C$110000,$B25,'Raw - New'!$F$2:$F$110000,"Exports (000's)",'Raw - New'!$J$2:$J$110000,U$1,'Raw - New'!$E$2:$E$110000,$E25) -> 0 | V25: =SUMIFS('Raw - New'!$I$2:$I$110000,'Raw - New'!$C$2:$C$110000,$B25,'Raw - New'!$F$2:$F$110000,"Exports (000's)",'Raw - New'!$J$2:$J$110000,V$1,'Raw - New'!$E$2:$E$110000,$E25) -> 1 | W25: =SUMIFS('Raw - New'!$I$2:$I$110000,'Raw - New'!$C$2:$C$110000,$B25,'Raw - New'!$F$2:$F$110000,"Exports (000's)",'Raw - New'!$J$2:$J$110000,W$1,'Raw - New'!$E$2:$E$110000,$E25) -> 0 | X25: =SUMIFS('Raw - New'!$I$2:$I$110000,'Raw - New'!$C$2:$C$110000,$B25,'Raw - New'!$F$2:$F$110000,"Exports (000's)",'Raw - New'!$J$2:$J$110000,X$1,'Raw - New'!$E$2:$E$110000,$E25) -> 0 | Y25: =SUMIFS('Raw - New'!$I$2:$I$110000,'Raw - New'!$C$2:$C$110000,$B25,'Raw - New'!$F$2:$F$110000,"Exports (000's)",'Raw - New'!$J$2:$J$110000,Y$1,'Raw - New'!$E$2:$E$110000,$E25) -> 0 | Z25: =SUMIFS('Raw - New'!$I$2:$I$110000,'Raw - New'!$C$2:$C$110000,$B25,'Raw - New'!$F$2:$F$110000,"Exports (000's)",'Raw - New'!$J$2:$J$110000,Z$1,'Raw - New'!$E$2:$E$110000,$E25) -> 0 | AA25: 0 | AB25: 0 | AC25: 1 | AD25: 2 | AE25: 0 | AF25: =IFERROR(VLOOKUP(B25,Selection!$Y$2:$AB$107,4,FALSE),0) -> 0
A26: European Community | B26: Austria | C26: Europe and Russia | D26: 3 - Mineral fuels, lubricants & related materials | E26: 35 - Electric Current | F26: Austria35 - Electric Current | G26: =SUMIFS('Raw - New'!$I$2:$I$110000,'Raw - New'!$C$2:$C$110000,$B26,'Raw - New'!$F$2:$F$110000,"Exports (000's)",'Raw - New'!$J$2:$J$110000,G$1,'Raw - New'!$E$2:$E$110000,$E26) -> 0 | H26: =SUMIFS('Raw - New'!$I$2:$I$110000,'Raw - New'!$C$2:$C$110000,$B26,'Raw - New'!$F$2:$F$110000,"Exports (000's)",'Raw - New'!$J$2:$J$110000,H$1,'Raw - New'!$E$2:$E$110000,$E26) -> 0 | I26: =SUMIFS('Raw - New'!$I$2:$I$110000,'Raw - New'!$C$2:$C$110000,$B26,'Raw - New'!$F$2:$F$110000,"Exports (000's)",'Raw - New'!$J$2:$J$110000,I$1,'Raw - New'!$E$2:$E$110000,$E26) -> 0 | J26: =SUMIFS('Raw - New'!$I$2:$I$110000,'Raw - New'!$C$2:$C$110000,$B26,'Raw - New'!$F$2:$F$110000,"Exports (000's)",'Raw - New'!$J$2:$J$110000,J$1,'Raw - New'!$E$2:$E$110000,$E26) -> 0 | K26: =SUMIFS('Raw - New'!$I$2:$I$110000,'Raw - New'!$C$2:$C$110000,$B26,'Raw - New'!$F$2:$F$110000,"Exports (000's)",'Raw - New'!$J$2:$J$110000,K$1,'Raw - New'!$E$2:$E$110000,$E26) -> 0 | L26: =SUMIFS('Raw - New'!$I$2:$I$110000,'Raw - New'!$C$2:$C$110000,$B26,'Raw - New'!$F$2:$F$110000,"Exports (000's)",'Raw - New'!$J$2:$J$110000,L$1,'Raw - New'!$E$2:$E$110000,$E26) -> 0 | M26: =SUMIFS('Raw - New'!$I$2:$I$110000,'Raw - New'!$C$2:$C$110000,$B26,'Raw - New'!$F$2:$F$110000,"Exports (000's)",'Raw - New'!$J$2:$J$110000,M$1,'Raw - New'!$E$2:$E$110000,$E26) -> 0 | N26: =SUMIFS('Raw - New'!$I$2:$I$110000,'Raw - New'!$C$2:$C$110000,$B26,'Raw - New'!$F$2:$F$110000,"Exports (000's)",'Raw - New'!$J$2:$J$110000,N$1,'Raw - New'!$E$2:$E$110000,$E26) -> 0 | O26: =SUMIFS('Raw - New'!$I$2:$I$110000,'Raw - New'!$C$2:$C$110000,$B26,'Raw - New'!$F$2:$F$110000,"Exports (000's)",'Raw - New'!$J$2:$J$110000,O$1,'Raw - New'!$E$2:$E$110000,$E26) -> 0 | P26: =SUMIFS('Raw - New'!$I$2:$I$110000,'Raw - New'!$C$2:$C$110000,$B26,'Raw - New'!$F$2:$F$110000,"Exports (000's)",'Raw - New'!$J$2:$J$110000,P$1,'Raw - New'!$E$2:$E$110000,$E26) -> 0 | Q26: =SUMIFS('Raw - New'!$I$2:$I$110000,'Raw - New'!$C$2:$C$110000,$B26,'Raw - New'!$F$2:$F$110000,"Exports (000's)",'Raw - New'!$J$2:$J$110000,Q$1,'Raw - New'!$E$2:$E$110000,$E26) -> 0 | R26: =SUMIFS('Raw - New'!$I$2:$I$110000,'Raw - New'!$C$2:$C$110000,$B26,'Raw - New'!$F$2:$F$110000,"Exports (000's)",'Raw - New'!$J$2:$J$110000,R$1,'Raw - New'!$E$2:$E$110000,$E26) -> 0 | S26: =SUMIFS('Raw - New'!$I$2:$I$110000,'Raw - New'!$C$2:$C$110000,$B26,'Raw - New'!$F$2:$F$110000,"Exports (000's)",'Raw - New'!$J$2:$J$110000,S$1,'Raw - New'!$E$2:$E$110000,$E26) -> 0 | T26: =SUMIFS('Raw - New'!$I$2:$I$110000,'Raw - New'!$C$2:$C$110000,$B26,'Raw - New'!$F$2:$F$110000,"Exports (000's)",'Raw - New'!$J$2:$J$110000,T$1,'Raw - New'!$E$2:$E$110000,$E26) -> 0 | U26: =SUMIFS('Raw - New'!$I$2:$I$110000,'Raw - New'!$C$2:$C$110000,$B26,'Raw - New'!$F$2:$F$110000,"Exports (000's)",'Raw - New'!$J$2:$J$110000,U$1,'Raw - New'!$E$2:$E$110000,$E26) -> 0 | V26: =SUMIFS('Raw - New'!$I$2:$I$110000,'Raw - New'!$C$2:$C$110000,$B26,'Raw - New'!$F$2:$F$110000,"Exports (000's)",'Raw - New'!$J$2:$J$110000,V$1,'Raw - New'!$E$2:$E$110000,$E26) -> 0 | W26: =SUMIFS('Raw - New'!$I$2:$I$110000,'Raw - New'!$C$2:$C$110000,$B26,'Raw - New'!$F$2:$F$110000,"Exports (000's)",'Raw - New'!$J$2:$J$110000,W$1,'Raw - New'!$E$2:$E$110000,$E26) -> 0 | X26: =SUMIFS('Raw - New'!$I$2:$I$110000,'Raw - New'!$C$2:$C$110000,$B26,'Raw - New'!$F$2:$F$110000,"Exports (000's)",'Raw - New'!$J$2:$J$110000,X$1,'Raw - New'!$E$2:$E$110000,$E26) -> 0 | Y26: =SUMIFS('Raw - New'!$I$2:$I$110000,'Raw - New'!$C$2:$C$110000,$B26,'Raw - New'!$F$2:$F$110000,"Exports (000's)",'Raw - New'!$J$2:$J$110000,Y$1,'Raw - New'!$E$2:$E$110000,$E26) -> 0 | Z26: =SUMIFS('Raw - New'!$I$2:$I$110000,'Raw - New'!$C$2:$C$110000,$B26,'Raw - New'!$F$2:$F$110000,"Exports (000's)",'Raw - New'!$J$2:$J$110000,Z$1,'Raw - New'!$E$2:$E$110000,$E26) -> 0 | AA26: 0 | AB26: 0 | AC26: 0 | AD26: 0 | AE26: 0 | AF26: =IFERROR(VLOOKUP(B26,Selection!$Y$2:$AB$107,4,FALSE),0) -> 0
A27: European Community | B27: Austria | C27: Europe and Russia | D27: 4 - Animal & vegetable oils, fats & waxes | E27: 41 - Animal oils & fats | F27: Austria41 - Animal oils & fats | G27: =SUMIFS('Raw - New'!$I$2:$I$110000,'Raw - New'!$C$2:$C$110000,$B27,'Raw - New'!$F$2:$F$110000,"Exports (000's)",'Raw - New'!$J$2:$J$110000,G$1,'Raw - New'!$E$2:$E$110000,$E27) -> 0 | H27: =SUMIFS('Raw - New'!$I$2:$I$110000,'Raw - New'!$C$2:$C$110000,$B27,'Raw - New'!$F$2:$F$110000,"Exports (000's)",'Raw - New'!$J$2:$J$110000,H$1,'Raw - New'!$E$2:$E$110000,$E27) -> 0 | I27: =SUMIFS('Raw - New'!$I$2:$I$110000,'Raw - New'!$C$2:$C$110000,$B27,'Raw - New'!$F$2:$F$110000,"Exports (000's)",'Raw - New'!$J$2:$J$110000,I$1,'Raw - New'!$E$2:$E$110000,$E27) -> 0 | J27: =SUMIFS('Raw - New'!$I$2:$I$110000,'Raw - New'!$C$2:$C$110000,$B27,'Raw - New'!$F$2:$F$110000,"Exports (000's)",'Raw - New'!$J$2:$J$110000,J$1,'Raw - New'!$E$2:$E$110000,$E27) -> 0 | K27: =SUMIFS('Raw - New'!$I$2:$I$110000,'Raw - New'!$C$2:$C$110000,$B27,'Raw - New'!$F$2:$F$110000,"Exports (000's)",'Raw - New'!$J$2:$J$110000,K$1,'Raw - New'!$E$2:$E$110000,$E27) -> 0 | L27: =SUMIFS('Raw - New'!$I$2:$I$110000,'Raw - New'!$C$2:$C$110000,$B27,'Raw - New'!$F$2:$F$110000,"Exports (000's)",'Raw - New'!$J$2:$J$110000,L$1,'Raw - New'!$E$2:$E$110000,$E27) -> 0 | M27: =SUMIFS('Raw - New'!$I$2:$I$110000,'Raw - New'!$C$2:$C$110000,$B27,'Raw - New'!$F$2:$F$110000,"Exports (000's)",'Raw - New'!$J$2:$J$110000,M$1,'Raw - New'!$E$2:$E$110000,$E27) -> 0 | N27: =SUMIFS('Raw - New'!$I$2:$I$110000,'Raw - New'!$C$2:$C$110000,$B27,'Raw - New'!$F$2:$F$110000,"Exports (000's)",'Raw - New'!$J$2:$J$110000,N$1,'Raw - New'!$E$2:$E$110000,$E27) -> 0 | O27: =SUMIFS('Raw - New'!$I$2:$I$110000,'Raw - New'!$C$2:$C$110000,$B27,'Raw - New'!$F$2:$F$110000,"Exports (000's)",'Raw - New'!$J$2:$J$110000,O$1,'Raw - New'!$E$2:$E$110000,$E27) -> 0 | P27: =SUMIFS('Raw - New'!$I$2:$I$110000,'Raw - New'!$C$2:$C$110000,$B27,'Raw - New'!$F$2:$F$110000,"Exports (000's)",'Raw - New'!$J$2:$J$110000,P$1,'Raw - New'!$E$2:$E$110000,$E27) -> 0 | Q27: =SUMIFS('Raw - New'!$I$2:$I$110000,'Raw - New'!$C$2:$C$110000,$B27,'Raw - New'!$F$2:$F$110000,"Exports (000's)",'Raw - New'!$J$2:$J$110000,Q$1,'Raw - New'!$E$2:$E$110000,$E27) -> 0 | R27: =SUMIFS('Raw - New'!$I$2:$I$110000,'Raw - New'!$C$2:$C$110000,$B27,'Raw - New'!$F$2:$F$110000,"Exports (000's)",'Raw - New'!$J$2:$J$110000,R$1,'Raw - New'!$E$2:$E$110000,$E27) -> 0 | S27: =SUMIFS('Raw - New'!$I$2:$I$110000,'Raw - New'!$C$2:$C$110000,$B27,'Raw - New'!$F$2:$F$110000,"Exports (000's)",'Raw - New'!$J$2:$J$110000,S$1,'Raw - New'!$E$2:$E$110000,$E27) -> 0 | T27: =SUMIFS('Raw - New'!$I$2:$I$110000,'Raw - New'!$C$2:$C$110000,$B27,'Raw - New'!$F$2:$F$110000,"Exports (000's)",'Raw - New'!$J$2:$J$110000,T$1,'Raw - New'!$E$2:$E$110000,$E27) -> 0 | U27: =SUMIFS('Raw - New'!$I$2:$I$110000,'Raw - New'!$C$2:$C$110000,$B27,'Raw - New'!$F$2:$F$110000,"Exports (000's)",'Raw - New'!$J$2:$J$110000,U$1,'Raw - New'!$E$2:$E$110000,$E27) -> 0 | V27: =SUMIFS('Raw - New'!$I$2:$I$110000,'Raw - New'!$C$2:$C$110000,$B27,'Raw - New'!$F$2:$F$110000,"Exports (000's)",'Raw - New'!$J$2:$J$110000,V$1,'Raw - New'!$E$2:$E$110000,$E27) -> 0 | W27: =SUMIFS('Raw - New'!$I$2:$I$110000,'Raw - New'!$C$2:$C$110000,$B27,'Raw - New'!$F$2:$F$110000,"Exports (000's)",'Raw - New'!$J$2:$J$110000,W$1,'Raw - New'!$E$2:$E$110000,$E27) -> 0 | X27: =SUMIFS('Raw - New'!$I$2:$I$110000,'Raw - New'!$C$2:$C$110000,$B27,'Raw - New'!$F$2:$F$110000,"Exports (000's)",'Raw - New'!$J$2:$J$110000,X$1,'Raw - New'!$E$2:$E$110000,$E27) -> 0 | Y27: =SUMIFS('Raw - New'!$I$2:$I$110000,'Raw - New'!$C$2:$C$110000,$B27,'Raw - New'!$F$2:$F$110000,"Exports (000's)",'Raw - New'!$J$2:$J$110000,Y$1,'Raw - New'!$E$2:$E$110000,$E27) -> 0 | Z27: =SUMIFS('Raw - New'!$I$2:$I$110000,'Raw - New'!$C$2:$C$110000,$B27,'Raw - New'!$F$2:$F$110000,"Exports (000's)",'Raw - New'!$J$2:$J$110000,Z$1,'Raw - New'!$E$2:$E$110000,$E27) -> 0 | AA27: 0 | AB27: 0 | AC27: 0 | AD27: 0 | AE27: 0 | AF27: =IFERROR(VLOOKUP(B27,Selection!$Y$2:$AB$107,4,FALSE),0) -> 0
A28: European Community | B28: Austria | C28: Europe and Russia | D28: 4 - Animal & vegetable oils, fats & waxes | E28: 42 - Fixed vegetable fats & oils, crude,refined,fractionated | F28: Austria42 - Fixed vegetable fats & oils, crude,refined,fractionated | G28: =SUMIFS('Raw - New'!$I$2:$I$110000,'Raw - New'!$C$2:$C$110000,$B28,'Raw - New'!$F$2:$F$110000,"Exports (000's)",'Raw - New'!$J$2:$J$110000,G$1,'Raw - New'!$E$2:$E$110000,$E28) -> 0 | H28: =SUMIFS('Raw - New'!$I$2:$I$110000,'Raw - New'!$C$2:$C$110000,$B28,'Raw - New'!$F$2:$F$110000,"Exports (000's)",'Raw - New'!$J$2:$J$110000,H$1,'Raw - New'!$E$2:$E$110000,$E28) -> 0 | I28: =SUMIFS('Raw - New'!$I$2:$I$110000,'Raw - New'!$C$2:$C$110000,$B28,'Raw - New'!$F$2:$F$110000,"Exports (000's)",'Raw - New'!$J$2:$J$110000,I$1,'Raw - New'!$E$2:$E$110000,$E28) -> 0 | J28: =SUMIFS('Raw - New'!$I$2:$I$110000,'Raw - New'!$C$2:$C$110000,$B28,'Raw - New'!$F$2:$F$110000,"Exports (000's)",'Raw - New'!$J$2:$J$110000,J$1,'Raw - New'!$E$2:$E$110000,$E28) -> 0 | K28: =SUMIFS('Raw - New'!$I$2:$I$110000,'Raw - New'!$C$2:$C$110000,$B28,'Raw - New'!$F$2:$F$110000,"Exports (000's)",'Raw - New'!$J$2:$J$110000,K$1,'Raw - New'!$E$2:$E$110000,$E28) -> 0 | L28: =SUMIFS('Raw - New'!$I$2:$I$110000,'Raw - New'!$C$2:$C$110000,$B28,'Raw - New'!$F$2:$F$110000,"Exports (000's)",'Raw - New'!$J$2:$J$110000,L$1,'Raw - New'!$E$2:$E$110000,$E28) -> 0 | M28: =SUMIFS('Raw - New'!$I$2:$I$110000,'Raw - New'!$C$2:$C$110000,$B28,'Raw - New'!$F$2:$F$110000,"Exports (000's)",'Raw - New'!$J$2:$J$110000,M$1,'Raw - New'!$E$2:$E$110000,$E28) -> 0 | N28: =SUMIFS('Raw - New'!$I$2:$I$110000,'Raw - New'!$C$2:$C$110000,$B28,'Raw - New'!$F$2:$F$110000,"Exports (000's)",'Raw - New'!$J$2:$J$110000,N$1,'Raw - New'!$E$2:$E$110000,$E28) -> 0 | O28: =SUMIFS('Raw - New'!$I$2:$I$110000,'Raw - New'!$C$2:$C$110000,$B28,'Raw - New'!$F$2:$F$110000,"Exports (000's)",'Raw - New'!$J$2:$J$110000,O$1,'Raw - New'!$E$2:$E$110000,$E28) -> 0 | P28: =SUMIFS('Raw - New'!$I$2:$I$110000,'Raw - New'!$C$2:$C$110000,$B28,'Raw - New'!$F$2:$F$110000,"Exports (000's)",'Raw - New'!$J$2:$J$110000,P$1,'Raw - New'!$E$2:$E$110000,$E28) -> 0 | Q28: =SUMIFS('Raw - New'!$I$2:$I$110000,'Raw - New'!$C$2:$C$110000,$B28,'Raw - New'!$F$2:$F$110000,"Exports (000's)",'Raw - New'!$J$2:$J$110000,Q$1,'Raw - New'!$E$2:$E$110000,$E28) -> 0 | R28: =SUMIFS('Raw - New'!$I$2:$I$110000,'Raw - New'!$C$2:$C$110000,$B28,'Raw - New'!$F$2:$F$110000,"Exports (000's)",'Raw - New'!$J$2:$J$110000,R$1,'Raw - New'!$E$2:$E$110000,$E28) -> 0 | S28: =SUMIFS('Raw - New'!$I$2:$I$110000,'Raw - New'!$C$2:$C$110000,$B28,'Raw - New'!$F$2:$F$110000,"Exports (000's)",'Raw - New'!$J$2:$J$110000,S$1,'Raw - New'!$E$2:$E$110000,$E28) -> 0 | T28: =SUMIFS('Raw - New'!$I$2:$I$110000,'Raw - New'!$C$2:$C$110000,$B28,'Raw - New'!$F$2:$F$110000,"Exports (000's)",'Raw - New'!$J$2:$J$110000,T$1,'Raw - New'!$E$2:$E$110000,$E28) -> 0 | U28: =SUMIFS('Raw - New'!$I$2:$I$110000,'Raw - New'!$C$2:$C$110000,$B28,'Raw - New'!$F$2:$F$110000,"Exports (000's)",'Raw - New'!$J$2:$J$110000,U$1,'Raw - New'!$E$2:$E$110000,$E28) -> 0 | V28: =SUMIFS('Raw - New'!$I$2:$I$110000,'Raw - New'!$C$2:$C$110000,$B28,'Raw - New'!$F$2:$F$110000,"Exports (000's)",'Raw - New'!$J$2:$J$110000,V$1,'Raw - New'!$E$2:$E$110000,$E28) -> 0 | W28: =SUMIFS('Raw - New'!$I$2:$I$110000,'Raw - New'!$C$2:$C$110000,$B28,'Raw - New'!$F$2:$F$110000,"Exports (000's)",'Raw - New'!$J$2:$J$110000,W$1,'Raw - New'!$E$2:$E$110000,$E28) -> 0 | X28: =SUMIFS('Raw - New'!$I$2:$I$110000,'Raw - New'!$C$2:$C$110000,$B28,'Raw - New'!$F$2:$F$110000,"Exports (000's)",'Raw - New'!$J$2:$J$110000,X$1,'Raw - New'!$E$2:$E$110000,$E28) -> 0 | Y28: =SUMIFS('Raw - New'!$I$2:$I$110000,'Raw - New'!$C$2:$C$110000,$B28,'Raw - New'!$F$2:$F$110000,"Exports (000's)",'Raw - New'!$J$2:$J$110000,Y$1,'Raw - New'!$E$2:$E$110000,$E28) -> 0 | Z28: =SUMIFS('Raw - New'!$I$2:$I$110000,'Raw - New'!$C$2:$C$110000,$B28,'Raw - New'!$F$2:$F$110000,"Exports (000's)",'Raw - New'!$J$2:$J$110000,Z$1,'Raw - New'!$E$2:$E$110000,$E28) -> 0 | AA28: 0 | AB28: 0 | AC28: 0 | AD28: 0 | AE28: 0 | AF28: =IFERROR(VLOOKUP(B28,Selection!$Y$2:$AB$107,4,FALSE),0) -> 0
A29: European Community | B29: Austria | C29: Europe and Russia | D29: 4 - Animal & vegetable oils, fats & waxes | E29: 43 - Animal or vegetable fats & oils, processed, & waxes | F29: Austria43 - Animal or vegetable fats & oils, processed, & waxes | G29: =SUMIFS('Raw - New'!$I$2:$I$110000,'Raw - New'!$C$2:$C$110000,$B29,'Raw - New'!$F$2:$F$110000,"Exports (000's)",'Raw - New'!$J$2:$J$110000,G$1,'Raw - New'!$E$2:$E$110000,$E29) -> 0 | H29: =SUMIFS('Raw - New'!$I$2:$I$110000,'Raw - New'!$C$2:$C$110000,$B29,'Raw - New'!$F$2:$F$110000,"Exports (000's)",'Raw - New'!$J$2:$J$110000,H$1,'Raw - New'!$E$2:$E$110000,$E29) -> 0 | I29: =SUMIFS('Raw - New'!$I$2:$I$110000,'Raw - New'!$C$2:$C$110000,$B29,'Raw - New'!$F$2:$F$110000,"Exports (000's)",'Raw - New'!$J$2:$J$110000,I$1,'Raw - New'!$E$2:$E$110000,$E29) -> 0 | J29: =SUMIFS('Raw - New'!$I$2:$I$110000,'Raw - New'!$C$2:$C$110000,$B29,'Raw - New'!$F$2:$F$110000,"Exports (000's)",'Raw - New'!$J$2:$J$110000,J$1,'Raw - New'!$E$2:$E$110000,$E29) -> 0 | K29: =SUMIFS('Raw - New'!$I$2:$I$110000,'Raw - New'!$C$2:$C$110000,$B29,'Raw - New'!$F$2:$F$110000,"Exports (000's)",'Raw - New'!$J$2:$J$110000,K$1,'Raw - New'!$E$2:$E$110000,$E29) -> 0 | L29: =SUMIFS('Raw - New'!$I$2:$I$110000,'Raw - New'!$C$2:$C$110000,$B29,'Raw - New'!$F$2:$F$110000,"Exports (000's)",'Raw - New'!$J$2:$J$110000,L$1,'Raw - New'!$E$2:$E$110000,$E29) -> 0 | M29: =SUMIFS('Raw - New'!$I$2:$I$110000,'Raw - New'!$C$2:$C$110000,$B29,'Raw - New'!$F$2:$F$110000,"Exports (000's)",'Raw - New'!$J$2:$J$110000,M$1,'Raw - New'!$E$2:$E$110000,$E29) -> 0 | N29: =SUMIFS('Raw - New'!$I$2:$I$110000,'Raw - New'!$C$2:$C$110000,$B29,'Raw - New'!$F$2:$F$110000,"Exports (000's)",'Raw - New'!$J$2:$J$110000,N$1,'Raw - New'!$E$2:$E$110000,$E29) -> 0 | O29: =SUMIFS('Raw - New'!$I$2:$I$110000,'Raw - New'!$C$2:$C$110000,$B29,'Raw - New'!$F$2:$F$110000,"Exports (000's)",'Raw - New'!$J$2:$J$110000,O$1,'Raw - New'!$E$2:$E$110000,$E29) -> 0 | P29: =SUMIFS('Raw - New'!$I$2:$I$110000,'Raw - New'!$C$2:$C$110000,$B29,'Raw - New'!$F$2:$F$110000,"Exports (000's)",'Raw - New'!$J$2:$J$110000,P$1,'Raw - New'!$E$2:$E$110000,$E29) -> 0 | Q29: =SUMIFS('Raw - New'!$I$2:$I$110000,'Raw - New'!$C$2:$C$110000,$B29,'Raw - New'!$F$2:$F$110000,"Exports (000's)",'Raw - New'!$J$2:$J$110000,Q$1,'Raw - New'!$E$2:$E$110000,$E29) -> 0 | R29: =SUMIFS('Raw - New'!$I$2:$I$110000,'Raw - New'!$C$2:$C$110000,$B29,'Raw - New'!$F$2:$F$110000,"Exports (000's)",'Raw - New'!$J$2:$J$110000,R$1,'Raw - New'!$E$2:$E$110000,$E29) -> 0 | S29: =SUMIFS('Raw - New'!$I$2:$I$110000,'Raw - New'!$C$2:$C$110000,$B29,'Raw - New'!$F$2:$F$110000,"Exports (000's)",'Raw - New'!$J$2:$J$110000,S$1,'Raw - New'!$E$2:$E$110000,$E29) -> 0 | T29: =SUMIFS('Raw - New'!$I$2:$I$110000,'Raw - New'!$C$2:$C$110000,$B29,'Raw - New'!$F$2:$F$110000,"Exports (000's)",'Raw - New'!$J$2:$J$110000,T$1,'Raw - New'!$E$2:$E$110000,$E29) -> 0 | U29: =SUMIFS('Raw - New'!$I$2:$I$110000,'Raw - New'!$C$2:$C$110000,$B29,'Raw - New'!$F$2:$F$110000,"Exports (000's)",'Raw - New'!$J$2:$J$110000,U$1,'Raw - New'!$E$2:$E$110000,$E29) -> 0 | V29: =SUMIFS('Raw - New'!$I$2:$I$110000,'Raw - New'!$C$2:$C$110000,$B29,'Raw - New'!$F$2:$F$110000,"Exports (000's)",'Raw - New'!$J$2:$J$110000,V$1,'Raw - New'!$E$2:$E$110000,$E29) -> 0 | W29: =SUMIFS('Raw - New'!$I$2:$I$110000,'Raw - New'!$C$2:$C$110000,$B29,'Raw - New'!$F$2:$F$110000,"Exports (000's)",'Raw - New'!$J$2:$J$110000,W$1,'Raw - New'!$E$2:$E$110000,$E29) -> 0 | X29: =SUMIFS('Raw - New'!$I$2:$I$110000,'Raw - New'!$C$2:$C$110000,$B29,'Raw - New'!$F$2:$F$110000,"Exports (000's)",'Raw - New'!$J$2:$J$110000,X$1,'Raw - New'!$E$2:$E$110000,$E29) -> 0 | Y29: =SUMIFS('Raw - New'!$I$2:$I$110000,'Raw - New'!$C$2:$C$110000,$B29,'Raw - New'!$F$2:$F$110000,"Exports (000's)",'Raw - New'!$J$2:$J$110000,Y$1,'Raw - New'!$E$2:$E$110000,$E29) -> 0 | Z29: =SUMIFS('Raw - New'!$I$2:$I$110000,'Raw - New'!$C$2:$C$110000,$B29,'Raw - New'!$F$2:$F$110000,"Exports (000's)",'Raw - New'!$J$2:$J$110000,Z$1,'Raw - New'!$E$2:$E$110000,$E29) -> 0 | AA29: 0 | AB29: 0 | AC29: 0 | AD29: 0 | AE29: 0 | AF29: =IFERROR(VLOOKUP(B29,Selection!$Y$2:$AB$107,4,FALSE),0) -> 0
A30: European Community | B30: Austria | C30: Europe and Russia | D30: 5 - Chemicals & related products, nes | E30: 51 - Organic chemicals | F30: Austria51 - Organic chemicals | G30: =SUMIFS('Raw - New'!$I$2:$I$110000,'Raw - New'!$C$2:$C$110000,$B30,'Raw - New'!$F$2:$F$110000,"Exports (000's)",'Raw - New'!$J$2:$J$110000,G$1,'Raw - New'!$E$2:$E$110000,$E30) -> 0 | H30: =SUMIFS('Raw - New'!$I$2:$I$110000,'Raw - New'!$C$2:$C$110000,$B30,'Raw - New'!$F$2:$F$110000,"Exports (000's)",'Raw - New'!$J$2:$J$110000,H$1,'Raw - New'!$E$2:$E$110000,$E30) -> 0 | I30: =SUMIFS('Raw - New'!$I$2:$I$110000,'Raw - New'!$C$2:$C$110000,$B30,'Raw - New'!$F$2:$F$110000,"Exports (000's)",'Raw - New'!$J$2:$J$110000,I$1,'Raw - New'!$E$2:$E$110000,$E30) -> 40 | J30: =SUMIFS('Raw - New'!$I$2:$I$110000,'Raw - New'!$C$2:$C$110000,$B30,'Raw - New'!$F$2:$F$110000,"Exports (000's)",'Raw - New'!$J$2:$J$110000,J$1,'Raw - New'!$E$2:$E$110000,$E30) -> 62 | K30: =SUMIFS('Raw - New'!$I$2:$I$110000,'Raw - New'!$C$2:$C$110000,$B30,'Raw - New'!$F$2:$F$110000,"Exports (000's)",'Raw - New'!$J$2:$J$110000,K$1,'Raw - New'!$E$2:$E$110000,$E30) -> 68 | L30: =SUMIFS('Raw - New'!$I$2:$I$110000,'Raw - New'!$C$2:$C$110000,$B30,'Raw - New'!$F$2:$F$110000,"Exports (000's)",'Raw - New'!$J$2:$J$110000,L$1,'Raw - New'!$E$2:$E$110000,$E30) -> 82 | M30: =SUMIFS('Raw - New'!$I$2:$I$110000,'Raw - New'!$C$2:$C$110000,$B30,'Raw - New'!$F$2:$F$110000,"Exports (000's)",'Raw - New'!$J$2:$J$110000,M$1,'Raw - New'!$E$2:$E$110000,$E30) -> 75 | N30: =SUMIFS('Raw - New'!$I$2:$I$110000,'Raw - New'!$C$2:$C$110000,$B30,'Raw - New'!$F$2:$F$110000,"Exports (000's)",'Raw - New'!$J$2:$J$110000,N$1,'Raw - New'!$E$2:$E$110000,$E30) -> 34 | O30: =SUMIFS('Raw - New'!$I$2:$I$110000,'Raw - New'!$C$2:$C$110000,$B30,'Raw - New'!$F$2:$F$110000,"Exports (000's)",'Raw - New'!$J$2:$J$110000,O$1,'Raw - New'!$E$2:$E$110000,$E30) -> 37 | P30: =SUMIFS('Raw - New'!$I$2:$I$110000,'Raw - New'!$C$2:$C$110000,$B30,'Raw - New'!$F$2:$F$110000,"Exports (000's)",'Raw - New'!$J$2:$J$110000,P$1,'Raw - New'!$E$2:$E$110000,$E30) -> 10 | Q30: =SUMIFS('Raw - New'!$I$2:$I$110000,'Raw - New'!$C$2:$C$110000,$B30,'Raw - New'!$F$2:$F$110000,"Exports (000's)",'Raw - New'!$J$2:$J$110000,Q$1,'Raw - New'!$E$2:$E$110000,$E30) -> 26 | R30: =SUMIFS('Raw - New'!$I$2:$I$110000,'Raw - New'!$C$2:$C$110000,$B30,'Raw - New'!$F$2:$F$110000,"Exports (000's)",'Raw - New'!$J$2:$J$110000,R$1,'Raw - New'!$E$2:$E$110000,$E30) -> 6 | S30: =SUMIFS('Raw - New'!$I$2:$I$110000,'Raw - New'!$C$2:$C$110000,$B30,'Raw - New'!$F$2:$F$110000,"Exports (000's)",'Raw - New'!$J$2:$J$110000,S$1,'Raw - New'!$E$2:$E$110000,$E30) -> 8 | T30: =SUMIFS('Raw - New'!$I$2:$I$110000,'Raw - New'!$C$2:$C$110000,$B30,'Raw - New'!$F$2:$F$110000,"Exports (000's)",'Raw - New'!$J$2:$J$110000,T$1,'Raw - New'!$E$2:$E$110000,$E30) -> 0 | U30: =SUMIFS('Raw - New'!$I$2:$I$110000,'Raw - New'!$C$2:$C$110000,$B30,'Raw - New'!$F$2:$F$110000,"Exports (000's)",'Raw - New'!$J$2:$J$110000,U$1,'Raw - New'!$E$2:$E$110000,$E30) -> 4 | V30: =SUMIFS('Raw - New'!$I$2:$I$110000,'Raw - New'!$C$2:$C$110000,$B30,'Raw - New'!$F$2:$F$110000,"Exports (000's)",'Raw - New'!$J$2:$J$110000,V$1,'Raw - New'!$E$2:$E$110000,$E30) -> 0 | W30: =SUMIFS('Raw - New'!$I$2:$I$110000,'Raw - New'!$C$2:$C$110000,$B30,'Raw - New'!$F$2:$F$110000,"Exports (000's)",'Raw - New'!$J$2:$J$110000,W$1,'Raw - New'!$E$2:$E$110000,$E30) -> 3 | X30: =SUMIFS('Raw - New'!$I$2:$I$110000,'Raw - New'!$C$2:$C$110000,$B30,'Raw - New'!$F$2:$F$110000,"Exports (000's)",'Raw - New'!$J$2:$J$110000,X$1,'Raw - New'!$E$2:$E$110000,$E30) -> 6 | Y30: =SUMIFS('Raw - New'!$I$2:$I$110000,'Raw - New'!$C$2:$C$110000,$B30,'Raw - New'!$F$2:$F$110000,"Exports (000's)",'Raw - New'!$J$2:$J$110000,Y$1,'Raw - New'!$E$2:$E$110000,$E30) -> 23 | Z30: =SUMIFS('Raw - New'!$I$2:$I$110000,'Raw - New'!$C$2:$C$110000,$B30,'Raw - New'!$F$2:$F$110000,"Exports (000's)",'Raw - New'!$J$2:$J$110000,Z$1,'Raw - New'!$E$2:$E$110000,$E30) -> 44 | AA30: 102 | AB30: 259 | AC30: 79 | AD30: 12 | AE30: 76 | AF30: =IFERROR(VLOOKUP(B30,Selection!$Y$2:$AB$107,4,FALSE),0) -> 0
A31: European Community | B31: Austria | C31: Europe and Russia | D31: 5 - Chemicals & related products, nes | E31: 52 - Inorganic chemicals | F31: Austria52 - Inorganic chemicals | G31: =SUMIFS('Raw - New'!$I$2:$I$110000,'Raw - New'!$C$2:$C$110000,$B31,'Raw - New'!$F$2:$F$110000,"Exports (000's)",'Raw - New'!$J$2:$J$110000,G$1,'Raw - New'!$E$2:$E$110000,$E31) -> 8 | H31: =SUMIFS('Raw - New'!$I$2:$I$110000,'Raw - New'!$C$2:$C$110000,$B31,'Raw - New'!$F$2:$F$110000,"Exports (000's)",'Raw - New'!$J$2:$J$110000,H$1,'Raw - New'!$E$2:$E$110000,$E31) -> 0 | I31: =SUMIFS('Raw - New'!$I$2:$I$110000,'Raw - New'!$C$2:$C$110000,$B31,'Raw - New'!$F$2:$F$110000,"Exports (000's)",'Raw - New'!$J$2:$J$110000,I$1,'Raw - New'!$E$2:$E$110000,$E31) -> 5 | J31: =SUMIFS('Raw - New'!$I$2:$I$110000,'Raw - New'!$C$2:$C$110000,$B31,'Raw - New'!$F$2:$F$110000,"Exports (000's)",'Raw - New'!$J$2:$J$110000,J$1,'Raw - New'!$E$2:$E$110000,$E31) -> 4 | K31: =SUMIFS('Raw - New'!$I$2:$I$110000,'Raw - New'!$C$2:$C$110000,$B31,'Raw - New'!$F$2:$F$110000,"Exports (000's)",'Raw - New'!$J$2:$J$110000,K$1,'Raw - New'!$E$2:$E$110000,$E31) -> 8 | L31: =SUMIFS('Raw - New'!$I$2:$I$110000,'Raw - New'!$C$2:$C$110000,$B31,'Raw - New'!$F$2:$F$110000,"Exports (000's)",'Raw - New'!$J$2:$J$110000,L$1,'Raw - New'!$E$2:$E$110000,$E31) -> 3 | M31: =SUMIFS('Raw - New'!$I$2:$I$110000,'Raw - New'!$C$2:$C$110000,$B31,'Raw - New'!$F$2:$F$110000,"Exports (000's)",'Raw - New'!$J$2:$J$110000,M$1,'Raw - New'!$E$2:$E$110000,$E31) -> 8 | N31: =SUMIFS('Raw - New'!$I$2:$I$110000,'Raw - New'!$C$2:$C$110000,$B31,'Raw - New'!$F$2:$F$110000,"Exports (000's)",'Raw - New'!$J$2:$J$110000,N$1,'Raw - New'!$E$2:$E$110000,$E31) -> 3 | O31: =SUMIFS('Raw - New'!$I$2:$I$110000,'Raw - New'!$C$2:$C$110000,$B31,'Raw - New'!$F$2:$F$110000,"Exports (000's)",'Raw - New'!$J$2:$J$110000,O$1,'Raw - New'!$E$2:$E$110000,$E31) -> 3 | P31: =SUMIFS('Raw - New'!$I$2:$I$110000,'Raw - New'!$C$2:$C$110000,$B31,'Raw - New'!$F$2:$F$110000,"Exports (000's)",'Raw - New'!$J$2:$J$110000,P$1,'Raw - New'!$E$2:$E$110000,$E31) -> 3 | Q31: =SUMIFS('Raw - New'!$I$2:$I$110000,'Raw - New'!$C$2:$C$110000,$B31,'Raw - New'!$F$2:$F$110000,"Exports (000's)",'Raw - New'!$J$2:$J$110000,Q$1,'Raw - New'!$E$2:$E$110000,$E31) -> 7 | R31: =SUMIFS('Raw - New'!$I$2:$I$110000,'Raw - New'!$C$2:$C$110000,$B31,'Raw - New'!$F$2:$F$110000,"Exports (000's)",'Raw - New'!$J$2:$J$110000,R$1,'Raw - New'!$E$2:$E$110000,$E31) -> 2 | S31: =SUMIFS('Raw - New'!$I$2:$I$110000,'Raw - New'!$C$2:$C$110000,$B31,'Raw - New'!$F$2:$F$110000,"Exports (000's)",'Raw - New'!$J$2:$J$110000,S$1,'Raw - New'!$E$2:$E$110000,$E31) -> 12 | T31: =SUMIFS('Raw - New'!$I$2:$I$110000,'Raw - New'!$C$2:$C$110000,$B31,'Raw - New'!$F$2:$F$110000,"Exports (000's)",'Raw - New'!$J$2:$J$110000,T$1,'Raw - New'!$E$2:$E$110000,$E31) -> 0 | U31: =SUMIFS('Raw - New'!$I$2:$I$110000,'Raw - New'!$C$2:$C$110000,$B31,'Raw - New'!$F$2:$F$110000,"Exports (000's)",'Raw - New'!$J$2:$J$110000,U$1,'Raw - New'!$E$2:$E$110000,$E31) -> 12 | V31: =SUMIFS('Raw - New'!$I$2:$I$110000,'Raw - New'!$C$2:$C$110000,$B31,'Raw - New'!$F$2:$F$110000,"Exports (000's)",'Raw - New'!$J$2:$J$110000,V$1,'Raw - New'!$E$2:$E$110000,$E31) -> 9 | W31: =SUMIFS('Raw - New'!$I$2:$I$110000,'Raw - New'!$C$2:$C$110000,$B31,'Raw - New'!$F$2:$F$110000,"Exports (000's)",'Raw - New'!$J$2:$J$110000,W$1,'Raw - New'!$E$2:$E$110000,$E31) -> 7 | X31: =SUMIFS('Raw - New'!$I$2:$I$110000,'Raw - New'!$C$2:$C$110000,$B31,'Raw - New'!$F$2:$F$110000,"Exports (000's)",'Raw - New'!$J$2:$J$110000,X$1,'Raw - New'!$E$2:$E$110000,$E31) -> 18 | Y31: =SUMIFS('Raw - New'!$I$2:$I$110000,'Raw - New'!$C$2:$C$110000,$B31,'Raw - New'!$F$2:$F$110000,"Exports (000's)",'Raw - New'!$J$2:$J$110000,Y$1,'Raw - New'!$E$2:$E$110000,$E31) -> 0 | Z31: =SUMIFS('Raw - New'!$I$2:$I$110000,'Raw - New'!$C$2:$C$110000,$B31,'Raw - New'!$F$2:$F$110000,"Exports (000's)",'Raw - New'!$J$2:$J$110000,Z$1,'Raw - New'!$E$2:$E$110000,$E31) -> 0 | AA31: 17 | AB31: 22 | AC31: 15 | AD31: 33 | AE31: 25 | AF31: =IFERROR(VLOOKUP(B31,Selection!$Y$2:$AB$107,4,FALSE),0) -> 0
A32: European Community | B32: Austria | C32: Europe and Russia | D32: 5 - Chemicals & related products, nes | E32: 53 - Dyeing, tanning & colouring materials | F32: Austria53 - Dyeing, tanning & colouring materials | G32: =SUMIFS('Raw - New'!$I$2:$I$110000,'Raw - New'!$C$2:$C$110000,$B32,'Raw - New'!$F$2:$F$110000,"Exports (000's)",'Raw - New'!$J$2:$J$110000,G$1,'Raw - New'!$E$2:$E$110000,$E32) -> 329 | H32: =SUMIFS('Raw - New'!$I$2:$I$110000,'Raw - New'!$C$2:$C$110000,$B32,'Raw - New'!$F$2:$F$110000,"Exports (000's)",'Raw - New'!$J$2:$J$110000,H$1,'Raw - New'!$E$2:$E$110000,$E32) -> 154 | I32: =SUMIFS('Raw - New'!$I$2:$I$110000,'Raw - New'!$C$2:$C$110000,$B32,'Raw - New'!$F$2:$F$110000,"Exports (000's)",'Raw - New'!$J$2:$J$110000,I$1,'Raw - New'!$E$2:$E$110000,$E32) -> 377 | J32: =SUMIFS('Raw - New'!$I$2:$I$110000,'Raw - New'!$C$2:$C$110000,$B32,'Raw - New'!$F$2:$F$110000,"Exports (000's)",'Raw - New'!$J$2:$J$110000,J$1,'Raw - New'!$E$2:$E$110000,$E32) -> 275 | K32: =SUMIFS('Raw - New'!$I$2:$I$110000,'Raw - New'!$C$2:$C$110000,$B32,'Raw - New'!$F$2:$F$110000,"Exports (000's)",'Raw - New'!$J$2:$J$110000,K$1,'Raw - New'!$E$2:$E$110000,$E32) -> 315 | L32: =SUMIFS('Raw - New'!$I$2:$I$110000,'Raw - New'!$C$2:$C$110000,$B32,'Raw - New'!$F$2:$F$110000,"Exports (000's)",'Raw - New'!$J$2:$J$110000,L$1,'Raw - New'!$E$2:$E$110000,$E32) -> 410 | M32: =SUMIFS('Raw - New'!$I$2:$I$110000,'Raw - New'!$C$2:$C$110000,$B32,'Raw - New'!$F$2:$F$110000,"Exports (000's)",'Raw - New'!$J$2:$J$110000,M$1,'Raw - New'!$E$2:$E$110000,$E32) -> 237 | N32: =SUMIFS('Raw - New'!$I$2:$I$110000,'Raw - New'!$C$2:$C$110000,$B32,'Raw - New'!$F$2:$F$110000,"Exports (000's)",'Raw - New'!$J$2:$J$110000,N$1,'Raw - New'!$E$2:$E$110000,$E32) -> 336 | O32: =SUMIFS('Raw - New'!$I$2:$I$110000,'Raw - New'!$C$2:$C$110000,$B32,'Raw - New'!$F$2:$F$110000,"Exports (000's)",'Raw - New'!$J$2:$J$110000,O$1,'Raw - New'!$E$2:$E$110000,$E32) -> 269 | P32: =SUMIFS('Raw - New'!$I$2:$I$110000,'Raw - New'!$C$2:$C$110000,$B32,'Raw - New'!$F$2:$F$110000,"Exports (000's)",'Raw - New'!$J$2:$J$110000,P$1,'Raw - New'!$E$2:$E$110000,$E32) -> 347 | Q32: =SUMIFS('Raw - New'!$I$2:$I$110000,'Raw - New'!$C$2:$C$110000,$B32,'Raw - New'!$F$2:$F$110000,"Exports (000's)",'Raw - New'!$J$2:$J$110000,Q$1,'Raw - New'!$E$2:$E$110000,$E32) -> 319 | R32: =SUMIFS('Raw - New'!$I$2:$I$110000,'Raw - New'!$C$2:$C$110000,$B32,'Raw - New'!$F$2:$F$110000,"Exports (000's)",'Raw - New'!$J$2:$J$110000,R$1,'Raw - New'!$E$2:$E$110000,$E32) -> 114 | S32: =SUMIFS('Raw - New'!$I$2:$I$110000,'Raw - New'!$C$2:$C$110000,$B32,'Raw - New'!$F$2:$F$110000,"Exports (000's)",'Raw - New'!$J$2:$J$110000,S$1,'Raw - New'!$E$2:$E$110000,$E32) -> 344 | T32: =SUMIFS('Raw - New'!$I$2:$I$110000,'Raw - New'!$C$2:$C$110000,$B32,'Raw - New'!$F$2:$F$110000,"Exports (000's)",'Raw - New'!$J$2:$J$110000,T$1,'Raw - New'!$E$2:$E$110000,$E32) -> 264 | U32: =SUMIFS('Raw - New'!$I$2:$I$110000,'Raw - New'!$C$2:$C$110000,$B32,'Raw - New'!$F$2:$F$110000,"Exports (000's)",'Raw - New'!$J$2:$J$110000,U$1,'Raw - New'!$E$2:$E$110000,$E32) -> 266 | V32: =SUMIFS('Raw - New'!$I$2:$I$110000,'Raw - New'!$C$2:$C$110000,$B32,'Raw - New'!$F$2:$F$110000,"Exports (000's)",'Raw - New'!$J$2:$J$110000,V$1,'Raw - New'!$E$2:$E$110000,$E32) -> 182 | W32: =SUMIFS('Raw - New'!$I$2:$I$110000,'Raw - New'!$C$2:$C$110000,$B32,'Raw - New'!$F$2:$F$110000,"Exports (000's)",'Raw - New'!$J$2:$J$110000,W$1,'Raw - New'!$E$2:$E$110000,$E32) -> 65 | X32: =SUMIFS('Raw - New'!$I$2:$I$110000,'Raw - New'!$C$2:$C$110000,$B32,'Raw - New'!$F$2:$F$110000,"Exports (000's)",'Raw - New'!$J$2:$J$110000,X$1,'Raw - New'!$E$2:$E$110000,$E32) -> 51 | Y32: =SUMIFS('Raw - New'!$I$2:$I$110000,'Raw - New'!$C$2:$C$110000,$B32,'Raw - New'!$F$2:$F$110000,"Exports (000's)",'Raw - New'!$J$2:$J$110000,Y$1,'Raw - New'!$E$2:$E$110000,$E32) -> 15 | Z32: =SUMIFS('Raw - New'!$I$2:$I$110000,'Raw - New'!$C$2:$C$110000,$B32,'Raw - New'!$F$2:$F$110000,"Exports (000's)",'Raw - New'!$J$2:$J$110000,Z$1,'Raw - New'!$E$2:$E$110000,$E32) -> 50 | AA32: 1135 | AB32: 1298 | AC32: 1049 | AD32: 1056 | AE32: 181 | AF32: =IFERROR(VLOOKUP(B32,Selection!$Y$2:$AB$107,4,FALSE),0) -> 0
A33: European Community | B33: Austria | C33: Europe and Russia | D33: 5 - Chemicals & related products, nes | E33: 54 - Medicinal & pharmaceutical products | F33: Austria54 - Medicinal & pharmaceutical products | G33: =SUMIFS('Raw - New'!$I$2:$I$110000,'Raw - New'!$C$2:$C$110000,$B33,'Raw - New'!$F$2:$F$110000,"Exports (000's)",'Raw - New'!$J$2:$J$110000,G$1,'Raw - New'!$E$2:$E$110000,$E33) -> 1316 | H33: =SUMIFS('Raw - New'!$I$2:$I$110000,'Raw - New'!$C$2:$C$110000,$B33,'Raw - New'!$F$2:$F$110000,"Exports (000's)",'Raw - New'!$J$2:$J$110000,H$1,'Raw - New'!$E$2:$E$110000,$E33) -> 395 | I33: =SUMIFS('Raw - New'!$I$2:$I$110000,'Raw - New'!$C$2:$C$110000,$B33,'Raw - New'!$F$2:$F$110000,"Exports (000's)",'Raw - New'!$J$2:$J$110000,I$1,'Raw - New'!$E$2:$E$110000,$E33) -> 453 | J33: =SUMIFS('Raw - New'!$I$2:$I$110000,'Raw - New'!$C$2:$C$110000,$B33,'Raw - New'!$F$2:$F$110000,"Exports (000's)",'Raw - New'!$J$2:$J$110000,J$1,'Raw - New'!$E$2:$E$110000,$E33) -> 519 | K33: =SUMIFS('Raw - New'!$I$2:$I$110000,'Raw - New'!$C$2:$C$110000,$B33,'Raw - New'!$F$2:$F$110000,"Exports (000's)",'Raw - New'!$J$2:$J$110000,K$1,'Raw - New'!$E$2:$E$110000,$E33) -> 496 | L33: =SUMIFS('Raw - New'!$I$2:$I$110000,'Raw - New'!$C$2:$C$110000,$B33,'Raw - New'!$F$2:$F$110000,"Exports (000's)",'Raw - New'!$J$2:$J$110000,L$1,'Raw - New'!$E$2:$E$110000,$E33) -> 495 | M33: =SUMIFS('Raw - New'!$I$2:$I$110000,'Raw - New'!$C$2:$C$110000,$B33,'Raw - New'!$F$2:$F$110000,"Exports (000's)",'Raw - New'!$J$2:$J$110000,M$1,'Raw - New'!$E$2:$E$110000,$E33) -> 394 | N33: =SUMIFS('Raw - New'!$I$2:$I$110000,'Raw - New'!$C$2:$C$110000,$B33,'Raw - New'!$F$2:$F$110000,"Exports (000's)",'Raw - New'!$J$2:$J$110000,N$1,'Raw - New'!$E$2:$E$110000,$E33) -> 562 | O33: =SUMIFS('Raw - New'!$I$2:$I$110000,'Raw - New'!$C$2:$C$110000,$B33,'Raw - New'!$F$2:$F$110000,"Exports (000's)",'Raw - New'!$J$2:$J$110000,O$1,'Raw - New'!$E$2:$E$110000,$E33) -> 576 | P33: =SUMIFS('Raw - New'!$I$2:$I$110000,'Raw - New'!$C$2:$C$110000,$B33,'Raw - New'!$F$2:$F$110000,"Exports (000's)",'Raw - New'!$J$2:$J$110000,P$1,'Raw - New'!$E$2:$E$110000,$E33) -> 986 | Q33: =SUMIFS('Raw - New'!$I$2:$I$110000,'Raw - New'!$C$2:$C$110000,$B33,'Raw - New'!$F$2:$F$110000,"Exports (000's)",'Raw - New'!$J$2:$J$110000,Q$1,'Raw - New'!$E$2:$E$110000,$E33) -> 647 | R33: =SUMIFS('Raw - New'!$I$2:$I$110000,'Raw - New'!$C$2:$C$110000,$B33,'Raw - New'!$F$2:$F$110000,"Exports (000's)",'Raw - New'!$J$2:$J$110000,R$1,'Raw - New'!$E$2:$E$110000,$E33) -> 594 | S33: =SUMIFS('Raw - New'!$I$2:$I$110000,'Raw - New'!$C$2:$C$110000,$B33,'Raw - New'!$F$2:$F$110000,"Exports (000's)",'Raw - New'!$J$2:$J$110000,S$1,'Raw - New'!$E$2:$E$110000,$E33) -> 297 | T33: =SUMIFS('Raw - New'!$I$2:$I$110000,'Raw - New'!$C$2:$C$110000,$B33,'Raw - New'!$F$2:$F$110000,"Exports (000's)",'Raw - New'!$J$2:$J$110000,T$1,'Raw - New'!$E$2:$E$110000,$E33) -> 524 | U33: =SUMIFS('Raw - New'!$I$2:$I$110000,'Raw - New'!$C$2:$C$110000,$B33,'Raw - New'!$F$2:$F$110000,"Exports (000's)",'Raw - New'!$J$2:$J$110000,U$1,'Raw - New'!$E$2:$E$110000,$E33) -> 527 | V33: =SUMIFS('Raw - New'!$I$2:$I$110000,'Raw - New'!$C$2:$C$110000,$B33,'Raw - New'!$F$2:$F$110000,"Exports (000's)",'Raw - New'!$J$2:$J$110000,V$1,'Raw - New'!$E$2:$E$110000,$E33) -> 630 | W33: =SUMIFS('Raw - New'!$I$2:$I$110000,'Raw - New'!$C$2:$C$110000,$B33,'Raw - New'!$F$2:$F$110000,"Exports (000's)",'Raw - New'!$J$2:$J$110000,W$1,'Raw - New'!$E$2:$E$110000,$E33) -> 730 | X33: =SUMIFS('Raw - New'!$I$2:$I$110000,'Raw - New'!$C$2:$C$110000,$B33,'Raw - New'!$F$2:$F$110000,"Exports (000's)",'Raw - New'!$J$2:$J$110000,X$1,'Raw - New'!$E$2:$E$110000,$E33) -> 740 | Y33: =SUMIFS('Raw - New'!$I$2:$I$110000,'Raw - New'!$C$2:$C$110000,$B33,'Raw - New'!$F$2:$F$110000,"Exports (000's)",'Raw - New'!$J$2:$J$110000,Y$1,'Raw - New'!$E$2:$E$110000,$E33) -> 603 | Z33: =SUMIFS('Raw - New'!$I$2:$I$110000,'Raw - New'!$C$2:$C$110000,$B33,'Raw - New'!$F$2:$F$110000,"Exports (000's)",'Raw - New'!$J$2:$J$110000,Z$1,'Raw - New'!$E$2:$E$110000,$E33) -> 568 | AA33: 2683 | AB33: 1947 | AC33: 2803 | AD33: 1978 | AE33: 2641 | AF33: =IFERROR(VLOOKUP(B33,Selection!$Y$2:$AB$107,4,FALSE),0) -> 0
A34: European Community | B34: Austria | C34: Europe and Russia | D34: 5 - Chemicals & related products, nes | E34: 55 - Essential oils & perfume materials; toilet preps etc | F34: Austria55 - Essential oils & perfume materials; toilet preps etc | G34: =SUMIFS('Raw - New'!$I$2:$I$110000,'Raw - New'!$C$2:$C$110000,$B34,'Raw - New'!$F$2:$F$110000,"Exports (000's)",'Raw - New'!$J$2:$J$110000,G$1,'Raw - New'!$E$2:$E$110000,$E34) -> 8 | H34: =SUMIFS('Raw - New'!$I$2:$I$110000,'Raw - New'!$C$2:$C$110000,$B34,'Raw - New'!$F$2:$F$110000,"Exports (000's)",'Raw - New'!$J$2:$J$110000,H$1,'Raw - New'!$E$2:$E$110000,$E34) -> 3 | I34: =SUMIFS('Raw - New'!$I$2:$I$110000,'Raw - New'!$C$2:$C$110000,$B34,'Raw - New'!$F$2:$F$110000,"Exports (000's)",'Raw - New'!$J$2:$J$110000,I$1,'Raw - New'!$E$2:$E$110000,$E34) -> 2 | J34: =SUMIFS('Raw - New'!$I$2:$I$110000,'Raw - New'!$C$2:$C$110000,$B34,'Raw - New'!$F$2:$F$110000,"Exports (000's)",'Raw - New'!$J$2:$J$110000,J$1,'Raw - New'!$E$2:$E$110000,$E34) -> 4 | K34: =SUMIFS('Raw - New'!$I$2:$I$110000,'Raw - New'!$C$2:$C$110000,$B34,'Raw - New'!$F$2:$F$110000,"Exports (000's)",'Raw - New'!$J$2:$J$110000,K$1,'Raw - New'!$E$2:$E$110000,$E34) -> 4 | L34: =SUMIFS('Raw - New'!$I$2:$I$110000,'Raw - New'!$C$2:$C$110000,$B34,'Raw - New'!$F$2:$F$110000,"Exports (000's)",'Raw - New'!$J$2:$J$110000,L$1,'Raw - New'!$E$2:$E$110000,$E34) -> 5 | M34: =SUMIFS('Raw - New'!$I$2:$I$110000,'Raw - New'!$C$2:$C$110000,$B34,'Raw - New'!$F$2:$F$110000,"Exports (000's)",'Raw - New'!$J$2:$J$110000,M$1,'Raw - New'!$E$2:$E$110000,$E34) -> 4 | N34: =SUMIFS('Raw - New'!$I$2:$I$110000,'Raw - New'!$C$2:$C$110000,$B34,'Raw - New'!$F$2:$F$110000,"Exports (000's)",'Raw - New'!$J$2:$J$110000,N$1,'Raw - New'!$E$2:$E$110000,$E34) -> 7 | O34: =SUMIFS('Raw - New'!$I$2:$I$110000,'Raw - New'!$C$2:$C$110000,$B34,'Raw - New'!$F$2:$F$110000,"Exports (000's)",'Raw - New'!$J$2:$J$110000,O$1,'Raw - New'!$E$2:$E$110000,$E34) -> 1 | P34: =SUMIFS('Raw - New'!$I$2:$I$110000,'Raw - New'!$C$2:$C$110000,$B34,'Raw - New'!$F$2:$F$110000,"Exports (000's)",'Raw - New'!$J$2:$J$110000,P$1,'Raw - New'!$E$2:$E$110000,$E34) -> 2 | Q34: =SUMIFS('Raw - New'!$I$2:$I$110000,'Raw - New'!$C$2:$C$110000,$B34,'Raw - New'!$F$2:$F$110000,"Exports (000's)",'Raw - New'!$J$2:$J$110000,Q$1,'Raw - New'!$E$2:$E$110000,$E34) -> 2 | R34: =SUMIFS('Raw - New'!$I$2:$I$110000,'Raw - New'!$C$2:$C$110000,$B34,'Raw - New'!$F$2:$F$110000,"Exports (000's)",'Raw - New'!$J$2:$J$110000,R$1,'Raw - New'!$E$2:$E$110000,$E34) -> 1 | S34: =SUMIFS('Raw - New'!$I$2:$I$110000,'Raw - New'!$C$2:$C$110000,$B34,'Raw - New'!$F$2:$F$110000,"Exports (000's)",'Raw - New'!$J$2:$J$110000,S$1,'Raw - New'!$E$2:$E$110000,$E34) -> 1 | T34: =SUMIFS('Raw - New'!$I$2:$I$110000,'Raw - New'!$C$2:$C$110000,$B34,'Raw - New'!$F$2:$F$110000,"Exports (000's)",'Raw - New'!$J$2:$J$110000,T$1,'Raw - New'!$E$2:$E$110000,$E34) -> 2 | U34: =SUMIFS('Raw - New'!$I$2:$I$110000,'Raw - New'!$C$2:$C$110000,$B34,'Raw - New'!$F$2:$F$110000,"Exports (000's)",'Raw - New'!$J$2:$J$110000,U$1,'Raw - New'!$E$2:$E$110000,$E34) -> 1 | V34: =SUMIFS('Raw - New'!$I$2:$I$110000,'Raw - New'!$C$2:$C$110000,$B34,'Raw - New'!$F$2:$F$110000,"Exports (000's)",'Raw - New'!$J$2:$J$110000,V$1,'Raw - New'!$E$2:$E$110000,$E34) -> 0 | W34: =SUMIFS('Raw - New'!$I$2:$I$110000,'Raw - New'!$C$2:$C$110000,$B34,'Raw - New'!$F$2:$F$110000,"Exports (000's)",'Raw - New'!$J$2:$J$110000,W$1,'Raw - New'!$E$2:$E$110000,$E34) -> 14 | X34: =SUMIFS('Raw - New'!$I$2:$I$110000,'Raw - New'!$C$2:$C$110000,$B34,'Raw - New'!$F$2:$F$110000,"Exports (000's)",'Raw - New'!$J$2:$J$110000,X$1,'Raw - New'!$E$2:$E$110000,$E34) -> 15 | Y34: =SUMIFS('Raw - New'!$I$2:$I$110000,'Raw - New'!$C$2:$C$110000,$B34,'Raw - New'!$F$2:$F$110000,"Exports (000's)",'Raw - New'!$J$2:$J$110000,Y$1,'Raw - New'!$E$2:$E$110000,$E34) -> 18 | Z34: =SUMIFS('Raw - New'!$I$2:$I$110000,'Raw - New'!$C$2:$C$110000,$B34,'Raw - New'!$F$2:$F$110000,"Exports (000's)",'Raw - New'!$J$2:$J$110000,Z$1,'Raw - New'!$E$2:$E$110000,$E34) -> 25 | AA34: 17 | AB34: 20 | AC34: 6 | AD34: 4 | AE34: 72 | AF34: =IFERROR(VLOOKUP(B34,Selection!$Y$2:$AB$107,4,FALSE),0) -> 0
A35: European Community | B35: Austria | C35: Europe and Russia | D35: 5 - Chemicals & related products, nes | E35: 56 - Fertilizers (other than those of group 272) | F35: Austria56 - Fertilizers (other than those of group 272) | G35: =SUMIFS('Raw - New'!$I$2:$I$110000,'Raw - New'!$C$2:$C$110000,$B35,'Raw - New'!$F$2:$F$110000,"Exports (000's)",'Raw - New'!$J$2:$J$110000,G$1,'Raw - New'!$E$2:$E$110000,$E35) -> 0 | H35: =SUMIFS('Raw - New'!$I$2:$I$110000,'Raw - New'!$C$2:$C$110000,$B35,'Raw - New'!$F$2:$F$110000,"Exports (000's)",'Raw - New'!$J$2:$J$110000,H$1,'Raw - New'!$E$2:$E$110000,$E35) -> 0 | I35: =SUMIFS('Raw - New'!$I$2:$I$110000,'Raw - New'!$C$2:$C$110000,$B35,'Raw - New'!$F$2:$F$110000,"Exports (000's)",'Raw - New'!$J$2:$J$110000,I$1,'Raw - New'!$E$2:$E$110000,$E35) -> 0 | J35: =SUMIFS('Raw - New'!$I$2:$I$110000,'Raw - New'!$C$2:$C$110000,$B35,'Raw - New'!$F$2:$F$110000,"Exports (000's)",'Raw - New'!$J$2:$J$110000,J$1,'Raw - New'!$E$2:$E$110000,$E35) -> 0 | K35: =SUMIFS('Raw - New'!$I$2:$I$110000,'Raw - New'!$C$2:$C$110000,$B35,'Raw - New'!$F$2:$F$110000,"Exports (000's)",'Raw - New'!$J$2:$J$110000,K$1,'Raw - New'!$E$2:$E$110000,$E35) -> 0 | L35: =SUMIFS('Raw - New'!$I$2:$I$110000,'Raw - New'!$C$2:$C$110000,$B35,'Raw - New'!$F$2:$F$110000,"Exports (000's)",'Raw - New'!$J$2:$J$110000,L$1,'Raw - New'!$E$2:$E$110000,$E35) -> 0 | M35: =SUMIFS('Raw - New'!$I$2:$I$110000,'Raw - New'!$C$2:$C$110000,$B35,'Raw - New'!$F$2:$F$110000,"Exports (000's)",'Raw - New'!$J$2:$J$110000,M$1,'Raw - New'!$E$2:$E$110000,$E35) -> 0 | N35: =SUMIFS('Raw - New'!$I$2:$I$110000,'Raw - New'!$C$2:$C$110000,$B35,'Raw - New'!$F$2:$F$110000,"Exports (000's)",'Raw - New'!$J$2:$J$110000,N$1,'Raw - New'!$E$2:$E$110000,$E35) -> 0 | O35: =SUMIFS('Raw - New'!$I$2:$I$110000,'Raw - New'!$C$2:$C$110000,$B35,'Raw - New'!$F$2:$F$110000,"Exports (000's)",'Raw - New'!$J$2:$J$110000,O$1,'Raw - New'!$E$2:$E$110000,$E35) -> 0 | P35: =SUMIFS('Raw - New'!$I$2:$I$110000,'Raw - New'!$C$2:$C$110000,$B35,'Raw - New'!$F$2:$F$110000,"Exports (000's)",'Raw - New'!$J$2:$J$110000,P$1,'Raw - New'!$E$2:$E$110000,$E35) -> 0 | Q35: =SUMIFS('Raw - New'!$I$2:$I$110000,'Raw - New'!$C$2:$C$110000,$B35,'Raw - New'!$F$2:$F$110000,"Exports (000's)",'Raw - New'!$J$2:$J$110000,Q$1,'Raw - New'!$E$2:$E$110000,$E35) -> 0 | R35: =SUMIFS('Raw - New'!$I$2:$I$110000,'Raw - New'!$C$2:$C$110000,$B35,'Raw - New'!$F$2:$F$110000,"Exports (000's)",'Raw - New'!$J$2:$J$110000,R$1,'Raw - New'!$E$2:$E$110000,$E35) -> 0 | S35: =SUMIFS('Raw - New'!$I$2:$I$110000,'Raw - New'!$C$2:$C$110000,$B35,'Raw - New'!$F$2:$F$110000,"Exports (000's)",'Raw - New'!$J$2:$J$110000,S$1,'Raw - New'!$E$2:$E$110000,$E35) -> 0 | T35: =SUMIFS('Raw - New'!$I$2:$I$110000,'Raw - New'!$C$2:$C$110000,$B35,'Raw - New'!$F$2:$F$110000,"Exports (000's)",'Raw - New'!$J$2:$J$110000,T$1,'Raw - New'!$E$2:$E$110000,$E35) -> 0 | U35: =SUMIFS('Raw - New'!$I$2:$I$110000,'Raw - New'!$C$2:$C$110000,$B35,'Raw - New'!$F$2:$F$110000,"Exports (000's)",'Raw - New'!$J$2:$J$110000,U$1,'Raw - New'!$E$2:$E$110000,$E35) -> 0 | V35: =SUMIFS('Raw - New'!$I$2:$I$110000,'Raw - New'!$C$2:$C$110000,$B35,'Raw - New'!$F$2:$F$110000,"Exports (000's)",'Raw - New'!$J$2:$J$110000,V$1,'Raw - New'!$E$2:$E$110000,$E35) -> 0 | W35: =SUMIFS('Raw - New'!$I$2:$I$110000,'Raw - New'!$C$2:$C$110000,$B35,'Raw - New'!$F$2:$F$110000,"Exports (000's)",'Raw - New'!$J$2:$J$110000,W$1,'Raw - New'!$E$2:$E$110000,$E35) -> 0 | X35: =SUMIFS('Raw - New'!$I$2:$I$110000,'Raw - New'!$C$2:$C$110000,$B35,'Raw - New'!$F$2:$F$110000,"Exports (000's)",'Raw - New'!$J$2:$J$110000,X$1,'Raw - New'!$E$2:$E$110000,$E35) -> 0 | Y35: =SUMIFS('Raw - New'!$I$2:$I$110000,'Raw - New'!$C$2:$C$110000,$B35,'Raw - New'!$F$2:$F$110000,"Exports (000's)",'Raw - New'!$J$2:$J$110000,Y$1,'Raw - New'!$E$2:$E$110000,$E35) -> 0 | Z35: =SUMIFS('Raw - New'!$I$2:$I$110000,'Raw - New'!$C$2:$C$110000,$B35,'Raw - New'!$F$2:$F$110000,"Exports (000's)",'Raw - New'!$J$2:$J$110000,Z$1,'Raw - New'!$E$2:$E$110000,$E35) -> 0 | AA35: 0 | AB35: 0 | AC35: 0 | AD35: 0 | AE35: 0 | AF35: =IFERROR(VLOOKUP(B35,Selection!$Y$2:$AB$107,4,FALSE),0) -> 0
A36: European Community | B36: Austria | C36: Europe and Russia | D36: 5 - Chemicals & related products, nes | E36: 57 - Plastics in primary forms | F36: Austria57 - Plastics in primary forms | G36: =SUMIFS('Raw - New'!$I$2:$I$110000,'Raw - New'!$C$2:$C$110000,$B36,'Raw - New'!$F$2:$F$110000,"Exports (000's)",'Raw - New'!$J$2:$J$110000,G$1,'Raw - New'!$E$2:$E$110000,$E36) -> 4 | H36: =SUMIFS('Raw - New'!$I$2:$I$110000,'Raw - New'!$C$2:$C$110000,$B36,'Raw - New'!$F$2:$F$110000,"Exports (000's)",'Raw - New'!$J$2:$J$110000,H$1,'Raw - New'!$E$2:$E$110000,$E36) -> 0 | I36: =SUMIFS('Raw - New'!$I$2:$I$110000,'Raw - New'!$C$2:$C$110000,$B36,'Raw - New'!$F$2:$F$110000,"Exports (000's)",'Raw - New'!$J$2:$J$110000,I$1,'Raw - New'!$E$2:$E$110000,$E36) -> 0 | J36: =SUMIFS('Raw - New'!$I$2:$I$110000,'Raw - New'!$C$2:$C$110000,$B36,'Raw - New'!$F$2:$F$110000,"Exports (000's)",'Raw - New'!$J$2:$J$110000,J$1,'Raw - New'!$E$2:$E$110000,$E36) -> 23 | K36: =SUMIFS('Raw - New'!$I$2:$I$110000,'Raw - New'!$C$2:$C$110000,$B36,'Raw - New'!$F$2:$F$110000,"Exports (000's)",'Raw - New'!$J$2:$J$110000,K$1,'Raw - New'!$E$2:$E$110000,$E36) -> 22 | L36: =SUMIFS('Raw - New'!$I$2:$I$110000,'Raw - New'!$C$2:$C$110000,$B36,'Raw - New'!$F$2:$F$110000,"Exports (000's)",'Raw - New'!$J$2:$J$110000,L$1,'Raw - New'!$E$2:$E$110000,$E36) -> 13 | M36: =SUMIFS('Raw - New'!$I$2:$I$110000,'Raw - New'!$C$2:$C$110000,$B36,'Raw - New'!$F$2:$F$110000,"Exports (000's)",'Raw - New'!$J$2:$J$110000,M$1,'Raw - New'!$E$2:$E$110000,$E36) -> 0 | N36: =SUMIFS('Raw - New'!$I$2:$I$110000,'Raw - New'!$C$2:$C$110000,$B36,'Raw - New'!$F$2:$F$110000,"Exports (000's)",'Raw - New'!$J$2:$J$110000,N$1,'Raw - New'!$E$2:$E$110000,$E36) -> 0 | O36: =SUMIFS('Raw - New'!$I$2:$I$110000,'Raw - New'!$C$2:$C$110000,$B36,'Raw - New'!$F$2:$F$110000,"Exports (000's)",'Raw - New'!$J$2:$J$110000,O$1,'Raw - New'!$E$2:$E$110000,$E36) -> 0 | P36: =SUMIFS('Raw - New'!$I$2:$I$110000,'Raw - New'!$C$2:$C$110000,$B36,'Raw - New'!$F$2:$F$110000,"Exports (000's)",'Raw - New'!$J$2:$J$110000,P$1,'Raw - New'!$E$2:$E$110000,$E36) -> 5 | Q36: =SUMIFS('Raw - New'!$I$2:$I$110000,'Raw - New'!$C$2:$C$110000,$B36,'Raw - New'!$F$2:$F$110000,"Exports (000's)",'Raw - New'!$J$2:$J$110000,Q$1,'Raw - New'!$E$2:$E$110000,$E36) -> 17 | R36: =SUMIFS('Raw - New'!$I$2:$I$110000,'Raw - New'!$C$2:$C$110000,$B36,'Raw - New'!$F$2:$F$110000,"Exports (000's)",'Raw - New'!$J$2:$J$110000,R$1,'Raw - New'!$E$2:$E$110000,$E36) -> 12 | S36: =SUMIFS('Raw - New'!$I$2:$I$110000,'Raw - New'!$C$2:$C$110000,$B36,'Raw - New'!$F$2:$F$110000,"Exports (000's)",'Raw - New'!$J$2:$J$110000,S$1,'Raw - New'!$E$2:$E$110000,$E36) -> 38 | T36: =SUMIFS('Raw - New'!$I$2:$I$110000,'Raw - New'!$C$2:$C$110000,$B36,'Raw - New'!$F$2:$F$110000,"Exports (000's)",'Raw - New'!$J$2:$J$110000,T$1,'Raw - New'!$E$2:$E$110000,$E36) -> 32 | U36: =SUMIFS('Raw - New'!$I$2:$I$110000,'Raw - New'!$C$2:$C$110000,$B36,'Raw - New'!$F$2:$F$110000,"Exports (000's)",'Raw - New'!$J$2:$J$110000,U$1,'Raw - New'!$E$2:$E$110000,$E36) -> 16 | V36: =SUMIFS('Raw - New'!$I$2:$I$110000,'Raw - New'!$C$2:$C$110000,$B36,'Raw - New'!$F$2:$F$110000,"Exports (000's)",'Raw - New'!$J$2:$J$110000,V$1,'Raw - New'!$E$2:$E$110000,$E36) -> 62 | W36: =SUMIFS('Raw - New'!$I$2:$I$110000,'Raw - New'!$C$2:$C$110000,$B36,'Raw - New'!$F$2:$F$110000,"Exports (000's)",'Raw - New'!$J$2:$J$110000,W$1,'Raw - New'!$E$2:$E$110000,$E36) -> 0 | X36: =SUMIFS('Raw - New'!$I$2:$I$110000,'Raw - New'!$C$2:$C$110000,$B36,'Raw - New'!$F$2:$F$110000,"Exports (000's)",'Raw - New'!$J$2:$J$110000,X$1,'Raw - New'!$E$2:$E$110000,$E36) -> 10 | Y36: =SUMIFS('Raw - New'!$I$2:$I$110000,'Raw - New'!$C$2:$C$110000,$B36,'Raw - New'!$F$2:$F$110000,"Exports (000's)",'Raw - New'!$J$2:$J$110000,Y$1,'Raw - New'!$E$2:$E$110000,$E36) -> 8 | Z36: =SUMIFS('Raw - New'!$I$2:$I$110000,'Raw - New'!$C$2:$C$110000,$B36,'Raw - New'!$F$2:$F$110000,"Exports (000's)",'Raw - New'!$J$2:$J$110000,Z$1,'Raw - New'!$E$2:$E$110000,$E36) -> 1 | AA36: 27 | AB36: 35 | AC36: 34 | AD36: 148 | AE36: 19 | AF36: =IFERROR(VLOOKUP(B36,Selection!$Y$2:$AB$107,4,FALSE),0) -> 0
A37: European Community | B37: Austria | C37: Europe and Russia | D37: 5 - Chemicals & related products, nes | E37: 58 - Plastics in non-primary forms | F37: Austria58 - Plastics in non-primary forms | G37: =SUMIFS('Raw - New'!$I$2:$I$110000,'Raw - New'!$C$2:$C$110000,$B37,'Raw - New'!$F$2:$F$110000,"Exports (000's)",'Raw - New'!$J$2:$J$110000,G$1,'Raw - New'!$E$2:$E$110000,$E37) -> 173 | H37: =SUMIFS('Raw - New'!$I$2:$I$110000,'Raw - New'!$C$2:$C$110000,$B37,'Raw - New'!$F$2:$F$110000,"Exports (000's)",'Raw - New'!$J$2:$J$110000,H$1,'Raw - New'!$E$2:$E$110000,$E37) -> 242 | I37: =SUMIFS('Raw - New'!$I$2:$I$110000,'Raw - New'!$C$2:$C$110000,$B37,'Raw - New'!$F$2:$F$110000,"Exports (000's)",'Raw - New'!$J$2:$J$110000,I$1,'Raw - New'!$E$2:$E$110000,$E37) -> 237 | J37: =SUMIFS('Raw - New'!$I$2:$I$110000,'Raw - New'!$C$2:$C$110000,$B37,'Raw - New'!$F$2:$F$110000,"Exports (000's)",'Raw - New'!$J$2:$J$110000,J$1,'Raw - New'!$E$2:$E$110000,$E37) -> 206 | K37: =SUMIFS('Raw - New'!$I$2:$I$110000,'Raw - New'!$C$2:$C$110000,$B37,'Raw - New'!$F$2:$F$110000,"Exports (000's)",'Raw - New'!$J$2:$J$110000,K$1,'Raw - New'!$E$2:$E$110000,$E37) -> 158 | L37: =SUMIFS('Raw - New'!$I$2:$I$110000,'Raw - New'!$C$2:$C$110000,$B37,'Raw - New'!$F$2:$F$110000,"Exports (000's)",'Raw - New'!$J$2:$J$110000,L$1,'Raw - New'!$E$2:$E$110000,$E37) -> 116 | M37: =SUMIFS('Raw - New'!$I$2:$I$110000,'Raw - New'!$C$2:$C$110000,$B37,'Raw - New'!$F$2:$F$110000,"Exports (000's)",'Raw - New'!$J$2:$J$110000,M$1,'Raw - New'!$E$2:$E$110000,$E37) -> 211 | N37: =SUMIFS('Raw - New'!$I$2:$I$110000,'Raw - New'!$C$2:$C$110000,$B37,'Raw - New'!$F$2:$F$110000,"Exports (000's)",'Raw - New'!$J$2:$J$110000,N$1,'Raw - New'!$E$2:$E$110000,$E37) -> 242 | O37: =SUMIFS('Raw - New'!$I$2:$I$110000,'Raw - New'!$C$2:$C$110000,$B37,'Raw - New'!$F$2:$F$110000,"Exports (000's)",'Raw - New'!$J$2:$J$110000,O$1,'Raw - New'!$E$2:$E$110000,$E37) -> 144 | P37: =SUMIFS('Raw - New'!$I$2:$I$110000,'Raw - New'!$C$2:$C$110000,$B37,'Raw - New'!$F$2:$F$110000,"Exports (000's)",'Raw - New'!$J$2:$J$110000,P$1,'Raw - New'!$E$2:$E$110000,$E37) -> 156 | Q37: =SUMIFS('Raw - New'!$I$2:$I$110000,'Raw - New'!$C$2:$C$110000,$B37,'Raw - New'!$F$2:$F$110000,"Exports (000's)",'Raw - New'!$J$2:$J$110000,Q$1,'Raw - New'!$E$2:$E$110000,$E37) -> 139 | R37: =SUMIFS('Raw - New'!$I$2:$I$110000,'Raw - New'!$C$2:$C$110000,$B37,'Raw - New'!$F$2:$F$110000,"Exports (000's)",'Raw - New'!$J$2:$J$110000,R$1,'Raw - New'!$E$2:$E$110000,$E37) -> 205 | S37: =SUMIFS('Raw - New'!$I$2:$I$110000,'Raw - New'!$C$2:$C$110000,$B37,'Raw - New'!$F$2:$F$110000,"Exports (000's)",'Raw - New'!$J$2:$J$110000,S$1,'Raw - New'!$E$2:$E$110000,$E37) -> 307 | T37: =SUMIFS('Raw - New'!$I$2:$I$110000,'Raw - New'!$C$2:$C$110000,$B37,'Raw - New'!$F$2:$F$110000,"Exports (000's)",'Raw - New'!$J$2:$J$110000,T$1,'Raw - New'!$E$2:$E$110000,$E37) -> 317 | U37: =SUMIFS('Raw - New'!$I$2:$I$110000,'Raw - New'!$C$2:$C$110000,$B37,'Raw - New'!$F$2:$F$110000,"Exports (000's)",'Raw - New'!$J$2:$J$110000,U$1,'Raw - New'!$E$2:$E$110000,$E37) -> 316 | V37: =SUMIFS('Raw - New'!$I$2:$I$110000,'Raw - New'!$C$2:$C$110000,$B37,'Raw - New'!$F$2:$F$110000,"Exports (000's)",'Raw - New'!$J$2:$J$110000,V$1,'Raw - New'!$E$2:$E$110000,$E37) -> 209 | W37: =SUMIFS('Raw - New'!$I$2:$I$110000,'Raw - New'!$C$2:$C$110000,$B37,'Raw - New'!$F$2:$F$110000,"Exports (000's)",'Raw - New'!$J$2:$J$110000,W$1,'Raw - New'!$E$2:$E$110000,$E37) -> 194 | X37: =SUMIFS('Raw - New'!$I$2:$I$110000,'Raw - New'!$C$2:$C$110000,$B37,'Raw - New'!$F$2:$F$110000,"Exports (000's)",'Raw - New'!$J$2:$J$110000,X$1,'Raw - New'!$E$2:$E$110000,$E37) -> 302 | Y37: =SUMIFS('Raw - New'!$I$2:$I$110000,'Raw - New'!$C$2:$C$110000,$B37,'Raw - New'!$F$2:$F$110000,"Exports (000's)",'Raw - New'!$J$2:$J$110000,Y$1,'Raw - New'!$E$2:$E$110000,$E37) -> 196 | Z37: =SUMIFS('Raw - New'!$I$2:$I$110000,'Raw - New'!$C$2:$C$110000,$B37,'Raw - New'!$F$2:$F$110000,"Exports (000's)",'Raw - New'!$J$2:$J$110000,Z$1,'Raw - New'!$E$2:$E$110000,$E37) -> 91 | AA37: 858 | AB37: 727 | AC37: 644 | AD37: 1149 | AE37: 783 | AF37: =IFERROR(VLOOKUP(B37,Selection!$Y$2:$AB$107,4,FALSE),0) -> 0
A38: European Community | B38: Austria | C38: Europe and Russia | D38: 5 - Chemicals & related products, nes | E38: 59 - Chemical materials & products n.e.s. | F38: Austria59 - Chemical materials & products n.e.s. | G38: =SUMIFS('Raw - New'!$I$2:$I$110000,'Raw - New'!$C$2:$C$110000,$B38,'Raw - New'!$F$2:$F$110000,"Exports (000's)",'Raw - New'!$J$2:$J$110000,G$1,'Raw - New'!$E$2:$E$110000,$E38) -> 448 | H38: =SUMIFS('Raw - New'!$I$2:$I$110000,'Raw - New'!$C$2:$C$110000,$B38,'Raw - New'!$F$2:$F$110000,"Exports (000's)",'Raw - New'!$J$2:$J$110000,H$1,'Raw - New'!$E$2:$E$110000,$E38) -> 231 | I38: =SUMIFS('Raw - New'!$I$2:$I$110000,'Raw - New'!$C$2:$C$110000,$B38,'Raw - New'!$F$2:$F$110000,"Exports (000's)",'Raw - New'!$J$2:$J$110000,I$1,'Raw - New'!$E$2:$E$110000,$E38) -> 207 | J38: =SUMIFS('Raw - New'!$I$2:$I$110000,'Raw - New'!$C$2:$C$110000,$B38,'Raw - New'!$F$2:$F$110000,"Exports (000's)",'Raw - New'!$J$2:$J$110000,J$1,'Raw - New'!$E$2:$E$110000,$E38) -> 212 | K38: =SUMIFS('Raw - New'!$I$2:$I$110000,'Raw - New'!$C$2:$C$110000,$B38,'Raw - New'!$F$2:$F$110000,"Exports (000's)",'Raw - New'!$J$2:$J$110000,K$1,'Raw - New'!$E$2:$E$110000,$E38) -> 157 | L38: =SUMIFS('Raw - New'!$I$2:$I$110000,'Raw - New'!$C$2:$C$110000,$B38,'Raw - New'!$F$2:$F$110000,"Exports (000's)",'Raw - New'!$J$2:$J$110000,L$1,'Raw - New'!$E$2:$E$110000,$E38) -> 112 | M38: =SUMIFS('Raw - New'!$I$2:$I$110000,'Raw - New'!$C$2:$C$110000,$B38,'Raw - New'!$F$2:$F$110000,"Exports (000's)",'Raw - New'!$J$2:$J$110000,M$1,'Raw - New'!$E$2:$E$110000,$E38) -> 64 | N38: =SUMIFS('Raw - New'!$I$2:$I$110000,'Raw - New'!$C$2:$C$110000,$B38,'Raw - New'!$F$2:$F$110000,"Exports (000's)",'Raw - New'!$J$2:$J$110000,N$1,'Raw - New'!$E$2:$E$110000,$E38) -> 80 | O38: =SUMIFS('Raw - New'!$I$2:$I$110000,'Raw - New'!$C$2:$C$110000,$B38,'Raw - New'!$F$2:$F$110000,"Exports (000's)",'Raw - New'!$J$2:$J$110000,O$1,'Raw - New'!$E$2:$E$110000,$E38) -> 48 | P38: =SUMIFS('Raw - New'!$I$2:$I$110000,'Raw - New'!$C$2:$C$110000,$B38,'Raw - New'!$F$2:$F$110000,"Exports (000's)",'Raw - New'!$J$2:$J$110000,P$1,'Raw - New'!$E$2:$E$110000,$E38) -> 17 | Q38: =SUMIFS('Raw - New'!$I$2:$I$110000,'Raw - New'!$C$2:$C$110000,$B38,'Raw - New'!$F$2:$F$110000,"Exports (000's)",'Raw - New'!$J$2:$J$110000,Q$1,'Raw - New'!$E$2:$E$110000,$E38) -> 39 | R38: =SUMIFS('Raw - New'!$I$2:$I$110000,'Raw - New'!$C$2:$C$110000,$B38,'Raw - New'!$F$2:$F$110000,"Exports (000's)",'Raw - New'!$J$2:$J$110000,R$1,'Raw - New'!$E$2:$E$110000,$E38) -> 19 | S38: =SUMIFS('Raw - New'!$I$2:$I$110000,'Raw - New'!$C$2:$C$110000,$B38,'Raw - New'!$F$2:$F$110000,"Exports (000's)",'Raw - New'!$J$2:$J$110000,S$1,'Raw - New'!$E$2:$E$110000,$E38) -> 87 | T38: =SUMIFS('Raw - New'!$I$2:$I$110000,'Raw - New'!$C$2:$C$110000,$B38,'Raw - New'!$F$2:$F$110000,"Exports (000's)",'Raw - New'!$J$2:$J$110000,T$1,'Raw - New'!$E$2:$E$110000,$E38) -> 24 | U38: =SUMIFS('Raw - New'!$I$2:$I$110000,'Raw - New'!$C$2:$C$110000,$B38,'Raw - New'!$F$2:$F$110000,"Exports (000's)",'Raw - New'!$J$2:$J$110000,U$1,'Raw - New'!$E$2:$E$110000,$E38) -> 47 | V38: =SUMIFS('Raw - New'!$I$2:$I$110000,'Raw - New'!$C$2:$C$110000,$B38,'Raw - New'!$F$2:$F$110000,"Exports (000's)",'Raw - New'!$J$2:$J$110000,V$1,'Raw - New'!$E$2:$E$110000,$E38) -> 49 | W38: =SUMIFS('Raw - New'!$I$2:$I$110000,'Raw - New'!$C$2:$C$110000,$B38,'Raw - New'!$F$2:$F$110000,"Exports (000's)",'Raw - New'!$J$2:$J$110000,W$1,'Raw - New'!$E$2:$E$110000,$E38) -> 26 | X38: =SUMIFS('Raw - New'!$I$2:$I$110000,'Raw - New'!$C$2:$C$110000,$B38,'Raw - New'!$F$2:$F$110000,"Exports (000's)",'Raw - New'!$J$2:$J$110000,X$1,'Raw - New'!$E$2:$E$110000,$E38) -> 79 | Y38: =SUMIFS('Raw - New'!$I$2:$I$110000,'Raw - New'!$C$2:$C$110000,$B38,'Raw - New'!$F$2:$F$110000,"Exports (000's)",'Raw - New'!$J$2:$J$110000,Y$1,'Raw - New'!$E$2:$E$110000,$E38) -> 93 | Z38: =SUMIFS('Raw - New'!$I$2:$I$110000,'Raw - New'!$C$2:$C$110000,$B38,'Raw - New'!$F$2:$F$110000,"Exports (000's)",'Raw - New'!$J$2:$J$110000,Z$1,'Raw - New'!$E$2:$E$110000,$E38) -> 33 | AA38: 1098 | AB38: 413 | AC38: 123 | AD38: 207 | AE38: 231 | AF38: =IFERROR(VLOOKUP(B38,Selection!$Y$2:$AB$107,4,FALSE),0) -> 0
A39: European Community | B39: Austria | C39: Europe and Russia | D39: 6 - Manufactured goods classified chiefly by material | E39: 61 - Leather, leather manufactures n.e.s & dressed furskins | F39: Austria61 - Leather, leather manufactures n.e.s & dressed furskins | G39: =SUMIFS('Raw - New'!$I$2:$I$110000,'Raw - New'!$C$2:$C$110000,$B39,'Raw - New'!$F$2:$F$110000,"Exports (000's)",'Raw - New'!$J$2:$J$110000,G$1,'Raw - New'!$E$2:$E$110000,$E39) -> 1 | H39: =SUMIFS('Raw - New'!$I$2:$I$110000,'Raw - New'!$C$2:$C$110000,$B39,'Raw - New'!$F$2:$F$110000,"Exports (000's)",'Raw - New'!$J$2:$J$110000,H$1,'Raw - New'!$E$2:$E$110000,$E39) -> 1 | I39: =SUMIFS('Raw - New'!$I$2:$I$110000,'Raw - New'!$C$2:$C$110000,$B39,'Raw - New'!$F$2:$F$110000,"Exports (000's)",'Raw - New'!$J$2:$J$110000,I$1,'Raw - New'!$E$2:$E$110000,$E39) -> 2 | J39: =SUMIFS('Raw - New'!$I$2:$I$110000,'Raw - New'!$C$2:$C$110000,$B39,'Raw - New'!$F$2:$F$110000,"Exports (000's)",'Raw - New'!$J$2:$J$110000,J$1,'Raw - New'!$E$2:$E$110000,$E39) -> 0 | K39: =SUMIFS('Raw - New'!$I$2:$I$110000,'Raw - New'!$C$2:$C$110000,$B39,'Raw - New'!$F$2:$F$110000,"Exports (000's)",'Raw - New'!$J$2:$J$110000,K$1,'Raw - New'!$E$2:$E$110000,$E39) -> 0 | L39: =SUMIFS('Raw - New'!$I$2:$I$110000,'Raw - New'!$C$2:$C$110000,$B39,'Raw - New'!$F$2:$F$110000,"Exports (000's)",'Raw - New'!$J$2:$J$110000,L$1,'Raw - New'!$E$2:$E$110000,$E39) -> 1 | M39: =SUMIFS('Raw - New'!$I$2:$I$110000,'Raw - New'!$C$2:$C$110000,$B39,'Raw - New'!$F$2:$F$110000,"Exports (000's)",'Raw - New'!$J$2:$J$110000,M$1,'Raw - New'!$E$2:$E$110000,$E39) -> 0 | N39: =SUMIFS('Raw - New'!$I$2:$I$110000,'Raw - New'!$C$2:$C$110000,$B39,'Raw - New'!$F$2:$F$110000,"Exports (000's)",'Raw - New'!$J$2:$J$110000,N$1,'Raw - New'!$E$2:$E$110000,$E39) -> 0 | O39: =SUMIFS('Raw - New'!$I$2:$I$110000,'Raw - New'!$C$2:$C$110000,$B39,'Raw - New'!$F$2:$F$110000,"Exports (000's)",'Raw - New'!$J$2:$J$110000,O$1,'Raw - New'!$E$2:$E$110000,$E39) -> 0 | P39: =SUMIFS('Raw - New'!$I$2:$I$110000,'Raw - New'!$C$2:$C$110000,$B39,'Raw - New'!$F$2:$F$110000,"Exports (000's)",'Raw - New'!$J$2:$J$110000,P$1,'Raw - New'!$E$2:$E$110000,$E39) -> 0 | Q39: =SUMIFS('Raw - New'!$I$2:$I$110000,'Raw - New'!$C$2:$C$110000,$B39,'Raw - New'!$F$2:$F$110000,"Exports (000's)",'Raw - New'!$J$2:$J$110000,Q$1,'Raw - New'!$E$2:$E$110000,$E39) -> 0 | R39: =SUMIFS('Raw - New'!$I$2:$I$110000,'Raw - New'!$C$2:$C$110000,$B39,'Raw - New'!$F$2:$F$110000,"Exports (000's)",'Raw - New'!$J$2:$J$110000,R$1,'Raw - New'!$E$2:$E$110000,$E39) -> 0 | S39: =SUMIFS('Raw - New'!$I$2:$I$110000,'Raw - New'!$C$2:$C$110000,$B39,'Raw - New'!$F$2:$F$110000,"Exports (000's)",'Raw - New'!$J$2:$J$110000,S$1,'Raw - New'!$E$2:$E$110000,$E39) -> 0 | T39: =SUMIFS('Raw - New'!$I$2:$I$110000,'Raw - New'!$C$2:$C$110000,$B39,'Raw - New'!$F$2:$F$110000,"Exports (000's)",'Raw - New'!$J$2:$J$110000,T$1,'Raw - New'!$E$2:$E$110000,$E39) -> 0 | U39: =SUMIFS('Raw - New'!$I$2:$I$110000,'Raw - New'!$C$2:$C$110000,$B39,'Raw - New'!$F$2:$F$110000,"Exports (000's)",'Raw - New'!$J$2:$J$110000,U$1,'Raw - New'!$E$2:$E$110000,$E39) -> 0 | V39: =SUMIFS('Raw - New'!$I$2:$I$110000,'Raw - New'!$C$2:$C$110000,$B39,'Raw - New'!$F$2:$F$110000,"Exports (000's)",'Raw - New'!$J$2:$J$110000,V$1,'Raw - New'!$E$2:$E$110000,$E39) -> 0 | W39: =SUMIFS('Raw - New'!$I$2:$I$110000,'Raw - New'!$C$2:$C$110000,$B39,'Raw - New'!$F$2:$F$110000,"Exports (000's)",'Raw - New'!$J$2:$J$110000,W$1,'Raw - New'!$E$2:$E$110000,$E39) -> 0 | X39: =SUMIFS('Raw - New'!$I$2:$I$110000,'Raw - New'!$C$2:$C$110000,$B39,'Raw - New'!$F$2:$F$110000,"Exports (000's)",'Raw - New'!$J$2:$J$110000,X$1,'Raw - New'!$E$2:$E$110000,$E39) -> 0 | Y39: =SUMIFS('Raw - New'!$I$2:$I$110000,'Raw - New'!$C$2:$C$110000,$B39,'Raw - New'!$F$2:$F$110000,"Exports (000's)",'Raw - New'!$J$2:$J$110000,Y$1,'Raw - New'!$E$2:$E$110000,$E39) -> 0 | Z39: =SUMIFS('Raw - New'!$I$2:$I$110000,'Raw - New'!$C$2:$C$110000,$B39,'Raw - New'!$F$2:$F$110000,"Exports (000's)",'Raw - New'!$J$2:$J$110000,Z$1,'Raw - New'!$E$2:$E$110000,$E39) -> 0 | AA39: 4 | AB39: 1 | AC39: 0 | AD39: 0 | AE39: 0 | AF39: =IFERROR(VLOOKUP(B39,Selection!$Y$2:$AB$107,4,FALSE),0) -> 0
A40: European Community | B40: Austria | C40: Europe and Russia | D40: 6 - Manufactured goods classified chiefly by material | E40: 62 - Rubber manufactures n.e.s. | F40: Austria62 - Rubber manufactures n.e.s. | G40: =SUMIFS('Raw - New'!$I$2:$I$110000,'Raw - New'!$C$2:$C$110000,$B40,'Raw - New'!$F$2:$F$110000,"Exports (000's)",'Raw - New'!$J$2:$J$110000,G$1,'Raw - New'!$E$2:$E$110000,$E40) -> 52 | H40: =SUMIFS('Raw - New'!$I$2:$I$110000,'Raw - New'!$C$2:$C$110000,$B40,'Raw - New'!$F$2:$F$110000,"Exports (000's)",'Raw - New'!$J$2:$J$110000,H$1,'Raw - New'!$E$2:$E$110000,$E40) -> 92 | I40: =SUMIFS('Raw - New'!$I$2:$I$110000,'Raw - New'!$C$2:$C$110000,$B40,'Raw - New'!$F$2:$F$110000,"Exports (000's)",'Raw - New'!$J$2:$J$110000,I$1,'Raw - New'!$E$2:$E$110000,$E40) -> 45 | J40: =SUMIFS('Raw - New'!$I$2:$I$110000,'Raw - New'!$C$2:$C$110000,$B40,'Raw - New'!$F$2:$F$110000,"Exports (000's)",'Raw - New'!$J$2:$J$110000,J$1,'Raw - New'!$E$2:$E$110000,$E40) -> 65 | K40: =SUMIFS('Raw - New'!$I$2:$I$110000,'Raw - New'!$C$2:$C$110000,$B40,'Raw - New'!$F$2:$F$110000,"Exports (000's)",'Raw - New'!$J$2:$J$110000,K$1,'Raw - New'!$E$2:$E$110000,$E40) -> 21 | L40: =SUMIFS('Raw - New'!$I$2:$I$110000,'Raw - New'!$C$2:$C$110000,$B40,'Raw - New'!$F$2:$F$110000,"Exports (000's)",'Raw - New'!$J$2:$J$110000,L$1,'Raw - New'!$E$2:$E$110000,$E40) -> 37 | M40: =SUMIFS('Raw - New'!$I$2:$I$110000,'Raw - New'!$C$2:$C$110000,$B40,'Raw - New'!$F$2:$F$110000,"Exports (000's)",'Raw - New'!$J$2:$J$110000,M$1,'Raw - New'!$E$2:$E$110000,$E40) -> 22 | N40: =SUMIFS('Raw - New'!$I$2:$I$110000,'Raw - New'!$C$2:$C$110000,$B40,'Raw - New'!$F$2:$F$110000,"Exports (000's)",'Raw - New'!$J$2:$J$110000,N$1,'Raw - New'!$E$2:$E$110000,$E40) -> 7 | O40: =SUMIFS('Raw - New'!$I$2:$I$110000,'Raw - New'!$C$2:$C$110000,$B40,'Raw - New'!$F$2:$F$110000,"Exports (000's)",'Raw - New'!$J$2:$J$110000,O$1,'Raw - New'!$E$2:$E$110000,$E40) -> 54 | P40: =SUMIFS('Raw - New'!$I$2:$I$110000,'Raw - New'!$C$2:$C$110000,$B40,'Raw - New'!$F$2:$F$110000,"Exports (000's)",'Raw - New'!$J$2:$J$110000,P$1,'Raw - New'!$E$2:$E$110000,$E40) -> 71 | Q40: =SUMIFS('Raw - New'!$I$2:$I$110000,'Raw - New'!$C$2:$C$110000,$B40,'Raw - New'!$F$2:$F$110000,"Exports (000's)",'Raw - New'!$J$2:$J$110000,Q$1,'Raw - New'!$E$2:$E$110000,$E40) -> 115 | R40: =SUMIFS('Raw - New'!$I$2:$I$110000,'Raw - New'!$C$2:$C$110000,$B40,'Raw - New'!$F$2:$F$110000,"Exports (000's)",'Raw - New'!$J$2:$J$110000,R$1,'Raw - New'!$E$2:$E$110000,$E40) -> 81 | S40: =SUMIFS('Raw - New'!$I$2:$I$110000,'Raw - New'!$C$2:$C$110000,$B40,'Raw - New'!$F$2:$F$110000,"Exports (000's)",'Raw - New'!$J$2:$J$110000,S$1,'Raw - New'!$E$2:$E$110000,$E40) -> 98 | T40: =SUMIFS('Raw - New'!$I$2:$I$110000,'Raw - New'!$C$2:$C$110000,$B40,'Raw - New'!$F$2:$F$110000,"Exports (000's)",'Raw - New'!$J$2:$J$110000,T$1,'Raw - New'!$E$2:$E$110000,$E40) -> 67 | U40: =SUMIFS('Raw - New'!$I$2:$I$110000,'Raw - New'!$C$2:$C$110000,$B40,'Raw - New'!$F$2:$F$110000,"Exports (000's)",'Raw - New'!$J$2:$J$110000,U$1,'Raw - New'!$E$2:$E$110000,$E40) -> 169 | V40: =SUMIFS('Raw - New'!$I$2:$I$110000,'Raw - New'!$C$2:$C$110000,$B40,'Raw - New'!$F$2:$F$110000,"Exports (000's)",'Raw - New'!$J$2:$J$110000,V$1,'Raw - New'!$E$2:$E$110000,$E40) -> 158 | W40: =SUMIFS('Raw - New'!$I$2:$I$110000,'Raw - New'!$C$2:$C$110000,$B40,'Raw - New'!$F$2:$F$110000,"Exports (000's)",'Raw - New'!$J$2:$J$110000,W$1,'Raw - New'!$E$2:$E$110000,$E40) -> 147 | X40: =SUMIFS('Raw - New'!$I$2:$I$110000,'Raw - New'!$C$2:$C$110000,$B40,'Raw - New'!$F$2:$F$110000,"Exports (000's)",'Raw - New'!$J$2:$J$110000,X$1,'Raw - New'!$E$2:$E$110000,$E40) -> 178 | Y40: =SUMIFS('Raw - New'!$I$2:$I$110000,'Raw - New'!$C$2:$C$110000,$B40,'Raw - New'!$F$2:$F$110000,"Exports (000's)",'Raw - New'!$J$2:$J$110000,Y$1,'Raw - New'!$E$2:$E$110000,$E40) -> 162 | Z40: =SUMIFS('Raw - New'!$I$2:$I$110000,'Raw - New'!$C$2:$C$110000,$B40,'Raw - New'!$F$2:$F$110000,"Exports (000's)",'Raw - New'!$J$2:$J$110000,Z$1,'Raw - New'!$E$2:$E$110000,$E40) -> 51 | AA40: 254 | AB40: 87 | AC40: 321 | AD40: 492 | AE40: 538 | AF40: =IFERROR(VLOOKUP(B40,Selection!$Y$2:$AB$107,4,FALSE),0) -> 0
A41: European Community | B41: Austria | C41: Europe and Russia | D41: 6 - Manufactured goods classified chiefly by material | E41: 63 - Cork & wood manufactures (excluding furniture) | F41: Austria63 - Cork & wood manufactures (excluding furniture) | G41: =SUMIFS('Raw - New'!$I$2:$I$110000,'Raw - New'!$C$2:$C$110000,$B41,'Raw - New'!$F$2:$F$110000,"Exports (000's)",'Raw - New'!$J$2:$J$110000,G$1,'Raw - New'!$E$2:$E$110000,$E41) -> 0 | H41: =SUMIFS('Raw - New'!$I$2:$I$110000,'Raw - New'!$C$2:$C$110000,$B41,'Raw - New'!$F$2:$F$110000,"Exports (000's)",'Raw - New'!$J$2:$J$110000,H$1,'Raw - New'!$E$2:$E$110000,$E41) -> 0 | I41: =SUMIFS('Raw - New'!$I$2:$I$110000,'Raw - New'!$C$2:$C$110000,$B41,'Raw - New'!$F$2:$F$110000,"Exports (000's)",'Raw - New'!$J$2:$J$110000,I$1,'Raw - New'!$E$2:$E$110000,$E41) -> 0 | J41: =SUMIFS('Raw - New'!$I$2:$I$110000,'Raw - New'!$C$2:$C$110000,$B41,'Raw - New'!$F$2:$F$110000,"Exports (000's)",'Raw - New'!$J$2:$J$110000,J$1,'Raw - New'!$E$2:$E$110000,$E41) -> 0 | K41: =SUMIFS('Raw - New'!$I$2:$I$110000,'Raw - New'!$C$2:$C$110000,$B41,'Raw - New'!$F$2:$F$110000,"Exports (000's)",'Raw - New'!$J$2:$J$110000,K$1,'Raw - New'!$E$2:$E$110000,$E41) -> 0 | L41: =SUMIFS('Raw - New'!$I$2:$I$110000,'Raw - New'!$C$2:$C$110000,$B41,'Raw - New'!$F$2:$F$110000,"Exports (000's)",'Raw - New'!$J$2:$J$110000,L$1,'Raw - New'!$E$2:$E$110000,$E41) -> 0 | M41: =SUMIFS('Raw - New'!$I$2:$I$110000,'Raw - New'!$C$2:$C$110000,$B41,'Raw - New'!$F$2:$F$110000,"Exports (000's)",'Raw - New'!$J$2:$J$110000,M$1,'Raw - New'!$E$2:$E$110000,$E41) -> 0 | N41: =SUMIFS('Raw - New'!$I$2:$I$110000,'Raw - New'!$C$2:$C$110000,$B41,'Raw - New'!$F$2:$F$110000,"Exports (000's)",'Raw - New'!$J$2:$J$110000,N$1,'Raw - New'!$E$2:$E$110000,$E41) -> 0 | O41: =SUMIFS('Raw - New'!$I$2:$I$110000,'Raw - New'!$C$2:$C$110000,$B41,'Raw - New'!$F$2:$F$110000,"Exports (000's)",'Raw - New'!$J$2:$J$110000,O$1,'Raw - New'!$E$2:$E$110000,$E41) -> 0 | P41: =SUMIFS('Raw - New'!$I$2:$I$110000,'Raw - New'!$C$2:$C$110000,$B41,'Raw - New'!$F$2:$F$110000,"Exports (000's)",'Raw - New'!$J$2:$J$110000,P$1,'Raw - New'!$E$2:$E$110000,$E41) -> 0 | Q41: =SUMIFS('Raw - New'!$I$2:$I$110000,'Raw - New'!$C$2:$C$110000,$B41,'Raw - New'!$F$2:$F$110000,"Exports (000's)",'Raw - New'!$J$2:$J$110000,Q$1,'Raw - New'!$E$2:$E$110000,$E41) -> 0 | R41: =SUMIFS('Raw - New'!$I$2:$I$110000,'Raw - New'!$C$2:$C$110000,$B41,'Raw - New'!$F$2:$F$110000,"Exports (000's)",'Raw - New'!$J$2:$J$110000,R$1,'Raw - New'!$E$2:$E$110000,$E41) -> 0 | S41: =SUMIFS('Raw - New'!$I$2:$I$110000,'Raw - New'!$C$2:$C$110000,$B41,'Raw - New'!$F$2:$F$110000,"Exports (000's)",'Raw - New'!$J$2:$J$110000,S$1,'Raw - New'!$E$2:$E$110000,$E41) -> 0 | T41: =SUMIFS('Raw - New'!$I$2:$I$110000,'Raw - New'!$C$2:$C$110000,$B41,'Raw - New'!$F$2:$F$110000,"Exports (000's)",'Raw - New'!$J$2:$J$110000,T$1,'Raw - New'!$E$2:$E$110000,$E41) -> 0 | U41: =SUMIFS('Raw - New'!$I$2:$I$110000,'Raw - New'!$C$2:$C$110000,$B41,'Raw - New'!$F$2:$F$110000,"Exports (000's)",'Raw - New'!$J$2:$J$110000,U$1,'Raw - New'!$E$2:$E$110000,$E41) -> 0 | V41: =SUMIFS('Raw - New'!$I$2:$I$110000,'Raw - New'!$C$2:$C$110000,$B41,'Raw - New'!$F$2:$F$110000,"Exports (000's)",'Raw - New'!$J$2:$J$110000,V$1,'Raw - New'!$E$2:$E$110000,$E41) -> 0 | W41: =SUMIFS('Raw - New'!$I$2:$I$110000,'Raw - New'!$C$2:$C$110000,$B41,'Raw - New'!$F$2:$F$110000,"Exports (000's)",'Raw - New'!$J$2:$J$110000,W$1,'Raw - New'!$E$2:$E$110000,$E41) -> 0 | X41: =SUMIFS('Raw - New'!$I$2:$I$110000,'Raw - New'!$C$2:$C$110000,$B41,'Raw - New'!$F$2:$F$110000,"Exports (000's)",'Raw - New'!$J$2:$J$110000,X$1,'Raw - New'!$E$2:$E$110000,$E41) -> 0 | Y41: =SUMIFS('Raw - New'!$I$2:$I$110000,'Raw - New'!$C$2:$C$110000,$B41,'Raw - New'!$F$2:$F$110000,"Exports (000's)",'Raw - New'!$J$2:$J$110000,Y$1,'Raw - New'!$E$2:$E$110000,$E41) -> 0 | Z41: =SUMIFS('Raw - New'!$I$2:$I$110000,'Raw - New'!$C$2:$C$110000,$B41,'Raw - New'!$F$2:$F$110000,"Exports (000's)",'Raw - New'!$J$2:$J$110000,Z$1,'Raw - New'!$E$2:$E$110000,$E41) -> 0 | AA41: 0 | AB41: 0 | AC41: 0 | AD41: 0 | AE41: 0 | AF41: =IFERROR(VLOOKUP(B41,Selection!$Y$2:$AB$107,4,FALSE),0) -> 0
A42: European Community | B42: Austria | C42: Europe and Russia | D42: 6 - Manufactured goods classified chiefly by material | E42: 64 - Paper, paperboard & manufactures thereof | F42: Austria64 - Paper, paperboard & manufactures thereof | G42: =SUMIFS('Raw - New'!$I$2:$I$110000,'Raw - New'!$C$2:$C$110000,$B42,'Raw - New'!$F$2:$F$110000,"Exports (000's)",'Raw - New'!$J$2:$J$110000,G$1,'Raw - New'!$E$2:$E$110000,$E42) -> 1 | H42: =SUMIFS('Raw - New'!$I$2:$I$110000,'Raw - New'!$C$2:$C$110000,$B42,'Raw - New'!$F$2:$F$110000,"Exports (000's)",'Raw - New'!$J$2:$J$110000,H$1,'Raw - New'!$E$2:$E$110000,$E42) -> 1 | I42: =SUMIFS('Raw - New'!$I$2:$I$110000,'Raw - New'!$C$2:$C$110000,$B42,'Raw - New'!$F$2:$F$110000,"Exports (000's)",'Raw - New'!$J$2:$J$110000,I$1,'Raw - New'!$E$2:$E$110000,$E42) -> 1 | J42: =SUMIFS('Raw - New'!$I$2:$I$110000,'Raw - New'!$C$2:$C$110000,$B42,'Raw - New'!$F$2:$F$110000,"Exports (000's)",'Raw - New'!$J$2:$J$110000,J$1,'Raw - New'!$E$2:$E$110000,$E42) -> 2 | K42: =SUMIFS('Raw - New'!$I$2:$I$110000,'Raw - New'!$C$2:$C$110000,$B42,'Raw - New'!$F$2:$F$110000,"Exports (000's)",'Raw - New'!$J$2:$J$110000,K$1,'Raw - New'!$E$2:$E$110000,$E42) -> 45 | L42: =SUMIFS('Raw - New'!$I$2:$I$110000,'Raw - New'!$C$2:$C$110000,$B42,'Raw - New'!$F$2:$F$110000,"Exports (000's)",'Raw - New'!$J$2:$J$110000,L$1,'Raw - New'!$E$2:$E$110000,$E42) -> 70 | M42: =SUMIFS('Raw - New'!$I$2:$I$110000,'Raw - New'!$C$2:$C$110000,$B42,'Raw - New'!$F$2:$F$110000,"Exports (000's)",'Raw - New'!$J$2:$J$110000,M$1,'Raw - New'!$E$2:$E$110000,$E42) -> 167 | N42: =SUMIFS('Raw - New'!$I$2:$I$110000,'Raw - New'!$C$2:$C$110000,$B42,'Raw - New'!$F$2:$F$110000,"Exports (000's)",'Raw - New'!$J$2:$J$110000,N$1,'Raw - New'!$E$2:$E$110000,$E42) -> 25 | O42: =SUMIFS('Raw - New'!$I$2:$I$110000,'Raw - New'!$C$2:$C$110000,$B42,'Raw - New'!$F$2:$F$110000,"Exports (000's)",'Raw - New'!$J$2:$J$110000,O$1,'Raw - New'!$E$2:$E$110000,$E42) -> 0 | P42: =SUMIFS('Raw - New'!$I$2:$I$110000,'Raw - New'!$C$2:$C$110000,$B42,'Raw - New'!$F$2:$F$110000,"Exports (000's)",'Raw - New'!$J$2:$J$110000,P$1,'Raw - New'!$E$2:$E$110000,$E42) -> 0 | Q42: =SUMIFS('Raw - New'!$I$2:$I$110000,'Raw - New'!$C$2:$C$110000,$B42,'Raw - New'!$F$2:$F$110000,"Exports (000's)",'Raw - New'!$J$2:$J$110000,Q$1,'Raw - New'!$E$2:$E$110000,$E42) -> 10 | R42: =SUMIFS('Raw - New'!$I$2:$I$110000,'Raw - New'!$C$2:$C$110000,$B42,'Raw - New'!$F$2:$F$110000,"Exports (000's)",'Raw - New'!$J$2:$J$110000,R$1,'Raw - New'!$E$2:$E$110000,$E42) -> 0 | S42: =SUMIFS('Raw - New'!$I$2:$I$110000,'Raw - New'!$C$2:$C$110000,$B42,'Raw - New'!$F$2:$F$110000,"Exports (000's)",'Raw - New'!$J$2:$J$110000,S$1,'Raw - New'!$E$2:$E$110000,$E42) -> 0 | T42: =SUMIFS('Raw - New'!$I$2:$I$110000,'Raw - New'!$C$2:$C$110000,$B42,'Raw - New'!$F$2:$F$110000,"Exports (000's)",'Raw - New'!$J$2:$J$110000,T$1,'Raw - New'!$E$2:$E$110000,$E42) -> 0 | U42: =SUMIFS('Raw - New'!$I$2:$I$110000,'Raw - New'!$C$2:$C$110000,$B42,'Raw - New'!$F$2:$F$110000,"Exports (000's)",'Raw - New'!$J$2:$J$110000,U$1,'Raw - New'!$E$2:$E$110000,$E42) -> 0 | V42: =SUMIFS('Raw - New'!$I$2:$I$110000,'Raw - New'!$C$2:$C$110000,$B42,'Raw - New'!$F$2:$F$110000,"Exports (000's)",'Raw - New'!$J$2:$J$110000,V$1,'Raw - New'!$E$2:$E$110000,$E42) -> 0 | W42: =SUMIFS('Raw - New'!$I$2:$I$110000,'Raw - New'!$C$2:$C$110000,$B42,'Raw - New'!$F$2:$F$110000,"Exports (000's)",'Raw - New'!$J$2:$J$110000,W$1,'Raw - New'!$E$2:$E$110000,$E42) -> 0 | X42: =SUMIFS('Raw - New'!$I$2:$I$110000,'Raw - New'!$C$2:$C$110000,$B42,'Raw - New'!$F$2:$F$110000,"Exports (000's)",'Raw - New'!$J$2:$J$110000,X$1,'Raw - New'!$E$2:$E$110000,$E42) -> 0 | Y42: =SUMIFS('Raw - New'!$I$2:$I$110000,'Raw - New'!$C$2:$C$110000,$B42,'Raw - New'!$F$2:$F$110000,"Exports (000's)",'Raw - New'!$J$2:$J$110000,Y$1,'Raw - New'!$E$2:$E$110000,$E42) -> 0 | Z42: =SUMIFS('Raw - New'!$I$2:$I$110000,'Raw - New'!$C$2:$C$110000,$B42,'Raw - New'!$F$2:$F$110000,"Exports (000's)",'Raw - New'!$J$2:$J$110000,Z$1,'Raw - New'!$E$2:$E$110000,$E42) -> 0 | AA42: 5 | AB42: 307 | AC42: 10 | AD42: 0 | AE42: 0 | AF42: =IFERROR(VLOOKUP(B42,Selection!$Y$2:$AB$107,4,FALSE),0) -> 0
A43: European Community | B43: Austria | C43: Europe and Russia | D43: 6 - Manufactured goods classified chiefly by material | E43: 65 - Textile yarn, fabrics, made up articles etc | F43: Austria65 - Textile yarn, fabrics, made up articles etc | G43: =SUMIFS('Raw - New'!$I$2:$I$110000,'Raw - New'!$C$2:$C$110000,$B43,'Raw - New'!$F$2:$F$110000,"Exports (000's)",'Raw - New'!$J$2:$J$110000,G$1,'Raw - New'!$E$2:$E$110000,$E43) -> 120 | H43: =SUMIFS('Raw - New'!$I$2:$I$110000,'Raw - New'!$C$2:$C$110000,$B43,'Raw - New'!$F$2:$F$110000,"Exports (000's)",'Raw - New'!$J$2:$J$110000,H$1,'Raw - New'!$E$2:$E$110000,$E43) -> 264 | I43: =SUMIFS('Raw - New'!$I$2:$I$110000,'Raw - New'!$C$2:$C$110000,$B43,'Raw - New'!$F$2:$F$110000,"Exports (000's)",'Raw - New'!$J$2:$J$110000,I$1,'Raw - New'!$E$2:$E$110000,$E43) -> 330 | J43: =SUMIFS('Raw - New'!$I$2:$I$110000,'Raw - New'!$C$2:$C$110000,$B43,'Raw - New'!$F$2:$F$110000,"Exports (000's)",'Raw - New'!$J$2:$J$110000,J$1,'Raw - New'!$E$2:$E$110000,$E43) -> 126 | K43: =SUMIFS('Raw - New'!$I$2:$I$110000,'Raw - New'!$C$2:$C$110000,$B43,'Raw - New'!$F$2:$F$110000,"Exports (000's)",'Raw - New'!$J$2:$J$110000,K$1,'Raw - New'!$E$2:$E$110000,$E43) -> 304 | L43: =SUMIFS('Raw - New'!$I$2:$I$110000,'Raw - New'!$C$2:$C$110000,$B43,'Raw - New'!$F$2:$F$110000,"Exports (000's)",'Raw - New'!$J$2:$J$110000,L$1,'Raw - New'!$E$2:$E$110000,$E43) -> 86 | M43: =SUMIFS('Raw - New'!$I$2:$I$110000,'Raw - New'!$C$2:$C$110000,$B43,'Raw - New'!$F$2:$F$110000,"Exports (000's)",'Raw - New'!$J$2:$J$110000,M$1,'Raw - New'!$E$2:$E$110000,$E43) -> 37 | N43: =SUMIFS('Raw - New'!$I$2:$I$110000,'Raw - New'!$C$2:$C$110000,$B43,'Raw - New'!$F$2:$F$110000,"Exports (000's)",'Raw - New'!$J$2:$J$110000,N$1,'Raw - New'!$E$2:$E$110000,$E43) -> 131 | O43: =SUMIFS('Raw - New'!$I$2:$I$110000,'Raw - New'!$C$2:$C$110000,$B43,'Raw - New'!$F$2:$F$110000,"Exports (000's)",'Raw - New'!$J$2:$J$110000,O$1,'Raw - New'!$E$2:$E$110000,$E43) -> 72 | P43: =SUMIFS('Raw - New'!$I$2:$I$110000,'Raw - New'!$C$2:$C$110000,$B43,'Raw - New'!$F$2:$F$110000,"Exports (000's)",'Raw - New'!$J$2:$J$110000,P$1,'Raw - New'!$E$2:$E$110000,$E43) -> 166 | Q43: =SUMIFS('Raw - New'!$I$2:$I$110000,'Raw - New'!$C$2:$C$110000,$B43,'Raw - New'!$F$2:$F$110000,"Exports (000's)",'Raw - New'!$J$2:$J$110000,Q$1,'Raw - New'!$E$2:$E$110000,$E43) -> 3 | R43: =SUMIFS('Raw - New'!$I$2:$I$110000,'Raw - New'!$C$2:$C$110000,$B43,'Raw - New'!$F$2:$F$110000,"Exports (000's)",'Raw - New'!$J$2:$J$110000,R$1,'Raw - New'!$E$2:$E$110000,$E43) -> 6 | S43: =SUMIFS('Raw - New'!$I$2:$I$110000,'Raw - New'!$C$2:$C$110000,$B43,'Raw - New'!$F$2:$F$110000,"Exports (000's)",'Raw - New'!$J$2:$J$110000,S$1,'Raw - New'!$E$2:$E$110000,$E43) -> 3 | T43: =SUMIFS('Raw - New'!$I$2:$I$110000,'Raw - New'!$C$2:$C$110000,$B43,'Raw - New'!$F$2:$F$110000,"Exports (000's)",'Raw - New'!$J$2:$J$110000,T$1,'Raw - New'!$E$2:$E$110000,$E43) -> 63 | U43: =SUMIFS('Raw - New'!$I$2:$I$110000,'Raw - New'!$C$2:$C$110000,$B43,'Raw - New'!$F$2:$F$110000,"Exports (000's)",'Raw - New'!$J$2:$J$110000,U$1,'Raw - New'!$E$2:$E$110000,$E43) -> 131 | V43: =SUMIFS('Raw - New'!$I$2:$I$110000,'Raw - New'!$C$2:$C$110000,$B43,'Raw - New'!$F$2:$F$110000,"Exports (000's)",'Raw - New'!$J$2:$J$110000,V$1,'Raw - New'!$E$2:$E$110000,$E43) -> 220 | W43: =SUMIFS('Raw - New'!$I$2:$I$110000,'Raw - New'!$C$2:$C$110000,$B43,'Raw - New'!$F$2:$F$110000,"Exports (000's)",'Raw - New'!$J$2:$J$110000,W$1,'Raw - New'!$E$2:$E$110000,$E43) -> 29 | X43: =SUMIFS('Raw - New'!$I$2:$I$110000,'Raw - New'!$C$2:$C$110000,$B43,'Raw - New'!$F$2:$F$110000,"Exports (000's)",'Raw - New'!$J$2:$J$110000,X$1,'Raw - New'!$E$2:$E$110000,$E43) -> 110 | Y43: =SUMIFS('Raw - New'!$I$2:$I$110000,'Raw - New'!$C$2:$C$110000,$B43,'Raw - New'!$F$2:$F$110000,"Exports (000's)",'Raw - New'!$J$2:$J$110000,Y$1,'Raw - New'!$E$2:$E$110000,$E43) -> 30 | Z43: =SUMIFS('Raw - New'!$I$2:$I$110000,'Raw - New'!$C$2:$C$110000,$B43,'Raw - New'!$F$2:$F$110000,"Exports (000's)",'Raw - New'!$J$2:$J$110000,Z$1,'Raw - New'!$E$2:$E$110000,$E43) -> 68 | AA43: 840 | AB43: 558 | AC43: 247 | AD43: 417 | AE43: 237 | AF43: =IFERROR(VLOOKUP(B43,Selection!$Y$2:$AB$107,4,FALSE),0) -> 0
A44: European Community | B44: Austria | C44: Europe and Russia | D44: 6 - Manufactured goods classified chiefly by material | E44: 66 - Non-metallic mineral manufactures n.e.s. | F44: Austria66 - Non-metallic mineral manufactures n.e.s. | G44: =SUMIFS('Raw - New'!$I$2:$I$110000,'Raw - New'!$C$2:$C$110000,$B44,'Raw - New'!$F$2:$F$110000,"Exports (000's)",'Raw - New'!$J$2:$J$110000,G$1,'Raw - New'!$E$2:$E$110000,$E44) -> 12 | H44: =SUMIFS('Raw - New'!$I$2:$I$110000,'Raw - New'!$C$2:$C$110000,$B44,'Raw - New'!$F$2:$F$110000,"Exports (000's)",'Raw - New'!$J$2:$J$110000,H$1,'Raw - New'!$E$2:$E$110000,$E44) -> 1 | I44: =SUMIFS('Raw - New'!$I$2:$I$110000,'Raw - New'!$C$2:$C$110000,$B44,'Raw - New'!$F$2:$F$110000,"Exports (000's)",'Raw - New'!$J$2:$J$110000,I$1,'Raw - New'!$E$2:$E$110000,$E44) -> 1 | J44: =SUMIFS('Raw - New'!$I$2:$I$110000,'Raw - New'!$C$2:$C$110000,$B44,'Raw - New'!$F$2:$F$110000,"Exports (000's)",'Raw - New'!$J$2:$J$110000,J$1,'Raw - New'!$E$2:$E$110000,$E44) -> 1 | K44: =SUMIFS('Raw - New'!$I$2:$I$110000,'Raw - New'!$C$2:$C$110000,$B44,'Raw - New'!$F$2:$F$110000,"Exports (000's)",'Raw - New'!$J$2:$J$110000,K$1,'Raw - New'!$E$2:$E$110000,$E44) -> 1 | L44: =SUMIFS('Raw - New'!$I$2:$I$110000,'Raw - New'!$C$2:$C$110000,$B44,'Raw - New'!$F$2:$F$110000,"Exports (000's)",'Raw - New'!$J$2:$J$110000,L$1,'Raw - New'!$E$2:$E$110000,$E44) -> 1 | M44: =SUMIFS('Raw - New'!$I$2:$I$110000,'Raw - New'!$C$2:$C$110000,$B44,'Raw - New'!$F$2:$F$110000,"Exports (000's)",'Raw - New'!$J$2:$J$110000,M$1,'Raw - New'!$E$2:$E$110000,$E44) -> 1 | N44: =SUMIFS('Raw - New'!$I$2:$I$110000,'Raw - New'!$C$2:$C$110000,$B44,'Raw - New'!$F$2:$F$110000,"Exports (000's)",'Raw - New'!$J$2:$J$110000,N$1,'Raw - New'!$E$2:$E$110000,$E44) -> 1 | O44: =SUMIFS('Raw - New'!$I$2:$I$110000,'Raw - New'!$C$2:$C$110000,$B44,'Raw - New'!$F$2:$F$110000,"Exports (000's)",'Raw - New'!$J$2:$J$110000,O$1,'Raw - New'!$E$2:$E$110000,$E44) -> 1 | P44: =SUMIFS('Raw - New'!$I$2:$I$110000,'Raw - New'!$C$2:$C$110000,$B44,'Raw - New'!$F$2:$F$110000,"Exports (000's)",'Raw - New'!$J$2:$J$110000,P$1,'Raw - New'!$E$2:$E$110000,$E44) -> 0 | Q44: =SUMIFS('Raw - New'!$I$2:$I$110000,'Raw - New'!$C$2:$C$110000,$B44,'Raw - New'!$F$2:$F$110000,"Exports (000's)",'Raw - New'!$J$2:$J$110000,Q$1,'Raw - New'!$E$2:$E$110000,$E44) -> 1 | R44: =SUMIFS('Raw - New'!$I$2:$I$110000,'Raw - New'!$C$2:$C$110000,$B44,'Raw - New'!$F$2:$F$110000,"Exports (000's)",'Raw - New'!$J$2:$J$110000,R$1,'Raw - New'!$E$2:$E$110000,$E44) -> 1 | S44: =SUMIFS('Raw - New'!$I$2:$I$110000,'Raw - New'!$C$2:$C$110000,$B44,'Raw - New'!$F$2:$F$110000,"Exports (000's)",'Raw - New'!$J$2:$J$110000,S$1,'Raw - New'!$E$2:$E$110000,$E44) -> 0 | T44: =SUMIFS('Raw - New'!$I$2:$I$110000,'Raw - New'!$C$2:$C$110000,$B44,'Raw - New'!$F$2:$F$110000,"Exports (000's)",'Raw - New'!$J$2:$J$110000,T$1,'Raw - New'!$E$2:$E$110000,$E44) -> 0 | U44: =SUMIFS('Raw - New'!$I$2:$I$110000,'Raw - New'!$C$2:$C$110000,$B44,'Raw - New'!$F$2:$F$110000,"Exports (000's)",'Raw - New'!$J$2:$J$110000,U$1,'Raw - New'!$E$2:$E$110000,$E44) -> 0 | V44: =SUMIFS('Raw - New'!$I$2:$I$110000,'Raw - New'!$C$2:$C$110000,$B44,'Raw - New'!$F$2:$F$110000,"Exports (000's)",'Raw - New'!$J$2:$J$110000,V$1,'Raw - New'!$E$2:$E$110000,$E44) -> 1 | W44: =SUMIFS('Raw - New'!$I$2:$I$110000,'Raw - New'!$C$2:$C$110000,$B44,'Raw - New'!$F$2:$F$110000,"Exports (000's)",'Raw - New'!$J$2:$J$110000,W$1,'Raw - New'!$E$2:$E$110000,$E44) -> 0 | X44: =SUMIFS('Raw - New'!$I$2:$I$110000,'Raw - New'!$C$2:$C$110000,$B44,'Raw - New'!$F$2:$F$110000,"Exports (000's)",'Raw - New'!$J$2:$J$110000,X$1,'Raw - New'!$E$2:$E$110000,$E44) -> 1 | Y44: =SUMIFS('Raw - New'!$I$2:$I$110000,'Raw - New'!$C$2:$C$110000,$B44,'Raw - New'!$F$2:$F$110000,"Exports (000's)",'Raw - New'!$J$2:$J$110000,Y$1,'Raw - New'!$E$2:$E$110000,$E44) -> 0 | Z44: =SUMIFS('Raw - New'!$I$2:$I$110000,'Raw - New'!$C$2:$C$110000,$B44,'Raw - New'!$F$2:$F$110000,"Exports (000's)",'Raw - New'!$J$2:$J$110000,Z$1,'Raw - New'!$E$2:$E$110000,$E44) -> 0 | AA44: 15 | AB44: 4 | AC44: 3 | AD44: 1 | AE44: 1 | AF44: =IFERROR(VLOOKUP(B44,Selection!$Y$2:$AB$107,4,FALSE),0) -> 0
A45: European Community | B45: Austria | C45: Europe and Russia | D45: 6 - Manufactured goods classified chiefly by material | E45: 67 - Iron & steel | F45: Austria67 - Iron & steel | G45: =SUMIFS('Raw - New'!$I$2:$I$110000,'Raw - New'!$C$2:$C$110000,$B45,'Raw - New'!$F$2:$F$110000,"Exports (000's)",'Raw - New'!$J$2:$J$110000,G$1,'Raw - New'!$E$2:$E$110000,$E45) -> 12 | H45: =SUMIFS('Raw - New'!$I$2:$I$110000,'Raw - New'!$C$2:$C$110000,$B45,'Raw - New'!$F$2:$F$110000,"Exports (000's)",'Raw - New'!$J$2:$J$110000,H$1,'Raw - New'!$E$2:$E$110000,$E45) -> 22 | I45: =SUMIFS('Raw - New'!$I$2:$I$110000,'Raw - New'!$C$2:$C$110000,$B45,'Raw - New'!$F$2:$F$110000,"Exports (000's)",'Raw - New'!$J$2:$J$110000,I$1,'Raw - New'!$E$2:$E$110000,$E45) -> 8 | J45: =SUMIFS('Raw - New'!$I$2:$I$110000,'Raw - New'!$C$2:$C$110000,$B45,'Raw - New'!$F$2:$F$110000,"Exports (000's)",'Raw - New'!$J$2:$J$110000,J$1,'Raw - New'!$E$2:$E$110000,$E45) -> 11 | K45: =SUMIFS('Raw - New'!$I$2:$I$110000,'Raw - New'!$C$2:$C$110000,$B45,'Raw - New'!$F$2:$F$110000,"Exports (000's)",'Raw - New'!$J$2:$J$110000,K$1,'Raw - New'!$E$2:$E$110000,$E45) -> 5 | L45: =SUMIFS('Raw - New'!$I$2:$I$110000,'Raw - New'!$C$2:$C$110000,$B45,'Raw - New'!$F$2:$F$110000,"Exports (000's)",'Raw - New'!$J$2:$J$110000,L$1,'Raw - New'!$E$2:$E$110000,$E45) -> 33 | M45: =SUMIFS('Raw - New'!$I$2:$I$110000,'Raw - New'!$C$2:$C$110000,$B45,'Raw - New'!$F$2:$F$110000,"Exports (000's)",'Raw - New'!$J$2:$J$110000,M$1,'Raw - New'!$E$2:$E$110000,$E45) -> 3 | N45: =SUMIFS('Raw - New'!$I$2:$I$110000,'Raw - New'!$C$2:$C$110000,$B45,'Raw - New'!$F$2:$F$110000,"Exports (000's)",'Raw - New'!$J$2:$J$110000,N$1,'Raw - New'!$E$2:$E$110000,$E45) -> 5 | O45: =SUMIFS('Raw - New'!$I$2:$I$110000,'Raw - New'!$C$2:$C$110000,$B45,'Raw - New'!$F$2:$F$110000,"Exports (000's)",'Raw - New'!$J$2:$J$110000,O$1,'Raw - New'!$E$2:$E$110000,$E45) -> 9 | P45: =SUMIFS('Raw - New'!$I$2:$I$110000,'Raw - New'!$C$2:$C$110000,$B45,'Raw - New'!$F$2:$F$110000,"Exports (000's)",'Raw - New'!$J$2:$J$110000,P$1,'Raw - New'!$E$2:$E$110000,$E45) -> 24 | Q45: =SUMIFS('Raw - New'!$I$2:$I$110000,'Raw - New'!$C$2:$C$110000,$B45,'Raw - New'!$F$2:$F$110000,"Exports (000's)",'Raw - New'!$J$2:$J$110000,Q$1,'Raw - New'!$E$2:$E$110000,$E45) -> 30 | R45: =SUMIFS('Raw - New'!$I$2:$I$110000,'Raw - New'!$C$2:$C$110000,$B45,'Raw - New'!$F$2:$F$110000,"Exports (000's)",'Raw - New'!$J$2:$J$110000,R$1,'Raw - New'!$E$2:$E$110000,$E45) -> 23 | S45: =SUMIFS('Raw - New'!$I$2:$I$110000,'Raw - New'!$C$2:$C$110000,$B45,'Raw - New'!$F$2:$F$110000,"Exports (000's)",'Raw - New'!$J$2:$J$110000,S$1,'Raw - New'!$E$2:$E$110000,$E45) -> 27 | T45: =SUMIFS('Raw - New'!$I$2:$I$110000,'Raw - New'!$C$2:$C$110000,$B45,'Raw - New'!$F$2:$F$110000,"Exports (000's)",'Raw - New'!$J$2:$J$110000,T$1,'Raw - New'!$E$2:$E$110000,$E45) -> 28 | U45: =SUMIFS('Raw - New'!$I$2:$I$110000,'Raw - New'!$C$2:$C$110000,$B45,'Raw - New'!$F$2:$F$110000,"Exports (000's)",'Raw - New'!$J$2:$J$110000,U$1,'Raw - New'!$E$2:$E$110000,$E45) -> 37 | V45: =SUMIFS('Raw - New'!$I$2:$I$110000,'Raw - New'!$C$2:$C$110000,$B45,'Raw - New'!$F$2:$F$110000,"Exports (000's)",'Raw - New'!$J$2:$J$110000,V$1,'Raw - New'!$E$2:$E$110000,$E45) -> 20 | W45: =SUMIFS('Raw - New'!$I$2:$I$110000,'Raw - New'!$C$2:$C$110000,$B45,'Raw - New'!$F$2:$F$110000,"Exports (000's)",'Raw - New'!$J$2:$J$110000,W$1,'Raw - New'!$E$2:$E$110000,$E45) -> 16 | X45: =SUMIFS('Raw - New'!$I$2:$I$110000,'Raw - New'!$C$2:$C$110000,$B45,'Raw - New'!$F$2:$F$110000,"Exports (000's)",'Raw - New'!$J$2:$J$110000,X$1,'Raw - New'!$E$2:$E$110000,$E45) -> 19 | Y45: =SUMIFS('Raw - New'!$I$2:$I$110000,'Raw - New'!$C$2:$C$110000,$B45,'Raw - New'!$F$2:$F$110000,"Exports (000's)",'Raw - New'!$J$2:$J$110000,Y$1,'Raw - New'!$E$2:$E$110000,$E45) -> 16 | Z45: =SUMIFS('Raw - New'!$I$2:$I$110000,'Raw - New'!$C$2:$C$110000,$B45,'Raw - New'!$F$2:$F$110000,"Exports (000's)",'Raw - New'!$J$2:$J$110000,Z$1,'Raw - New'!$E$2:$E$110000,$E45) -> 23 | AA45: 53 | AB45: 46 | AC45: 86 | AD45: 112 | AE45: 74 | AF45: =IFERROR(VLOOKUP(B45,Selection!$Y$2:$AB$107,4,FALSE),0) -> 0
A46: European Community | B46: Austria | C46: Europe and Russia | D46: 6 - Manufactured goods classified chiefly by material | E46: 68 - Non-ferrous metals | F46: Austria68 - Non-ferrous metals | G46: =SUMIFS('Raw - New'!$I$2:$I$110000,'Raw - New'!$C$2:$C$110000,$B46,'Raw - New'!$F$2:$F$110000,"Exports (000's)",'Raw - New'!$J$2:$J$110000,G$1,'Raw - New'!$E$2:$E$110000,$E46) -> 60 | H46: =SUMIFS('Raw - New'!$I$2:$I$110000,'Raw - New'!$C$2:$C$110000,$B46,'Raw - New'!$F$2:$F$110000,"Exports (000's)",'Raw - New'!$J$2:$J$110000,H$1,'Raw - New'!$E$2:$E$110000,$E46) -> 60 | I46: =SUMIFS('Raw - New'!$I$2:$I$110000,'Raw - New'!$C$2:$C$110000,$B46,'Raw - New'!$F$2:$F$110000,"Exports (000's)",'Raw - New'!$J$2:$J$110000,I$1,'Raw - New'!$E$2:$E$110000,$E46) -> 89 | J46: =SUMIFS('Raw - New'!$I$2:$I$110000,'Raw - New'!$C$2:$C$110000,$B46,'Raw - New'!$F$2:$F$110000,"Exports (000's)",'Raw - New'!$J$2:$J$110000,J$1,'Raw - New'!$E$2:$E$110000,$E46) -> 99 | K46: =SUMIFS('Raw - New'!$I$2:$I$110000,'Raw - New'!$C$2:$C$110000,$B46,'Raw - New'!$F$2:$F$110000,"Exports (000's)",'Raw - New'!$J$2:$J$110000,K$1,'Raw - New'!$E$2:$E$110000,$E46) -> 292 | L46: =SUMIFS('Raw - New'!$I$2:$I$110000,'Raw - New'!$C$2:$C$110000,$B46,'Raw - New'!$F$2:$F$110000,"Exports (000's)",'Raw - New'!$J$2:$J$110000,L$1,'Raw - New'!$E$2:$E$110000,$E46) -> 72 | M46: =SUMIFS('Raw - New'!$I$2:$I$110000,'Raw - New'!$C$2:$C$110000,$B46,'Raw - New'!$F$2:$F$110000,"Exports (000's)",'Raw - New'!$J$2:$J$110000,M$1,'Raw - New'!$E$2:$E$110000,$E46) -> 66 | N46: =SUMIFS('Raw - New'!$I$2:$I$110000,'Raw - New'!$C$2:$C$110000,$B46,'Raw - New'!$F$2:$F$110000,"Exports (000's)",'Raw - New'!$J$2:$J$110000,N$1,'Raw - New'!$E$2:$E$110000,$E46) -> 59 | O46: =SUMIFS('Raw - New'!$I$2:$I$110000,'Raw - New'!$C$2:$C$110000,$B46,'Raw - New'!$F$2:$F$110000,"Exports (000's)",'Raw - New'!$J$2:$J$110000,O$1,'Raw - New'!$E$2:$E$110000,$E46) -> 9 | P46: =SUMIFS('Raw - New'!$I$2:$I$110000,'Raw - New'!$C$2:$C$110000,$B46,'Raw - New'!$F$2:$F$110000,"Exports (000's)",'Raw - New'!$J$2:$J$110000,P$1,'Raw - New'!$E$2:$E$110000,$E46) -> 33 | Q46: =SUMIFS('Raw - New'!$I$2:$I$110000,'Raw - New'!$C$2:$C$110000,$B46,'Raw - New'!$F$2:$F$110000,"Exports (000's)",'Raw - New'!$J$2:$J$110000,Q$1,'Raw - New'!$E$2:$E$110000,$E46) -> 46 | R46: =SUMIFS('Raw - New'!$I$2:$I$110000,'Raw - New'!$C$2:$C$110000,$B46,'Raw - New'!$F$2:$F$110000,"Exports (000's)",'Raw - New'!$J$2:$J$110000,R$1,'Raw - New'!$E$2:$E$110000,$E46) -> 51 | S46: =SUMIFS('Raw - New'!$I$2:$I$110000,'Raw - New'!$C$2:$C$110000,$B46,'Raw - New'!$F$2:$F$110000,"Exports (000's)",'Raw - New'!$J$2:$J$110000,S$1,'Raw - New'!$E$2:$E$110000,$E46) -> 146 | T46: =SUMIFS('Raw - New'!$I$2:$I$110000,'Raw - New'!$C$2:$C$110000,$B46,'Raw - New'!$F$2:$F$110000,"Exports (000's)",'Raw - New'!$J$2:$J$110000,T$1,'Raw - New'!$E$2:$E$110000,$E46) -> 44 | U46: =SUMIFS('Raw - New'!$I$2:$I$110000,'Raw - New'!$C$2:$C$110000,$B46,'Raw - New'!$F$2:$F$110000,"Exports (000's)",'Raw - New'!$J$2:$J$110000,U$1,'Raw - New'!$E$2:$E$110000,$E46) -> 60 | V46: =SUMIFS('Raw - New'!$I$2:$I$110000,'Raw - New'!$C$2:$C$110000,$B46,'Raw - New'!$F$2:$F$110000,"Exports (000's)",'Raw - New'!$J$2:$J$110000,V$1,'Raw - New'!$E$2:$E$110000,$E46) -> 183 | W46: =SUMIFS('Raw - New'!$I$2:$I$110000,'Raw - New'!$C$2:$C$110000,$B46,'Raw - New'!$F$2:$F$110000,"Exports (000's)",'Raw - New'!$J$2:$J$110000,W$1,'Raw - New'!$E$2:$E$110000,$E46) -> 100 | X46: =SUMIFS('Raw - New'!$I$2:$I$110000,'Raw - New'!$C$2:$C$110000,$B46,'Raw - New'!$F$2:$F$110000,"Exports (000's)",'Raw - New'!$J$2:$J$110000,X$1,'Raw - New'!$E$2:$E$110000,$E46) -> 61 | Y46: =SUMIFS('Raw - New'!$I$2:$I$110000,'Raw - New'!$C$2:$C$110000,$B46,'Raw - New'!$F$2:$F$110000,"Exports (000's)",'Raw - New'!$J$2:$J$110000,Y$1,'Raw - New'!$E$2:$E$110000,$E46) -> 80 | Z46: =SUMIFS('Raw - New'!$I$2:$I$110000,'Raw - New'!$C$2:$C$110000,$B46,'Raw - New'!$F$2:$F$110000,"Exports (000's)",'Raw - New'!$J$2:$J$110000,Z$1,'Raw - New'!$E$2:$E$110000,$E46) -> 307 | AA46: 308 | AB46: 489 | AC46: 139 | AD46: 433 | AE46: 548 | AF46: =IFERROR(VLOOKUP(B46,Selection!$Y$2:$AB$107,4,FALSE),0) -> 0
A47: European Community | B47: Austria | C47: Europe and Russia | D47: 6 - Manufactured goods classified chiefly by material | E47: 69 - Manufactures of metal n.e.s. | F47: Austria69 - Manufactures of metal n.e.s. | G47: =SUMIFS('Raw - New'!$I$2:$I$110000,'Raw - New'!$C$2:$C$110000,$B47,'Raw - New'!$F$2:$F$110000,"Exports (000's)",'Raw - New'!$J$2:$J$110000,G$1,'Raw - New'!$E$2:$E$110000,$E47) -> 913 | H47: =SUMIFS('Raw - New'!$I$2:$I$110000,'Raw - New'!$C$2:$C$110000,$B47,'Raw - New'!$F$2:$F$110000,"Exports (000's)",'Raw - New'!$J$2:$J$110000,H$1,'Raw - New'!$E$2:$E$110000,$E47) -> 315 | I47: =SUMIFS('Raw - New'!$I$2:$I$110000,'Raw - New'!$C$2:$C$110000,$B47,'Raw - New'!$F$2:$F$110000,"Exports (000's)",'Raw - New'!$J$2:$J$110000,I$1,'Raw - New'!$E$2:$E$110000,$E47) -> 70 | J47: =SUMIFS('Raw - New'!$I$2:$I$110000,'Raw - New'!$C$2:$C$110000,$B47,'Raw - New'!$F$2:$F$110000,"Exports (000's)",'Raw - New'!$J$2:$J$110000,J$1,'Raw - New'!$E$2:$E$110000,$E47) -> 36 | K47: =SUMIFS('Raw - New'!$I$2:$I$110000,'Raw - New'!$C$2:$C$110000,$B47,'Raw - New'!$F$2:$F$110000,"Exports (000's)",'Raw - New'!$J$2:$J$110000,K$1,'Raw - New'!$E$2:$E$110000,$E47) -> 43 | L47: =SUMIFS('Raw - New'!$I$2:$I$110000,'Raw - New'!$C$2:$C$110000,$B47,'Raw - New'!$F$2:$F$110000,"Exports (000's)",'Raw - New'!$J$2:$J$110000,L$1,'Raw - New'!$E$2:$E$110000,$E47) -> 823 | M47: =SUMIFS('Raw - New'!$I$2:$I$110000,'Raw - New'!$C$2:$C$110000,$B47,'Raw - New'!$F$2:$F$110000,"Exports (000's)",'Raw - New'!$J$2:$J$110000,M$1,'Raw - New'!$E$2:$E$110000,$E47) -> 86 | N47: =SUMIFS('Raw - New'!$I$2:$I$110000,'Raw - New'!$C$2:$C$110000,$B47,'Raw - New'!$F$2:$F$110000,"Exports (000's)",'Raw - New'!$J$2:$J$110000,N$1,'Raw - New'!$E$2:$E$110000,$E47) -> 315 | O47: =SUMIFS('Raw - New'!$I$2:$I$110000,'Raw - New'!$C$2:$C$110000,$B47,'Raw - New'!$F$2:$F$110000,"Exports (000's)",'Raw - New'!$J$2:$J$110000,O$1,'Raw - New'!$E$2:$E$110000,$E47) -> 191 | P47: =SUMIFS('Raw - New'!$I$2:$I$110000,'Raw - New'!$C$2:$C$110000,$B47,'Raw - New'!$F$2:$F$110000,"Exports (000's)",'Raw - New'!$J$2:$J$110000,P$1,'Raw - New'!$E$2:$E$110000,$E47) -> 429 | Q47: =SUMIFS('Raw - New'!$I$2:$I$110000,'Raw - New'!$C$2:$C$110000,$B47,'Raw - New'!$F$2:$F$110000,"Exports (000's)",'Raw - New'!$J$2:$J$110000,Q$1,'Raw - New'!$E$2:$E$110000,$E47) -> 823 | R47: =SUMIFS('Raw - New'!$I$2:$I$110000,'Raw - New'!$C$2:$C$110000,$B47,'Raw - New'!$F$2:$F$110000,"Exports (000's)",'Raw - New'!$J$2:$J$110000,R$1,'Raw - New'!$E$2:$E$110000,$E47) -> 29 | S47: =SUMIFS('Raw - New'!$I$2:$I$110000,'Raw - New'!$C$2:$C$110000,$B47,'Raw - New'!$F$2:$F$110000,"Exports (000's)",'Raw - New'!$J$2:$J$110000,S$1,'Raw - New'!$E$2:$E$110000,$E47) -> 37 | T47: =SUMIFS('Raw - New'!$I$2:$I$110000,'Raw - New'!$C$2:$C$110000,$B47,'Raw - New'!$F$2:$F$110000,"Exports (000's)",'Raw - New'!$J$2:$J$110000,T$1,'Raw - New'!$E$2:$E$110000,$E47) -> 74 | U47: =SUMIFS('Raw - New'!$I$2:$I$110000,'Raw - New'!$C$2:$C$110000,$B47,'Raw - New'!$F$2:$F$110000,"Exports (000's)",'Raw - New'!$J$2:$J$110000,U$1,'Raw - New'!$E$2:$E$110000,$E47) -> 199 | V47: =SUMIFS('Raw - New'!$I$2:$I$110000,'Raw - New'!$C$2:$C$110000,$B47,'Raw - New'!$F$2:$F$110000,"Exports (000's)",'Raw - New'!$J$2:$J$110000,V$1,'Raw - New'!$E$2:$E$110000,$E47) -> 452 | W47: =SUMIFS('Raw - New'!$I$2:$I$110000,'Raw - New'!$C$2:$C$110000,$B47,'Raw - New'!$F$2:$F$110000,"Exports (000's)",'Raw - New'!$J$2:$J$110000,W$1,'Raw - New'!$E$2:$E$110000,$E47) -> 1657 | X47: =SUMIFS('Raw - New'!$I$2:$I$110000,'Raw - New'!$C$2:$C$110000,$B47,'Raw - New'!$F$2:$F$110000,"Exports (000's)",'Raw - New'!$J$2:$J$110000,X$1,'Raw - New'!$E$2:$E$110000,$E47) -> 1445 | Y47: =SUMIFS('Raw - New'!$I$2:$I$110000,'Raw - New'!$C$2:$C$110000,$B47,'Raw - New'!$F$2:$F$110000,"Exports (000's)",'Raw - New'!$J$2:$J$110000,Y$1,'Raw - New'!$E$2:$E$110000,$E47) -> 1185 | Z47: =SUMIFS('Raw - New'!$I$2:$I$110000,'Raw - New'!$C$2:$C$110000,$B47,'Raw - New'!$F$2:$F$110000,"Exports (000's)",'Raw - New'!$J$2:$J$110000,Z$1,'Raw - New'!$E$2:$E$110000,$E47) -> 19 | AA47: 1334 | AB47: 1267 | AC47: 1472 | AD47: 762 | AE47: 4306 | AF47: =IFERROR(VLOOKUP(B47,Selection!$Y$2:$AB$107,4,FALSE),0) -> 0
A48: European Community | B48: Austria | C48: Europe and Russia | D48: 7 - Machinery & transport equipment | E48: 71 - Power generating machinery & equipment | F48: Austria71 - Power generating machinery & equipment | G48: =SUMIFS('Raw - New'!$I$2:$I$110000,'Raw - New'!$C$2:$C$110000,$B48,'Raw - New'!$F$2:$F$110000,"Exports (000's)",'Raw - New'!$J$2:$J$110000,G$1,'Raw - New'!$E$2:$E$110000,$E48) -> 160 | H48: =SUMIFS('Raw - New'!$I$2:$I$110000,'Raw - New'!$C$2:$C$110000,$B48,'Raw - New'!$F$2:$F$110000,"Exports (000's)",'Raw - New'!$J$2:$J$110000,H$1,'Raw - New'!$E$2:$E$110000,$E48) -> 55 | I48: =SUMIFS('Raw - New'!$I$2:$I$110000,'Raw - New'!$C$2:$C$110000,$B48,'Raw - New'!$F$2:$F$110000,"Exports (000's)",'Raw - New'!$J$2:$J$110000,I$1,'Raw - New'!$E$2:$E$110000,$E48) -> 43 | J48: =SUMIFS('Raw - New'!$I$2:$I$110000,'Raw - New'!$C$2:$C$110000,$B48,'Raw - New'!$F$2:$F$110000,"Exports (000's)",'Raw - New'!$J$2:$J$110000,J$1,'Raw - New'!$E$2:$E$110000,$E48) -> 117 | K48: =SUMIFS('Raw - New'!$I$2:$I$110000,'Raw - New'!$C$2:$C$110000,$B48,'Raw - New'!$F$2:$F$110000,"Exports (000's)",'Raw - New'!$J$2:$J$110000,K$1,'Raw - New'!$E$2:$E$110000,$E48) -> 31 | L48: =SUMIFS('Raw - New'!$I$2:$I$110000,'Raw - New'!$C$2:$C$110000,$B48,'Raw - New'!$F$2:$F$110000,"Exports (000's)",'Raw - New'!$J$2:$J$110000,L$1,'Raw - New'!$E$2:$E$110000,$E48) -> 50 | M48: =SUMIFS('Raw - New'!$I$2:$I$110000,'Raw - New'!$C$2:$C$110000,$B48,'Raw - New'!$F$2:$F$110000,"Exports (000's)",'Raw - New'!$J$2:$J$110000,M$1,'Raw - New'!$E$2:$E$110000,$E48) -> 77 | N48: =SUMIFS('Raw - New'!$I$2:$I$110000,'Raw - New'!$C$2:$C$110000,$B48,'Raw - New'!$F$2:$F$110000,"Exports (000's)",'Raw - New'!$J$2:$J$110000,N$1,'Raw - New'!$E$2:$E$110000,$E48) -> 87 | O48: =SUMIFS('Raw - New'!$I$2:$I$110000,'Raw - New'!$C$2:$C$110000,$B48,'Raw - New'!$F$2:$F$110000,"Exports (000's)",'Raw - New'!$J$2:$J$110000,O$1,'Raw - New'!$E$2:$E$110000,$E48) -> 117 | P48: =SUMIFS('Raw - New'!$I$2:$I$110000,'Raw - New'!$C$2:$C$110000,$B48,'Raw - New'!$F$2:$F$110000,"Exports (000's)",'Raw - New'!$J$2:$J$110000,P$1,'Raw - New'!$E$2:$E$110000,$E48) -> 109 | Q48: =SUMIFS('Raw - New'!$I$2:$I$110000,'Raw - New'!$C$2:$C$110000,$B48,'Raw - New'!$F$2:$F$110000,"Exports (000's)",'Raw - New'!$J$2:$J$110000,Q$1,'Raw - New'!$E$2:$E$110000,$E48) -> 95 | R48: =SUMIFS('Raw - New'!$I$2:$I$110000,'Raw - New'!$C$2:$C$110000,$B48,'Raw - New'!$F$2:$F$110000,"Exports (000's)",'Raw - New'!$J$2:$J$110000,R$1,'Raw - New'!$E$2:$E$110000,$E48) -> 109 | S48: =SUMIFS('Raw - New'!$I$2:$I$110000,'Raw - New'!$C$2:$C$110000,$B48,'Raw - New'!$F$2:$F$110000,"Exports (000's)",'Raw - New'!$J$2:$J$110000,S$1,'Raw - New'!$E$2:$E$110000,$E48) -> 109 | T48: =SUMIFS('Raw - New'!$I$2:$I$110000,'Raw - New'!$C$2:$C$110000,$B48,'Raw - New'!$F$2:$F$110000,"Exports (000's)",'Raw - New'!$J$2:$J$110000,T$1,'Raw - New'!$E$2:$E$110000,$E48) -> 97 | U48: =SUMIFS('Raw - New'!$I$2:$I$110000,'Raw - New'!$C$2:$C$110000,$B48,'Raw - New'!$F$2:$F$110000,"Exports (000's)",'Raw - New'!$J$2:$J$110000,U$1,'Raw - New'!$E$2:$E$110000,$E48) -> 147 | V48: =SUMIFS('Raw - New'!$I$2:$I$110000,'Raw - New'!$C$2:$C$110000,$B48,'Raw - New'!$F$2:$F$110000,"Exports (000's)",'Raw - New'!$J$2:$J$110000,V$1,'Raw - New'!$E$2:$E$110000,$E48) -> 134 | W48: =SUMIFS('Raw - New'!$I$2:$I$110000,'Raw - New'!$C$2:$C$110000,$B48,'Raw - New'!$F$2:$F$110000,"Exports (000's)",'Raw - New'!$J$2:$J$110000,W$1,'Raw - New'!$E$2:$E$110000,$E48) -> 9 | X48: =SUMIFS('Raw - New'!$I$2:$I$110000,'Raw - New'!$C$2:$C$110000,$B48,'Raw - New'!$F$2:$F$110000,"Exports (000's)",'Raw - New'!$J$2:$J$110000,X$1,'Raw - New'!$E$2:$E$110000,$E48) -> 2 | Y48: =SUMIFS('Raw - New'!$I$2:$I$110000,'Raw - New'!$C$2:$C$110000,$B48,'Raw - New'!$F$2:$F$110000,"Exports (000's)",'Raw - New'!$J$2:$J$110000,Y$1,'Raw - New'!$E$2:$E$110000,$E48) -> 5 | Z48: =SUMIFS('Raw - New'!$I$2:$I$110000,'Raw - New'!$C$2:$C$110000,$B48,'Raw - New'!$F$2:$F$110000,"Exports (000's)",'Raw - New'!$J$2:$J$110000,Z$1,'Raw - New'!$E$2:$E$110000,$E48) -> 6 | AA48: 375 | AB48: 245 | AC48: 430 | AD48: 487 | AE48: 22 | AF48: =IFERROR(VLOOKUP(B48,Selection!$Y$2:$AB$107,4,FALSE),0) -> 0
A49: European Community | B49: Austria | C49: Europe and Russia | D49: 7 - Machinery & transport equipment | E49: 72 - Machinery specialized for particular industries | F49: Austria72 - Machinery specialized for particular industries | G49: =SUMIFS('Raw - New'!$I$2:$I$110000,'Raw - New'!$C$2:$C$110000,$B49,'Raw - New'!$F$2:$F$110000,"Exports (000's)",'Raw - New'!$J$2:$J$110000,G$1,'Raw - New'!$E$2:$E$110000,$E49) -> 1908 | H49: =SUMIFS('Raw - New'!$I$2:$I$110000,'Raw - New'!$C$2:$C$110000,$B49,'Raw - New'!$F$2:$F$110000,"Exports (000's)",'Raw - New'!$J$2:$J$110000,H$1,'Raw - New'!$E$2:$E$110000,$E49) -> 2754 | I49: =SUMIFS('Raw - New'!$I$2:$I$110000,'Raw - New'!$C$2:$C$110000,$B49,'Raw - New'!$F$2:$F$110000,"Exports (000's)",'Raw - New'!$J$2:$J$110000,I$1,'Raw - New'!$E$2:$E$110000,$E49) -> 2283 | J49: =SUMIFS('Raw - New'!$I$2:$I$110000,'Raw - New'!$C$2:$C$110000,$B49,'Raw - New'!$F$2:$F$110000,"Exports (000's)",'Raw - New'!$J$2:$J$110000,J$1,'Raw - New'!$E$2:$E$110000,$E49) -> 2500 | K49: =SUMIFS('Raw - New'!$I$2:$I$110000,'Raw - New'!$C$2:$C$110000,$B49,'Raw - New'!$F$2:$F$110000,"Exports (000's)",'Raw - New'!$J$2:$J$110000,K$1,'Raw - New'!$E$2:$E$110000,$E49) -> 1303 | L49: =SUMIFS('Raw - New'!$I$2:$I$110000,'Raw - New'!$C$2:$C$110000,$B49,'Raw - New'!$F$2:$F$110000,"Exports (000's)",'Raw - New'!$J$2:$J$110000,L$1,'Raw - New'!$E$2:$E$110000,$E49) -> 1978 | M49: =SUMIFS('Raw - New'!$I$2:$I$110000,'Raw - New'!$C$2:$C$110000,$B49,'Raw - New'!$F$2:$F$110000,"Exports (000's)",'Raw - New'!$J$2:$J$110000,M$1,'Raw - New'!$E$2:$E$110000,$E49) -> 3961 | N49: =SUMIFS('Raw - New'!$I$2:$I$110000,'Raw - New'!$C$2:$C$110000,$B49,'Raw - New'!$F$2:$F$110000,"Exports (000's)",'Raw - New'!$J$2:$J$110000,N$1,'Raw - New'!$E$2:$E$110000,$E49) -> 2067 | O49: =SUMIFS('Raw - New'!$I$2:$I$110000,'Raw - New'!$C$2:$C$110000,$B49,'Raw - New'!$F$2:$F$110000,"Exports (000's)",'Raw - New'!$J$2:$J$110000,O$1,'Raw - New'!$E$2:$E$110000,$E49) -> 2896 | P49: =SUMIFS('Raw - New'!$I$2:$I$110000,'Raw - New'!$C$2:$C$110000,$B49,'Raw - New'!$F$2:$F$110000,"Exports (000's)",'Raw - New'!$J$2:$J$110000,P$1,'Raw - New'!$E$2:$E$110000,$E49) -> 3811 | Q49: =SUMIFS('Raw - New'!$I$2:$I$110000,'Raw - New'!$C$2:$C$110000,$B49,'Raw - New'!$F$2:$F$110000,"Exports (000's)",'Raw - New'!$J$2:$J$110000,Q$1,'Raw - New'!$E$2:$E$110000,$E49) -> 3925 | R49: =SUMIFS('Raw - New'!$I$2:$I$110000,'Raw - New'!$C$2:$C$110000,$B49,'Raw - New'!$F$2:$F$110000,"Exports (000's)",'Raw - New'!$J$2:$J$110000,R$1,'Raw - New'!$E$2:$E$110000,$E49) -> 1014 | S49: =SUMIFS('Raw - New'!$I$2:$I$110000,'Raw - New'!$C$2:$C$110000,$B49,'Raw - New'!$F$2:$F$110000,"Exports (000's)",'Raw - New'!$J$2:$J$110000,S$1,'Raw - New'!$E$2:$E$110000,$E49) -> 4259 | T49: =SUMIFS('Raw - New'!$I$2:$I$110000,'Raw - New'!$C$2:$C$110000,$B49,'Raw - New'!$F$2:$F$110000,"Exports (000's)",'Raw - New'!$J$2:$J$110000,T$1,'Raw - New'!$E$2:$E$110000,$E49) -> 5176 | U49: =SUMIFS('Raw - New'!$I$2:$I$110000,'Raw - New'!$C$2:$C$110000,$B49,'Raw - New'!$F$2:$F$110000,"Exports (000's)",'Raw - New'!$J$2:$J$110000,U$1,'Raw - New'!$E$2:$E$110000,$E49) -> 5081 | V49: =SUMIFS('Raw - New'!$I$2:$I$110000,'Raw - New'!$C$2:$C$110000,$B49,'Raw - New'!$F$2:$F$110000,"Exports (000's)",'Raw - New'!$J$2:$J$110000,V$1,'Raw - New'!$E$2:$E$110000,$E49) -> 2708 | W49: =SUMIFS('Raw - New'!$I$2:$I$110000,'Raw - New'!$C$2:$C$110000,$B49,'Raw - New'!$F$2:$F$110000,"Exports (000's)",'Raw - New'!$J$2:$J$110000,W$1,'Raw - New'!$E$2:$E$110000,$E49) -> 7285 | X49: =SUMIFS('Raw - New'!$I$2:$I$110000,'Raw - New'!$C$2:$C$110000,$B49,'Raw - New'!$F$2:$F$110000,"Exports (000's)",'Raw - New'!$J$2:$J$110000,X$1,'Raw - New'!$E$2:$E$110000,$E49) -> 8679 | Y49: =SUMIFS('Raw - New'!$I$2:$I$110000,'Raw - New'!$C$2:$C$110000,$B49,'Raw - New'!$F$2:$F$110000,"Exports (000's)",'Raw - New'!$J$2:$J$110000,Y$1,'Raw - New'!$E$2:$E$110000,$E49) -> 4307 | Z49: =SUMIFS('Raw - New'!$I$2:$I$110000,'Raw - New'!$C$2:$C$110000,$B49,'Raw - New'!$F$2:$F$110000,"Exports (000's)",'Raw - New'!$J$2:$J$110000,Z$1,'Raw - New'!$E$2:$E$110000,$E49) -> 3573 | AA49: 9445 | AB49: 9309 | AC49: 11646 | AD49: 17224 | AE49: 23844 | AF49: =IFERROR(VLOOKUP(B49,Selection!$Y$2:$AB$107,4,FALSE),0) -> 0
A50: European Community | B50: Austria | C50: Europe and Russia | D50: 7 - Machinery & transport equipment | E50: 73 - Metalworking machinery | F50: Austria73 - Metalworking machinery | G50: =SUMIFS('Raw - New'!$I$2:$I$110000,'Raw - New'!$C$2:$C$110000,$B50,'Raw - New'!$F$2:$F$110000,"Exports (000's)",'Raw - New'!$J$2:$J$110000,G$1,'Raw - New'!$E$2:$E$110000,$E50) -> 0 | H50: =SUMIFS('Raw - New'!$I$2:$I$110000,'Raw - New'!$C$2:$C$110000,$B50,'Raw - New'!$F$2:$F$110000,"Exports (000's)",'Raw - New'!$J$2:$J$110000,H$1,'Raw - New'!$E$2:$E$110000,$E50) -> 0 | I50: =SUMIFS('Raw - New'!$I$2:$I$110000,'Raw - New'!$C$2:$C$110000,$B50,'Raw - New'!$F$2:$F$110000,"Exports (000's)",'Raw - New'!$J$2:$J$110000,I$1,'Raw - New'!$E$2:$E$110000,$E50) -> 0 | J50: =SUMIFS('Raw - New'!$I$2:$I$110000,'Raw - New'!$C$2:$C$110000,$B50,'Raw - New'!$F$2:$F$110000,"Exports (000's)",'Raw - New'!$J$2:$J$110000,J$1,'Raw - New'!$E$2:$E$110000,$E50) -> 0 | K50: =SUMIFS('Raw - New'!$I$2:$I$110000,'Raw - New'!$C$2:$C$110000,$B50,'Raw - New'!$F$2:$F$110000,"Exports (000's)",'Raw - New'!$J$2:$J$110000,K$1,'Raw - New'!$E$2:$E$110000,$E50) -> 0 | L50: =SUMIFS('Raw - New'!$I$2:$I$110000,'Raw - New'!$C$2:$C$110000,$B50,'Raw - New'!$F$2:$F$110000,"Exports (000's)",'Raw - New'!$J$2:$J$110000,L$1,'Raw - New'!$E$2:$E$110000,$E50) -> 0 | M50: =SUMIFS('Raw - New'!$I$2:$I$110000,'Raw - New'!$C$2:$C$110000,$B50,'Raw - New'!$F$2:$F$110000,"Exports (000's)",'Raw - New'!$J$2:$J$110000,M$1,'Raw - New'!$E$2:$E$110000,$E50) -> 2 | N50: =SUMIFS('Raw - New'!$I$2:$I$110000,'Raw - New'!$C$2:$C$110000,$B50,'Raw - New'!$F$2:$F$110000,"Exports (000's)",'Raw - New'!$J$2:$J$110000,N$1,'Raw - New'!$E$2:$E$110000,$E50) -> 0 | O50: =SUMIFS('Raw - New'!$I$2:$I$110000,'Raw - New'!$C$2:$C$110000,$B50,'Raw - New'!$F$2:$F$110000,"Exports (000's)",'Raw - New'!$J$2:$J$110000,O$1,'Raw - New'!$E$2:$E$110000,$E50) -> 1 | P50: =SUMIFS('Raw - New'!$I$2:$I$110000,'Raw - New'!$C$2:$C$110000,$B50,'Raw - New'!$F$2:$F$110000,"Exports (000's)",'Raw - New'!$J$2:$J$110000,P$1,'Raw - New'!$E$2:$E$110000,$E50) -> 0 | Q50: =SUMIFS('Raw - New'!$I$2:$I$110000,'Raw - New'!$C$2:$C$110000,$B50,'Raw - New'!$F$2:$F$110000,"Exports (000's)",'Raw - New'!$J$2:$J$110000,Q$1,'Raw - New'!$E$2:$E$110000,$E50) -> 0 | R50: =SUMIFS('Raw - New'!$I$2:$I$110000,'Raw - New'!$C$2:$C$110000,$B50,'Raw - New'!$F$2:$F$110000,"Exports (000's)",'Raw - New'!$J$2:$J$110000,R$1,'Raw - New'!$E$2:$E$110000,$E50) -> 0 | S50: =SUMIFS('Raw - New'!$I$2:$I$110000,'Raw - New'!$C$2:$C$110000,$B50,'Raw - New'!$F$2:$F$110000,"Exports (000's)",'Raw - New'!$J$2:$J$110000,S$1,'Raw - New'!$E$2:$E$110000,$E50) -> 0 | T50: =SUMIFS('Raw - New'!$I$2:$I$110000,'Raw - New'!$C$2:$C$110000,$B50,'Raw - New'!$F$2:$F$110000,"Exports (000's)",'Raw - New'!$J$2:$J$110000,T$1,'Raw - New'!$E$2:$E$110000,$E50) -> 0 | U50: =SUMIFS('Raw - New'!$I$2:$I$110000,'Raw - New'!$C$2:$C$110000,$B50,'Raw - New'!$F$2:$F$110000,"Exports (000's)",'Raw - New'!$J$2:$J$110000,U$1,'Raw - New'!$E$2:$E$110000,$E50) -> 0 | V50: =SUMIFS('Raw - New'!$I$2:$I$110000,'Raw - New'!$C$2:$C$110000,$B50,'Raw - New'!$F$2:$F$110000,"Exports (000's)",'Raw - New'!$J$2:$J$110000,V$1,'Raw - New'!$E$2:$E$110000,$E50) -> 0 | W50: =SUMIFS('Raw - New'!$I$2:$I$110000,'Raw - New'!$C$2:$C$110000,$B50,'Raw - New'!$F$2:$F$110000,"Exports (000's)",'Raw - New'!$J$2:$J$110000,W$1,'Raw - New'!$E$2:$E$110000,$E50) -> 0 | X50: =SUMIFS('Raw - New'!$I$2:$I$110000,'Raw - New'!$C$2:$C$110000,$B50,'Raw - New'!$F$2:$F$110000,"Exports (000's)",'Raw - New'!$J$2:$J$110000,X$1,'Raw - New'!$E$2:$E$110000,$E50) -> 0 | Y50: =SUMIFS('Raw - New'!$I$2:$I$110000,'Raw - New'!$C$2:$C$110000,$B50,'Raw - New'!$F$2:$F$110000,"Exports (000's)",'Raw - New'!$J$2:$J$110000,Y$1,'Raw - New'!$E$2:$E$110000,$E50) -> 0 | Z50: =SUMIFS('Raw - New'!$I$2:$I$110000,'Raw - New'!$C$2:$C$110000,$B50,'Raw - New'!$F$2:$F$110000,"Exports (000's)",'Raw - New'!$J$2:$J$110000,Z$1,'Raw - New'!$E$2:$E$110000,$E50) -> 1 | AA50: 0 | AB50: 2 | AC50: 1 | AD50: 0 | AE50: 1 | AF50: =IFERROR(VLOOKUP(B50,Selection!$Y$2:$AB$107,4,FALSE),0) -> 0
A51: European Community | B51: Austria | C51: Europe and Russia | D51: 7 - Machinery & transport equipment | E51: 74 - General industrial machinery & eqp. & machine pt.n.e.s. | F51: Austria74 - General industrial machinery & eqp. & machine pt.n.e.s. | G51: =SUMIFS('Raw - New'!$I$2:$I$110000,'Raw - New'!$C$2:$C$110000,$B51,'Raw - New'!$F$2:$F$110000,"Exports (000's)",'Raw - New'!$J$2:$J$110000,G$1,'Raw - New'!$E$2:$E$110000,$E51) -> 635 | H51: =SUMIFS('Raw - New'!$I$2:$I$110000,'Raw - New'!$C$2:$C$110000,$B51,'Raw - New'!$F$2:$F$110000,"Exports (000's)",'Raw - New'!$J$2:$J$110000,H$1,'Raw - New'!$E$2:$E$110000,$E51) -> 1130 | I51: =SUMIFS('Raw - New'!$I$2:$I$110000,'Raw - New'!$C$2:$C$110000,$B51,'Raw - New'!$F$2:$F$110000,"Exports (000's)",'Raw - New'!$J$2:$J$110000,I$1,'Raw - New'!$E$2:$E$110000,$E51) -> 1217 | J51: =SUMIFS('Raw - New'!$I$2:$I$110000,'Raw - New'!$C$2:$C$110000,$B51,'Raw - New'!$F$2:$F$110000,"Exports (000's)",'Raw - New'!$J$2:$J$110000,J$1,'Raw - New'!$E$2:$E$110000,$E51) -> 808 | K51: =SUMIFS('Raw - New'!$I$2:$I$110000,'Raw - New'!$C$2:$C$110000,$B51,'Raw - New'!$F$2:$F$110000,"Exports (000's)",'Raw - New'!$J$2:$J$110000,K$1,'Raw - New'!$E$2:$E$110000,$E51) -> 682 | L51: =SUMIFS('Raw - New'!$I$2:$I$110000,'Raw - New'!$C$2:$C$110000,$B51,'Raw - New'!$F$2:$F$110000,"Exports (000's)",'Raw - New'!$J$2:$J$110000,L$1,'Raw - New'!$E$2:$E$110000,$E51) -> 226 | M51: =SUMIFS('Raw - New'!$I$2:$I$110000,'Raw - New'!$C$2:$C$110000,$B51,'Raw - New'!$F$2:$F$110000,"Exports (000's)",'Raw - New'!$J$2:$J$110000,M$1,'Raw - New'!$E$2:$E$110000,$E51) -> 739 | N51: =SUMIFS('Raw - New'!$I$2:$I$110000,'Raw - New'!$C$2:$C$110000,$B51,'Raw - New'!$F$2:$F$110000,"Exports (000's)",'Raw - New'!$J$2:$J$110000,N$1,'Raw - New'!$E$2:$E$110000,$E51) -> 455 | O51: =SUMIFS('Raw - New'!$I$2:$I$110000,'Raw - New'!$C$2:$C$110000,$B51,'Raw - New'!$F$2:$F$110000,"Exports (000's)",'Raw - New'!$J$2:$J$110000,O$1,'Raw - New'!$E$2:$E$110000,$E51) -> 552 | P51: =SUMIFS('Raw - New'!$I$2:$I$110000,'Raw - New'!$C$2:$C$110000,$B51,'Raw - New'!$F$2:$F$110000,"Exports (000's)",'Raw - New'!$J$2:$J$110000,P$1,'Raw - New'!$E$2:$E$110000,$E51) -> 492 | Q51: =SUMIFS('Raw - New'!$I$2:$I$110000,'Raw - New'!$C$2:$C$110000,$B51,'Raw - New'!$F$2:$F$110000,"Exports (000's)",'Raw - New'!$J$2:$J$110000,Q$1,'Raw - New'!$E$2:$E$110000,$E51) -> 577 | R51: =SUMIFS('Raw - New'!$I$2:$I$110000,'Raw - New'!$C$2:$C$110000,$B51,'Raw - New'!$F$2:$F$110000,"Exports (000's)",'Raw - New'!$J$2:$J$110000,R$1,'Raw - New'!$E$2:$E$110000,$E51) -> 373 | S51: =SUMIFS('Raw - New'!$I$2:$I$110000,'Raw - New'!$C$2:$C$110000,$B51,'Raw - New'!$F$2:$F$110000,"Exports (000's)",'Raw - New'!$J$2:$J$110000,S$1,'Raw - New'!$E$2:$E$110000,$E51) -> 518 | T51: =SUMIFS('Raw - New'!$I$2:$I$110000,'Raw - New'!$C$2:$C$110000,$B51,'Raw - New'!$F$2:$F$110000,"Exports (000's)",'Raw - New'!$J$2:$J$110000,T$1,'Raw - New'!$E$2:$E$110000,$E51) -> 287 | U51: =SUMIFS('Raw - New'!$I$2:$I$110000,'Raw - New'!$C$2:$C$110000,$B51,'Raw - New'!$F$2:$F$110000,"Exports (000's)",'Raw - New'!$J$2:$J$110000,U$1,'Raw - New'!$E$2:$E$110000,$E51) -> 665 | V51: =SUMIFS('Raw - New'!$I$2:$I$110000,'Raw - New'!$C$2:$C$110000,$B51,'Raw - New'!$F$2:$F$110000,"Exports (000's)",'Raw - New'!$J$2:$J$110000,V$1,'Raw - New'!$E$2:$E$110000,$E51) -> 442 | W51: =SUMIFS('Raw - New'!$I$2:$I$110000,'Raw - New'!$C$2:$C$110000,$B51,'Raw - New'!$F$2:$F$110000,"Exports (000's)",'Raw - New'!$J$2:$J$110000,W$1,'Raw - New'!$E$2:$E$110000,$E51) -> 739 | X51: =SUMIFS('Raw - New'!$I$2:$I$110000,'Raw - New'!$C$2:$C$110000,$B51,'Raw - New'!$F$2:$F$110000,"Exports (000's)",'Raw - New'!$J$2:$J$110000,X$1,'Raw - New'!$E$2:$E$110000,$E51) -> 618 | Y51: =SUMIFS('Raw - New'!$I$2:$I$110000,'Raw - New'!$C$2:$C$110000,$B51,'Raw - New'!$F$2:$F$110000,"Exports (000's)",'Raw - New'!$J$2:$J$110000,Y$1,'Raw - New'!$E$2:$E$110000,$E51) -> 251 | Z51: =SUMIFS('Raw - New'!$I$2:$I$110000,'Raw - New'!$C$2:$C$110000,$B51,'Raw - New'!$F$2:$F$110000,"Exports (000's)",'Raw - New'!$J$2:$J$110000,Z$1,'Raw - New'!$E$2:$E$110000,$E51) -> 447 | AA51: 3790 | AB51: 2102 | AC51: 1994 | AD51: 1912 | AE51: 2055 | AF51: =IFERROR(VLOOKUP(B51,Selection!$Y$2:$AB$107,4,FALSE),0) -> 0
A52: European Community | B52: Austria | C52: Europe and Russia | D52: 7 - Machinery & transport equipment | E52: 75 - Office machines & adp machines | F52: Austria75 - Office machines & adp machines | G52: =SUMIFS('Raw - New'!$I$2:$I$110000,'Raw - New'!$C$2:$C$110000,$B52,'Raw - New'!$F$2:$F$110000,"Exports (000's)",'Raw - New'!$J$2:$J$110000,G$1,'Raw - New'!$E$2:$E$110000,$E52) -> 11 | H52: =SUMIFS('Raw - New'!$I$2:$I$110000,'Raw - New'!$C$2:$C$110000,$B52,'Raw - New'!$F$2:$F$110000,"Exports (000's)",'Raw - New'!$J$2:$J$110000,H$1,'Raw - New'!$E$2:$E$110000,$E52) -> 1 | I52: =SUMIFS('Raw - New'!$I$2:$I$110000,'Raw - New'!$C$2:$C$110000,$B52,'Raw - New'!$F$2:$F$110000,"Exports (000's)",'Raw - New'!$J$2:$J$110000,I$1,'Raw - New'!$E$2:$E$110000,$E52) -> 5 | J52: =SUMIFS('Raw - New'!$I$2:$I$110000,'Raw - New'!$C$2:$C$110000,$B52,'Raw - New'!$F$2:$F$110000,"Exports (000's)",'Raw - New'!$J$2:$J$110000,J$1,'Raw - New'!$E$2:$E$110000,$E52) -> 0 | K52: =SUMIFS('Raw - New'!$I$2:$I$110000,'Raw - New'!$C$2:$C$110000,$B52,'Raw - New'!$F$2:$F$110000,"Exports (000's)",'Raw - New'!$J$2:$J$110000,K$1,'Raw - New'!$E$2:$E$110000,$E52) -> 4 | L52: =SUMIFS('Raw - New'!$I$2:$I$110000,'Raw - New'!$C$2:$C$110000,$B52,'Raw - New'!$F$2:$F$110000,"Exports (000's)",'Raw - New'!$J$2:$J$110000,L$1,'Raw - New'!$E$2:$E$110000,$E52) -> 0 | M52: =SUMIFS('Raw - New'!$I$2:$I$110000,'Raw - New'!$C$2:$C$110000,$B52,'Raw - New'!$F$2:$F$110000,"Exports (000's)",'Raw - New'!$J$2:$J$110000,M$1,'Raw - New'!$E$2:$E$110000,$E52) -> 1 | N52: =SUMIFS('Raw - New'!$I$2:$I$110000,'Raw - New'!$C$2:$C$110000,$B52,'Raw - New'!$F$2:$F$110000,"Exports (000's)",'Raw - New'!$J$2:$J$110000,N$1,'Raw - New'!$E$2:$E$110000,$E52) -> 1 | O52: =SUMIFS('Raw - New'!$I$2:$I$110000,'Raw - New'!$C$2:$C$110000,$B52,'Raw - New'!$F$2:$F$110000,"Exports (000's)",'Raw - New'!$J$2:$J$110000,O$1,'Raw - New'!$E$2:$E$110000,$E52) -> 57 | P52: =SUMIFS('Raw - New'!$I$2:$I$110000,'Raw - New'!$C$2:$C$110000,$B52,'Raw - New'!$F$2:$F$110000,"Exports (000's)",'Raw - New'!$J$2:$J$110000,P$1,'Raw - New'!$E$2:$E$110000,$E52) -> 1 | Q52: =SUMIFS('Raw - New'!$I$2:$I$110000,'Raw - New'!$C$2:$C$110000,$B52,'Raw - New'!$F$2:$F$110000,"Exports (000's)",'Raw - New'!$J$2:$J$110000,Q$1,'Raw - New'!$E$2:$E$110000,$E52) -> 1 | R52: =SUMIFS('Raw - New'!$I$2:$I$110000,'Raw - New'!$C$2:$C$110000,$B52,'Raw - New'!$F$2:$F$110000,"Exports (000's)",'Raw - New'!$J$2:$J$110000,R$1,'Raw - New'!$E$2:$E$110000,$E52) -> 6 | S52: =SUMIFS('Raw - New'!$I$2:$I$110000,'Raw - New'!$C$2:$C$110000,$B52,'Raw - New'!$F$2:$F$110000,"Exports (000's)",'Raw - New'!$J$2:$J$110000,S$1,'Raw - New'!$E$2:$E$110000,$E52) -> 12 | T52: =SUMIFS('Raw - New'!$I$2:$I$110000,'Raw - New'!$C$2:$C$110000,$B52,'Raw - New'!$F$2:$F$110000,"Exports (000's)",'Raw - New'!$J$2:$J$110000,T$1,'Raw - New'!$E$2:$E$110000,$E52) -> 0 | U52: =SUMIFS('Raw - New'!$I$2:$I$110000,'Raw - New'!$C$2:$C$110000,$B52,'Raw - New'!$F$2:$F$110000,"Exports (000's)",'Raw - New'!$J$2:$J$110000,U$1,'Raw - New'!$E$2:$E$110000,$E52) -> 1 | V52: =SUMIFS('Raw - New'!$I$2:$I$110000,'Raw - New'!$C$2:$C$110000,$B52,'Raw - New'!$F$2:$F$110000,"Exports (000's)",'Raw - New'!$J$2:$J$110000,V$1,'Raw - New'!$E$2:$E$110000,$E52) -> 6 | W52: =SUMIFS('Raw - New'!$I$2:$I$110000,'Raw - New'!$C$2:$C$110000,$B52,'Raw - New'!$F$2:$F$110000,"Exports (000's)",'Raw - New'!$J$2:$J$110000,W$1,'Raw - New'!$E$2:$E$110000,$E52) -> 2 | X52: =SUMIFS('Raw - New'!$I$2:$I$110000,'Raw - New'!$C$2:$C$110000,$B52,'Raw - New'!$F$2:$F$110000,"Exports (000's)",'Raw - New'!$J$2:$J$110000,X$1,'Raw - New'!$E$2:$E$110000,$E52) -> 1 | Y52: =SUMIFS('Raw - New'!$I$2:$I$110000,'Raw - New'!$C$2:$C$110000,$B52,'Raw - New'!$F$2:$F$110000,"Exports (000's)",'Raw - New'!$J$2:$J$110000,Y$1,'Raw - New'!$E$2:$E$110000,$E52) -> 5 | Z52: =SUMIFS('Raw - New'!$I$2:$I$110000,'Raw - New'!$C$2:$C$110000,$B52,'Raw - New'!$F$2:$F$110000,"Exports (000's)",'Raw - New'!$J$2:$J$110000,Z$1,'Raw - New'!$E$2:$E$110000,$E52) -> 3 | AA52: 17 | AB52: 6 | AC52: 65 | AD52: 19 | AE52: 11 | AF52: =IFERROR(VLOOKUP(B52,Selection!$Y$2:$AB$107,4,FALSE),0) -> 0
A53: European Community | B53: Austria | C53: Europe and Russia | D53: 7 - Machinery & transport equipment | E53: 76 - Telecomms & sound recording & reproducing app. & eqp. | F53: Austria76 - Telecomms & sound recording & reproducing app. & eqp. | G53: =SUMIFS('Raw - New'!$I$2:$I$110000,'Raw - New'!$C$2:$C$110000,$B53,'Raw - New'!$F$2:$F$110000,"Exports (000's)",'Raw - New'!$J$2:$J$110000,G$1,'Raw - New'!$E$2:$E$110000,$E53) -> 45 | H53: =SUMIFS('Raw - New'!$I$2:$I$110000,'Raw - New'!$C$2:$C$110000,$B53,'Raw - New'!$F$2:$F$110000,"Exports (000's)",'Raw - New'!$J$2:$J$110000,H$1,'Raw - New'!$E$2:$E$110000,$E53) -> 81 | I53: =SUMIFS('Raw - New'!$I$2:$I$110000,'Raw - New'!$C$2:$C$110000,$B53,'Raw - New'!$F$2:$F$110000,"Exports (000's)",'Raw - New'!$J$2:$J$110000,I$1,'Raw - New'!$E$2:$E$110000,$E53) -> 17 | J53: =SUMIFS('Raw - New'!$I$2:$I$110000,'Raw - New'!$C$2:$C$110000,$B53,'Raw - New'!$F$2:$F$110000,"Exports (000's)",'Raw - New'!$J$2:$J$110000,J$1,'Raw - New'!$E$2:$E$110000,$E53) -> 28 | K53: =SUMIFS('Raw - New'!$I$2:$I$110000,'Raw - New'!$C$2:$C$110000,$B53,'Raw - New'!$F$2:$F$110000,"Exports (000's)",'Raw - New'!$J$2:$J$110000,K$1,'Raw - New'!$E$2:$E$110000,$E53) -> 16 | L53: =SUMIFS('Raw - New'!$I$2:$I$110000,'Raw - New'!$C$2:$C$110000,$B53,'Raw - New'!$F$2:$F$110000,"Exports (000's)",'Raw - New'!$J$2:$J$110000,L$1,'Raw - New'!$E$2:$E$110000,$E53) -> 7 | M53: =SUMIFS('Raw - New'!$I$2:$I$110000,'Raw - New'!$C$2:$C$110000,$B53,'Raw - New'!$F$2:$F$110000,"Exports (000's)",'Raw - New'!$J$2:$J$110000,M$1,'Raw - New'!$E$2:$E$110000,$E53) -> 58 | N53: =SUMIFS('Raw - New'!$I$2:$I$110000,'Raw - New'!$C$2:$C$110000,$B53,'Raw - New'!$F$2:$F$110000,"Exports (000's)",'Raw - New'!$J$2:$J$110000,N$1,'Raw - New'!$E$2:$E$110000,$E53) -> 5 | O53: =SUMIFS('Raw - New'!$I$2:$I$110000,'Raw - New'!$C$2:$C$110000,$B53,'Raw - New'!$F$2:$F$110000,"Exports (000's)",'Raw - New'!$J$2:$J$110000,O$1,'Raw - New'!$E$2:$E$110000,$E53) -> 88 | P53: =SUMIFS('Raw - New'!$I$2:$I$110000,'Raw - New'!$C$2:$C$110000,$B53,'Raw - New'!$F$2:$F$110000,"Exports (000's)",'Raw - New'!$J$2:$J$110000,P$1,'Raw - New'!$E$2:$E$110000,$E53) -> 20 | Q53: =SUMIFS('Raw - New'!$I$2:$I$110000,'Raw - New'!$C$2:$C$110000,$B53,'Raw - New'!$F$2:$F$110000,"Exports (000's)",'Raw - New'!$J$2:$J$110000,Q$1,'Raw - New'!$E$2:$E$110000,$E53) -> 8 | R53: =SUMIFS('Raw - New'!$I$2:$I$110000,'Raw - New'!$C$2:$C$110000,$B53,'Raw - New'!$F$2:$F$110000,"Exports (000's)",'Raw - New'!$J$2:$J$110000,R$1,'Raw - New'!$E$2:$E$110000,$E53) -> 72 | S53: =SUMIFS('Raw - New'!$I$2:$I$110000,'Raw - New'!$C$2:$C$110000,$B53,'Raw - New'!$F$2:$F$110000,"Exports (000's)",'Raw - New'!$J$2:$J$110000,S$1,'Raw - New'!$E$2:$E$110000,$E53) -> 177 | T53: =SUMIFS('Raw - New'!$I$2:$I$110000,'Raw - New'!$C$2:$C$110000,$B53,'Raw - New'!$F$2:$F$110000,"Exports (000's)",'Raw - New'!$J$2:$J$110000,T$1,'Raw - New'!$E$2:$E$110000,$E53) -> 27 | U53: =SUMIFS('Raw - New'!$I$2:$I$110000,'Raw - New'!$C$2:$C$110000,$B53,'Raw - New'!$F$2:$F$110000,"Exports (000's)",'Raw - New'!$J$2:$J$110000,U$1,'Raw - New'!$E$2:$E$110000,$E53) -> 51 | V53: =SUMIFS('Raw - New'!$I$2:$I$110000,'Raw - New'!$C$2:$C$110000,$B53,'Raw - New'!$F$2:$F$110000,"Exports (000's)",'Raw - New'!$J$2:$J$110000,V$1,'Raw - New'!$E$2:$E$110000,$E53) -> 82 | W53: =SUMIFS('Raw - New'!$I$2:$I$110000,'Raw - New'!$C$2:$C$110000,$B53,'Raw - New'!$F$2:$F$110000,"Exports (000's)",'Raw - New'!$J$2:$J$110000,W$1,'Raw - New'!$E$2:$E$110000,$E53) -> 26 | X53: =SUMIFS('Raw - New'!$I$2:$I$110000,'Raw - New'!$C$2:$C$110000,$B53,'Raw - New'!$F$2:$F$110000,"Exports (000's)",'Raw - New'!$J$2:$J$110000,X$1,'Raw - New'!$E$2:$E$110000,$E53) -> 79 | Y53: =SUMIFS('Raw - New'!$I$2:$I$110000,'Raw - New'!$C$2:$C$110000,$B53,'Raw - New'!$F$2:$F$110000,"Exports (000's)",'Raw - New'!$J$2:$J$110000,Y$1,'Raw - New'!$E$2:$E$110000,$E53) -> 711 | Z53: =SUMIFS('Raw - New'!$I$2:$I$110000,'Raw - New'!$C$2:$C$110000,$B53,'Raw - New'!$F$2:$F$110000,"Exports (000's)",'Raw - New'!$J$2:$J$110000,Z$1,'Raw - New'!$E$2:$E$110000,$E53) -> 346 | AA53: 171 | AB53: 86 | AC53: 188 | AD53: 337 | AE53: 1162 | AF53: =IFERROR(VLOOKUP(B53,Selection!$Y$2:$AB$107,4,FALSE),0) -> 0
A54: European Community | B54: Austria | C54: Europe and Russia | D54: 7 - Machinery & transport equipment | E54: 77 - Ele machinery, app & appliances & ele pt thereof n.e.s. | F54: Austria77 - Ele machinery, app & appliances & ele pt thereof n.e.s. | G54: =SUMIFS('Raw - New'!$I$2:$I$110000,'Raw - New'!$C$2:$C$110000,$B54,'Raw - New'!$F$2:$F$110000,"Exports (000's)",'Raw - New'!$J$2:$J$110000,G$1,'Raw - New'!$E$2:$E$110000,$E54) -> 168 | H54: =SUMIFS('Raw - New'!$I$2:$I$110000,'Raw - New'!$C$2:$C$110000,$B54,'Raw - New'!$F$2:$F$110000,"Exports (000's)",'Raw - New'!$J$2:$J$110000,H$1,'Raw - New'!$E$2:$E$110000,$E54) -> 235 | I54: =SUMIFS('Raw - New'!$I$2:$I$110000,'Raw - New'!$C$2:$C$110000,$B54,'Raw - New'!$F$2:$F$110000,"Exports (000's)",'Raw - New'!$J$2:$J$110000,I$1,'Raw - New'!$E$2:$E$110000,$E54) -> 384 | J54: =SUMIFS('Raw - New'!$I$2:$I$110000,'Raw - New'!$C$2:$C$110000,$B54,'Raw - New'!$F$2:$F$110000,"Exports (000's)",'Raw - New'!$J$2:$J$110000,J$1,'Raw - New'!$E$2:$E$110000,$E54) -> 169 | K54: =SUMIFS('Raw - New'!$I$2:$I$110000,'Raw - New'!$C$2:$C$110000,$B54,'Raw - New'!$F$2:$F$110000,"Exports (000's)",'Raw - New'!$J$2:$J$110000,K$1,'Raw - New'!$E$2:$E$110000,$E54) -> 260 | L54: =SUMIFS('Raw - New'!$I$2:$I$110000,'Raw - New'!$C$2:$C$110000,$B54,'Raw - New'!$F$2:$F$110000,"Exports (000's)",'Raw - New'!$J$2:$J$110000,L$1,'Raw - New'!$E$2:$E$110000,$E54) -> 151 | M54: =SUMIFS('Raw - New'!$I$2:$I$110000,'Raw - New'!$C$2:$C$110000,$B54,'Raw - New'!$F$2:$F$110000,"Exports (000's)",'Raw - New'!$J$2:$J$110000,M$1,'Raw - New'!$E$2:$E$110000,$E54) -> 141 | N54: =SUMIFS('Raw - New'!$I$2:$I$110000,'Raw - New'!$C$2:$C$110000,$B54,'Raw - New'!$F$2:$F$110000,"Exports (000's)",'Raw - New'!$J$2:$J$110000,N$1,'Raw - New'!$E$2:$E$110000,$E54) -> 58 | O54: =SUMIFS('Raw - New'!$I$2:$I$110000,'Raw - New'!$C$2:$C$110000,$B54,'Raw - New'!$F$2:$F$110000,"Exports (000's)",'Raw - New'!$J$2:$J$110000,O$1,'Raw - New'!$E$2:$E$110000,$E54) -> 89 | P54: =SUMIFS('Raw - New'!$I$2:$I$110000,'Raw - New'!$C$2:$C$110000,$B54,'Raw - New'!$F$2:$F$110000,"Exports (000's)",'Raw - New'!$J$2:$J$110000,P$1,'Raw - New'!$E$2:$E$110000,$E54) -> 76 | Q54: =SUMIFS('Raw - New'!$I$2:$I$110000,'Raw - New'!$C$2:$C$110000,$B54,'Raw - New'!$F$2:$F$110000,"Exports (000's)",'Raw - New'!$J$2:$J$110000,Q$1,'Raw - New'!$E$2:$E$110000,$E54) -> 100 | R54: =SUMIFS('Raw - New'!$I$2:$I$110000,'Raw - New'!$C$2:$C$110000,$B54,'Raw - New'!$F$2:$F$110000,"Exports (000's)",'Raw - New'!$J$2:$J$110000,R$1,'Raw - New'!$E$2:$E$110000,$E54) -> 84 | S54: =SUMIFS('Raw - New'!$I$2:$I$110000,'Raw - New'!$C$2:$C$110000,$B54,'Raw - New'!$F$2:$F$110000,"Exports (000's)",'Raw - New'!$J$2:$J$110000,S$1,'Raw - New'!$E$2:$E$110000,$E54) -> 152 | T54: =SUMIFS('Raw - New'!$I$2:$I$110000,'Raw - New'!$C$2:$C$110000,$B54,'Raw - New'!$F$2:$F$110000,"Exports (000's)",'Raw - New'!$J$2:$J$110000,T$1,'Raw - New'!$E$2:$E$110000,$E54) -> 131 | U54: =SUMIFS('Raw - New'!$I$2:$I$110000,'Raw - New'!$C$2:$C$110000,$B54,'Raw - New'!$F$2:$F$110000,"Exports (000's)",'Raw - New'!$J$2:$J$110000,U$1,'Raw - New'!$E$2:$E$110000,$E54) -> 211 | V54: =SUMIFS('Raw - New'!$I$2:$I$110000,'Raw - New'!$C$2:$C$110000,$B54,'Raw - New'!$F$2:$F$110000,"Exports (000's)",'Raw - New'!$J$2:$J$110000,V$1,'Raw - New'!$E$2:$E$110000,$E54) -> 197 | W54: =SUMIFS('Raw - New'!$I$2:$I$110000,'Raw - New'!$C$2:$C$110000,$B54,'Raw - New'!$F$2:$F$110000,"Exports (000's)",'Raw - New'!$J$2:$J$110000,W$1,'Raw - New'!$E$2:$E$110000,$E54) -> 226 | X54: =SUMIFS('Raw - New'!$I$2:$I$110000,'Raw - New'!$C$2:$C$110000,$B54,'Raw - New'!$F$2:$F$110000,"Exports (000's)",'Raw - New'!$J$2:$J$110000,X$1,'Raw - New'!$E$2:$E$110000,$E54) -> 164 | Y54: =SUMIFS('Raw - New'!$I$2:$I$110000,'Raw - New'!$C$2:$C$110000,$B54,'Raw - New'!$F$2:$F$110000,"Exports (000's)",'Raw - New'!$J$2:$J$110000,Y$1,'Raw - New'!$E$2:$E$110000,$E54) -> 298 | Z54: =SUMIFS('Raw - New'!$I$2:$I$110000,'Raw - New'!$C$2:$C$110000,$B54,'Raw - New'!$F$2:$F$110000,"Exports (000's)",'Raw - New'!$J$2:$J$110000,Z$1,'Raw - New'!$E$2:$E$110000,$E54) -> 210 | AA54: 956 | AB54: 610 | AC54: 349 | AD54: 691 | AE54: 898 | AF54: =IFERROR(VLOOKUP(B54,Selection!$Y$2:$AB$107,4,FALSE),0) -> 0
A55: European Community | B55: Austria | C55: Europe and Russia | D55: 7 - Machinery & transport equipment | E55: 78 - Road vehicles (including air cushion vehicles) | F55: Austria78 - Road vehicles (including air cushion vehicles) | G55: =SUMIFS('Raw - New'!$I$2:$I$110000,'Raw - New'!$C$2:$C$110000,$B55,'Raw - New'!$F$2:$F$110000,"Exports (000's)",'Raw - New'!$J$2:$J$110000,G$1,'Raw - New'!$E$2:$E$110000,$E55) -> 140 | H55: =SUMIFS('Raw - New'!$I$2:$I$110000,'Raw - New'!$C$2:$C$110000,$B55,'Raw - New'!$F$2:$F$110000,"Exports (000's)",'Raw - New'!$J$2:$J$110000,H$1,'Raw - New'!$E$2:$E$110000,$E55) -> 88 | I55: =SUMIFS('Raw - New'!$I$2:$I$110000,'Raw - New'!$C$2:$C$110000,$B55,'Raw - New'!$F$2:$F$110000,"Exports (000's)",'Raw - New'!$J$2:$J$110000,I$1,'Raw - New'!$E$2:$E$110000,$E55) -> 98 | J55: =SUMIFS('Raw - New'!$I$2:$I$110000,'Raw - New'!$C$2:$C$110000,$B55,'Raw - New'!$F$2:$F$110000,"Exports (000's)",'Raw - New'!$J$2:$J$110000,J$1,'Raw - New'!$E$2:$E$110000,$E55) -> 68 | K55: =SUMIFS('Raw - New'!$I$2:$I$110000,'Raw - New'!$C$2:$C$110000,$B55,'Raw - New'!$F$2:$F$110000,"Exports (000's)",'Raw - New'!$J$2:$J$110000,K$1,'Raw - New'!$E$2:$E$110000,$E55) -> 357 | L55: =SUMIFS('Raw - New'!$I$2:$I$110000,'Raw - New'!$C$2:$C$110000,$B55,'Raw - New'!$F$2:$F$110000,"Exports (000's)",'Raw - New'!$J$2:$J$110000,L$1,'Raw - New'!$E$2:$E$110000,$E55) -> 64 | M55: =SUMIFS('Raw - New'!$I$2:$I$110000,'Raw - New'!$C$2:$C$110000,$B55,'Raw - New'!$F$2:$F$110000,"Exports (000's)",'Raw - New'!$J$2:$J$110000,M$1,'Raw - New'!$E$2:$E$110000,$E55) -> 169 | N55: =SUMIFS('Raw - New'!$I$2:$I$110000,'Raw - New'!$C$2:$C$110000,$B55,'Raw - New'!$F$2:$F$110000,"Exports (000's)",'Raw - New'!$J$2:$J$110000,N$1,'Raw - New'!$E$2:$E$110000,$E55) -> 126 | O55: =SUMIFS('Raw - New'!$I$2:$I$110000,'Raw - New'!$C$2:$C$110000,$B55,'Raw - New'!$F$2:$F$110000,"Exports (000's)",'Raw - New'!$J$2:$J$110000,O$1,'Raw - New'!$E$2:$E$110000,$E55) -> 36 | P55: =SUMIFS('Raw - New'!$I$2:$I$110000,'Raw - New'!$C$2:$C$110000,$B55,'Raw - New'!$F$2:$F$110000,"Exports (000's)",'Raw - New'!$J$2:$J$110000,P$1,'Raw - New'!$E$2:$E$110000,$E55) -> 88 | Q55: =SUMIFS('Raw - New'!$I$2:$I$110000,'Raw - New'!$C$2:$C$110000,$B55,'Raw - New'!$F$2:$F$110000,"Exports (000's)",'Raw - New'!$J$2:$J$110000,Q$1,'Raw - New'!$E$2:$E$110000,$E55) -> 20 | R55: =SUMIFS('Raw - New'!$I$2:$I$110000,'Raw - New'!$C$2:$C$110000,$B55,'Raw - New'!$F$2:$F$110000,"Exports (000's)",'Raw - New'!$J$2:$J$110000,R$1,'Raw - New'!$E$2:$E$110000,$E55) -> 50 | S55: =SUMIFS('Raw - New'!$I$2:$I$110000,'Raw - New'!$C$2:$C$110000,$B55,'Raw - New'!$F$2:$F$110000,"Exports (000's)",'Raw - New'!$J$2:$J$110000,S$1,'Raw - New'!$E$2:$E$110000,$E55) -> 253 | T55: =SUMIFS('Raw - New'!$I$2:$I$110000,'Raw - New'!$C$2:$C$110000,$B55,'Raw - New'!$F$2:$F$110000,"Exports (000's)",'Raw - New'!$J$2:$J$110000,T$1,'Raw - New'!$E$2:$E$110000,$E55) -> 315 | U55: =SUMIFS('Raw - New'!$I$2:$I$110000,'Raw - New'!$C$2:$C$110000,$B55,'Raw - New'!$F$2:$F$110000,"Exports (000's)",'Raw - New'!$J$2:$J$110000,U$1,'Raw - New'!$E$2:$E$110000,$E55) -> 379 | V55: =SUMIFS('Raw - New'!$I$2:$I$110000,'Raw - New'!$C$2:$C$110000,$B55,'Raw - New'!$F$2:$F$110000,"Exports (000's)",'Raw - New'!$J$2:$J$110000,V$1,'Raw - New'!$E$2:$E$110000,$E55) -> 171 | W55: =SUMIFS('Raw - New'!$I$2:$I$110000,'Raw - New'!$C$2:$C$110000,$B55,'Raw - New'!$F$2:$F$110000,"Exports (000's)",'Raw - New'!$J$2:$J$110000,W$1,'Raw - New'!$E$2:$E$110000,$E55) -> 103 | X55: =SUMIFS('Raw - New'!$I$2:$I$110000,'Raw - New'!$C$2:$C$110000,$B55,'Raw - New'!$F$2:$F$110000,"Exports (000's)",'Raw - New'!$J$2:$J$110000,X$1,'Raw - New'!$E$2:$E$110000,$E55) -> 172 | Y55: =SUMIFS('Raw - New'!$I$2:$I$110000,'Raw - New'!$C$2:$C$110000,$B55,'Raw - New'!$F$2:$F$110000,"Exports (000's)",'Raw - New'!$J$2:$J$110000,Y$1,'Raw - New'!$E$2:$E$110000,$E55) -> 89 | Z55: =SUMIFS('Raw - New'!$I$2:$I$110000,'Raw - New'!$C$2:$C$110000,$B55,'Raw - New'!$F$2:$F$110000,"Exports (000's)",'Raw - New'!$J$2:$J$110000,Z$1,'Raw - New'!$E$2:$E$110000,$E55) -> 139 | AA55: 394 | AB55: 716 | AC55: 194 | AD55: 1118 | AE55: 503 | AF55: =IFERROR(VLOOKUP(B55,Selection!$Y$2:$AB$107,4,FALSE),0) -> 0
A56: European Community | B56: Austria | C56: Europe and Russia | D56: 7 - Machinery & transport equipment | E56: 79 - Other transport equipment | F56: Austria79 - Other transport equipment | G56: =SUMIFS('Raw - New'!$I$2:$I$110000,'Raw - New'!$C$2:$C$110000,$B56,'Raw - New'!$F$2:$F$110000,"Exports (000's)",'Raw - New'!$J$2:$J$110000,G$1,'Raw - New'!$E$2:$E$110000,$E56) -> 265 | H56: =SUMIFS('Raw - New'!$I$2:$I$110000,'Raw - New'!$C$2:$C$110000,$B56,'Raw - New'!$F$2:$F$110000,"Exports (000's)",'Raw - New'!$J$2:$J$110000,H$1,'Raw - New'!$E$2:$E$110000,$E56) -> 101 | I56: =SUMIFS('Raw - New'!$I$2:$I$110000,'Raw - New'!$C$2:$C$110000,$B56,'Raw - New'!$F$2:$F$110000,"Exports (000's)",'Raw - New'!$J$2:$J$110000,I$1,'Raw - New'!$E$2:$E$110000,$E56) -> 42 | J56: =SUMIFS('Raw - New'!$I$2:$I$110000,'Raw - New'!$C$2:$C$110000,$B56,'Raw - New'!$F$2:$F$110000,"Exports (000's)",'Raw - New'!$J$2:$J$110000,J$1,'Raw - New'!$E$2:$E$110000,$E56) -> 98 | K56: =SUMIFS('Raw - New'!$I$2:$I$110000,'Raw - New'!$C$2:$C$110000,$B56,'Raw - New'!$F$2:$F$110000,"Exports (000's)",'Raw - New'!$J$2:$J$110000,K$1,'Raw - New'!$E$2:$E$110000,$E56) -> 104 | L56: =SUMIFS('Raw - New'!$I$2:$I$110000,'Raw - New'!$C$2:$C$110000,$B56,'Raw - New'!$F$2:$F$110000,"Exports (000's)",'Raw - New'!$J$2:$J$110000,L$1,'Raw - New'!$E$2:$E$110000,$E56) -> 74 | M56: =SUMIFS('Raw - New'!$I$2:$I$110000,'Raw - New'!$C$2:$C$110000,$B56,'Raw - New'!$F$2:$F$110000,"Exports (000's)",'Raw - New'!$J$2:$J$110000,M$1,'Raw - New'!$E$2:$E$110000,$E56) -> 96 | N56: =SUMIFS('Raw - New'!$I$2:$I$110000,'Raw - New'!$C$2:$C$110000,$B56,'Raw - New'!$F$2:$F$110000,"Exports (000's)",'Raw - New'!$J$2:$J$110000,N$1,'Raw - New'!$E$2:$E$110000,$E56) -> 109 | O56: =SUMIFS('Raw - New'!$I$2:$I$110000,'Raw - New'!$C$2:$C$110000,$B56,'Raw - New'!$F$2:$F$110000,"Exports (000's)",'Raw - New'!$J$2:$J$110000,O$1,'Raw - New'!$E$2:$E$110000,$E56) -> 27 | P56: =SUMIFS('Raw - New'!$I$2:$I$110000,'Raw - New'!$C$2:$C$110000,$B56,'Raw - New'!$F$2:$F$110000,"Exports (000's)",'Raw - New'!$J$2:$J$110000,P$1,'Raw - New'!$E$2:$E$110000,$E56) -> 102 | Q56: =SUMIFS('Raw - New'!$I$2:$I$110000,'Raw - New'!$C$2:$C$110000,$B56,'Raw - New'!$F$2:$F$110000,"Exports (000's)",'Raw - New'!$J$2:$J$110000,Q$1,'Raw - New'!$E$2:$E$110000,$E56) -> 124 | R56: =SUMIFS('Raw - New'!$I$2:$I$110000,'Raw - New'!$C$2:$C$110000,$B56,'Raw - New'!$F$2:$F$110000,"Exports (000's)",'Raw - New'!$J$2:$J$110000,R$1,'Raw - New'!$E$2:$E$110000,$E56) -> 81 | S56: =SUMIFS('Raw - New'!$I$2:$I$110000,'Raw - New'!$C$2:$C$110000,$B56,'Raw - New'!$F$2:$F$110000,"Exports (000's)",'Raw - New'!$J$2:$J$110000,S$1,'Raw - New'!$E$2:$E$110000,$E56) -> 71 | T56: =SUMIFS('Raw - New'!$I$2:$I$110000,'Raw - New'!$C$2:$C$110000,$B56,'Raw - New'!$F$2:$F$110000,"Exports (000's)",'Raw - New'!$J$2:$J$110000,T$1,'Raw - New'!$E$2:$E$110000,$E56) -> 73 | U56: =SUMIFS('Raw - New'!$I$2:$I$110000,'Raw - New'!$C$2:$C$110000,$B56,'Raw - New'!$F$2:$F$110000,"Exports (000's)",'Raw - New'!$J$2:$J$110000,U$1,'Raw - New'!$E$2:$E$110000,$E56) -> 12 | V56: =SUMIFS('Raw - New'!$I$2:$I$110000,'Raw - New'!$C$2:$C$110000,$B56,'Raw - New'!$F$2:$F$110000,"Exports (000's)",'Raw - New'!$J$2:$J$110000,V$1,'Raw - New'!$E$2:$E$110000,$E56) -> 8 | W56: =SUMIFS('Raw - New'!$I$2:$I$110000,'Raw - New'!$C$2:$C$110000,$B56,'Raw - New'!$F$2:$F$110000,"Exports (000's)",'Raw - New'!$J$2:$J$110000,W$1,'Raw - New'!$E$2:$E$110000,$E56) -> 33 | X56: =SUMIFS('Raw - New'!$I$2:$I$110000,'Raw - New'!$C$2:$C$110000,$B56,'Raw - New'!$F$2:$F$110000,"Exports (000's)",'Raw - New'!$J$2:$J$110000,X$1,'Raw - New'!$E$2:$E$110000,$E56) -> 4 | Y56: =SUMIFS('Raw - New'!$I$2:$I$110000,'Raw - New'!$C$2:$C$110000,$B56,'Raw - New'!$F$2:$F$110000,"Exports (000's)",'Raw - New'!$J$2:$J$110000,Y$1,'Raw - New'!$E$2:$E$110000,$E56) -> 2 | Z56: =SUMIFS('Raw - New'!$I$2:$I$110000,'Raw - New'!$C$2:$C$110000,$B56,'Raw - New'!$F$2:$F$110000,"Exports (000's)",'Raw - New'!$J$2:$J$110000,Z$1,'Raw - New'!$E$2:$E$110000,$E56) -> 131 | AA56: 506 | AB56: 383 | AC56: 334 | AD56: 164 | AE56: 170 | AF56: =IFERROR(VLOOKUP(B56,Selection!$Y$2:$AB$107,4,FALSE),0) -> 0
A57: European Community | B57: Austria | C57: Europe and Russia | D57: 8 - Miscellaneous manufactured articles | E57: 81 - P/fab buildings;sanit.,plumbing,heating &lighting fixt. | F57: Austria81 - P/fab buildings;sanit.,plumbing,heating &lighting fixt. | G57: =SUMIFS('Raw - New'!$I$2:$I$110000,'Raw - New'!$C$2:$C$110000,$B57,'Raw - New'!$F$2:$F$110000,"Exports (000's)",'Raw - New'!$J$2:$J$110000,G$1,'Raw - New'!$E$2:$E$110000,$E57) -> 21 | H57: =SUMIFS('Raw - New'!$I$2:$I$110000,'Raw - New'!$C$2:$C$110000,$B57,'Raw - New'!$F$2:$F$110000,"Exports (000's)",'Raw - New'!$J$2:$J$110000,H$1,'Raw - New'!$E$2:$E$110000,$E57) -> 23 | I57: =SUMIFS('Raw - New'!$I$2:$I$110000,'Raw - New'!$C$2:$C$110000,$B57,'Raw - New'!$F$2:$F$110000,"Exports (000's)",'Raw - New'!$J$2:$J$110000,I$1,'Raw - New'!$E$2:$E$110000,$E57) -> 47 | J57: =SUMIFS('Raw - New'!$I$2:$I$110000,'Raw - New'!$C$2:$C$110000,$B57,'Raw - New'!$F$2:$F$110000,"Exports (000's)",'Raw - New'!$J$2:$J$110000,J$1,'Raw - New'!$E$2:$E$110000,$E57) -> 57 | K57: =SUMIFS('Raw - New'!$I$2:$I$110000,'Raw - New'!$C$2:$C$110000,$B57,'Raw - New'!$F$2:$F$110000,"Exports (000's)",'Raw - New'!$J$2:$J$110000,K$1,'Raw - New'!$E$2:$E$110000,$E57) -> 67 | L57: =SUMIFS('Raw - New'!$I$2:$I$110000,'Raw - New'!$C$2:$C$110000,$B57,'Raw - New'!$F$2:$F$110000,"Exports (000's)",'Raw - New'!$J$2:$J$110000,L$1,'Raw - New'!$E$2:$E$110000,$E57) -> 54 | M57: =SUMIFS('Raw - New'!$I$2:$I$110000,'Raw - New'!$C$2:$C$110000,$B57,'Raw - New'!$F$2:$F$110000,"Exports (000's)",'Raw - New'!$J$2:$J$110000,M$1,'Raw - New'!$E$2:$E$110000,$E57) -> 87 | N57: =SUMIFS('Raw - New'!$I$2:$I$110000,'Raw - New'!$C$2:$C$110000,$B57,'Raw - New'!$F$2:$F$110000,"Exports (000's)",'Raw - New'!$J$2:$J$110000,N$1,'Raw - New'!$E$2:$E$110000,$E57) -> 88 | O57: =SUMIFS('Raw - New'!$I$2:$I$110000,'Raw - New'!$C$2:$C$110000,$B57,'Raw - New'!$F$2:$F$110000,"Exports (000's)",'Raw - New'!$J$2:$J$110000,O$1,'Raw - New'!$E$2:$E$110000,$E57) -> 81 | P57: =SUMIFS('Raw - New'!$I$2:$I$110000,'Raw - New'!$C$2:$C$110000,$B57,'Raw - New'!$F$2:$F$110000,"Exports (000's)",'Raw - New'!$J$2:$J$110000,P$1,'Raw - New'!$E$2:$E$110000,$E57) -> 83 | Q57: =SUMIFS('Raw - New'!$I$2:$I$110000,'Raw - New'!$C$2:$C$110000,$B57,'Raw - New'!$F$2:$F$110000,"Exports (000's)",'Raw - New'!$J$2:$J$110000,Q$1,'Raw - New'!$E$2:$E$110000,$E57) -> 77 | R57: =SUMIFS('Raw - New'!$I$2:$I$110000,'Raw - New'!$C$2:$C$110000,$B57,'Raw - New'!$F$2:$F$110000,"Exports (000's)",'Raw - New'!$J$2:$J$110000,R$1,'Raw - New'!$E$2:$E$110000,$E57) -> 83 | S57: =SUMIFS('Raw - New'!$I$2:$I$110000,'Raw - New'!$C$2:$C$110000,$B57,'Raw - New'!$F$2:$F$110000,"Exports (000's)",'Raw - New'!$J$2:$J$110000,S$1,'Raw - New'!$E$2:$E$110000,$E57) -> 72 | T57: =SUMIFS('Raw - New'!$I$2:$I$110000,'Raw - New'!$C$2:$C$110000,$B57,'Raw - New'!$F$2:$F$110000,"Exports (000's)",'Raw - New'!$J$2:$J$110000,T$1,'Raw - New'!$E$2:$E$110000,$E57) -> 78 | U57: =SUMIFS('Raw - New'!$I$2:$I$110000,'Raw - New'!$C$2:$C$110000,$B57,'Raw - New'!$F$2:$F$110000,"Exports (000's)",'Raw - New'!$J$2:$J$110000,U$1,'Raw - New'!$E$2:$E$110000,$E57) -> 91 | V57: =SUMIFS('Raw - New'!$I$2:$I$110000,'Raw - New'!$C$2:$C$110000,$B57,'Raw - New'!$F$2:$F$110000,"Exports (000's)",'Raw - New'!$J$2:$J$110000,V$1,'Raw - New'!$E$2:$E$110000,$E57) -> 113 | W57: =SUMIFS('Raw - New'!$I$2:$I$110000,'Raw - New'!$C$2:$C$110000,$B57,'Raw - New'!$F$2:$F$110000,"Exports (000's)",'Raw - New'!$J$2:$J$110000,W$1,'Raw - New'!$E$2:$E$110000,$E57) -> 58 | X57: =SUMIFS('Raw - New'!$I$2:$I$110000,'Raw - New'!$C$2:$C$110000,$B57,'Raw - New'!$F$2:$F$110000,"Exports (000's)",'Raw - New'!$J$2:$J$110000,X$1,'Raw - New'!$E$2:$E$110000,$E57) -> 61 | Y57: =SUMIFS('Raw - New'!$I$2:$I$110000,'Raw - New'!$C$2:$C$110000,$B57,'Raw - New'!$F$2:$F$110000,"Exports (000's)",'Raw - New'!$J$2:$J$110000,Y$1,'Raw - New'!$E$2:$E$110000,$E57) -> 57 | Z57: =SUMIFS('Raw - New'!$I$2:$I$110000,'Raw - New'!$C$2:$C$110000,$B57,'Raw - New'!$F$2:$F$110000,"Exports (000's)",'Raw - New'!$J$2:$J$110000,Z$1,'Raw - New'!$E$2:$E$110000,$E57) -> 82 | AA57: 148 | AB57: 296 | AC57: 324 | AD57: 354 | AE57: 258 | AF57: =IFERROR(VLOOKUP(B57,Selection!$Y$2:$AB$107,4,FALSE),0) -> 0
A58: European Community | B58: Austria | C58: Europe and Russia | D58: 8 - Miscellaneous manufactured articles | E58: 82 - Furniture & parts thereof; bedding, mattresses etc | F58: Austria82 - Furniture & parts thereof; bedding, mattresses etc | G58: =SUMIFS('Raw - New'!$I$2:$I$110000,'Raw - New'!$C$2:$C$110000,$B58,'Raw - New'!$F$2:$F$110000,"Exports (000's)",'Raw - New'!$J$2:$J$110000,G$1,'Raw - New'!$E$2:$E$110000,$E58) -> 582 | H58: =SUMIFS('Raw - New'!$I$2:$I$110000,'Raw - New'!$C$2:$C$110000,$B58,'Raw - New'!$F$2:$F$110000,"Exports (000's)",'Raw - New'!$J$2:$J$110000,H$1,'Raw - New'!$E$2:$E$110000,$E58) -> 312 | I58: =SUMIFS('Raw - New'!$I$2:$I$110000,'Raw - New'!$C$2:$C$110000,$B58,'Raw - New'!$F$2:$F$110000,"Exports (000's)",'Raw - New'!$J$2:$J$110000,I$1,'Raw - New'!$E$2:$E$110000,$E58) -> 174 | J58: =SUMIFS('Raw - New'!$I$2:$I$110000,'Raw - New'!$C$2:$C$110000,$B58,'Raw - New'!$F$2:$F$110000,"Exports (000's)",'Raw - New'!$J$2:$J$110000,J$1,'Raw - New'!$E$2:$E$110000,$E58) -> 215 | K58: =SUMIFS('Raw - New'!$I$2:$I$110000,'Raw - New'!$C$2:$C$110000,$B58,'Raw - New'!$F$2:$F$110000,"Exports (000's)",'Raw - New'!$J$2:$J$110000,K$1,'Raw - New'!$E$2:$E$110000,$E58) -> 146 | L58: =SUMIFS('Raw - New'!$I$2:$I$110000,'Raw - New'!$C$2:$C$110000,$B58,'Raw - New'!$F$2:$F$110000,"Exports (000's)",'Raw - New'!$J$2:$J$110000,L$1,'Raw - New'!$E$2:$E$110000,$E58) -> 50 | M58: =SUMIFS('Raw - New'!$I$2:$I$110000,'Raw - New'!$C$2:$C$110000,$B58,'Raw - New'!$F$2:$F$110000,"Exports (000's)",'Raw - New'!$J$2:$J$110000,M$1,'Raw - New'!$E$2:$E$110000,$E58) -> 102 | N58: =SUMIFS('Raw - New'!$I$2:$I$110000,'Raw - New'!$C$2:$C$110000,$B58,'Raw - New'!$F$2:$F$110000,"Exports (000's)",'Raw - New'!$J$2:$J$110000,N$1,'Raw - New'!$E$2:$E$110000,$E58) -> 3 | O58: =SUMIFS('Raw - New'!$I$2:$I$110000,'Raw - New'!$C$2:$C$110000,$B58,'Raw - New'!$F$2:$F$110000,"Exports (000's)",'Raw - New'!$J$2:$J$110000,O$1,'Raw - New'!$E$2:$E$110000,$E58) -> 1 | P58: =SUMIFS('Raw - New'!$I$2:$I$110000,'Raw - New'!$C$2:$C$110000,$B58,'Raw - New'!$F$2:$F$110000,"Exports (000's)",'Raw - New'!$J$2:$J$110000,P$1,'Raw - New'!$E$2:$E$110000,$E58) -> 0 | Q58: =SUMIFS('Raw - New'!$I$2:$I$110000,'Raw - New'!$C$2:$C$110000,$B58,'Raw - New'!$F$2:$F$110000,"Exports (000's)",'Raw - New'!$J$2:$J$110000,Q$1,'Raw - New'!$E$2:$E$110000,$E58) -> 4 | R58: =SUMIFS('Raw - New'!$I$2:$I$110000,'Raw - New'!$C$2:$C$110000,$B58,'Raw - New'!$F$2:$F$110000,"Exports (000's)",'Raw - New'!$J$2:$J$110000,R$1,'Raw - New'!$E$2:$E$110000,$E58) -> 11 | S58: =SUMIFS('Raw - New'!$I$2:$I$110000,'Raw - New'!$C$2:$C$110000,$B58,'Raw - New'!$F$2:$F$110000,"Exports (000's)",'Raw - New'!$J$2:$J$110000,S$1,'Raw - New'!$E$2:$E$110000,$E58) -> 43 | T58: =SUMIFS('Raw - New'!$I$2:$I$110000,'Raw - New'!$C$2:$C$110000,$B58,'Raw - New'!$F$2:$F$110000,"Exports (000's)",'Raw - New'!$J$2:$J$110000,T$1,'Raw - New'!$E$2:$E$110000,$E58) -> 67 | U58: =SUMIFS('Raw - New'!$I$2:$I$110000,'Raw - New'!$C$2:$C$110000,$B58,'Raw - New'!$F$2:$F$110000,"Exports (000's)",'Raw - New'!$J$2:$J$110000,U$1,'Raw - New'!$E$2:$E$110000,$E58) -> 84 | V58: =SUMIFS('Raw - New'!$I$2:$I$110000,'Raw - New'!$C$2:$C$110000,$B58,'Raw - New'!$F$2:$F$110000,"Exports (000's)",'Raw - New'!$J$2:$J$110000,V$1,'Raw - New'!$E$2:$E$110000,$E58) -> 162 | W58: =SUMIFS('Raw - New'!$I$2:$I$110000,'Raw - New'!$C$2:$C$110000,$B58,'Raw - New'!$F$2:$F$110000,"Exports (000's)",'Raw - New'!$J$2:$J$110000,W$1,'Raw - New'!$E$2:$E$110000,$E58) -> 457 | X58: =SUMIFS('Raw - New'!$I$2:$I$110000,'Raw - New'!$C$2:$C$110000,$B58,'Raw - New'!$F$2:$F$110000,"Exports (000's)",'Raw - New'!$J$2:$J$110000,X$1,'Raw - New'!$E$2:$E$110000,$E58) -> 58 | Y58: =SUMIFS('Raw - New'!$I$2:$I$110000,'Raw - New'!$C$2:$C$110000,$B58,'Raw - New'!$F$2:$F$110000,"Exports (000's)",'Raw - New'!$J$2:$J$110000,Y$1,'Raw - New'!$E$2:$E$110000,$E58) -> 88 | Z58: =SUMIFS('Raw - New'!$I$2:$I$110000,'Raw - New'!$C$2:$C$110000,$B58,'Raw - New'!$F$2:$F$110000,"Exports (000's)",'Raw - New'!$J$2:$J$110000,Z$1,'Raw - New'!$E$2:$E$110000,$E58) -> 93 | AA58: 1283 | AB58: 301 | AC58: 16 | AD58: 356 | AE58: 696 | AF58: =IFERROR(VLOOKUP(B58,Selection!$Y$2:$AB$107,4,FALSE),0) -> 0
A59: European Community | B59: Austria | C59: Europe and Russia | D59: 8 - Miscellaneous manufactured articles | E59: 83 - Travel goods, handbags & similar containers | F59: Austria83 - Travel goods, handbags & similar containers | G59: =SUMIFS('Raw - New'!$I$2:$I$110000,'Raw - New'!$C$2:$C$110000,$B59,'Raw - New'!$F$2:$F$110000,"Exports (000's)",'Raw - New'!$J$2:$J$110000,G$1,'Raw - New'!$E$2:$E$110000,$E59) -> 4 | H59: =SUMIFS('Raw - New'!$I$2:$I$110000,'Raw - New'!$C$2:$C$110000,$B59,'Raw - New'!$F$2:$F$110000,"Exports (000's)",'Raw - New'!$J$2:$J$110000,H$1,'Raw - New'!$E$2:$E$110000,$E59) -> 3 | I59: =SUMIFS('Raw - New'!$I$2:$I$110000,'Raw - New'!$C$2:$C$110000,$B59,'Raw - New'!$F$2:$F$110000,"Exports (000's)",'Raw - New'!$J$2:$J$110000,I$1,'Raw - New'!$E$2:$E$110000,$E59) -> 3 | J59: =SUMIFS('Raw - New'!$I$2:$I$110000,'Raw - New'!$C$2:$C$110000,$B59,'Raw - New'!$F$2:$F$110000,"Exports (000's)",'Raw - New'!$J$2:$J$110000,J$1,'Raw - New'!$E$2:$E$110000,$E59) -> 3 | K59: =SUMIFS('Raw - New'!$I$2:$I$110000,'Raw - New'!$C$2:$C$110000,$B59,'Raw - New'!$F$2:$F$110000,"Exports (000's)",'Raw - New'!$J$2:$J$110000,K$1,'Raw - New'!$E$2:$E$110000,$E59) -> 2 | L59: =SUMIFS('Raw - New'!$I$2:$I$110000,'Raw - New'!$C$2:$C$110000,$B59,'Raw - New'!$F$2:$F$110000,"Exports (000's)",'Raw - New'!$J$2:$J$110000,L$1,'Raw - New'!$E$2:$E$110000,$E59) -> 1 | M59: =SUMIFS('Raw - New'!$I$2:$I$110000,'Raw - New'!$C$2:$C$110000,$B59,'Raw - New'!$F$2:$F$110000,"Exports (000's)",'Raw - New'!$J$2:$J$110000,M$1,'Raw - New'!$E$2:$E$110000,$E59) -> 3 | N59: =SUMIFS('Raw - New'!$I$2:$I$110000,'Raw - New'!$C$2:$C$110000,$B59,'Raw - New'!$F$2:$F$110000,"Exports (000's)",'Raw - New'!$J$2:$J$110000,N$1,'Raw - New'!$E$2:$E$110000,$E59) -> 2 | O59: =SUMIFS('Raw - New'!$I$2:$I$110000,'Raw - New'!$C$2:$C$110000,$B59,'Raw - New'!$F$2:$F$110000,"Exports (000's)",'Raw - New'!$J$2:$J$110000,O$1,'Raw - New'!$E$2:$E$110000,$E59) -> 0 | P59: =SUMIFS('Raw - New'!$I$2:$I$110000,'Raw - New'!$C$2:$C$110000,$B59,'Raw - New'!$F$2:$F$110000,"Exports (000's)",'Raw - New'!$J$2:$J$110000,P$1,'Raw - New'!$E$2:$E$110000,$E59) -> 1 | Q59: =SUMIFS('Raw - New'!$I$2:$I$110000,'Raw - New'!$C$2:$C$110000,$B59,'Raw - New'!$F$2:$F$110000,"Exports (000's)",'Raw - New'!$J$2:$J$110000,Q$1,'Raw - New'!$E$2:$E$110000,$E59) -> 1 | R59: =SUMIFS('Raw - New'!$I$2:$I$110000,'Raw - New'!$C$2:$C$110000,$B59,'Raw - New'!$F$2:$F$110000,"Exports (000's)",'Raw - New'!$J$2:$J$110000,R$1,'Raw - New'!$E$2:$E$110000,$E59) -> 0 | S59: =SUMIFS('Raw - New'!$I$2:$I$110000,'Raw - New'!$C$2:$C$110000,$B59,'Raw - New'!$F$2:$F$110000,"Exports (000's)",'Raw - New'!$J$2:$J$110000,S$1,'Raw - New'!$E$2:$E$110000,$E59) -> 3 | T59: =SUMIFS('Raw - New'!$I$2:$I$110000,'Raw - New'!$C$2:$C$110000,$B59,'Raw - New'!$F$2:$F$110000,"Exports (000's)",'Raw - New'!$J$2:$J$110000,T$1,'Raw - New'!$E$2:$E$110000,$E59) -> 1 | U59: =SUMIFS('Raw - New'!$I$2:$I$110000,'Raw - New'!$C$2:$C$110000,$B59,'Raw - New'!$F$2:$F$110000,"Exports (000's)",'Raw - New'!$J$2:$J$110000,U$1,'Raw - New'!$E$2:$E$110000,$E59) -> 2 | V59: =SUMIFS('Raw - New'!$I$2:$I$110000,'Raw - New'!$C$2:$C$110000,$B59,'Raw - New'!$F$2:$F$110000,"Exports (000's)",'Raw - New'!$J$2:$J$110000,V$1,'Raw - New'!$E$2:$E$110000,$E59) -> 2 | W59: =SUMIFS('Raw - New'!$I$2:$I$110000,'Raw - New'!$C$2:$C$110000,$B59,'Raw - New'!$F$2:$F$110000,"Exports (000's)",'Raw - New'!$J$2:$J$110000,W$1,'Raw - New'!$E$2:$E$110000,$E59) -> 1 | X59: =SUMIFS('Raw - New'!$I$2:$I$110000,'Raw - New'!$C$2:$C$110000,$B59,'Raw - New'!$F$2:$F$110000,"Exports (000's)",'Raw - New'!$J$2:$J$110000,X$1,'Raw - New'!$E$2:$E$110000,$E59) -> 0 | Y59: =SUMIFS('Raw - New'!$I$2:$I$110000,'Raw - New'!$C$2:$C$110000,$B59,'Raw - New'!$F$2:$F$110000,"Exports (000's)",'Raw - New'!$J$2:$J$110000,Y$1,'Raw - New'!$E$2:$E$110000,$E59) -> 3 | Z59: =SUMIFS('Raw - New'!$I$2:$I$110000,'Raw - New'!$C$2:$C$110000,$B59,'Raw - New'!$F$2:$F$110000,"Exports (000's)",'Raw - New'!$J$2:$J$110000,Z$1,'Raw - New'!$E$2:$E$110000,$E59) -> 1 | AA59: 13 | AB59: 8 | AC59: 2 | AD59: 8 | AE59: 5 | AF59: =IFERROR(VLOOKUP(B59,Selection!$Y$2:$AB$107,4,FALSE),0) -> 0
A60: European Community | B60: Austria | C60: Europe and Russia | D60: 8 - Miscellaneous manufactured articles | E60: 84 - Articles of apparel & clothing accessories | F60: Austria84 - Articles of apparel & clothing accessories | G60: =SUMIFS('Raw - New'!$I$2:$I$110000,'Raw - New'!$C$2:$C$110000,$B60,'Raw - New'!$F$2:$F$110000,"Exports (000's)",'Raw - New'!$J$2:$J$110000,G$1,'Raw - New'!$E$2:$E$110000,$E60) -> 57 | H60: =SUMIFS('Raw - New'!$I$2:$I$110000,'Raw - New'!$C$2:$C$110000,$B60,'Raw - New'!$F$2:$F$110000,"Exports (000's)",'Raw - New'!$J$2:$J$110000,H$1,'Raw - New'!$E$2:$E$110000,$E60) -> 47 | I60: =SUMIFS('Raw - New'!$I$2:$I$110000,'Raw - New'!$C$2:$C$110000,$B60,'Raw - New'!$F$2:$F$110000,"Exports (000's)",'Raw - New'!$J$2:$J$110000,I$1,'Raw - New'!$E$2:$E$110000,$E60) -> 60 | J60: =SUMIFS('Raw - New'!$I$2:$I$110000,'Raw - New'!$C$2:$C$110000,$B60,'Raw - New'!$F$2:$F$110000,"Exports (000's)",'Raw - New'!$J$2:$J$110000,J$1,'Raw - New'!$E$2:$E$110000,$E60) -> 53 | K60: =SUMIFS('Raw - New'!$I$2:$I$110000,'Raw - New'!$C$2:$C$110000,$B60,'Raw - New'!$F$2:$F$110000,"Exports (000's)",'Raw - New'!$J$2:$J$110000,K$1,'Raw - New'!$E$2:$E$110000,$E60) -> 43 | L60: =SUMIFS('Raw - New'!$I$2:$I$110000,'Raw - New'!$C$2:$C$110000,$B60,'Raw - New'!$F$2:$F$110000,"Exports (000's)",'Raw - New'!$J$2:$J$110000,L$1,'Raw - New'!$E$2:$E$110000,$E60) -> 30 | M60: =SUMIFS('Raw - New'!$I$2:$I$110000,'Raw - New'!$C$2:$C$110000,$B60,'Raw - New'!$F$2:$F$110000,"Exports (000's)",'Raw - New'!$J$2:$J$110000,M$1,'Raw - New'!$E$2:$E$110000,$E60) -> 46 | N60: =SUMIFS('Raw - New'!$I$2:$I$110000,'Raw - New'!$C$2:$C$110000,$B60,'Raw - New'!$F$2:$F$110000,"Exports (000's)",'Raw - New'!$J$2:$J$110000,N$1,'Raw - New'!$E$2:$E$110000,$E60) -> 49 | O60: =SUMIFS('Raw - New'!$I$2:$I$110000,'Raw - New'!$C$2:$C$110000,$B60,'Raw - New'!$F$2:$F$110000,"Exports (000's)",'Raw - New'!$J$2:$J$110000,O$1,'Raw - New'!$E$2:$E$110000,$E60) -> 13 | P60: =SUMIFS('Raw - New'!$I$2:$I$110000,'Raw - New'!$C$2:$C$110000,$B60,'Raw - New'!$F$2:$F$110000,"Exports (000's)",'Raw - New'!$J$2:$J$110000,P$1,'Raw - New'!$E$2:$E$110000,$E60) -> 21 | Q60: =SUMIFS('Raw - New'!$I$2:$I$110000,'Raw - New'!$C$2:$C$110000,$B60,'Raw - New'!$F$2:$F$110000,"Exports (000's)",'Raw - New'!$J$2:$J$110000,Q$1,'Raw - New'!$E$2:$E$110000,$E60) -> 43 | R60: =SUMIFS('Raw - New'!$I$2:$I$110000,'Raw - New'!$C$2:$C$110000,$B60,'Raw - New'!$F$2:$F$110000,"Exports (000's)",'Raw - New'!$J$2:$J$110000,R$1,'Raw - New'!$E$2:$E$110000,$E60) -> 9 | S60: =SUMIFS('Raw - New'!$I$2:$I$110000,'Raw - New'!$C$2:$C$110000,$B60,'Raw - New'!$F$2:$F$110000,"Exports (000's)",'Raw - New'!$J$2:$J$110000,S$1,'Raw - New'!$E$2:$E$110000,$E60) -> 14 | T60: =SUMIFS('Raw - New'!$I$2:$I$110000,'Raw - New'!$C$2:$C$110000,$B60,'Raw - New'!$F$2:$F$110000,"Exports (000's)",'Raw - New'!$J$2:$J$110000,T$1,'Raw - New'!$E$2:$E$110000,$E60) -> 11 | U60: =SUMIFS('Raw - New'!$I$2:$I$110000,'Raw - New'!$C$2:$C$110000,$B60,'Raw - New'!$F$2:$F$110000,"Exports (000's)",'Raw - New'!$J$2:$J$110000,U$1,'Raw - New'!$E$2:$E$110000,$E60) -> 23 | V60: =SUMIFS('Raw - New'!$I$2:$I$110000,'Raw - New'!$C$2:$C$110000,$B60,'Raw - New'!$F$2:$F$110000,"Exports (000's)",'Raw - New'!$J$2:$J$110000,V$1,'Raw - New'!$E$2:$E$110000,$E60) -> 27 | W60: =SUMIFS('Raw - New'!$I$2:$I$110000,'Raw - New'!$C$2:$C$110000,$B60,'Raw - New'!$F$2:$F$110000,"Exports (000's)",'Raw - New'!$J$2:$J$110000,W$1,'Raw - New'!$E$2:$E$110000,$E60) -> 27 | X60: =SUMIFS('Raw - New'!$I$2:$I$110000,'Raw - New'!$C$2:$C$110000,$B60,'Raw - New'!$F$2:$F$110000,"Exports (000's)",'Raw - New'!$J$2:$J$110000,X$1,'Raw - New'!$E$2:$E$110000,$E60) -> 24 | Y60: =SUMIFS('Raw - New'!$I$2:$I$110000,'Raw - New'!$C$2:$C$110000,$B60,'Raw - New'!$F$2:$F$110000,"Exports (000's)",'Raw - New'!$J$2:$J$110000,Y$1,'Raw - New'!$E$2:$E$110000,$E60) -> 43 | Z60: =SUMIFS('Raw - New'!$I$2:$I$110000,'Raw - New'!$C$2:$C$110000,$B60,'Raw - New'!$F$2:$F$110000,"Exports (000's)",'Raw - New'!$J$2:$J$110000,Z$1,'Raw - New'!$E$2:$E$110000,$E60) -> 24 | AA60: 217 | AB60: 168 | AC60: 86 | AD60: 75 | AE60: 118 | AF60: =IFERROR(VLOOKUP(B60,Selection!$Y$2:$AB$107,4,FALSE),0) -> 0
A61: European Community | B61: Austria | C61: Europe and Russia | D61: 8 - Miscellaneous manufactured articles | E61: 85 - Footwear | F61: Austria85 - Footwear | G61: =SUMIFS('Raw - New'!$I$2:$I$110000,'Raw - New'!$C$2:$C$110000,$B61,'Raw - New'!$F$2:$F$110000,"Exports (000's)",'Raw - New'!$J$2:$J$110000,G$1,'Raw - New'!$E$2:$E$110000,$E61) -> 18 | H61: =SUMIFS('Raw - New'!$I$2:$I$110000,'Raw - New'!$C$2:$C$110000,$B61,'Raw - New'!$F$2:$F$110000,"Exports (000's)",'Raw - New'!$J$2:$J$110000,H$1,'Raw - New'!$E$2:$E$110000,$E61) -> 14 | I61: =SUMIFS('Raw - New'!$I$2:$I$110000,'Raw - New'!$C$2:$C$110000,$B61,'Raw - New'!$F$2:$F$110000,"Exports (000's)",'Raw - New'!$J$2:$J$110000,I$1,'Raw - New'!$E$2:$E$110000,$E61) -> 18 | J61: =SUMIFS('Raw - New'!$I$2:$I$110000,'Raw - New'!$C$2:$C$110000,$B61,'Raw - New'!$F$2:$F$110000,"Exports (000's)",'Raw - New'!$J$2:$J$110000,J$1,'Raw - New'!$E$2:$E$110000,$E61) -> 18 | K61: =SUMIFS('Raw - New'!$I$2:$I$110000,'Raw - New'!$C$2:$C$110000,$B61,'Raw - New'!$F$2:$F$110000,"Exports (000's)",'Raw - New'!$J$2:$J$110000,K$1,'Raw - New'!$E$2:$E$110000,$E61) -> 11 | L61: =SUMIFS('Raw - New'!$I$2:$I$110000,'Raw - New'!$C$2:$C$110000,$B61,'Raw - New'!$F$2:$F$110000,"Exports (000's)",'Raw - New'!$J$2:$J$110000,L$1,'Raw - New'!$E$2:$E$110000,$E61) -> 9 | M61: =SUMIFS('Raw - New'!$I$2:$I$110000,'Raw - New'!$C$2:$C$110000,$B61,'Raw - New'!$F$2:$F$110000,"Exports (000's)",'Raw - New'!$J$2:$J$110000,M$1,'Raw - New'!$E$2:$E$110000,$E61) -> 13 | N61: =SUMIFS('Raw - New'!$I$2:$I$110000,'Raw - New'!$C$2:$C$110000,$B61,'Raw - New'!$F$2:$F$110000,"Exports (000's)",'Raw - New'!$J$2:$J$110000,N$1,'Raw - New'!$E$2:$E$110000,$E61) -> 10 | O61: =SUMIFS('Raw - New'!$I$2:$I$110000,'Raw - New'!$C$2:$C$110000,$B61,'Raw - New'!$F$2:$F$110000,"Exports (000's)",'Raw - New'!$J$2:$J$110000,O$1,'Raw - New'!$E$2:$E$110000,$E61) -> 9 | P61: =SUMIFS('Raw - New'!$I$2:$I$110000,'Raw - New'!$C$2:$C$110000,$B61,'Raw - New'!$F$2:$F$110000,"Exports (000's)",'Raw - New'!$J$2:$J$110000,P$1,'Raw - New'!$E$2:$E$110000,$E61) -> 5 | Q61: =SUMIFS('Raw - New'!$I$2:$I$110000,'Raw - New'!$C$2:$C$110000,$B61,'Raw - New'!$F$2:$F$110000,"Exports (000's)",'Raw - New'!$J$2:$J$110000,Q$1,'Raw - New'!$E$2:$E$110000,$E61) -> 8 | R61: =SUMIFS('Raw - New'!$I$2:$I$110000,'Raw - New'!$C$2:$C$110000,$B61,'Raw - New'!$F$2:$F$110000,"Exports (000's)",'Raw - New'!$J$2:$J$110000,R$1,'Raw - New'!$E$2:$E$110000,$E61) -> 4 | S61: =SUMIFS('Raw - New'!$I$2:$I$110000,'Raw - New'!$C$2:$C$110000,$B61,'Raw - New'!$F$2:$F$110000,"Exports (000's)",'Raw - New'!$J$2:$J$110000,S$1,'Raw - New'!$E$2:$E$110000,$E61) -> 3 | T61: =SUMIFS('Raw - New'!$I$2:$I$110000,'Raw - New'!$C$2:$C$110000,$B61,'Raw - New'!$F$2:$F$110000,"Exports (000's)",'Raw - New'!$J$2:$J$110000,T$1,'Raw - New'!$E$2:$E$110000,$E61) -> 8 | U61: =SUMIFS('Raw - New'!$I$2:$I$110000,'Raw - New'!$C$2:$C$110000,$B61,'Raw - New'!$F$2:$F$110000,"Exports (000's)",'Raw - New'!$J$2:$J$110000,U$1,'Raw - New'!$E$2:$E$110000,$E61) -> 6 | V61: =SUMIFS('Raw - New'!$I$2:$I$110000,'Raw - New'!$C$2:$C$110000,$B61,'Raw - New'!$F$2:$F$110000,"Exports (000's)",'Raw - New'!$J$2:$J$110000,V$1,'Raw - New'!$E$2:$E$110000,$E61) -> 6 | W61: =SUMIFS('Raw - New'!$I$2:$I$110000,'Raw - New'!$C$2:$C$110000,$B61,'Raw - New'!$F$2:$F$110000,"Exports (000's)",'Raw - New'!$J$2:$J$110000,W$1,'Raw - New'!$E$2:$E$110000,$E61) -> 2 | X61: =SUMIFS('Raw - New'!$I$2:$I$110000,'Raw - New'!$C$2:$C$110000,$B61,'Raw - New'!$F$2:$F$110000,"Exports (000's)",'Raw - New'!$J$2:$J$110000,X$1,'Raw - New'!$E$2:$E$110000,$E61) -> 5 | Y61: =SUMIFS('Raw - New'!$I$2:$I$110000,'Raw - New'!$C$2:$C$110000,$B61,'Raw - New'!$F$2:$F$110000,"Exports (000's)",'Raw - New'!$J$2:$J$110000,Y$1,'Raw - New'!$E$2:$E$110000,$E61) -> 7 | Z61: =SUMIFS('Raw - New'!$I$2:$I$110000,'Raw - New'!$C$2:$C$110000,$B61,'Raw - New'!$F$2:$F$110000,"Exports (000's)",'Raw - New'!$J$2:$J$110000,Z$1,'Raw - New'!$E$2:$E$110000,$E61) -> 4 | AA61: 68 | AB61: 43 | AC61: 26 | AD61: 23 | AE61: 18 | AF61: =IFERROR(VLOOKUP(B61,Selection!$Y$2:$AB$107,4,FALSE),0) -> 0
A62: European Community | B62: Austria | C62: Europe and Russia | D62: 8 - Miscellaneous manufactured articles | E62: 87 - Professional, scientific & controlling ins & app n.e.s. | F62: Austria87 - Professional, scientific & controlling ins & app n.e.s. | G62: =SUMIFS('Raw - New'!$I$2:$I$110000,'Raw - New'!$C$2:$C$110000,$B62,'Raw - New'!$F$2:$F$110000,"Exports (000's)",'Raw - New'!$J$2:$J$110000,G$1,'Raw - New'!$E$2:$E$110000,$E62) -> 99 | H62: =SUMIFS('Raw - New'!$I$2:$I$110000,'Raw - New'!$C$2:$C$110000,$B62,'Raw - New'!$F$2:$F$110000,"Exports (000's)",'Raw - New'!$J$2:$J$110000,H$1,'Raw - New'!$E$2:$E$110000,$E62) -> 84 | I62: =SUMIFS('Raw - New'!$I$2:$I$110000,'Raw - New'!$C$2:$C$110000,$B62,'Raw - New'!$F$2:$F$110000,"Exports (000's)",'Raw - New'!$J$2:$J$110000,I$1,'Raw - New'!$E$2:$E$110000,$E62) -> 165 | J62: =SUMIFS('Raw - New'!$I$2:$I$110000,'Raw - New'!$C$2:$C$110000,$B62,'Raw - New'!$F$2:$F$110000,"Exports (000's)",'Raw - New'!$J$2:$J$110000,J$1,'Raw - New'!$E$2:$E$110000,$E62) -> 76 | K62: =SUMIFS('Raw - New'!$I$2:$I$110000,'Raw - New'!$C$2:$C$110000,$B62,'Raw - New'!$F$2:$F$110000,"Exports (000's)",'Raw - New'!$J$2:$J$110000,K$1,'Raw - New'!$E$2:$E$110000,$E62) -> 58 | L62: =SUMIFS('Raw - New'!$I$2:$I$110000,'Raw - New'!$C$2:$C$110000,$B62,'Raw - New'!$F$2:$F$110000,"Exports (000's)",'Raw - New'!$J$2:$J$110000,L$1,'Raw - New'!$E$2:$E$110000,$E62) -> 67 | M62: =SUMIFS('Raw - New'!$I$2:$I$110000,'Raw - New'!$C$2:$C$110000,$B62,'Raw - New'!$F$2:$F$110000,"Exports (000's)",'Raw - New'!$J$2:$J$110000,M$1,'Raw - New'!$E$2:$E$110000,$E62) -> 78 | N62: =SUMIFS('Raw - New'!$I$2:$I$110000,'Raw - New'!$C$2:$C$110000,$B62,'Raw - New'!$F$2:$F$110000,"Exports (000's)",'Raw - New'!$J$2:$J$110000,N$1,'Raw - New'!$E$2:$E$110000,$E62) -> 98 | O62: =SUMIFS('Raw - New'!$I$2:$I$110000,'Raw - New'!$C$2:$C$110000,$B62,'Raw - New'!$F$2:$F$110000,"Exports (000's)",'Raw - New'!$J$2:$J$110000,O$1,'Raw - New'!$E$2:$E$110000,$E62) -> 177 | P62: =SUMIFS('Raw - New'!$I$2:$I$110000,'Raw - New'!$C$2:$C$110000,$B62,'Raw - New'!$F$2:$F$110000,"Exports (000's)",'Raw - New'!$J$2:$J$110000,P$1,'Raw - New'!$E$2:$E$110000,$E62) -> 224 | Q62: =SUMIFS('Raw - New'!$I$2:$I$110000,'Raw - New'!$C$2:$C$110000,$B62,'Raw - New'!$F$2:$F$110000,"Exports (000's)",'Raw - New'!$J$2:$J$110000,Q$1,'Raw - New'!$E$2:$E$110000,$E62) -> 128 | R62: =SUMIFS('Raw - New'!$I$2:$I$110000,'Raw - New'!$C$2:$C$110000,$B62,'Raw - New'!$F$2:$F$110000,"Exports (000's)",'Raw - New'!$J$2:$J$110000,R$1,'Raw - New'!$E$2:$E$110000,$E62) -> 162 | S62: =SUMIFS('Raw - New'!$I$2:$I$110000,'Raw - New'!$C$2:$C$110000,$B62,'Raw - New'!$F$2:$F$110000,"Exports (000's)",'Raw - New'!$J$2:$J$110000,S$1,'Raw - New'!$E$2:$E$110000,$E62) -> 110 | T62: =SUMIFS('Raw - New'!$I$2:$I$110000,'Raw - New'!$C$2:$C$110000,$B62,'Raw - New'!$F$2:$F$110000,"Exports (000's)",'Raw - New'!$J$2:$J$110000,T$1,'Raw - New'!$E$2:$E$110000,$E62) -> 120 | U62: =SUMIFS('Raw - New'!$I$2:$I$110000,'Raw - New'!$C$2:$C$110000,$B62,'Raw - New'!$F$2:$F$110000,"Exports (000's)",'Raw - New'!$J$2:$J$110000,U$1,'Raw - New'!$E$2:$E$110000,$E62) -> 128 | V62: =SUMIFS('Raw - New'!$I$2:$I$110000,'Raw - New'!$C$2:$C$110000,$B62,'Raw - New'!$F$2:$F$110000,"Exports (000's)",'Raw - New'!$J$2:$J$110000,V$1,'Raw - New'!$E$2:$E$110000,$E62) -> 414 | W62: =SUMIFS('Raw - New'!$I$2:$I$110000,'Raw - New'!$C$2:$C$110000,$B62,'Raw - New'!$F$2:$F$110000,"Exports (000's)",'Raw - New'!$J$2:$J$110000,W$1,'Raw - New'!$E$2:$E$110000,$E62) -> 397 | X62: =SUMIFS('Raw - New'!$I$2:$I$110000,'Raw - New'!$C$2:$C$110000,$B62,'Raw - New'!$F$2:$F$110000,"Exports (000's)",'Raw - New'!$J$2:$J$110000,X$1,'Raw - New'!$E$2:$E$110000,$E62) -> 57 | Y62: =SUMIFS('Raw - New'!$I$2:$I$110000,'Raw - New'!$C$2:$C$110000,$B62,'Raw - New'!$F$2:$F$110000,"Exports (000's)",'Raw - New'!$J$2:$J$110000,Y$1,'Raw - New'!$E$2:$E$110000,$E62) -> 58 | Z62: =SUMIFS('Raw - New'!$I$2:$I$110000,'Raw - New'!$C$2:$C$110000,$B62,'Raw - New'!$F$2:$F$110000,"Exports (000's)",'Raw - New'!$J$2:$J$110000,Z$1,'Raw - New'!$E$2:$E$110000,$E62) -> 55 | AA62: 424 | AB62: 301 | AC62: 691 | AD62: 772 | AE62: 567 | AF62: =IFERROR(VLOOKUP(B62,Selection!$Y$2:$AB$107,4,FALSE),0) -> 0
A63: European Community | B63: Austria | C63: Europe and Russia | D63: 8 - Miscellaneous manufactured articles | E63: 88 - Photographic & optical goods, n.e.s.; watches & clocks | F63: Austria88 - Photographic & optical goods, n.e.s.; watches & clocks | G63: =SUMIFS('Raw - New'!$I$2:$I$110000,'Raw - New'!$C$2:$C$110000,$B63,'Raw - New'!$F$2:$F$110000,"Exports (000's)",'Raw - New'!$J$2:$J$110000,G$1,'Raw - New'!$E$2:$E$110000,$E63) -> 2 | H63: =SUMIFS('Raw - New'!$I$2:$I$110000,'Raw - New'!$C$2:$C$110000,$B63,'Raw - New'!$F$2:$F$110000,"Exports (000's)",'Raw - New'!$J$2:$J$110000,H$1,'Raw - New'!$E$2:$E$110000,$E63) -> 1 | I63: =SUMIFS('Raw - New'!$I$2:$I$110000,'Raw - New'!$C$2:$C$110000,$B63,'Raw - New'!$F$2:$F$110000,"Exports (000's)",'Raw - New'!$J$2:$J$110000,I$1,'Raw - New'!$E$2:$E$110000,$E63) -> 1 | J63: =SUMIFS('Raw - New'!$I$2:$I$110000,'Raw - New'!$C$2:$C$110000,$B63,'Raw - New'!$F$2:$F$110000,"Exports (000's)",'Raw - New'!$J$2:$J$110000,J$1,'Raw - New'!$E$2:$E$110000,$E63) -> 1 | K63: =SUMIFS('Raw - New'!$I$2:$I$110000,'Raw - New'!$C$2:$C$110000,$B63,'Raw - New'!$F$2:$F$110000,"Exports (000's)",'Raw - New'!$J$2:$J$110000,K$1,'Raw - New'!$E$2:$E$110000,$E63) -> 1 | L63: =SUMIFS('Raw - New'!$I$2:$I$110000,'Raw - New'!$C$2:$C$110000,$B63,'Raw - New'!$F$2:$F$110000,"Exports (000's)",'Raw - New'!$J$2:$J$110000,L$1,'Raw - New'!$E$2:$E$110000,$E63) -> 0 | M63: =SUMIFS('Raw - New'!$I$2:$I$110000,'Raw - New'!$C$2:$C$110000,$B63,'Raw - New'!$F$2:$F$110000,"Exports (000's)",'Raw - New'!$J$2:$J$110000,M$1,'Raw - New'!$E$2:$E$110000,$E63) -> 0 | N63: =SUMIFS('Raw - New'!$I$2:$I$110000,'Raw - New'!$C$2:$C$110000,$B63,'Raw - New'!$F$2:$F$110000,"Exports (000's)",'Raw - New'!$J$2:$J$110000,N$1,'Raw - New'!$E$2:$E$110000,$E63) -> 0 | O63: =SUMIFS('Raw - New'!$I$2:$I$110000,'Raw - New'!$C$2:$C$110000,$B63,'Raw - New'!$F$2:$F$110000,"Exports (000's)",'Raw - New'!$J$2:$J$110000,O$1,'Raw - New'!$E$2:$E$110000,$E63) -> 0 | P63: =SUMIFS('Raw - New'!$I$2:$I$110000,'Raw - New'!$C$2:$C$110000,$B63,'Raw - New'!$F$2:$F$110000,"Exports (000's)",'Raw - New'!$J$2:$J$110000,P$1,'Raw - New'!$E$2:$E$110000,$E63) -> 0 | Q63: =SUMIFS('Raw - New'!$I$2:$I$110000,'Raw - New'!$C$2:$C$110000,$B63,'Raw - New'!$F$2:$F$110000,"Exports (000's)",'Raw - New'!$J$2:$J$110000,Q$1,'Raw - New'!$E$2:$E$110000,$E63) -> 0 | R63: =SUMIFS('Raw - New'!$I$2:$I$110000,'Raw - New'!$C$2:$C$110000,$B63,'Raw - New'!$F$2:$F$110000,"Exports (000's)",'Raw - New'!$J$2:$J$110000,R$1,'Raw - New'!$E$2:$E$110000,$E63) -> 0 | S63: =SUMIFS('Raw - New'!$I$2:$I$110000,'Raw - New'!$C$2:$C$110000,$B63,'Raw - New'!$F$2:$F$110000,"Exports (000's)",'Raw - New'!$J$2:$J$110000,S$1,'Raw - New'!$E$2:$E$110000,$E63) -> 0 | T63: =SUMIFS('Raw - New'!$I$2:$I$110000,'Raw - New'!$C$2:$C$110000,$B63,'Raw - New'!$F$2:$F$110000,"Exports (000's)",'Raw - New'!$J$2:$J$110000,T$1,'Raw - New'!$E$2:$E$110000,$E63) -> 0 | U63: =SUMIFS('Raw - New'!$I$2:$I$110000,'Raw - New'!$C$2:$C$110000,$B63,'Raw - New'!$F$2:$F$110000,"Exports (000's)",'Raw - New'!$J$2:$J$110000,U$1,'Raw - New'!$E$2:$E$110000,$E63) -> 0 | V63: =SUMIFS('Raw - New'!$I$2:$I$110000,'Raw - New'!$C$2:$C$110000,$B63,'Raw - New'!$F$2:$F$110000,"Exports (000's)",'Raw - New'!$J$2:$J$110000,V$1,'Raw - New'!$E$2:$E$110000,$E63) -> 0 | W63: =SUMIFS('Raw - New'!$I$2:$I$110000,'Raw - New'!$C$2:$C$110000,$B63,'Raw - New'!$F$2:$F$110000,"Exports (000's)",'Raw - New'!$J$2:$J$110000,W$1,'Raw - New'!$E$2:$E$110000,$E63) -> 0 | X63: =SUMIFS('Raw - New'!$I$2:$I$110000,'Raw - New'!$C$2:$C$110000,$B63,'Raw - New'!$F$2:$F$110000,"Exports (000's)",'Raw - New'!$J$2:$J$110000,X$1,'Raw - New'!$E$2:$E$110000,$E63) -> 1 | Y63: =SUMIFS('Raw - New'!$I$2:$I$110000,'Raw - New'!$C$2:$C$110000,$B63,'Raw - New'!$F$2:$F$110000,"Exports (000's)",'Raw - New'!$J$2:$J$110000,Y$1,'Raw - New'!$E$2:$E$110000,$E63) -> 0 | Z63: =SUMIFS('Raw - New'!$I$2:$I$110000,'Raw - New'!$C$2:$C$110000,$B63,'Raw - New'!$F$2:$F$110000,"Exports (000's)",'Raw - New'!$J$2:$J$110000,Z$1,'Raw - New'!$E$2:$E$110000,$E63) -> 0 | AA63: 5 | AB63: 1 | AC63: 0 | AD63: 0 | AE63: 1 | AF63: =IFERROR(VLOOKUP(B63,Selection!$Y$2:$AB$107,4,FALSE),0) -> 0
